Workbook

Sheet Post Code Degree Days (hidden)
B1: Area | D1: 41.046
B2: CIBSE | C2: degree days | D2: 52 Week | E2: 39 week | F2: 39 Week
A3: AB | B3: -4.2 | C3: 2668 | D3: =SUM(C3/$D$1) -> 65.00024363 | E3: =SUM(C3*95%) -> 2534.6 | F3: =SUM(E3/41.046) -> 61.75023145 | G3: NE Scotland (Dyce) | H3: 8.5
A4: AL | B4: -2 | C4: 2033 | D4: =SUM(C4/$D$1) -> 49.52979584 | E4: =SUM(C4*95%) -> 1931.35 | F4: =SUM(E4/41.046) -> 47.05330605 | G4: Thames Valley (Heathrow) | H4: 11.3
A5: B | B5: -3.4 | C5: 2425 | D5: 59.08005652 | E5: 2303.75 | F5: 56.1260537 | G5: Midland (Elmdon) | H5: 9.8
A6: BA | B6: -1.7 | C6: 1835 | D6: 44.70593968 | E6: 1743.25 | F6: 42.47064269 | G6: Severn Valley (Filton) | H6: 10.6
A7: BB | B7: -2.2 | C7: 2228 | D7: 54.28056327 | E7: 2116.6 | F7: 51.56653511 | G7: W Pennines (Ringway) | H7: 10
A8: BD | B8: -2.5 | C8: 2307 | D8: 56.20523315 | E8: 2191.65 | F8: 53.3949715 | G8: E Pennines (Finningley) | H8: 10
A9: BH | B9: -1.5 | C9: 2224 | D9: 54.18311163 | E9: 2112.8 | F9: 51.47395605 | G9: Southern (Hurn) | H9: 10.4
A10: BL | B10: -2.2 | C10: 2228 | D10: 54.28056327 | E10: 2116.6 | F10: 51.56653511 | G10: W Pennines (Ringway) | H10: 10
A11: BN | B11: -2.1 | C11: 2224 | D11: 54.18311163 | E11: 2112.8 | F11: 51.47395605 | G11: Southern (Hurn) | H11: 10.4
A12: BR | B12: -3.2 | C12: 2255 | D12: 54.93836184 | E12: 2142.25 | F12: 52.19144375 | G12: South-eastern (Gatwick) | H12: 10.2
A13: BS | B13: -1.7 | C13: 1835 | D13: 44.70593968 | E13: 1743.25 | F13: 42.47064269 | G13: Severn Valley (Filton) | H13: 10.6
A14: BT | B14: -1.2 | C14: 2360 | D14: 57.49646738 | E14: 2242 | F14: 54.62164401 | G14: Northern Ireland (Belfast) | H14: 9.4
A15: CA | B15: -3.7 | C15: 2388 | D15: 58.17862886 | E15: 2268.6 | F15: 55.26969741 | G15: North-western (Carlisle) | H15: 9.4
A16: CB | B16: -2.5 | C16: 2033 | D16: 49.52979584 | E16: 1931.35 | F16: 47.05330605 | G16: Thames Valley (Heathrow) | H16: 11.3
A17: CF | B17: -1.6 | C17: 1835 | D17: 44.70593968 | E17: 1743.25 | F17: 42.47064269 | G17: Severn Valley (Filton) | H17: 10.6
A18: CH | B18: -2.2 | C18: 2228 | D18: 54.28056327 | E18: 2116.6 | F18: 51.56653511 | G18: W Pennines (Ringway) | H18: 10
A19: CM | B19: -2.3 | C19: 2033 | D19: 49.52979584 | E19: 1931.35 | F19: 47.05330605 | G19: Thames Valley (Heathrow) | H19: 11.3
A20: CO | B20: -2.3 | C20: 2254 | D20: 54.91399893 | E20: 2141.3 | F20: 52.16829898 | G20: E Anglia (Honington) | H20: 10
A21: CR | B21: -2 | C21: 2224 | D21: 54.18311163 | E21: 2112.8 | F21: 51.47395605 | G21: Southern (Hurn) | H21: 10.4
A22: CT | B22: -3.2 | C22: 2255 | D22: 54.93836184 | E22: 2142.25 | F22: 52.19144375 | G22: South-eastern (Gatwick) | H22: 10.2
A23: CV | B23: -3.4 | C23: 2425 | D23: 59.08005652 | E23: 2303.75 | F23: 56.1260537 | G23: Midland (Elmdon) | H23: 9.8
A24: CW | B24: -2.7 | C24: 2228 | D24: 54.28056327 | E24: 2116.6 | F24: 51.56653511 | G24: W Pennines (Ringway) | H24: 10
A25: DA | B25: -3.2 | C25: 2255 | D25: 54.93836184 | E25: 2142.25 | F25: 52.19144375 | G25: South-eastern (Gatwick) | H25: 10.2
A26: DD | B26: -3.8 | C26: 2577 | D26: 62.78321883 | E26: 2448.15 | F26: 59.64405789 | G26: E Scotland (Leuchars) | H26: 8.8
A27: DE | B27: -2.2 | C27: 2228 | D27: 54.28056327 | E27: 2116.6 | F27: 51.56653511 | G27: W Pennines (Ringway) | H27: 10
A28: DG | B28: -3.8 | C28: 2483 | D28: 60.4931053 | E28: 2358.85 | F28: 57.46845003 | G28: Borders (Boulmer) | H28: 9
A29: DH | B29: -3.7 | C29: 2370 | D29: 57.74009648 | E29: 2251.5 | F29: 54.85309165 | G29: North-eastern (Leeming) | H29: 9.4
A30: DL | B30: -3.7 | C30: 2388 | D30: 58.17862886 | E30: 2268.6 | F30: 55.26969741 | G30: North-western (Carlisle) | H30: 9.4
A31: DN | B31: -3.4 | C31: 2307 | D31: 56.20523315 | E31: 2191.65 | F31: 53.3949715 | G31: E Pennines (Finningley) | H31: 10
A32: DT | B32: -1.7 | C32: 2224 | D32: 54.18311163 | E32: 2112.8 | F32: 51.47395605 | G32: Southern (Hurn) | H32: 10.4
A33: DY | B33: -3.4 | C33: 2425 | D33: 59.08005652 | E33: 2303.75 | F33: 56.1260537 | G33: Midland (Elmdon) | H33: 9.8
A34: E | B34: -1.8 | C34: 2033 | D34: 49.52979584 | E34: 1931.35 | F34: 47.05330605 | G34: Thames Valley (Heathrow) | H34: 11.3
A35: EC | B35: -1.8 | C35: 2033 | D35: 49.52979584 | E35: 1931.35 | F35: 47.05330605 | G35: Thames Valley (Heathrow) | H35: 11.3
A36: EH | B36: -3.4 | C36: 2577 | D36: 62.78321883 | E36: 2448.15 | F36: 59.64405789 | G36: E Scotland (Leuchars) | H36: 8.8
A37: EN | B37: -2.1 | C37: 2255 | D37: 54.93836184 | E37: 2142.25 | F37: 52.19144375 | G37: South-eastern (Gatwick) | H37: 10.2
A38: EX | B38: -1.5 | C38: 1858 | D38: 45.26628661 | E38: 1765.1 | F38: 43.00297228 | G38: South-western (Plymouth) | H38: 11
A39: FK | B39: -3.7 | C39: 2577 | D39: 62.78321883 | E39: 2448.15 | F39: 59.64405789 | G39: E Scotland (Leuchars) | H39: 8.8
A40: FY | B40: -2.2 | C40: 2388 | D40: 58.17862886 | E40: 2268.6 | F40: 55.26969741 | G40: North-western (Carlisle) | H40: 9.4
A41: G | B41: -3.9 | C41: 2494 | D41: 60.76109731 | E41: 2369.3 | F41: 57.72304244 | G41: W Scotland (Abbotsinch) | H41: 9.1
A42: GL | B42: -3.3 | C42: 2425 | D42: 59.08005652 | E42: 2303.75 | F42: 56.1260537 | G42: Midland (Elmdon) | H42: 9.8
A43: GU | B43: -2.2 | C43: 2033 | D43: 49.52979584 | E43: 1931.35 | F43: 47.05330605 | G43: Thames Valley (Heathrow) | H43: 11.3
A44: GY | B44: -1 | C44: 1800 | D44: 43.85323783 | E44: 1710 | F44: 41.66057594 | G44: South-eastern (Gatwick) | H44: 10.2
A45: HA | B45: -1.8 | C45: 2033 | D45: 49.52979584 | E45: 1931.35 | F45: 47.05330605 | G45: Thames Valley (Heathrow) | H45: 11.3
A46: HD | B46: -3.5 | C46: 2307 | D46: 56.20523315 | E46: 2191.65 | F46: 53.3949715 | G46: E Pennines (Finningley) | H46: 10
A47: HG | B47: -3.5 | C47: 2307 | D47: 56.20523315 | E47: 2191.65 | F47: 53.3949715 | G47: E Pennines (Finningley) | H47: 10
A48: HP | B48: -2 | C48: 2033 | D48: 49.52979584 | E48: 1931.35 | F48: 47.05330605 | G48: Thames Valley (Heathrow) | H48: 11.3
A49: HR | B49: -2 | C49: 2425 | D49: 59.08005652 | E49: 2303.75 | F49: 56.1260537 | G49: Midland (Elmdon) | H49: 9.8
A50: HS | B50: -1 | C50: 1800 | D50: 43.85323783 | E50: 1710 | F50: 41.66057594 | G50: NW Scotland (Stornoway) | H50: 8.6
A51: HU | B51: -3 | C51: 2307 | D51: 56.20523315 | E51: 2191.65 | F51: 53.3949715 | G51: E Pennines (Finningley) | H51: 10
A52: HX | B52: -2.5 | C52: 2228 | D52: 54.28056327 | E52: 2116.6 | F52: 51.56653511 | G52: W Pennines (Ringway) | H52: 10
A53: IG | B53: -1.8 | C53: 2033 | D53: 49.52979584 | E53: 1931.35 | F53: 47.05330605 | G53: Thames Valley (Heathrow) | H53: 11.3
A54: IM | B54: -2.5 | C54: 2228 | D54: 54.28056327 | E54: 2116.6 | F54: 51.56653511 | G54: W Pennines (Ringway) | H54: 10
A55: IP | B55: -2.3 | C55: 2254 | D55: 54.91399893 | E55: 2141.3 | F55: 52.16829898 | G55: E Anglia (Honington) | H55: 10
A56: IV | B56: -4 | C56: 2668 | D56: 65.00024363 | E56: 2534.6 | F56: 61.75023145 | G56: NE Scotland (Dyce) | H56: 8.5
A57: JE | B57: -1 | C57: 1800 | D57: 43.85323783 | E57: 1710 | F57: 41.66057594 | G57: South-eastern (Gatwick) | H57: 10.2
A58: KA | B58: -3.7 | C58: 2494 | D58: 60.76109731 | E58: 2369.3 | F58: 57.72304244 | G58: W Scotland (Abbotsinch) | H58: 9.1
A59: KT | B59: -1.8 | C59: 2033 | D59: 49.52979584 | E59: 1931.35 | F59: 47.05330605 | G59: Thames Valley (Heathrow) | H59: 11.3
A60: KW | B60: -4.2 | C60: 2668 | D60: 65.00024363 | E60: 2534.6 | F60: 61.75023145 | G60: NE Scotland (Dyce) | H60: 8.5
A61: KY | B61: -3.4 | C61: 2577 | D61: 62.78321883 | E61: 2448.15 | F61: 59.64405789 | G61: E Scotland (Leuchars) | H61: 8.8
A62: L | B62: -2.4 | C62: 2228 | D62: 54.28056327 | E62: 2116.6 | F62: 51.56653511 | G62: W Pennines (Ringway) | H62: 10
A63: LA | B63: -2.2 | C63: 2388 | D63: 58.17862886 | E63: 2268.6 | F63: 55.26969741 | G63: North-western (Carlisle) | H63: 9.4
A64: LD | B64: -2.9 | C64: 2161 | D64: 52.64824831 | E64: 2052.95 | F64: 50.01583589 | G64: Wales (Aberporth) | H64: 9.9
A65: LE | B65: -3 | C65: 2425 | D65: 59.08005652 | E65: 2303.75 | F65: 56.1260537 | G65: Midland (Elmdon) | H65: 9.8
A66: LL | B66: -3 | C66: 2228 | D66: 54.28056327 | E66: 2116.6 | F66: 51.56653511 | G66: W Pennines (Ringway) | H66: 10
A67: LN | B67: -3 | C67: 2307 | D67: 56.20523315 | E67: 2191.65 | F67: 53.3949715 | G67: E Pennines (Finningley) | H67: 10
A68: LS | B68: -2.5 | C68: 2307 | D68: 56.20523315 | E68: 2191.65 | F68: 53.3949715 | G68: E Pennines (Finningley) | H68: 10
A69: LU | B69: -2.4 | C69: 2033 | D69: =SUM(C69/$D$1) -> 49.52979584 | E69: =SUM(C69*95%) -> 1931.35 | F69: =SUM(E69/41.046) -> 47.05330605 | G69: Thames Valley (Heathrow) | H69: 11.3
A70: M | B70: -2.2 | C70: 2228 | D70: 54.28056327 | E70: 2116.6 | F70: 51.56653511 | G70: W Pennines (Ringway) | H70: 10
A71: ME | B71: -1.8 | C71: 2033 | D71: 49.52979584 | E71: 1931.35 | F71: 47.05330605 | G71: Thames Valley (Heathrow) | H71: 11.3
A72: MK | B72: -3.4 | C72: 2425 | D72: 59.08005652 | E72: 2303.75 | F72: 56.1260537 | G72: Midland (Elmdon) | H72: 9.8
A73: ML | B73: -3.9 | C73: 2494 | D73: 60.76109731 | E73: 2369.3 | F73: 57.72304244 | G73: W Scotland (Abbotsinch) | H73: 9.1
A74: N | B74: -1.8 | C74: 2033 | D74: 49.52979584 | E74: 1931.35 | F74: 47.05330605 | G74: Thames Valley (Heathrow) | H74: 11.3
A75: NE | B75: -3.4 | C75: 2370 | D75: 57.74009648 | E75: 2251.5 | F75: 54.85309165 | G75: North-eastern (Leeming) | H75: 9.4
A76: NG | B76: -3.2 | C76: 2254 | D76: 54.91399893 | E76: 2141.3 | F76: 52.16829898 | G76: E Anglia (Honington) | H76: 10
A77: NN | B77: -3 | C77: 2425 | D77: 59.08005652 | E77: 2303.75 | F77: 56.1260537 | G77: Midland (Elmdon) | H77: 9.8
A78: NP | B78: -1.6 | C78: 2425 | D78: 59.08005652 | E78: 2303.75 | F78: 56.1260537 | G78: Midland (Elmdon) | H78: 9.8
A79: NR | B79: -2.4 | C79: 2254 | D79: 54.91399893 | E79: 2141.3 | F79: 52.16829898 | G79: E Anglia (Honington) | H79: 10
A80: NW | B80: -1.8 | C80: 2033 | D80: 49.52979584 | E80: 1931.35 | F80: 47.05330605 | G80: Thames Valley (Heathrow) | H80: 11.3
A81: OL | B81: -3.2 | C81: 2228 | D81: 54.28056327 | E81: 2116.6 | F81: 51.56653511 | G81: W Pennines (Ringway) | H81: 10
A82: OX | B82: -2.4 | C82: 2425 | D82: 59.08005652 | E82: 2303.75 | F82: 56.1260537 | G82: Midland (Elmdon) | H82: 9.8
A83: PA | B83: -4 | C83: 2494 | D83: 60.76109731 | E83: 2369.3 | F83: 57.72304244 | G83: W Scotland (Abbotsinch) | H83: 9.1
A84: PE | B84: -3 | C84: 2254 | D84: 54.91399893 | E84: 2141.3 | F84: 52.16829898 | G84: E Anglia (Honington) | H84: 10
A85: PH | B85: -3.8 | C85: 2668 | D85: 65.00024363 | E85: 2534.6 | F85: 61.75023145 | G85: NE Scotland (Dyce) | H85: 8.5
A86: PL | B86: -0.2 | C86: 1858 | D86: 45.26628661 | E86: 1765.1 | F86: 43.00297228 | G86: South-western (Plymouth) | H86: 11
A87: PO | B87: -1.8 | C87: 2224 | D87: 54.18311163 | E87: 2112.8 | F87: 51.47395605 | G87: Southern (Hurn) | H87: 10.4
A88: PR | B88: -3.2 | C88: 2388 | D88: 58.17862886 | E88: 2268.6 | F88: 55.26969741 | G88: North-western (Carlisle) | H88: 9.4
A89: RG | B89: -2.2 | C89: 2033 | D89: 49.52979584 | E89: 1931.35 | F89: 47.05330605 | G89: Thames Valley (Heathrow) | H89: 11.3
A90: RH | B90: -1.9 | C90: 2033 | D90: 49.52979584 | E90: 1931.35 | F90: 47.05330605 | G90: Thames Valley (Heathrow) | H90: 11.3
A91: RM | B91: -1.8 | C91: 2033 | D91: 49.52979584 | E91: 1931.35 | F91: 47.05330605 | G91: Thames Valley (Heathrow) | H91: 11.3
A92: S | B92: -2.8 | C92: 2228 | D92: 54.28056327 | E92: 2116.6 | F92: 51.56653511 | G92: W Pennines (Ringway) | H92: 10
A93: SA | B93: -1.6 | C93: 2161 | D93: 52.64824831 | E93: 2052.95 | F93: 50.01583589 | G93: Wales (Aberporth) | H93: 9.9
A94: SE | B94: -1.8 | C94: 2033 | D94: 49.52979584 | E94: 1931.35 | F94: 47.05330605 | G94: Thames Valley (Heathrow) | H94: 11.3
A95: SG | B95: -2 | C95: 2033 | D95: 49.52979584 | E95: 1931.35 | F95: 47.05330605 | G95: Thames Valley (Heathrow) | H95: 11.3
A96: SK | B96: -2.9 | C96: 2228 | D96: 54.28056327 | E96: 2116.6 | F96: 51.56653511 | G96: W Pennines (Ringway) | H96: 10
A97: SL | B97: -2 | C97: 2033 | D97: 49.52979584 | E97: 1931.35 | F97: 47.05330605 | G97: Thames Valley (Heathrow) | H97: 11.3
A98: SM | B98: -1.8 | C98: 2033 | D98: 49.52979584 | E98: 1931.35 | F98: 47.05330605 | G98: Thames Valley (Heathrow) | H98: 11.3
A99: SN | B99: -2.2 | C99: 2425 | D99: 59.08005652 | E99: 2303.75 | F99: 56.1260537 | G99: Midland (Elmdon) | H99: 9.8
A100: SO | B100: -1.8 | C100: 2224 | D100: 54.18311163 | E100: 2112.8 | F100: 51.47395605 | G100: Southern (Hurn) | H100: 10.4
A101: SP | B101: -1.8 | C101: 2224 | D101: 54.18311163 | E101: 2112.8 | F101: 51.47395605 | G101: Southern (Hurn) | H101: 10.4
A102: SR | B102: -3.7 | C102: 2370 | D102: 57.74009648 | E102: 2251.5 | F102: 54.85309165 | G102: North-eastern (Leeming) | H102: 9.4
A103: SS | B103: -2.3 | C103: 2033 | D103: 49.52979584 | E103: 1931.35 | F103: 47.05330605 | G103: Thames Valley (Heathrow) | H103: 11.3
A104: ST | B104: -3 | C104: 2228 | D104: 54.28056327 | E104: 2116.6 | F104: 51.56653511 | G104: W Pennines (Ringway) | H104: 10
A105: SW | B105: -1.8 | C105: 2033 | D105: 49.52979584 | E105: 1931.35 | F105: 47.05330605 | G105: Thames Valley (Heathrow) | H105: 11.3
A106: SY | B106: -3.3 | C106: 2161 | D106: 52.64824831 | E106: 2052.95 | F106: 50.01583589 | G106: Wales (Aberporth) | H106: 9.9
A107: TA | B107: -2.1 | C107: 1835 | D107: 44.70593968 | E107: 1743.25 | F107: 42.47064269 | G107: Severn Valley (Filton) | H107: 10.6
A108: TD | B108: -3.8 | C108: 2483 | D108: 60.4931053 | E108: 2358.85 | F108: 57.46845003 | G108: Borders (Boulmer) | H108: 9
A109: TF | B109: -3.4 | C109: 2425 | D109: 59.08005652 | E109: 2303.75 | F109: 56.1260537 | G109: Midland (Elmdon) | H109: 9.8
A110: TN | B110: -3.2 | C110: 2255 | D110: 54.93836184 | E110: 2142.25 | F110: 52.19144375 | G110: South-eastern (Gatwick) | H110: 10.2
A111: TQ | B111: -1.3 | C111: 1858 | D111: 45.26628661 | E111: 1765.1 | F111: 43.00297228 | G111: South-western (Plymouth) | H111: 11
A112: TR | B112: -1.4 | C112: 1858 | D112: 45.26628661 | E112: 1765.1 | F112: 43.00297228 | G112: South-western (Plymouth) | H112: 11
A113: TS | B113: -2.9 | C113: 2370 | D113: 57.74009648 | E113: 2251.5 | F113: 54.85309165 | G113: North-eastern (Leeming) | H113: 9.4
A114: TW | B114: -1.8 | C114: 2203 | D114: 53.67149052 | E114: 2092.85 | F114: 50.987916 | G114: Thames Valley (Heathrow) | H114: 11.3
A115: UB | B115: -1.8 | C115: 2203 | D115: 53.67149052 | E115: 2092.85 | F115: 50.987916 | G115: Thames Valley (Heathrow) | H115: 11.3
A116: W | B116: -1.8 | C116: 2203 | D116: 53.67149052 | E116: 2092.85 | F116: 50.987916 | G116: Thames Valley (Heathrow) | H116: 11.3
A117: WA | B117: -2.1 | C117: 2228 | D117: 54.28056327 | E117: 2116.6 | F117: 51.56653511 | G117: W Pennines (Ringway) | H117: 10
A118: WC | B118: -1.8 | C118: 2203 | D118: 53.67149052 | E118: 2092.85 | F118: 50.987916 | G118: Thames Valley (Heathrow) | H118: 11.3
A119: WD | B119: -2 | C119: 2203 | D119: 53.67149052 | E119: 2092.85 | F119: 50.987916 | G119: Thames Valley (Heathrow) | H119: 11.3
A120: WF | B120: -2.5 | C120: 2307 | D120: 56.20523315 | E120: 2191.65 | F120: 53.3949715 | G120: E Pennines (Finningley) | H120: 10
A121: WN | B121: -2.1 | C121: 2228 | D121: 54.28056327 | E121: 2116.6 | F121: 51.56653511 | G121: W Pennines (Ringway) | H121: 10
A122: WR | B122: -3.3 | C122: 2425 | D122: 59.08005652 | E122: 2303.75 | F122: 56.1260537 | G122: Midland (Elmdon) | H122: 9.8
A123: WS | B123: -3.4 | C123: 2425 | D123: 59.08005652 | E123: 2303.75 | F123: 56.1260537 | G123: Midland (Elmdon) | H123: 9.8
A124: WV | B124: -3.4 | C124: 2425 | D124: 59.08005652 | E124: 2303.75 | F124: 56.1260537 | G124: Midland (Elmdon) | H124: 9.8
A125: YO | B125: -3.7 | C125: 2307 | D125: 56.20523315 | E125: 2191.65 | F125: 53.3949715 | G125: E Pennines (Finningley) | H125: 10
A126: ZE | B126: -3 | C126: 2668 | D126: 65.00024363 | E126: 2534.6 | F126: 61.75023145 | G126: NE Scotland (Dyce) | H126: 8.5

Sheet floor u values (hidden)
B1: Room Name | C1: External Wall | D1: Short length (depth) | E1: long length | F1: Insulation | G1: Type of floor | H1: External walls | I1: insulation select solid | J1: insulation select suspended | L1: =S5 -> Two adjacent | M1: =S6 -> Two opposite | N1: =S3 -> 3 edges (short single) | O1: =S2 -> 3 edges (long single) | P1: =S4 -> One edge
A2: 1 | B2: ='Design Details'!A87 -> Living | C2: =SUM('1'!$B$24:$B$26) -> 6.8 | D2: ='1'!$L$24 -> 0 | E2: ='1'!$N$24 -> 0 | F2: =IF('1'!$B$3="Ground Floor",'Design Details'!$D$45,IF('1'!$B$3="Single Storey",'Design Details'!$D$75,0)) -> 0 | G2: ='1'!$L$20 -> Solid Floor (in contact with ground) | H2: ='1'!$L$22 -> 0 | I2: =IF(F2=0,3,IF(F2=25,4,IF(F2=50,5,IF(F2=75,6,IF(F2=100,7,0))))) -> 3 | J2: =IF(F2=0,9,IF(F2=25,10,IF(F2=50,11,IF(F2=75,12,IF(F2=100,13,0))))) -> 9 | K2: =IF(H2=$L$1,L2,IF(H2=$M$1,M2,IF(H2=$N$1,N2,IF(H2=$O$1,O2,IF(H2=$P$1,P2,0))))) -> 0 | L2: =VLOOKUP(C2,$C$36:$O$44,IF(G2=C33,I2,J2),TRUE) -> 0.9 | M2: =VLOOKUP(ROUNDDOWN(D2,0),$C$48:$O$53,IF(G2=$C$33,I2,J2),TRUE) ->  | N2: =IF(D2<4,VLOOKUP(E2,$C$58:$O$61,IF(G2=$C$33,I2,J2),TRUE),IF(AND(D2>=4,D2<5),VLOOKUP(E2,$C$62:$O$63,IF(G2=$C$33,I2,J2),TRUE),IF(AND(D2>=5,D2<6),VLOOKUP(E2,$C$64:$O$65,IF(G2=$C$33,I2,J2),TRUE),IF(D2>6,VLOOKUP(E2,$C$66:$O$67,IF(G2=$C$33,I2,J2),TRUE),0)))) ->  | O2: =IF(D2<4,VLOOKUP(E2,$C$71:$O$74,IF(G2=$C$33,I2,J2),TRUE),IF(AND(D2>=4,D2<5),VLOOKUP(E2,$C$75:$O$77,IF(G2=$C$33,I2,J2),TRUE),IF(AND(D2>=5,D2<6),VLOOKUP(E2,$C$78:$O$80,IF(G2=$C$33,I2,J2),TRUE),IF(D2>6,VLOOKUP(E2,$C$81:$O$82,IF(G2=$C$33,I2,J2),TRUE),0)))) ->  | P2: =VLOOKUP(D2,$C$86:$O$91,IF(G2=$C$33,I2,J2),TRUE) ->  | S2: 3 edges (long single)
A3: 2 | B3: ='Design Details'!A88 -> Studio | C3: =SUM('2'!$B$24:$B$26) -> 13.2 | D3: ='2'!$L$24 -> 4 | E3: ='2'!$N$24 -> 5.2 | F3: =IF('2'!$B$3="Ground Floor",'Design Details'!$D$45,IF('2'!$B$3="Single Storey",'Design Details'!$D$75,0)) -> 0 | G3: ='2'!$L$20 -> Solid Floor (in contact with ground) | H3: ='2'!$L$22 -> 3 edges (long single) | I3: 3 | J3: 9 | K3: =IF(H3=$L$1,L3,IF(H3=$M$1,M3,IF(H3=$N$1,N3,IF(H3=$O$1,O3,IF(H3=$P$1,P3,0))))) -> 0.95 | L3: =VLOOKUP(C3,$C$36:$O$44,IF(G3=C34,I3,J3),TRUE) -> 0.58 | M3: =VLOOKUP(ROUNDDOWN(D3,0),$C$48:$O$53,IF(G3=$C$33,I3,J3),TRUE) -> 0.73 | N3: =IF(D3<4,VLOOKUP(E3,$C$58:$O$61,IF(G3=$C$33,I3,J3),TRUE),IF(AND(D3>=4,D3<5),VLOOKUP(E3,$C$62:$O$63,IF(G3=$C$33,I3,J3),TRUE),IF(AND(D3>=5,D3<6),VLOOKUP(E3,$C$64:$O$65,IF(G3=$C$33,I3,J3),TRUE),IF(D3>6,VLOOKUP(E3,$C$66:$O$67,IF(G3=$C$33,I3,J3),TRUE),0)))) -> 0.95 | O3: =IF(D3<4,VLOOKUP(E3,$C$71:$O$74,IF(G3=$C$33,I3,J3),TRUE),IF(AND(D3>=4,D3<5),VLOOKUP(E3,$C$75:$O$77,IF(G3=$C$33,I3,J3),TRUE),IF(AND(D3>=5,D3<6),VLOOKUP(E3,$C$78:$O$80,IF(G3=$C$33,I3,J3),TRUE),IF(D3>6,VLOOKUP(E3,$C$81:$O$82,IF(G3=$C$33,I3,J3),TRUE),0)))) -> 0.95 | P3: =VLOOKUP(D3,$C$86:$O$91,IF(G3=$C$33,I3,J3),TRUE) -> 0.45 | S3: 3 edges (short single)
A4: 3 | B4: ='Design Details'!A89 -> Sun room | C4: =SUM('3'!$B$24:$B$26) -> 6.97 | D4: ='3'!$L$24 -> 0 | E4: ='3'!$N$24 -> 0 | F4: =IF('3'!$B$3="Ground Floor",'Design Details'!$D$45,IF('3'!$B$3="Single Storey",'Design Details'!$D$75,0)) -> 0 | G4: ='3'!$L$20 -> Solid Floor (in contact with ground) | H4: ='3'!$L$22 -> 0 | I4: 3 | J4: 9 | K4: 0 | L4: =VLOOKUP(C4,$C$36:$O$44,IF(G4=C35,I4,J4),TRUE) -> 0.93 | M4: =VLOOKUP(ROUNDDOWN(D4,0),$C$48:$O$53,IF(G4=$C$33,I4,J4),TRUE) ->  | S4: One edge
A5: 4 | B5: ='Design Details'!A90 -> Music room | C5: =SUM('4'!$B$24:$B$26) -> 5.63 | D5: ='4'!$L$24 -> 1.27 | E5: ='4'!$N$24 -> 3.09 | F5: =IF('4'!$B$3="Ground Floor",'Design Details'!$D$45,IF('4'!$B$3="Single Storey",'Design Details'!$D$75,0)) -> 0 | G5: ='4'!$L$20 -> Solid Floor (in contact with ground) | H5: ='4'!$L$22 -> 3 edges (long single) | I5: 3 | J5: 9 | K5: 1.05 | L5: 1.05 | N5: 1.15 | O5: 1.05 | P5: 0.9 | S5: Two adjacent
A6: 5 | B6: ='Design Details'!A91 -> Hall | C6: =SUM('5'!$B$24:$B$26) -> 1.67 | D6: ='5'!$L$24 -> 1.79 | E6: ='5'!$N$24 -> 0 | F6: =IF('5'!$B$3="Ground Floor",'Design Details'!$D$45,IF('5'!$B$3="Single Storey",'Design Details'!$D$75,0)) -> 0 | G6: ='5'!$L$20 -> Solid Floor (in contact with ground) | H6: ='5'!$L$22 -> One edge | I6: 3 | J6: 9 | K6: 0.73 | P6: 0.73 | S6: Two opposite
A7: 6 | B7: ='Design Details'!A92 -> Utility | C7: =SUM('6'!$B$24:$B$26) -> 4.9 | D7: ='6'!$L$24 -> 1.275 | E7: ='6'!$N$24 -> 2.35 | F7: =IF('6'!$B$3="Ground Floor",'Design Details'!$D$45,IF('6'!$B$3="Single Storey",'Design Details'!$D$75,0)) -> 0 | G7: ='6'!$L$20 -> Solid Floor (in contact with ground) | H7: ='6'!$L$22 -> 3 edges (long single) | I7: 3 | J7: 9 | P7: 0.9
A8: 7 | B8: ='Design Details'!A93 -> WC | C8: =SUM('7'!$B$24:$B$26) -> 1.06 | D8: ='7'!$L$24 -> 0 | E8: ='7'!$N$24 -> 0 | F8: =IF('7'!$B$3="Ground Floor",'Design Details'!$D$45,IF('7'!$B$3="Single Storey",'Design Details'!$D$75,0)) -> 0 | G8: ='7'!$L$20 -> Solid Floor (in contact with ground) | H8: ='7'!$L$22 -> 0 | I8: 3 | J8: 9 | K8: 0
A9: 8 | B9: ='Design Details'!A94 -> Kitchen | C9: =SUM('8'!$B$24:$B$26) -> 10.76 | D9: ='8'!$L$24 -> 0 | E9: ='8'!$N$24 -> 0 | F9: =IF('8'!$B$3="Ground Floor",'Design Details'!$D$45,IF('8'!$B$3="Single Storey",'Design Details'!$D$75,0)) -> 0 | G9: ='8'!$L$20 -> Solid Floor (in contact with ground) | H9: ='8'!$L$22 -> Two adjacent | I9: 3 | J9: 9 | K9: 0.65 | L9: 0.65
A10: 9 | B10: ='Design Details'!A95 -> Bedroom 1 | C10: =SUM('9'!$B$24:$B$26) -> 6.95 | D10: ='9'!$L$24 -> 0 | E10: ='9'!$N$24 -> 0 | F10: =IF('9'!$B$3="Ground Floor",'Design Details'!$D$45,IF('9'!$B$3="Single Storey",'Design Details'!$D$75,0)) -> 0 | G10: ='9'!$L$20 -> 0 | H10: ='9'!$L$22 -> 0 | I10: 3 | J10: 9 | K10: 0 | L10: 0.93
A11: 10 | B11: ='Design Details'!A96 -> Bedroom 2 | C11: =SUM('10'!$B$24:$B$26) -> 3.14 | D11: ='10'!$L$24 -> 0 | E11: ='10'!$N$24 -> 0 | F11: =IF('10'!$B$3="Ground Floor",'Design Details'!$D$45,IF('10'!$B$3="Single Storey",'Design Details'!$D$75,0)) -> 0 | G11: ='10'!$L$20 -> 0 | H11: ='10'!$L$22 -> 0 | I11: 3 | J11: 9 | K11: 0
A12: 11 | B12: ='Design Details'!A97 -> Bedroom 3 | C12: =SUM('11'!$B$24:$B$26) -> 3.54 | D12: ='11'!$L$24 -> 0 | E12: ='11'!$N$24 -> 0 | F12: =IF('11'!$B$3="Ground Floor",'Design Details'!$D$45,IF('11'!$B$3="Single Storey",'Design Details'!$D$75,0)) -> 0 | G12: ='11'!$L$20 -> 0 | H12: ='11'!$L$22 -> 0 | I12: 3 | J12: 9 | K12: 0
A13: 12 | B13: ='Design Details'!A98 -> Bedroom 4 | C13: =SUM('12'!$B$24:$B$26) -> 6.87 | D13: ='12'!$L$24 -> 0 | E13: ='12'!$N$24 -> 0 | F13: =IF('12'!$B$3="Ground Floor",'Design Details'!$D$45,IF('12'!$B$3="Single Storey",'Design Details'!$D$75,0)) -> 0 | G13: ='12'!$L$20 -> 0 | H13: ='12'!$L$22 -> 0 | I13: 3 | J13: 9 | K13: 0 | L13: 0.93
A14: 13 | B14: ='Design Details'!A99 -> En-suite | C14: =SUM('13'!$B$24:$B$26) -> 0 | D14: ='13'!$L$24 -> 0 | E14: ='13'!$N$24 -> 0 | F14: =IF('13'!$B$3="Ground Floor",'Design Details'!$D$45,IF('13'!$B$3="Single Storey",'Design Details'!$D$75,0)) -> 0 | G14: ='13'!$L$20 -> 0 | H14: ='13'!$L$22 -> 0 | I14: 3 | J14: 9 | K14: 0
A15: 14 | B15: ='Design Details'!A100 -> Bath | C15: =SUM('14'!$B$24:$B$26) -> 4.55 | D15: ='14'!$L$24 -> 0 | E15: ='14'!$N$24 -> 0 | F15: =IF('14'!$B$3="Ground Floor",'Design Details'!$D$45,IF('14'!$B$3="Single Storey",'Design Details'!$D$75,0)) -> 0 | G15: ='14'!$L$20 -> 0 | H15: ='14'!$L$22 -> 0 | I15: 3 | J15: 9 | K15: 0
A16: 15 | B16: ='Design Details'!A101 -> Landing | C16: =SUM('15'!$B$24:$B$26) -> 1.28 | D16: ='15'!$L$24 -> 0 | E16: ='15'!$N$24 -> 0 | F16: =IF('15'!$B$3="Ground Floor",'Design Details'!$D$45,IF('15'!$B$3="Single Storey",'Design Details'!$D$75,0)) -> 0 | G16: ='15'!$L$20 -> 0 | H16: ='15'!$L$22 -> 0 | I16: 3 | J16: 9 | K16: 0
A17: 16 | B17: ='Design Details'!A102 -> - | C17: =SUM('16'!$B$24:$B$26) -> 0 | D17: ='16'!$L$24 -> 0 | E17: ='16'!$N$24 -> 0 | F17: =IF('16'!$B$3="Ground Floor",'Design Details'!$D$45,IF('16'!$B$3="Single Storey",'Design Details'!$D$75,0)) -> 0 | G17: ='16'!$L$20 -> 0 | H17: ='16'!$L$22 -> 0 | I17: 3 | J17: 9 | K17: 0
A18: 17 | B18: ='Design Details'!A103 -> - | C18: =SUM('17'!$B$24:$B$26) -> 0 | D18: ='17'!$L$24 -> 0 | E18: ='17'!$N$24 -> 0 | F18: =IF('17'!$B$3="Ground Floor",'Design Details'!$D$45,IF('17'!$B$3="Single Storey",'Design Details'!$D$75,0)) -> 0 | G18: ='17'!$L$20 -> 0 | H18: ='17'!$L$22 -> 0 | I18: 3 | J18: 9 | K18: 0
A19: 18 | B19: ='Design Details'!A104 -> - | C19: =SUM('18'!$B$24:$B$26) -> 0 | D19: ='18'!$L$24 -> 0 | E19: ='18'!$N$24 -> 0 | F19: =IF('18'!$B$3="Ground Floor",'Design Details'!$D$45,IF('18'!$B$3="Single Storey",'Design Details'!$D$75,0)) -> 0 | G19: ='18'!$L$20 -> 0 | H19: ='18'!$L$22 -> 0 | I19: 3 | J19: 9 | K19: 0
A20: 19 | B20: ='Design Details'!A105 -> - | C20: =SUM('19'!$B$24:$B$26) -> 0 | D20: ='19'!$L$24 -> 0 | E20: ='19'!$N$24 -> 0 | F20: =IF('19'!$B$3="Ground Floor",'Design Details'!$D$45,IF('19'!$B$3="Single Storey",'Design Details'!$D$75,0)) -> 0 | G20: ='19'!$L$20 -> n/a | H20: ='19'!$L$22 -> 0 | I20: 3 | J20: 9 | K20: 0
A21: 20 | B21: ='Design Details'!A106 -> - | C21: =SUM('20'!$B$24:$B$26) -> 0 | D21: ='20'!$L$24 -> 0 | E21: ='20'!$N$24 -> 0 | F21: =IF('20'!$B$3="Ground Floor",'Design Details'!$D$45,IF('20'!$B$3="Single Storey",'Design Details'!$D$75,0)) -> 0 | G21: ='20'!$L$20 -> 0 | H21: ='20'!$L$22 -> 0 | I21: 3 | J21: 9 | K21: 0
A22: 21 | B22: ='Design Details'!A107 -> - | C22: =SUM('21'!$B$24:$B$26) -> 0 | D22: ='21'!$L$24 -> 0 | E22: ='21'!$N$24 -> 0 | F22: =IF('21'!$B$3="Ground Floor",'Design Details'!$D$45,IF('21'!$B$3="Single Storey",'Design Details'!$D$75,0)) -> 0 | G22: ='21'!$L$20 -> 0 | H22: ='21'!$L$22 -> 0 | I22: 3 | J22: 9 | K22: 0
A23: 22 | B23: ='Design Details'!A108 -> - | C23: =SUM('22'!$B$24:$B$26) -> 0 | D23: ='22'!$L$24 -> 0 | E23: ='22'!$N$24 -> 0 | F23: =IF('22'!$B$3="Ground Floor",'Design Details'!$D$45,IF('22'!$B$3="Single Storey",'Design Details'!$D$75,0)) -> 0 | G23: ='22'!$L$20 -> 0 | H23: ='22'!$L$22 -> 0 | I23: 3 | J23: 9 | K23: 0
A24: 23 | B24: ='Design Details'!A109 -> - | C24: =SUM('23'!$B$24:$B$26) -> 0 | D24: ='23'!$L$24 -> 0 | E24: ='23'!$N$24 -> 0 | F24: =IF('23'!$B$3="Ground Floor",'Design Details'!$D$45,IF('23'!$B$3="Single Storey",'Design Details'!$D$75,0)) -> 0 | G24: ='23'!$L$20 -> 0 | H24: ='23'!$L$22 -> 0 | I24: 3 | J24: 9 | K24: 0
A25: 24 | B25: ='Design Details'!A110 -> - | C25: =SUM('24'!$B$24:$B$26) -> 0 | D25: ='24'!$L$24 -> 0 | E25: ='24'!$N$24 -> 0 | F25: =IF('24'!$B$3="Ground Floor",'Design Details'!$D$45,IF('24'!$B$3="Single Storey",'Design Details'!$D$75,0)) -> 0 | G25: ='24'!$L$20 -> 0 | H25: ='24'!$L$22 -> 0 | I25: 3 | J25: 9 | K25: 0
A26: 25 | B26: ='Design Details'!A111 -> - | C26: =SUM('25'!$B$24:$B$26) -> 0 | D26: ='25'!$L$24 -> 0 | E26: ='25'!$N$24 -> 0 | F26: =IF('25'!$B$3="Ground Floor",'Design Details'!$D$45,IF('25'!$B$3="Single Storey",'Design Details'!$D$75,0)) -> 0 | G26: ='25'!$L$20 -> 0 | H26: ='25'!$L$22 -> 0 | I26: 3 | J26: 9 | K26: 0
A27: 26 | B27: ='Design Details'!A112 -> - | C27: =SUM('26'!$B$24:$B$26) -> 0 | D27: ='26'!$L$24 -> 0 | E27: ='26'!$N$24 -> 0 | F27: =IF('26'!$B$3="Ground Floor",'Design Details'!$D$45,IF('26'!$B$3="Single Storey",'Design Details'!$D$75,0)) -> 0 | G27: ='26'!$L$20 -> 0 | H27: ='26'!$L$22 -> 0 | I27: 3 | J27: 9 | K27: 0
A28: 27 | B28: ='Design Details'!A113 -> - | C28: =SUM('27'!$B$24:$B$26) -> 0 | D28: ='27'!$L$24 -> 0 | E28: ='27'!$N$24 -> 0 | F28: =IF('27'!$B$3="Ground Floor",'Design Details'!$D$45,IF('27'!$B$3="Single Storey",'Design Details'!$D$75,0)) -> 0 | G28: ='27'!$L$20 -> 0 | H28: ='27'!$L$22 -> 0 | I28: 3 | J28: 9 | K28: 0
A29: 28 | B29: ='Design Details'!A114 -> - | C29: =SUM('28'!$B$24:$B$26) -> 0 | D29: ='28'!$L$24 -> 0 | E29: ='28'!$N$24 -> 0 | F29: =IF('28'!$B$3="Ground Floor",'Design Details'!$D$45,IF('28'!$B$3="Single Storey",'Design Details'!$D$75,0)) -> 0 | G29: ='28'!$L$20 -> 0 | H29: ='28'!$L$22 -> 0 | I29: 3 | J29: 9 | K29: 0
A30: 29 | B30: ='Design Details'!A115 -> - | C30: =SUM('29'!$B$24:$B$26) -> 0 | D30: ='29'!$L$24 -> 0 | E30: ='29'!$N$24 -> 0 | F30: =IF('29'!$B$3="Ground Floor",'Design Details'!$D$45,IF('29'!$B$3="Single Storey",'Design Details'!$D$75,0)) -> 0 | G30: ='29'!$L$20 -> 0 | H30: ='29'!$L$22 -> 0 | I30: 3 | J30: 9 | K30: 0
A31: 30 | B31: ='Design Details'!A116 -> - | C31: =SUM('30'!$B$24:$B$26) -> 0 | D31: ='30'!$L$24 -> 0 | E31: ='30'!$N$24 -> 0 | F31: =IF('30'!$B$3="Ground Floor",'Design Details'!$D$45,IF('30'!$B$3="Single Storey",'Design Details'!$D$75,0)) -> 0 | G31: ='30'!$L$20 -> 0 | H31: ='30'!$L$22 -> 0 | I31: 3 | J31: 9 | K31: 0
C33: Solid Floor (in contact with ground) | J33: Suspended Floors
C34: Table 6.9 (Two adjacent edges exposed) | J34: Table 6.12 (Two adjacent edges exposed)
C35: a+b(m) | E35: 0 | F35: 25 | G35: 50 | H35: 75 | I35: 100 | K35: 0 | L35: 25 | M35: 50 | N35: 75 | O35: 100
B36: "5-6 | C36: 5 | E36: 1.02 | F36: 0.58 | G36: 0.41 | H36: 0.31 | I36: 0.26 | K36: 1.05 | L36: 0.59 | M36: 0.41 | N36: 0.32 | O36: 0.26
B37: "6-7 | C37: 6 | E37: 0.9 | F37: 0.54 | G37: 0.39 | H37: 0.3 | I37: 0.25 | K37: 0.93 | L37: 0.55 | M37: 0.39 | N37: 0.3 | O37: 0.25
B38: "7-8 | C38: 7 | E38: 0.82 | F38: 0.51 | G38: 0.37 | H38: 0.29 | I38: 0.24 | K38: 0.86 | L38: 0.53 | M38: 0.38 | N38: 0.3 | O38: 0.24
B39: "8-9 | C39: 8 | E39: 0.76 | F39: 0.49 | G39: 0.36 | H39: 0.28 | I39: 0.23 | K39: 0.79 | L39: 0.5 | M39: 0.37 | N39: 0.29 | O39: 0.24
B40: "9-10 | C40: 9 | E40: 0.7 | F40: 0.46 | G40: 0.34 | H40: 0.27 | I40: 0.23 | K40: 0.75 | L40: 0.48 | M40: 0.36 | N40: 0.28 | O40: 0.23
B41: "10-12 | C41: 10 | E41: 0.6 | F41: 0.41 | G41: 0.32 | H41: 0.26 | I41: 0.22 | K41: 0.65 | L41: 0.44 | M41: 0.33 | N41: 0.27 | O41: 0.22
B42: "12-14 | C42: 12 | E42: 0.52 | F42: 0.38 | G42: 0.29 | H42: 0.24 | I42: 0.21 | K42: 0.58 | L42: 0.41 | M42: 0.31 | N42: 0.25 | O42: 0.21
B43: "14-17 | C43: 14 | E43: 0.45 | F43: 0.34 | G43: 0.27 | H43: 0.23 | I43: 0.19 | K43: 0.71 | L43: 0.37 | M43: 0.29 | N43: 0.24 | O43: 0.2
B44: "17-20 | C44: 17 | E44: 0.39 | F44: 0.3 | G44: 0.25 | H44: 0.21 | I44: 0.18 | K44: 0.43 | L44: 0.33 | M44: 0.26 | N44: 0.22 | O44: 0.19
C46: Table 6.10c (Two opposite edges exposed) | H46: a | J46: Table 6.10c (Two opposite edges exposed) | O46: a
C47: a (m) | E47: 0 | F47: 25 | G47: 50 | H47: 75 | I47: 100 | K47: 0 | L47: 25 | M47: 50 | N47: 75 | O47: 100
B48: "2-3 | C48: 2 | E48: 1.15 | F48: 0.62 | G48: 0.43 | H48: 0.32 | I48: 0.26 | K48: 1.1 | L48: 0.61 | M48: 0.42 | N48: 0.32 | O48: 0.26
B49: "3-4 | C49: 3 | E49: 0.9 | F49: 0.54 | G49: 0.39 | H49: 0.3 | I49: 0.25 | K49: 0.95 | L49: 0.56 | M49: 0.4 | N49: 0.31 | O49: 0.25
B50: "4-5 | C50: 4 | E50: 0.73 | F50: 0.47 | G50: 0.35 | H50: 0.28 | I50: 0.23 | K50: 0.83 | L50: 0.51 | M50: 0.37 | N50: 0.29 | O50: 0.23
B51: "5-6 | C51: 5 | E51: 0.62 | F51: 0.43 | G51: 0.32 | H51: 0.26 | I51: 0.22 | K51: 0.74 | L51: 0.48 | M51: 0.35 | N51: 0.26 | O51: 0.23
B52: "6-8 | C52: 6 | E52: 0.55 | F52: 0.39 | G52: 0.3 | H52: 0.25 | I52: 0.21 | K52: 0.67 | L52: 0.45 | M52: 0.34 | N52: 0.27 | O52: 0.23
B53: "8-10 | C53: 8 | E53: 0.44 | F53: 0.33 | G53: 0.27 | H53: 0.22 | I53: 0.19 | K53: 0.55 | L53: 0.39 | M53: 0.3 | N53: 0.25 | O53: 0.21
C56: Table 6.10a (Three adjacent edges exposed) | H56: s | J56: Table 6.13a (Three adjacent edges exposed) | O56: s
B57: short | C57: long | E57: 0 | F57: 25 | G57: 50 | H57: 75 | I57: 100 | K57: 0 | L57: 25 | M57: 50 | N57: 75 | O57: 100
B58: 3 | C58: 3 | E58: 1.15 | F58: 0.62 | G58: 0.43 | H58: 0.32 | I58: 0.26 | K58: 1.15 | L58: 0.62 | M58: 0.43 | N58: 0.32 | O58: 0.26
B59: 3 | C59: 4 | E59: 1.03 | F59: 0.58 | G59: 0.41 | H59: 0.31 | I59: 0.26 | K59: 1.03 | L59: 0.58 | M59: 0.41 | N59: 0.31 | O59: 0.26
B60: 3 | C60: 6 | E60: 1 | F60: 0.57 | G60: 0.4 | H60: 0.31 | I60: 0.25 | K60: 1 | L60: 0.57 | M60: 0.4 | N60: 0.31 | O60: 0.25
B61: 3 | C61: 8 | E61: 0.96 | F61: 0.56 | G61: 0.4 | H61: 0.31 | I61: 0.25 | K61: 0.99 | L61: 0.56 | M61: 0.4 | N61: 0.31 | O61: 0.25
B62: 4 | C62: 4 | E62: 0.95 | F62: 0.56 | G62: 0.4 | H62: 0.31 | I62: 0.25 | K62: 0.95 | L62: 0.56 | M62: 0.4 | N62: 0.31 | O62: 0.25
B63: 4 | C63: 6 | E63: 0.85 | F63: 0.52 | G63: 0.38 | H63: 0.29 | I63: 0.24 | K63: 0.87 | L63: 0.53 | M63: 0.38 | N63: 0.3 | O63: 0.24
B64: 5 | C64: 5 | E64: 0.81 | F64: 0.51 | G64: 0.37 | H64: 0.29 | I64: 0.24 | K64: 0.83 | L64: 0.51 | M64: 0.37 | N64: 0.29 | O64: 0.24
B65: 5 | C65: 7 | E65: 0.74 | F65: 0.48 | G65: 0.35 | H65: 0.28 | I65: 0.23 | K65: 0.8 | L65: 0.5 | M65: 0.37 | N65: 0.29 | O65: 0.24
B66: 6 | C66: 6 | E66: 0.71 | F66: 0.46 | G66: 0.35 | H66: 0.28 | I66: 0.23 | K66: 0.75 | L66: 0.48 | M66: 0.36 | N66: 0.28 | O66: 0.23
B67: 6 | C67: 8 | E67: 0.65 | F67: 0.44 | G67: 0.33 | H67: 0.27 | I67: 0.22 | K67: 0.72 | L67: 0.47 | M67: 0.35 | N67: 0.28 | O67: 0.23
C69: Table 6.10b (Three adjacent edges exposed) | H69: L | J69: Table 6.13b (Three adjacent edges exposed) | O69: L
B70: short | C70: long | E70: 0 | F70: 25 | G70: 50 | H70: 75 | I70: 100 | K70: 0 | L70: 25 | M70: 50 | N70: 75 | O70: 100
B71: 3 | C71: 3 | E71: 1.05 | F71: 0.59 | G71: 0.41 | H71: 0.32 | I71: 0.26 | K71: 1 | L71: 0.57 | M71: 0.4 | N71: 0.31 | O71: 0.25
B72: 3 | C72: 5 | E72: 0.9 | F72: 0.54 | G72: 0.39 | H72: 0.3 | I72: 0.25 | K72: 0.85 | L72: 0.52 | M72: 0.38 | N72: 0.29 | O72: 0.24
B73: 3 | C73: 7 | E73: 0.85 | F73: 0.52 | G73: 0.38 | H73: 0.29 | I73: 0.24 | K73: 0.8 | L73: 0.5 | M73: 0.37 | N73: 0.29 | O73: 0.24
B74: 3 | C74: 9 | E74: 0.77 | F74: 0.49 | G74: 0.36 | H74: 0.28 | I74: 0.24 | K74: 0.77 | L74: 0.49 | M74: 0.36 | N74: 0.28 | O74: 0.24
B75: 4 | C75: 4 | E75: 0.95 | F75: 0.56 | G75: 0.4 | H75: 0.31 | I75: 0.25 | K75: 0.85 | L75: 0.52 | M75: 0.38 | N75: 0.29 | O75: 0.24
B76: 4 | C76: 6 | E76: 0.87 | F76: 0.53 | G76: 0.38 | H76: 0.3 | I76: 0.24 | K76: 0.79 | L76: 0.5 | M76: 0.37 | N76: 0.29 | O76: 0.24
B77: 4 | C77: 8 | E77: 0.76 | F77: 0.49 | G77: 0.36 | H77: 0.28 | I77: 0.24 | K77: 0.73 | L77: 0.47 | M77: 0.35 | N77: 0.28 | O77: 0.23
B78: 5 | C78: 5 | E78: 0.83 | F78: 0.51 | G78: 0.37 | H78: 0.29 | I78: 0.24 | K78: 0.77 | L78: 0.49 | M78: 0.36 | N78: 0.28 | O78: 0.24
B79: 5 | C79: 7 | E79: 0.77 | F79: 0.49 | G79: 0.36 | H79: 0.28 | I79: 0.24 | K79: 0.72 | L79: 0.47 | M79: 0.35 | N79: 0.28 | O79: 0.23
B80: 5 | C80: 9 | E80: 0.68 | F80: 0.45 | G80: 0.34 | H80: 0.27 | I80: 0.23 | K80: 0.66 | L80: 0.44 | M80: 0.33 | N80: 0.27 | O80: 0.23
B81: 6 | C81: 6 | E81: 0.75 | F81: 0.48 | G81: 0.36 | H81: 0.28 | I81: 0.23 | K81: 0.69 | L81: 0.46 | M81: 0.34 | N81: 0.27 | O81: 0.23
B82: 6 | C82: 8 | E82: 0.7 | F82: 0.46 | G82: 0.34 | H82: 0.27 | I82: 0.23 | K82: 0.67 | L82: 0.45 | M82: 0.34 | N82: 0.27 | O82: 0.23
C84: Table 6.11 (One adjacent edge exposed) | H84: a | J84: Table 6.14b (One adjacent edge exposed) | O84: a
C85: a(m) | E85: 0 | F85: 25 | G85: 50 | H85: 75 | I85: 100 | K85: 0 | L85: 25 | M85: 50 | N85: 75 | O85: 100
B86: "1.25-1.75 | C86: 1.25 | E86: 0.9 | F86: 0.54 | G86: 0.39 | H86: 0.3 | I86: 0.25 | K86: 1.1 | L86: 0.61 | M86: 0.42 | N86: 0.32 | O86: 0.26
B87: "1.75-2 | C87: 1.75 | E87: 0.73 | F87: 0.47 | G87: 0.35 | H87: 0.28 | I87: 0.23 | K87: 0.83 | L87: 0.51 | M87: 0.37 | N87: 0.29 | O87: 0.24
B88: "2-3 | C88: 2 | E88: 0.55 | F88: 0.39 | G88: 0.3 | H88: 0.25 | I88: 0.21 | K88: 0.67 | L88: 0.45 | M88: 0.34 | N88: 0.27 | O88: 0.23
B89: "3-5 | C89: 3 | E89: 0.45 | F89: 0.34 | G89: 0.27 | H89: 0.23 | I89: 0.19 | K89: 0.56 | L89: 0.4 | M89: 0.31 | N89: 0.25 | O89: 0.21
B90: "5-7 | C90: 5 | E90: 0.38 | F90: 0.3 | G90: 0.24 | H90: 0.21 | I90: 0.18 | K90: 0.48 | L90: 0.35 | M90: 0.28 | N90: 0.23 | O90: 0.2
B91: "7-10 | C91: 7 | E91: 0.28 | F91: 0.23 | G91: 0.2 | H91: 0.17 | I91: 0.15 | K91: 0.38 | L91: 0.3 | M91: 0.24 | N91: 0.21 | O91: 0.19
J94: Menu_floor_construction | K94: menu no | L94: col
J95: Solid floor - Enter a U-value | K95: 0
J96: Suspended floor - Enter U-value | K96: 0
J97: Solid no insulation | K97: 1 | L97: 3
J98: Solid 25mm insulation | K98: 2 | L98: 4
J99: Solid 50mm insulation | K99: 3 | L99: 5
J100: Solid 75mm insulation | K100: 4 | L100: 6
J101: Solid 100mm insulation | K101: 5 | L101: 7
J102: Suspended no insulation | K102: 6 | L102: 10
J103: Suspended 25mm insulation | K103: 7 | L103: 11
J104: Suspended 50mm insulation | K104: 8 | L104: 12
J105: Suspended 75mm insulation | K105: 9 | L105: 13
J106: Suspended 100mm insulation | K106: 10 | L106: 14
J108: Menu_floor_exposed_sides
J109: One edge (short) | K109: 1
J110: One edge (long) | K110: 2
J111: Two adjacent edges | K111: 3
J112: Two opposite edges | K112: 4
J113: Three edges (short outer edge) | K113: 5
J114: Three edges (long outer edge) | K114: 6

Sheet Scope
C3: MCS Heat Pump Calculator
C9: This spreadsheet provides a method for carrying out the design calculations required by MIS 3005. Its use is optional and installers may choose to use their own calculations as long as these comply with the requirements of MIS 3005.
C11: The calculator is designed for use as an Excel Macro Enabled workbook. Please submit any feedback to mcs@gemserv.com with a subject heading of 'MCS heat pump calculator feedback'. This calculator is the property of the Microgeneration Certification Scheme. © MCS 2015
C13: Please note the following: -the spreadsheet is locked and data can only be entered into editable cells -cells shown in grey contain default values and can be edited if the user wants to over-ride the default values -cells shown in light blue contain are locked and cannot be edited
C15: A copy of the MCS Compliance Certificate is also incorporated and populated using the data from the heat loss calculations. In order to upload the compliance certificate to the MCS Installation Database, select the tab and save as a PDF.
C17: Version 1.9

Sheet Design Details
A1: Design Details | Z1: Rooms | AA1: Temp | AB1: Pre 2000 | AC1: Post 2000 | AD1: Post 2006 | AE1: Non select a/c | AF1: selected column | AN1: Hot Water Energy Calculation | AR1: Calculations | AS1: Electric | AT1: Gas | AU1: LPG | AV1: Oil | AW1: Constants and Assumptions
A2: Project Reference: | B2: Martin. LL62 5PE. Tyn Cae | E2: MCS Designer: | F2: Matthew Warzytz | P2: 0 | Q2: Air Source | R2: Bungalow | S2: Pre 2000 | T2: 30 | U2: 0 | V2: 0 | W2: Fan Convector | X2: Single Phase | Y2: Horizontal | Z2: Bath | AA2: 22 | AB2: 3 | AC2: 1.5 | AD2: 1.5 | AE2: 1 | AF2: =MATCH(B15,Z1:AF1,0) -> 3 | AH2: Up to 40 | AI2: No | AJ2: 5 | AK2: No | AL2: =IF(AND(E87=$AK$3,H87<=40),$AJ$3,IF(AND(E87=$AK$3,H87>40),$AJ$5,IF(AND(E87=$AK$4,H87<=40),$AJ$2,IF(AND(E87=$AK$4,H87>40),$AJ$4,0)))) -> 0 | AM2: 0 | AN2: HW energy HP/day | AO2: =IF(F14=0,0,F14+1)*F15*F21*(F33-AY4)*AY2/(AY3*B34*(F34)) -> 3.904326744 | AP2: kWh into HP for HW/day | AR2: CO2 kg | AS2: 0.519 | AT2: 0.216 | AU2: 0.241 | AV2: 0.298 | AW2: SHC Water | AY2: 4187 | AZ2: J/kgK
A3: Date: | B3: 2025-08-29 | E3: Company Name: | F3: Sprint Renewables | P3: 25 | Q3: Ground Source | R3: Detached | S3: Post 2000 | T3: 35 | U3: 1 | V3: 10 | W3: Radiators | X3: Three Phase | Y3: Vertical | Z3: Bed & Ensuite | AA3: 21 | AB3: 2.0 | AC3: 1.5 | AD3: 1.0 | AE3: 1 | AH3: Up to 40 | AI3: Yes | AJ3: 3 | AK3: Yes (with throat restrictor) | AL3: 0 | AM3: 7 | AN3: HW energy immersion/week | AO3: =AY2*IF(F14=0,0,F14+1)*F15*F21*(60-F33)/AY3 -> 2.616875 | AP3: kWh into Immersion for HW/week | AR3: HP Capacity @ DOT °C/Flow temp | AS3: ='Design Details'!B31 -> 12.61 | AW3: J to kWh | AY3: 3600000
A4: Customer Name: | B4: Louise Martin | E4: MCS No: | F4: NIC 600080 | P4: 50 | Q4: Water Source | R4: End Terrace | S4: Post 2006 | T4: 40 | U4: 2 | V4: 20 | W4: Radiators/Fan Convectors | Y4: Water | Z4: Bed/Study | AA4: 21 | AB4: 1.5 | AC4: 1.5 | AD4: 0.5 | AE4: 1 | AH4: Up to 70 | AI4: No | AJ4: 4 | AK4: Yes (without throat restrictor) | AL4: 0 | AM4: 14 | AN4: Total HW energy/day | AO4: =IF(F14=0,0,F14+1)*F15*F21*(50-AY4)*AY2/AY3 -> 10.4675 | AP4: kWh for HW/day | AR4: FLEQ space heating | AS4: =C117/AS3 -> 1774.543421 | AW4: water mains input temp | AY4: 10 | AZ4: °C
A5: Site Address: | B5: Tyn Cae | E5: Address: | F5: Unit 9C Mapplewell Business Park | P5: 75 | R5: Flat | T5: 45 | U5: 3 | V5: 30 | W5: UFH | Y5: n/a | Z5: Bedroom | AA5: =IF($B$15="Post 2006",21,18) -> 18 | AB5: 1.0 | AC5: 1.0 | AD5: 0.5 | AE5: 1 | AH5: Up to 70 | AI5: Yes | AJ5: 2 | AL5: 0 | AN5: HP Energy (kWh) | AO5: =AO2*365 -> 1425.079261 | AR5: SPF space heating | AS5: ='Design Details'!B33 -> 3.83 | AW5: kg to litres water | AY5: 1
B6: Paradwys | F6: Mapplewell | P6: 100 | R6: Light Commercial | T6: 50 | U6: 4 | V6: 40 | W6: UFH/Fan Convectors | Z6: Bedsitting | AA6: 21 | AB6: 1.5 | AC6: 1.0 | AD6: 0.5 | AE6: 1 | AL6: 0 | AR6: Electrical Energy HP space heating | AS6: =C117/AS5 -> 5842.556799
B7: Bodorgan | F7: Barnsley | R7: Semi-Detached | T7: 55 | U7: 5 | V7: 50 | W7: UFH/Radiators | Z7: Breakfast | AA7: 21 | AB7: 1.5 | AC7: 1.0 | AD7: 0.5 | AE7: 1 | AL7: 0 | AR7: Electrical Energy HP HW heating | AS7: =AO5 -> 1425.079261
R8: Terrace | T8: 60 | U8: 6 | V8: 60 | W8: UFH/Radiators/Fan Convectors | Z8: Cloaks/WC | AA8: =IF($B$15="Post 2006",21,18) -> 18 | AB8: 2 | AC8: 1.5 | AD8: 1.5 | AE8: 1 | AL8: 0 | AR8: HW heat energy from HP | AS8: =AO2*B34*(F34)*365 -> 3820.6375
A9: Post Code: | B9: LL62 5PE | E9: Post Code: | F9: S75 6BP | T9: 65 | U9: 7 | V9: 70 | Z9: Dining | AA9: 21 | AB9: 1.5 | AC9: 1.0 | AD9: 0.5 | AE9: 1 | AL9: 0 | AR9: FLEQ HW heating | AS9: =AS8/B32 -> 290.5427757
A10: Contact Nos. | E10: Contact Nos. | F10: 01226 337654 | U10: 8 | V10: 80 | Z10: Dressing | AA10: =IF($B$15="Post 2006",21,18) -> 18 | AB10: 1.5 | AC10: 1.0 | AD10: 0.5 | AE10: 1 | AL10: 0 | AR10: Running Hours CH pump | AS10: =AS4+AS9 -> 2065.086197 | AT10: Running hours HW + space heating or 8760 if 24/7 operation
A11: Email Address: | E11: Email Address: | F11: info@sprintrenewables.co.uk | U11: 9 | V11: 90 | Z11: Family | AA11: 21 | AB11: 2 | AC11: 1.5 | AD11: 1.5 | AE11: 1 | AL11: 0 | AR11: Power CH Pump (W) | AT11: If known please use
U12: 10 | V12: 100 | Z12: Games | AA12: 21 | AB12: 1.5 | AC12: 1.0 | AD12: 0.5 | AE12: 1 | AL12: 0 | AR12: Running Hours Ground HX pump | AS12: =AS4+AS9 -> 2065.086197
A13: Property Details | V13: 110 | Z13: Hall | AA13: =IF($B$15="Post 2006",21,18) -> 18 | AB13: 2.0 | AC13: 1.0 | AD13: 0.5 | AE13: 1 | AL13: 0 | AR13: Power Ground HX pump (W) | AS13: =IF('Design Details'!B28="Air Source",0,'GL Sizing'!F26) -> 0
A14: House Type | B14: Detached | E14: Amount of Bedrooms | F14: 4 | V14: 120 | Z14: Internal | AA14: =IF($B$15="Post 2006",21,18) -> 18 | AB14: 0.0 | AC14: 0.0 | AD14: 0.0 | AE14: 1 | AL14: 0
A15: Built (year) | B15: Pre 2000 | E15: Occupants per Bedroom | F15: 1 | V15: 130 | Z15: Kitchen | AA15: =IF($B$15="Post 2006",21,18) -> 18 | AB15: 2 | AC15: 1.5 | AD15: 1.5 | AE15: 1 | AL15: 0
A16: Electrical Supply | B16: Single Phase | E16: Total Floor Area (m²) | F16: =G117 -> 183.9905 | V16: 140 | Z16: Landing | AA16: =IF($B$15="Post 2006",21,18) -> 18 | AB16: 2.0 | AC16: 1.0 | AD16: 0.5 | AE16: 1 | AL16: 0
E17: Total Volume (m³) | F17: =H117 -> 432.336402 | V17: 150 | Z17: Living | AA17: 21 | AB17: 1.5 | AC17: 1 | AD17: 0.5 | AE17: 1 | AL17: 0
A18: Design Data | V18: 160 | Z18: Lounge | AA18: 21 | AB18: 1.5 | AC18: 1 | AD18: 0.5 | AE18: 1 | AL18: 0
A19: Outside Design Temp - ODT (⁰C) | B19: =LOOKUP(LEFT(B9,2),'Post Code Degree Days'!A3:B126,'Post Code Degree Days'!B3:B126)+IF(AND(F19>90,F19<200),-0.6,IF(AND(F19>190,F19<300),-1.2,IF(AND(F19>290,F19<400),-1.8,IF(AND(F19>390,F19<500),-2.4,0)))) -> -3 | E19: Altitude (m) | F19: 20 | V19: 170 | Z19: Shower | AA19: 22 | AB19: 3 | AC19: 1.5 | AD19: 1.5 | AE19: 1 | AL19: 0
A20: Degree Days (DD) | B20: =LOOKUP((LEFT(B9,2)),'Post Code Degree Days'!A3:C126,'Post Code Degree Days'!C3:C126) -> 2228 | E20: Min Hot Water Cylinder (litres) | F20: =IFERROR(IF(F14=0,0,F21*(F14+1)*F15),0) -> 225 | V20: 180 | Z20: Store | AA20: 16 | AB20: 1.0 | AC20: 0.5 | AD20: 0.5 | AE20: 1 | AL20: 0
A21: Mean air temp - MAT (°C) | B21: =LOOKUP((LEFT(B9,2)),'Post Code Degree Days'!A3:H126,'Post Code Degree Days'!H3:H126) -> 10 | E21: Hot water per occupant (l/day) | F21: 45 | V21: 190 | Z21: Study | AA21: 21 | AB21: 1.5 | AC21: 1.5 | AD21: 0.5 | AE21: 1 | AL21: 0
A22: MAT Location | B22: =LOOKUP((LEFT(B9,2)),'Post Code Degree Days'!A3:H126,'Post Code Degree Days'!G3:G126) -> W Pennines (Ringway) | E22: Legionnaires' protection (days) | F22: 7 | V22: 200 | Z22: Toilet | AA22: =IF($B$15="Post 2006",21,18) -> 18 | AB22: 3 | AC22: 1.5 | AD22: 1.5 | AE22: 1 | AL22: 0
A23: Building Requirements | V23: 210 | Z23: Utility | AA23: =IF($B$15="Post 2006",21,18) -> 18 | AB23: 3 | AC23: 2 | AD23: 0.5 | AE23: 1 | AL23: 0
A24: Space Heating load (kW) | B24: =B117/1000 -> 11.59481612 | E24: Annual Hot water heating demand (kWh/yr) | F24: =IFERROR(AO4*365,0) -> 3820.6375 | V24: 220 | AL24: 0
A25: Heat loss W/m² | B25: =IFERROR(B117/G117,0) -> 63.0185587 | E25: Immersion Energy (kWh) | F25: =IFERROR(AO3*ROUND((365/F22),0),0) -> 136.0775 | V25: 230 | AL25: 0
A26: Space Heating (kWh/yr) | B26: =C117 -> 22376.99254 | E26: Total Energy Usage (kWh/yr) | F26: =SUM(F24:H24,B26) -> 26197.63004 | V26: 240 | AL26: 0
A27: Selection | V27: 250 | AL27: 0
A28: Type of Heat Pump | B28: Air Source | E28: Buffer Vessel (litres) | F28: 25 | V28: 260 | AL28: 0
A29: Manufacturer | B29: Ideal | E29: Hot Water Cylinder (litres) | F29: 200 | V29: 270 | AL29: 0
A30: Model | B30: Logic Air HP 290 14kw | E30: Type of Emitters | F30: Radiators | V30: 280 | AL30: 0
A31: Output @ ODT/DFT (kW) | B31: 12.61 | E31: Design Flow Temp - DFT (°C) | F31: 50 | V31: 290 | AL31: 0
A32: Output @ 0°C/HW (kW) | B32: 13.15 | E32: CH pump power (W) | F32: 100 | V32: 300
A33: Manufacturers htg SCOP | B33: 3.83 | E33: Hot Water storage temp (°C) | F33: 50 | V33: 310
A34: Manufacturers HW SCOP | B34: 3.83 | E34: Hot Water system efficiency | F34: 0.7 | V34: 320
V35: 330
A36: Estimated Running Costs | V36: 340
A37: Space Heating | B37: =IFERROR(AS6*F38,0) -> 1402.213632 | E37: Ground Pump | F37: =IFERROR(F38*AS12*AS13/1000,0) -> 0 | V37: 350
A38: Hot Water from Heat Pump | B38: =IFERROR(AS7*F38,0) -> 342.0190228 | E38: Electric (p/kWh) | F38: 0.24 | V38: 360
A39: Hot Water from Immersion | B39: =F25*F38 -> 32.6586 | E39: Gas (p/kWh) | F39: 0.07 | V39: 370
A40: Total Running Costs | B40: =SUM(B37:D39,F37:H37) -> 1776.891254 | E40: LPG (p/kWh) | F40: 0.75 | V40: 380
A41: Central Heating Pump | B41: =IFERROR(F38*AS10*F32/1000,0) -> 49.56206872 | E41: Oil (p/kWh) | F41: 0.8 | V41: 390
V42: 400
A43: Property assumed U Values
A44: Ground Floor | B44: U' Value | C44: Construction
A45: Floor | B45: 0 | C45: Floor Insulation: | D45: 0 | E45: mm If 'U' value not known please select insulation level and select exposed edges per room
A46: Windows | B46: =IFERROR(LOOKUP(C46,'U Value Calculator'!$O$3:$P$17,'U Value Calculator'!$P$3:$P$17),0) -> 2.8 | C46: Wood/PVC Double Glazed
A47: Door | B47: 2.8 | C47: Glazed wood or PVC-U door Enter a U-value
A48: External Wall | B48: =IFERROR(LOOKUP(C48,'U Value Calculator'!$K$3:$L$88,'U Value Calculator'!$L$3:$L$88),0) -> 0.44 | C48: Render 19mm, brick 102mm, mineral wool slab in cavity 50mm, 100mm standard aerated block, 13mm plaster
A49: Ceiling | B49: =IFERROR(LOOKUP(C49,'U Value Calculator'!$K$116:$L$124,'U Value Calculator'!$L$116:$L$124),0) -> 1.73 | C49: Intermediate floors, boarding 19mm, airspace between joists, 9.5mm plasterboard heat flow upward
A50: Pitched Roof | B50: =IFERROR(LOOKUP(C50,'U Value Calculator'!$K$96:$L$115,'U Value Calculator'!$L$96:$L$115),0) -> 0
A51: Internal Wall | B51: 1.4 | C51: Plaster 13mm, brick 102.5mm, plaster 13mm
A52: Party Wall | B52: 1
A53: Roof Glazing | B53: 2.8
A54: Mid-Floor | B54: U' Value | C54: Construction
A55: Floor | B55: =IFERROR(LOOKUP(C55,'U Value Calculator'!$K$116:$L$124,'U Value Calculator'!$L$116:$L$124),0) -> 0
A56: Windows | B56: =IFERROR(LOOKUP(C56,'U Value Calculator'!$O$3:$P$17,'U Value Calculator'!$P$3:$P$17),0) -> 0
A57: Door | B57: =IFERROR(LOOKUP(C57,'U Value Calculator'!$O$18:$P$26,'U Value Calculator'!$P$18:$P$26),0) -> 0
A58: External Wall | B58: =IFERROR(LOOKUP(C58,'U Value Calculator'!$K$3:$L$88,'U Value Calculator'!$L$3:$L$88),0) -> 0
A59: Ceiling | B59: =IFERROR(LOOKUP(C59,'U Value Calculator'!$K$116:$L$124,'U Value Calculator'!$L$116:$L$124),0) -> 0
A60: Pitched Roof | B60: =IFERROR(LOOKUP(C60,'U Value Calculator'!$K$96:$L$115,'U Value Calculator'!$L$96:$L$115),0) -> 0
A61: Internal Wall | B61: =IFERROR(LOOKUP(C61,'U Value Calculator'!$K$89:$L$95,'U Value Calculator'!$L$89:$L$95),0) -> 0
A62: Party Wall | B62: 0.5
A63: Roof Glazing | B63: =IFERROR(LOOKUP(C63,'U Value Calculator'!$O$3:$P$17,'U Value Calculator'!$P$3:$P$17),0) -> 0
A64: Upper-Floor | B64: U' Value | C64: Construction
A65: Floor | B65: =IFERROR(LOOKUP(C65,'U Value Calculator'!$K$116:$L$124,'U Value Calculator'!$L$116:$L$124),0) -> 0
A66: Windows | B66: =IFERROR(LOOKUP(C66,'U Value Calculator'!$O$3:$P$17,'U Value Calculator'!$P$3:$P$17),0) -> 2.8 | C66: Wood/PVC Double Glazed
A67: Door | B67: 2.8
A68: External Wall | B68: =IFERROR(LOOKUP(C68,'U Value Calculator'!$K$3:$L$88,'U Value Calculator'!$L$3:$L$88),0) -> 0.44 | C68: Render 19mm, brick 102mm, mineral wool slab in cavity 50mm, 100mm standard aerated block, 13mm plaster
A69: Roof | B69: =IFERROR(LOOKUP(C69,'U Value Calculator'!$K$96:$L$115,'U Value Calculator'!$L$96:$L$115),0) -> 0.12 | C69: Pitched roof - Slates or tiles, , ventilated air space, 300mm insulation between joists, 9.5 mm plasterboard
A70: Pitched Roof | B70: =IFERROR(LOOKUP(C70,'U Value Calculator'!$K$96:$L$115,'U Value Calculator'!$L$96:$L$115),0) -> 0.12 | C70: Pitched roof - Slates or tiles, , ventilated air space, 300mm insulation between joists, 9.5 mm plasterboard
A71: Internal Wall | B71: =IFERROR(LOOKUP(C71,'U Value Calculator'!$K$89:$L$95,'U Value Calculator'!$L$89:$L$95),0) -> 1.72 | C71: Plasterboard 12.5mm, studding 75mm, plasterboard 12.5mm
A72: Party Wall | B72: 1
A73: Roof Glazing | B73: 2.8
A74: Single Storey | B74: U' Value | C74: Construction
A75: Floor | B75: 0 | C75: Floor Insulation: | D75: 0 | E75: mm If 'U' value not known please select insulation level and select exposed edges per room
A76: Windows | B76: 2.8
A77: Door | B77: 2.8
A78: External Wall | B78: =IFERROR(LOOKUP(C78,'U Value Calculator'!$K$3:$L$88,'U Value Calculator'!$L$3:$L$88),0) -> 1.86 | C78: Stone 610mm (24in)
A79: Roof | B79: 0.35
A80: Pitched Roof | B80: =IFERROR(LOOKUP(C80,'U Value Calculator'!$K$96:$L$115,'U Value Calculator'!$L$96:$L$115),0) -> 0
A81: Internal Wall | B81: 1.76
A82: Party Wall | B82: 1
A83: Roof Glazing | B83: =IFERROR(LOOKUP(C83,'U Value Calculator'!$O$3:$P$17,'U Value Calculator'!$P$3:$P$17),0) -> 0
A85: Space Heating
A86: Room | B86: Heat loss (W) | C86: Energy usage (kWh) | D86: Design Temp | E86: Open Flue | F86: ac/h | G86: Floor Area (m2) | H86: Volume (m3) | I86: W/m²
A87: =CONCATENATE('1'!$B$2," ",'1'!$C$2) -> Living | B87: ='1'!$N6 -> 2055.8216 | C87: ='1'!$N7 -> 3131.985726 | D87: =IFERROR(LOOKUP(A87,$Z$2:$AA$23,$AA$2:$AA$23),0) -> 21 | F87: =IFERROR(IF(LEFT(E87,3)="Yes",AL2,VLOOKUP(A87,$Z$2:$AE$23,$AF$2,TRUE)),0) -> 1.5 | G87: =SUM('1'!$F$20:$F$22) -> 29.68 | H87: =SUM('1'!$F$4) -> 66.4832 | I87: =IFERROR(B87/G87,0) -> 69.26622642
A88: =CONCATENATE('2'!$B$2," ",'2'!$C$2) -> Studio | B88: ='2'!$N6 -> 1393.248088 | C88: ='2'!$N7 -> 3557.2787 | D88: 16 | F88: =IFERROR(IF(LEFT(E88,3)="Yes",AL3,VLOOKUP(A88,$Z$2:$AE$23,$AF$2,TRUE)),0) -> 1.0 | G88: =SUM('2'!$F$20:$F$22) -> 20.8 | H88: =SUM('2'!$F$4) -> 49.088 | I88: =IFERROR(B88/G88,0) -> 66.98308115
A89: =CONCATENATE('3'!$B$2," ",'3'!$C$2) -> Sun room | B89: ='3'!$N6 -> 1242.998086 | C89: ='3'!$N7 -> 2384.908094 | D89: 21 | F89: 1.5 | G89: =SUM('3'!$F$20:$F$22) -> 12.075 | H89: =SUM('3'!$F$4) -> 38.055 | I89: 102.9398001
A90: =CONCATENATE('4'!$B$2," ",'4'!$C$2) -> Music room | B90: ='4'!$N6 -> 878.2187336 | C90: ='4'!$N7 -> 1828.475179 | D90: 21 | F90: 1.5 | G90: =SUM('4'!$F$20:$F$22) -> 14.214 | H90: =SUM('4'!$F$4) -> 31.69722 | I90: 61.78547443
A91: =CONCATENATE('5'!$B$2," ",'5'!$C$2) -> Hall | B91: ='5'!$N6 -> 227.2271251 | C91: ='5'!$N7 -> 506.1645275 | D91: 18 | F91: 2.0 | G91: =SUM('5'!$F$20:$F$22) -> 2.9058 | H91: =SUM('5'!$F$4) -> 6.648992 | I91: 78.1977855
A92: =CONCATENATE('6'!$B$2," ",'6'!$C$2) -> Utility | B92: ='6'!$N6 -> 435.825183 | C92: ='6'!$N7 -> 676.9155764 | D92: 18 | F92: 3 | G92: =SUM('6'!$F$20:$F$22) -> 5.442 | H92: =SUM('6'!$F$4) -> 12.2445 | I92: 80.08548015
A93: =CONCATENATE('7'!$B$2," ",'7'!$C$2) -> WC | B93: ='7'!$N6 -> 86.44144 | C93: ='7'!$N7 -> 152.6604211 | D93: 18 | F93: 3 | G93: =SUM('7'!$F$20:$F$22) -> 0.848 | H93: =SUM('7'!$F$4) -> 1.908 | I93: 101.9356604
A94: =CONCATENATE('8'!$B$2," ",'8'!$C$2) -> Kitchen | B94: ='8'!$N6 -> 1336.731544 | C94: ='8'!$N7 -> 3067.354547 | D94: 18 | F94: 2 | G94: =SUM('8'!$F$20:$F$22) -> 27.04 | H94: =SUM('8'!$F$4) -> 59.2176 | I94: 49.43533817
A95: =CONCATENATE('9'!$B$2," ",'9'!$C$2) -> Bedroom 1 | B95: ='9'!$N6 -> 545.95488 | C95: ='9'!$N7 -> 1270.751386 | D95: 18 | F95: 1.0 | G95: =SUM('9'!$F$20:$F$22) -> 11.8 | H95: =SUM('9'!$F$4) -> 28.32 | I95: 46.26736271
A96: =CONCATENATE('10'!$B$2," ",'10'!$C$2) -> Bedroom 2 | B96: ='10'!$N6 -> 485.4155376 | C96: ='10'!$N7 -> 1236.006649 | D96: 18 | F96: 1.0 | G96: =SUM('10'!$F$20:$F$22) -> 8.5408 | H96: =SUM('10'!$F$4) -> 20.49792 | I96: 56.83490277
A97: =CONCATENATE('11'!$B$2," ",'11'!$C$2) -> Bedroom 3 | B97: ='11'!$N6 -> 849.6752853 | C97: ='11'!$N7 -> 1562.015665 | D97: 18 | F97: 1.0 | G97: =SUM('11'!$F$20:$F$22) -> 13.7559 | H97: =SUM('11'!$F$4) -> 32.463924 | I97: 61.76806209
A98: =CONCATENATE('12'!$B$2," ",'12'!$C$2) -> Bedroom 4 | B98: ='12'!$N6 -> 547.0983628 | C98: ='12'!$N7 -> 1248.914426 | D98: 18 | F98: 1.0 | G98: =SUM('12'!$F$20:$F$22) -> 11.6936 | H98: =SUM('12'!$F$4) -> 27.47996 | I98: 46.78613625
A99: =CONCATENATE('13'!$B$2," ",'13'!$C$2) -> En-suite | B99: ='13'!$N6 -> 84.190939 | C99: ='13'!$N7 -> 73.07125258 | D99: 18 | F99: 1.5 | G99: =SUM('13'!$F$20:$F$22) -> 1.526 | H99: =SUM('13'!$F$4) -> 3.5861 | I99: 55.17099541
A100: =CONCATENATE('14'!$B$2," ",'14'!$C$2) -> Bath | B100: ='14'!$N6 -> 1064.439209 | C100: ='14'!$N7 -> 1154.227107 | D100: 22 | F100: 3 | G100: =SUM('14'!$F$20:$F$22) -> 14.32 | H100: =SUM('14'!$F$4) -> 32.30092 | I100: 74.33234698
A101: =CONCATENATE('15'!$B$2," ",'15'!$C$2) -> Landing | B101: ='15'!$N6 -> 361.5301108 | C101: ='15'!$N7 -> 526.2632845 | D101: 18 | F101: 2.0 | G101: =SUM('15'!$F$20:$F$22) -> 9.3494 | H101: =SUM('15'!$F$4) -> 22.345066 | I101: 38.66880343
A102: =CONCATENATE('16'!$B$2," ",'16'!$C$2) -> - | B102: ='16'!$N6 -> 0 | C102: ='16'!$N7 -> 0 | D102: 0 | F102: 0 | G102: =SUM('16'!$F$20:$F$22) -> 0 | H102: =SUM('16'!$F$4) -> 0 | I102: 0
A103: =CONCATENATE('17'!$B$2," ",'17'!$C$2) -> - | B103: ='17'!$N6 -> 0 | C103: ='17'!$N7 -> 0 | D103: 0 | F103: 0 | G103: =SUM('17'!$F$20:$F$22) -> 0 | H103: =SUM('17'!$F$4) -> 0 | I103: 0
A104: =CONCATENATE('18'!$B$2," ",'18'!$C$2) -> - | B104: ='18'!$N6 -> 0 | C104: ='18'!$N7 -> 0 | D104: 0 | F104: 0 | G104: =SUM('18'!$F$20:$F$22) -> 0 | H104: =SUM('18'!$F$4) -> 0 | I104: 0
A105: =CONCATENATE('19'!$B$2," ",'19'!$C$2) -> - | B105: ='19'!$N6 -> 0 | C105: ='19'!$N7 -> 0 | D105: 0 | F105: 0 | G105: =SUM('19'!$F$20:$F$22) -> 0 | H105: =SUM('19'!$F$4) -> 0 | I105: 0
A106: =CONCATENATE('20'!$B$2," ",'20'!$C$2) -> - | B106: ='20'!$N6 -> 0 | C106: ='20'!$N7 -> 0 | D106: 0 | F106: 0 | G106: =SUM('20'!$F$20:$F$22) -> 0 | H106: =SUM('20'!$F$4) -> 0 | I106: 0
A107: =CONCATENATE('21'!$B$2," ",'21'!$C$2) -> - | B107: ='21'!$N6 -> 0 | C107: ='21'!$N7 -> 0 | D107: 0 | F107: 0 | G107: =SUM('21'!$F$20:$F$22) -> 0 | H107: =SUM('21'!$F$4) -> 0 | I107: 0
A108: =CONCATENATE('22'!$B$2," ",'22'!$C$2) -> - | B108: ='22'!$N6 -> 0 | C108: ='22'!$N7 -> 0 | D108: 0 | F108: 0 | G108: =SUM('22'!$F$20:$F$22) -> 0 | H108: =SUM('22'!$F$4) -> 0 | I108: 0
A109: =CONCATENATE('23'!$B$2," ",'23'!$C$2) -> - | B109: ='23'!$N6 -> 0 | C109: ='23'!$N7 -> 0 | D109: 0 | F109: 0 | G109: =SUM('23'!$F$20:$F$22) -> 0 | H109: =SUM('23'!$F$4) -> 0 | I109: 0
A110: =CONCATENATE('24'!$B$2," ",'24'!$C$2) -> - | B110: ='24'!$N6 -> 0 | C110: ='24'!$N7 -> 0 | D110: 0 | F110: 0 | G110: =SUM('24'!$F$20:$F$22) -> 0 | H110: =SUM('24'!$F$4) -> 0 | I110: 0
A111: =CONCATENATE('25'!$B$2," ",'25'!$C$2) -> - | B111: ='25'!$N6 -> 0 | C111: ='25'!$N7 -> 0 | D111: 0 | F111: 0 | G111: =SUM('25'!$F$20:$F$22) -> 0 | H111: =SUM('25'!$F$4) -> 0 | I111: 0
A112: =CONCATENATE('26'!$B$2," ",'26'!$C$2) -> - | B112: ='26'!$N6 -> 0 | C112: ='26'!$N7 -> 0 | D112: 0 | F112: 0 | G112: =SUM('26'!$F$20:$F$22) -> 0 | H112: =SUM('26'!$F$4) -> 0 | I112: 0
A113: =CONCATENATE('27'!$B$2," ",'27'!$C$2) -> - | B113: ='27'!$N6 -> 0 | C113: ='27'!$N7 -> 0 | D113: 0 | F113: 0 | G113: =SUM('27'!$F$20:$F$22) -> 0 | H113: =SUM('27'!$F$4) -> 0 | I113: 0
A114: =CONCATENATE('28'!$B$2," ",'28'!$C$2) -> - | B114: ='28'!$N6 -> 0 | C114: ='28'!$N7 -> 0 | D114: 0 | F114: 0 | G114: =SUM('28'!$F$20:$F$22) -> 0 | H114: =SUM('28'!$F$4) -> 0 | I114: 0
A115: =CONCATENATE('29'!$B$2," ",'29'!$C$2) -> - | B115: ='29'!$N6 -> 0 | C115: ='29'!$N7 -> 0 | D115: 0 | F115: 0 | G115: =SUM('29'!$F$20:$F$22) -> 0 | H115: =SUM('29'!$F$4) -> 0 | I115: 0
A116: =CONCATENATE('30'!$B$2," ",'30'!$C$2) -> - | B116: ='30'!$N6 -> 0 | C116: ='30'!$N7 -> 0 | D116: 0 | F116: 0 | G116: =SUM('30'!$F$20:$F$22) -> 0 | H116: =SUM('30'!$F$4) -> 0 | I116: 0
A117: Total | B117: =SUM(B87:B116) -> 11594.81612 | C117: =SUM(C87:C116) -> 22376.99254 | G117: =SUM(G87:G116) -> 183.9905 | H117: =SUM(H87:H116) -> 432.336402 | I117: =IFERROR(B117/G117,0) -> 63.0185587

Sheet U Value Calculator
K1: Wall/Roof/ceiling/non-ground floors U-values (SOURCE Domestic heating guide section 6) | L1: U-value W/m²K | O1: Window_description | P1: U-value W/m²K | S1: Type of surface/air gap | T1: Thermal resistance | V1: Element | W1: Material | X1: Density kg/m³ | Y1: k factor W/mK
B2: U VALUE CALCULATOR | K2: Enter a U-value | O2: Enter a U-value | S2: Outside surface of exterior wall | T2: 0.06 | V2: Walls | W2: Asbestos cement sheet | X2: 700 | Y2: 0.36
B3: Fabric Type: | K3: 19mm Render, 75mm foam board, Brick 102mm, Plaster | L3: 0.3 | O3: Metal Double Glazed | P3: 3.4 | S3: Inside surface of wall | T3: 0.12 | W3: Autoclaved aerated concrete block | X3: 600 | Y3: 0.18
K4: 19mm Render, 75mm foam board, Brick 228mm, Plaster | L4: 0.28 | O4: Metal Double Glazed, low-E glass | P4: 2.8 | S4: Air Gap | T4: 0.18 | W4: Brickwork (inner leaf) | X4: 1700 | Y4: 0.62
A5: Layer | B5: Element | C5: Material | D5: Thickness (mm) | E5: Thermal Conductivity (W/mK) | F5: Resistance R m²K/W | K5: 19mm Render, 75mm foam board, Brick 343mm, Plaster | L5: 0.27 | O5: Metal Double Glazed, low-E glass, argon filled | P5: 2.6 | W5: Brickwork (outer leaf) | X5: 1700 | Y5: 0.84
A6: 1 | E6: =IFERROR(IF(B6="Air Gap","n/a",LOOKUP(C6,$W$2:$W$62,$Y$2:$Y$62)),"") ->  | F6: =IFERROR(IF(B6="Air Gap",$T$4,(D6/1000)/E6),"") ->  | K6: 19mm Render, 75mm foam board, concrete 102mm, Plaster | L6: 0.31 | O6: Metal Single Glazed | P6: 5.7 | S6: Fabric Type | W6: Concrete (lightweight) | X6: 1200 | Y6: 0.38
A7: 2 | K7: 19mm Render, 75mm foam board, concrete 152mm, Plaster | L7: 0.3 | O7: Metal Triple Glazed | P7: 2.6 | S7: External wall | W7: Concrete (medium density) | X7: 1800 | Y7: 1.13
A8: 3 | K8: 19mm Render, 75mm foam board, concrete 204mm, Plaster | L8: 0.3 | O8: Metal Triple Glazed, low-E glass | P8: 2.1 | S8: Internal wall | W8: Concrete (dense) | X8: 2100 | Y8: 1.4
A9: 4 | K9: 19mm Render, 75mm foam board, concrete 254mm, Plaster | L9: 0.3 | O9: Metal Triple Glazed, low-E glass, argon filled | P9: 2 | S9: Roof | W9: Concrete (high density) | X9: 2400 | Y9: 1.93
A10: 5 | K10: Brick 102 mm, plaster | L10: 2.97 | O10: Single glazed window with Secondary Glazing | P10: 2.4 | W10: Concrete block (heavyweight) | X10: 2300 | Y10: 1.63
A11: 6 | K11: Brick 102.5mm, cavity, membrane, plywood 10mm, studding 100mm, with infill insulation 80mm, vapour membrane, plasterboard 12.5mm | L11: 0.32 | O11: Wood/PVC Double Glazed | P11: 2.8 | W11: Concrete block (lightweight) | X11: 600 | Y11: 0.19
A12: 7 | K12: Brick 102.5mm, cavity, membrane, plywood 10mm, studding 100mm, with infill insulation 60mm, vapour membrane, plasterboard 12.5mm | L12: 0.43 | O12: Wood/PVC Double Glazed, low-E glass | P12: 2.3 | W12: Concrete block (medium weight) | X12: 1400 | Y12: 0.51
A13: 8 | K13: Brick 102.5mm, cavity, membrane, plywood 10mm, studding 100mm, with infill insulation 80mm, vapour membrane, plasterboard 12.5mm | L13: 0.36 | O13: Wood/PVC Double Glazed, low-E glass, argon filled | P13: 2.1 | S13: Walls | W13: Fibreboard | X13: 300 | Y13: 0.06
E14: Total Resistance | F14: =IF(C3="External wall",SUM(F6:F13,T2:T3),IF(C3="Internal wall",SUM(F6:F13,T3,T3),SUM(F6:F13))) -> 0 | K14: Brick 102mm, 50mm mineral slab, brick 102mm, 13mm plaster | L14: 0.56 | O14: Wood/PVC Single Glazed | P14: 4.8 | S14: Surface Finishes | W14: Gypsum | X14: 600 | Y14: 0.18
E15: U value of construction (W/m²K) | F15: =1/F14 ->  | K15: Brick 102mm, 50mm mineral slab, brick 102mm, 12.5mm plasterboard on dabs | L15: 0.53 | O15: Wood/PVC Triple Glazed | P15: 2.1 | S15: Roofs | W15: Lightweight aggregate concrete block | X15: 1400 | Y15: 0.57
K16: Brick 102mm, 75mm foam board, 12.5mm plasterboard | L16: 0.3 | O16: Wood/PVC Triple Glazed, low-E glass | P16: 1.7 | S16: Floors | W16: Limestone (soft) | X16: 1800 | Y16: 1.1
K17: Brick 102mm, cavity, 100mm high performance aerated block (k=0.11), 12.5mm plasterboard on dabs | L17: 0.64 | O17: Wood/PVC Triple Glazed, low-E glass, argon filled | P17: 1.6 | S17: Insulation | W17: Limestone (hard) | X17: 2200 | Y17: 1.7
A18: EXTERNAL WALL TYPE - SOLID | D18: Description | F18: U-value W/m²K | K18: Brick 102mm, cavity, 100mm high performance aerated block (k=0.11), 13mm plaster | L18: 0.68 | O18: =$O$27&" "&O1 -> Glazed wood or PVC-U door Window_description | P18: =P1 -> U-value W/m²K | S18: Air Gap | W18: Mortar (exposed | X18: 1750 | Y18: 0.94
A19: Solid Brick Wall | D19: Brick 102mm, Plaster | F19: 2.97 | K19: Brick 102mm, cavity, 100mm standard aerated block (k=0.17), 12.5mm plasterboard on dabs | L19: 0.8 | O19: Glazed wood or PVC-U door Enter a U-value | P19: 0 | W19: Mortar (protected) | X19: 1750 | Y19: 0.88
D20: Brick 228mm, Plaster | F20: 2.11 | K20: Brick 102mm, cavity, 100mm standard aerated block (k=0.17), 13mm plaster | L20: 0.87 | O20: Glazed wood or PVC-U door Metal Double Glazed | P20: 3.4 | W20: Plasterboard | X20: 650 | Y20: 0.16
D21: Brick 343mm, Plaster | F21: 1.64 | K21: Brick 102mm, cavity, 125mm high performance aerated block (k=0.11), 12.5mm plasterboard on dabs | L21: 0.56 | O21: Glazed wood or PVC-U door Metal Double Glazed, low-E glass | P21: 2.8 | W21: Reinforced concrete (1% steel) | X21: 2300 | Y21: 2.3
A22: Solid Brick Insulated Externally | D22: 19mm Render, 75mm foam board, Brick 102mm, Plaster | F22: 0.3 | K22: Brick 102mm, cavity, 125mm high performance aerated block (k=0.11), 13mm plaster | L22: 0.59 | O22: Glazed wood or PVC-U door Metal Double Glazed, low-E glass, argon filled | P22: 2.6 | W22: Reinforced concrete (2% steel) | X22: 2400 | Y22: 2.5
D23: 19mm Render, 75mm foam board, Brick 228mm, Plaster | F23: 0.28 | K23: Brick 102mm, cavity, 125mm standard aerated block (k=0.17), 12.5mm plasterboard on dabs | L23: 0.72 | O23: Glazed wood or PVC-U door Metal Single Glazed | P23: 5.7 | W23: Sandstone | X23: 2600 | Y23: 2.3
D24: 19mm Render, 75mm foam board, Brick 343mm, Plaster | F24: 0.27 | K24: Brick 102mm, cavity, 125mm standard aerated block (k=0.17), 13mm plaster | L24: 0.77 | O24: Glazed wood or PVC-U door Metal Triple Glazed | P24: 2.6 | W24: Stone (artificial) | X24: 1750 | Y24: 1.3
A25: Solid Brink Insulated Internally | D25: Brick 102mm, 75mm foam board, 12.5mm plasterboard | F25: 0.3 | K25: Brick 102mm, cavity, brick 102mm, 12.5mm plasterboard on dabs | L25: 1.21 | O25: solid wood door (external) | P25: 3 | W25: Stone (granite) | X25: 2640 | Y25: 2.93
D26: Brick 228mm, 75mm foam board, 12.5mm plasterboard | F26: 0.29 | K26: Brick 102mm, cavity, brick 102mm, 13mm plaster | L26: 1.37 | O26: Solid wood door to unheated corridor | P26: 1.4 | W26: Tile Hanging | X26: 1900 | Y26: 0.84
D27: Brick 343mm, 75mm foam board, 12.5mm plasterboard | F27: 0.28 | K27: Brick 102mm, mineral wool slab in cavity 50mm, 100mm high performance aerated block (k=0.11), 13mm plaster | L27: 0.39 | O27: Glazed wood or PVC-U door | W27: Timber (Hardwood) | X27: 700 | Y27: 0.18
A28: Solid Stone Wall, Unplastered | D28: Stone 305mm (12") | F28: 2.78 | K28: Brick 102mm, mineral wool slab in cavity 50mm, 100mm standard aerated block (k=0.17), 13mm plaster | L28: 0.45 | W28: Timber (softwood, plywood, chipboard) | X28: 500 | Y28: 0.13
D29: Stone 457mm (18") | F29: 2.23 | K29: Brick 102mm, mineral wool slab in cavity 50mm, 120mm high performance aerated block (k=0.11), 13mm plaster | L29: 0.36 | V29: Surface Finishes | W29: External rendering | X29: 1330 | Y29: 0.57
D30: Stone 610mm (24") | F30: 1.86 | K30: Brick 102mm, mineral wool slab in cavity 50mm, 120mm standard aerated block (k=0.17), 13mm plaster | L30: 0.42 | W30: Fibreboard | X30: 400 | Y30: 0.1
A31: Solid Stone Wall, Internally Insulated | D31: Stone 305mm, 100mm mineral wool, plasterboard on battens | F31: 0.33 | K31: Brick 102mm, mineral wool slab in cavity 50mm,100mm high performance aerated block (k=0.11), 12.5mm plasterboard on dabs | L31: 0.38 | W31: Plaster (dense) | X31: 1300 | Y31: 0.57
D32: Stone 457mm, 100mm mineral wool, plasterboard on battens | F32: 0.32 | K32: Brick 102mm, mineral wool slab in cavity 50mm,100mm standard aerated block (k=0.17), 12.5mm plasterboard on dabs | L32: 0.43 | W32: Plaster (lightweight | X32: 600 | Y32: 0.18
D33: Stone 610mm, 100mm mineral wool, plasterboard on battens | F33: 0.32 | K33: Brick 102mm, mineral wool slab in cavity 50mm,125mm high performance aerated block (k=0.11), 12.5mm plasterboard on dabs | L33: 0.35 | W33: Plasterboard | X33: 900 | Y33: 0.25
A34: Solid Concrete Wall, Dense Plaster | D34: Concrete 102mm, Plaster | F34: 3.51 | K34: Brick 102mm, mineral wool slab in cavity 50mm,125mm standard aerated block (k=0.17), 12.5mm plasterboard on dabs | L34: 0.41 | W34: Tiles (ceramic) | X34: 2300 | Y34: 1.3
D35: Concrete 152mm, Plaster | F35: 3.12 | K35: Brick 228 mm, plaster | L35: 2.11 | V35: Roofs | W35: Aerated concrete slab | X35: 500 | Y35: 0.16
D36: Concrete 204mm, Plaster | F36: 2.8 | K36: Brick 228mm, 75mm foam board, 12.5mm plasterboard | L36: 0.29 | W36: Asphalt | X36: 1700 | Y36: 0.5
D37: Concrete 254mm, Plaster | F37: 2.54 | K37: Brick 343 mm, plaster | L37: 1.64 | W37: Asphalt | X37: 2100 | Y37: 0.7
A38: Solid Concrete Wall Insulated External, Dense Plaster | D38: 19mm Render, 75mm foam board, concrete 102mm, Plaster | F38: 0.31 | K38: Brick 343mm, 75mm foam board, 12.5mm plasterboard | L38: 0.28 | W38: Felt/Bitumen layers | X38: 1100 | Y38: 0.23
D39: 19mm Render, 75mm foam board, concrete 152mm, Plaster | F39: 0.3 | K39: Concrete 102mm, plaster | L39: 3.51 | W39: Felt/Bitumen layers | X39: 1700 | Y39: 0.5
D40: 19mm Render, 75mm foam board, concrete 204mm, Plaster | F40: 0.3 | K40: Concrete 152mm, plaster | L40: 3.12 | W40: Screed (light weight) | X40: 1200 | Y40: 0.41
D41: 19mm Render, 75mm foam board, concrete 254mm, Plaster | F41: 0.3 | K41: Concrete 204mm, plaster | L41: 2.8 | W41: Stone Chippings | X41: 1800 | Y41: 0.96
K42: Concrete 254 mm, plaster | L42: 2.54 | W42: Tiles (clay) | X42: 2000 | Y42: 1
A43: EXTERNAL WALL TYPE - CAVITY | D43: Description | F43: U-value W/m²K | K43: Render 19mm, brick 102mm, 50mm mineral wool slab, brick 102mm, 13mm plaster | L43: 0.54 | W43: Tiles (concrete) | X43: 2100 | Y43: 1.5
F44: Open Cavity | G44: Mineral Wool 50mm | K44: Render 19mm, brick 102mm, 50mm mineral wool slab, brick 102mm, 12.5mm plasterboard on dabs | L44: 0.51 | W44: Wood wool slab | X44: 500 | Y44: 0.1
A45: Cavity Wall (Open cavity or mineral Wool Slab), Lightweight Plaster | D45: Brick 102mm, Brick 102mm, 13mm Plaster & Skim | F45: 1.37 | G45: 0.56 | K45: Render 19mm, brick 102mm, cavity, 100mm standard aerated block, 13mm plaster | L45: 0.82 | V45: Floors | W45: Cast concrete | X45: 2000 | Y45: 1.35
D46: Brick 102mm, Brick 102mm, 12mm Plaster on dabs | F46: 1.21 | G46: 0.53 | K46: Render 19mm, brick 102mm, cavity, 125mm standard aerated block, 13mm plaster | L46: 0.73 | W46: Metal tray (steel) | X46: 7800 | Y46: 50
F47: Inner Leaf Thickness | K47: Render 19mm, brick 102mm, cavity, brick 102mm, 12.5mm plasterboard on dabs | L47: 1.11 | W47: Screed (concrete) | X47: 1950 | Y47: 1.2
F48: 100mm | G48: 125mm | K48: Render 19mm, brick 102mm, cavity, brick 102mm, 13mm plaster | L48: 1.25 | W48: Timber (softwood, plywood, chipboard) | X48: 500 | Y48: 0.13
A49: Cavity Wall, aerated block inner leaf, lightweight plaster | D49: Brick 102mm open cavity, standard aerated block (k=0.17), 13mm Plaster | F49: 0.87 | G49: 0.77 | K49: Render 19mm, brick 102mm, mineral wool slab in cavity 50mm, 100mm standard aerated block, 13mm plaster | L49: 0.44 | W49: Timber (hardwood) | X49: 700 | Y49: 0.18
K50: Render 19mm, brick 102mm, mineral wool slab in cavity 50mm, 125mm standard aerated block, 13mm plaster | L50: 0.41 | W50: Timber flooring | X50: 650 | Y50: 0.14
D51: Brick 102mm open cavity, standard aerated block (k=0.17), 12.5mm plasterboard on dabs | F51: 0.8 | G51: 0.72 | K51: Render 19mm, high performance aerated block (k=0.11) 215mm, 13mm plaster | L51: 0.44 | W51: Wood blocks | X51: 650 | Y51: 0.14
K52: Render 19mm, standard aerated block 100mm, cavity, 100mm high performance aerated block (k=0.11), 13mm plaster | L52: 0.51 | V52: Insulation | W52: Expanded polystyrene slab | X52: 15 | Y52: 0.04
D53: Brick 102mm, mineral wool slab in cavity 50mm, standard aerated block (k=0.17), 13mm Plaster | F53: 0.45 | G53: 0.42 | K53: Render 19mm, standard aerated block 100mm, cavity, 100mm standard aerated block, 13mm plaster | L53: 0.61 | W53: Expanded polystyrene slab | X53: 25 | Y53: 0.035
K54: Render 19mm, standard aerated block 100mm, cavity, 125mm high performance aerated block (k=0.11), 13mm plaster | L54: 0.45 | W54: Glass fibre quilt | X54: 12 | Y54: 0.04
D55: Brick 102mm, mineral wool slab in cavity 50mm, standard aerated block (k=0.17), 12.5mm plasterboard on dabs | F55: 0.43 | G55: 0.41 | K55: Render 19mm, standard aerated block 100mm, cavity, 125mm standard aerated block, 13mm plaster | L55: 0.56 | W55: Glass fibre slab | X55: 25 | Y55: 0.035
K56: Render 19mm, standard aerated block 100mm, mineral wool slab in cavity 50mm, 100mm high performance aerated block (k=0.11), 13mm plaster | L56: 0.33 | W56: Mineral fibre slab | X56: 30 | Y56: 0.035
A57: Cavity Wall, high performance aerated block inner leaf, lightweight plaster or plasterboard | D57: Brick 102mm open cavity, high performance aerated block (k=0.11), 13mm Plaster | F57: 0.68 | G57: 0.59 | K57: Render 19mm, standard aerated block 100mm, mineral wool slab in cavity 50mm, 100mm standard aerated block, 13mm plaster | L57: 0.37 | W57: Mineral wool batt | X57: 25 | Y57: 0.038
K58: Render 19mm, standard aerated block 100mm, mineral wool slab in cavity 50mm, 125mm high performance aerated block (k=0.11), 13mm plaster | L58: 0.31 | W58: Mineral wool quilt | X58: 12 | Y58: 0.042
D59: Brick 102mm open cavity, high performance aerated block (k=0.11), 12.5mm plasterboard on dabs | F59: 0.64 | G59: 0.56 | K59: Render 19mm, standard aerated block 100mm, mineral wool slab in cavity 50mm, 125mm standard aerated block, 13mm plaster | L59: 0.35 | W59: Phenolic foam | X59: 30 | Y59: 0.04
K60: shiplap boards, airspace, cavity, membrane, plywood 10mm, studding 100mm, with infill insulation 80mm, vapour membrane, plasterboard 12.5mm | L60: 0.32 | W60: Phenolic foam board | X60: 30 | Y60: 0.025
D61: Brick 102mm, mineral wool slab in cavity 50mm, high performance aerated block (k=0.11), 13mm Plaster | F61: 0.39 | G61: 0.36 | K61: shiplap boards, airspace, cavity, membrane, plywood 10mm, studding 100mm, with infill insulation 60mm, vapour membrane, plasterboard 12.5mm | L61: 0.44 | W61: Polyurethane board | X61: 30 | Y61: 0.025
K62: shiplap boards, airspace, cavity, membrane, plywood 10mm, studding 100mm, with infill insulation 80mm, vapour membrane, plasterboard 12.5mm | L62: 0.36 | W62: Urea formaldehyde foam | X62: 10 | Y62: 0.04
D63: Brick 102mm, mineral wool slab in cavity 50mm, high performance aerated block (k=0.11), 12.5mm plasterboard on dabs | F63: 0.38 | G63: 0.35 | K63: Shiplap boards, airspace, standard aerated block 100mm, cavity, 100mm high performance block (K=0.11), 13mm plaster | L63: 0.45
K64: Shiplap boards, airspace, standard aerated block 100mm, cavity, 125mm high performance block (K=0.11), 13mm plaster | L64: 0.41
K65: Shiplap boards, airspace, standard aerated block 100mm, cavity, standard aerated block 100mm, 13mm plaster | L65: 0.53
A66: EXTERNAL WALL TYPE - RENDERED EXTERNALLY | D66: Description | F66: U-value W/m²K | K66: Shiplap boards, airspace, standard aerated block 100mm, cavity, standard aerated block 125mm, 13mm plaster | L66: 0.49
F67: Open Cavity | G67: Mineral Wool 50mm | K67: Shiplap boards, airspace, standard aerated block 100mm, mineral wool slab in cavity 50mm, 125mm high performance block (K=0.11), 13mm plaster | L67: 0.29
A68: Cavity Wall (Open cavity or mineral Wool Slab), Lightweight Plaster | D68: Render 19mm, Brick 102mm, Brick 102mm, 13mm Plaster | F68: 1.25 | G68: 0.54 | K68: Shiplap boards, airspace, standard aerated block 100mm, mineral wool slab in cavity 50mm, standard aerated block 100mm, 13mm plaster | L68: 0.34
D69: Render 19mm, Brick 102mm, Brick 102mm, 12mm Plaster on dabs | F69: 1.11 | G69: 0.51 | K69: Shiplap boards, airspace, standard aerated block 100mm, mineral wool slab in cavity 50mm, standard aerated block 125mm, 13mm plaster | L69: 0.32
K70: Shiplap boards, airspace, standard aerated block 125mm, mineral wool slab in cavity 50mm, 100mm high performance block (K=0.11), 13mm plaster | L70: 0.31
F71: Inner Leaf Thickness | K71: Stone 305mm (12in) | L71: 2.78
F72: 100mm | G72: 125mm | K72: Stone 305mm, 100mm mineral wool, plasterboard on battens | L72: 0.33
A73: Cavity Wall, aerated block inner leaf, lightweight plaster or plasterboard | D73: Render 19mm, brick 102mm, cavity, standard aerated block, 13mm plaster | F73: 0.82 | G73: 0.73 | K73: Stone 457mm (18in) | L73: 2.23
K74: Stone 457mm, 100mm mineral wool, plasterboard on battens | L74: 0.32
D75: Render 19mm, brick 102.5mm, mineral wool slab in cavity 50mm, standard aerated block, 13mm plaster | F75: 0.44 | G75: 0.41 | K75: Stone 610mm (24in) | L75: 1.86
K76: Stone 610mm, 100mm mineral wool, plasterboard on battens | L76: 0.32
D77: Render 19mm, standard aerated block 100mm, cavity, standard aerated block, 13mm plaster | F77: 0.61 | G77: 0.56 | K77: Tiles, airspace, cavity, membrane, plywood 10mm, studding 100mm, with infill insulation 80mm, vapour membrane, plasterboard 12.5mm | L77: 0.34
K78: Tiles, airspace, cavity, membrane, plywood 10mm, studding 100mm, with infill insulation 60mm, vapour membrane, plasterboard 12.5mm | L78: 0.47
A79: Cavity blockwork wall, inner aerated block, lightweight plaster | D79: Render 19mm, standard aerated block 100mm mineral wool slab in cavity 50mm, standard aerated block, 13mm plaster | F79: 0.37 | G79: 0.35 | K79: Tiles, airspace, cavity, membrane, plywood 10mm, studding 100mm, with infill insulation 80mm, vapour membrane, plasterboard 12.5mm | L79: 0.38
K80: Tiles, airspace, high performance aerated block, 215mm, 13mm plaster | L80: 0.43
A81: Cavity wall, rendered, aerated block inner, lightweight plaster | D81: Render 19mm, standard aerated block 100mm, cavity, high performance aerated block (k=0.11), 13mm plaster | F81: 0.51 | G81: 0.45 | K81: Tiles, airspace, standard aerated block 100mm, 13mm plaster | L81: 0.58
K82: Tiles, airspace, standard aerated block 100mm, cavity, 100mm high performance aerated block (k=0.11), 13mm plaster | L82: 0.49
D83: Render 19mm, standard aerated block 100mm,mineral wool slab in cavity 50 mm, high performance aerated block (k=0.11), 13mm plaster | F83: 0.33 | G83: 0.31 | K83: Tiles, airspace, standard aerated block 100mm, cavity, 125mm high performance aerated block (k=0.11), 13mm plaster | L83: 0.44
K84: Tiles, airspace, standard aerated block 100mm, mineral wool slab in cavity 50mm, 100mm high performance aerated block (k=0.11), 13mm plaster | L84: 0.32
K85: Tiles, airspace, standard aerated block 100mm, mineral wool slab in cavity 50mm, 100mm standard aerated block, 13mm plaster | L85: 0.36
A86: Solid Wall, rendered outside, plaster inside | D86: Render 19mm, high performance aerated block (k=0.11), 13mm plaster | F86: 0.44 | K86: Tiles, airspace, standard aerated block 100mm, mineral wool slab in cavity 50mm, 120mm standard aerated block, 13mm plaster | L86: 0.34
K87: Tiles, airspace, standard aerated block 100mm, mineral wool slab in cavity 50mm, 125mm high performance aerated block (k=0.11), 13mm plaster | L87: 0.3
K88: Tiles, airspace, standard aerated block 125mm, 13mm plaster | L88: 0.53
A89: EXTERNAL WALL TYPE - VARIATIONS | D89: Description | F89: U-value W/m²K | K89: Plaster 13mm, block 10mm, cavity, block 100mm, plaster 13mm | L89: 1.02
F90: Inner Leaf Thickness | K90: Plaster 13mm, brick 102.5mm, plaster 13mm | L90: 1.76
F91: 100mm | G91: 125mm | K91: Plaster 13mm, brick 215mm, plaster 13mm | L91: 1.33
A92: Cavity wall, tile clad, (open cavity or mineral wool slab), lightweight plaster | D92: Tiles, air space, standard aerated block, 13mm plaster | F92: 0.58 | G92: 0.53 | K92: Plaster 13mm, standard aerated block 100mm, plaster 13mm | L92: 1.66
D93: Tiles, air space, standard aerated block 100mm, mineral wool slab in cavity 50mm, standard aerated block, 13mm plaster | F93: 0.36 | G93: 0.34 | K93: Plaster 13mm, standard aerated block 125mm, plaster 13mm | L93: 1.53
K94: Plaster, breeze block 100mm, plaster | L94: 1.58
D95: Tiles, air space, standard aerated block 100mm, cavity, high performance aerated block (k=0.11), 13mm plaster | F95: 0.49 | G95: 0.44 | K95: Plasterboard 12.5mm, studding 75mm, plasterboard 12.5mm | L95: 1.72
K96: Chippings, 3 layers of felt, boarding, air space, 100mm insulation, 9.5 mm plasterboard | L96: 0.32
D97: Tiles, air space, standard aerated block 100mm, mineral wool slab in cavity 50mm, high performance aerated block (k=0.11), 13mm plaster | F97: 0.32 | G97: 0.3 | K97: Chippings, 3 layers of felt, boarding, air space, 200mm insulation, 9.5 mm plasterboard | L97: 0.17
K98: Chippings, 3 layers of felt, boarding, air space, 300insulation, 9.5 mm plasterboard | L98: 0.12
A99: Solid wall, tile clad externally | D99: Tiles, air space, high performance aerated block 215mm, 13mm plaster | F99: 0.43 | K99: Chippings, 3 layers of felt, boarding, air space, 50mm insulation, 9.5 mm plasterboard | L99: 0.53
A100: Cavity wall timber clad externally | D100: Shiplap boards, airspace, standard aerated block 100mm, cavity, standard aerated block, 13mm plaster | F100: 0.53 | G100: 0.49 | K100: Chippings, 3 layers of felt, boarding, air space, no insulation, 9.5 mm plasterboard | L100: 1.69
K101: Pitched roof - Slates or tiles, , ventilated air space, 100mm insulation between joists, 9.5 mm plasterboard | L101: 0.35
D102: Shiplap boards, airspace, standard aerated block 100mm, mineral wool slab in cavity 50mm, standard aerated block, 13mm plaster | F102: 0.34 | G102: 0.32 | K102: Pitched roof - Slates or tiles, , ventilated air space, 200mm insulation between joists, 9.5 mm plasterboard | L102: 0.18
K103: Pitched roof - Slates or tiles, , ventilated air space, 300mm insulation between joists, 9.5 mm plasterboard | L103: 0.12
D104: Shiplap boards airspace, standard aerated block 100mm, cavity, high performance aerated block, 13mm plaster | F104: 0.45 | G104: 0.41 | K104: Pitched roof - Slates or tiles, , ventilated air space, 50mm insulation between joists, 9.5 mm plasterboard | L104: 0.62
K105: Pitched roof - Slates or tiles, , ventilated air space, no insulation, 9.5 mm plasterboard | L105: 3.13
D106: Shiplap boards, airspace, standard aerated block 100mm, mineral wool slab in cavity 50mm, high performance aerated block, 13mm plaster | F106: 0.31 | G106: 0.29 | K106: Pitched roof - Slates or tiles, sarking felt, ventilated air space, 100mm insulation between joists, 9.5 mm plasterboard | L106: 0.34
K107: Pitched roof - Slates or tiles, sarking felt, ventilated air space, 100mm insulation between rafters, 9.5 mm plasterboard | L107: 0.34
F108: Insulation Thickness | K108: Pitched roof - Slates or tiles, sarking felt, ventilated air space, 200mm insulation between joists, 9.5 mm plasterboard | L108: 0.18
F109: 60 mm | G109: 80 mm | H109: 100 mm | K109: Pitched roof - Slates or tiles, sarking felt, ventilated air space, 200mm insulation between rafters, 9.5 mm plasterboard | L109: 0.18
A110: Brick outer timber frame wall, dp membrane, plywood sheathing, studding, vapour membrane, plasterboard | D110: Brick 102.5mm, cavity, membrane, plywood 10mm, studding 100m, with infill insulation, vapour membrane, plasterboard 12.5mm | F110: 0.43 | G110: 0.36 | H110: 0.32 | K110: Pitched roof - Slates or tiles, sarking felt, ventilated air space, 300mm insulation between joists, 9.5 mm plasterboard | L110: 0.12
K111: Pitched roof - Slates or tiles, sarking felt, ventilated air space, 300mm insulation between rafters, 9.5 mm plasterboard | L111: 0.12
D112: Tiles, airspace, membrane, plywood 10mm, studding 100mm, with infill insulation, vapour membrane, plasterboard 12.5mm | F112: 0.47 | G112: 0.38 | H112: 0.34 | K112: Pitched roof - Slates or tiles, sarking felt, ventilated air space, 50mm insulation between joists, 9.5 mm plasterboard | L112: 0.6
K113: Pitched roof - Slates or tiles, sarking felt, ventilated air space, 50mm insulation between rafters, 9.5 mm plasterboard | L113: 0.6
D114: Shiplap boards, airspace, membrane, plywood 10mm, studding 100mm with infill insulation | F114: 0.44 | G114: 0.36 | H114: 0.32 | K114: Pitched roof - Slates or tiles, sarking felt, ventilated air space, no insulation, 9.5 mm plasterboard | L114: 2.51
K115: Pitched roof - Slates or tiles, sarking felt, ventilated air space, no insulation, 9.5 mm plasterboard | L115: 2.51
K116: Boarding 19mm, airspace between joists, 100mm insulation, 6mm sheeting - heat flow downward exposed to outside air or unheated space | L116: 0.33
K117: Boarding 19mm, airspace between joists, 150mm insulation, 6mm sheeting - heat flow downward exposed to outside air or unheated space | L117: 0.23
K118: Boarding 19mm, airspace between joists, no insulation, 6mm sheeting - heat flow downward exposed to outside air or unheated space | L118: 1.75
K119: Intermediate floors, boarding 19mm, airspace 100mm insulation between joists, 9.5mm plasterboard heat flow downward | L119: 0.31
K120: Intermediate floors, boarding 19mm, airspace 100mm insulation between joists, 9.5mm plasterboard heat flow upward | L120: 0.32
K121: Intermediate floors, boarding 19mm, airspace between joists, 9.5mm plasterboard heat flow downward | L121: 1.41
K122: Intermediate floors, boarding 19mm, airspace between joists, 9.5mm plasterboard heat flow upward | L122: 1.73
K123: Screed 50mm, concrete slab 150mm, 100mm insulation between battens, 6mm sheeting, heat flow downward - exposed to outside air or unheated space | L123: 0.57
K124: Screed 50mm, concrete slab 150mm, no insulation between battens, 6mm sheeting, heat flow downward - exposed to outside air or unheated space | L124: 1.82

Sheet Design Tables
A1: Degree Day data from CIBSE Guide A (base temperature 15.5 °C) 1976-1995 | E1: Design Room Operative Temperature and Natural Ventilation Rates
A2: & Mean Air Temp data (from MIS 3005 Appendix B) | E2: Room | F2: Temp (°C) | G2: Category A | H2: Category B | I2: Category C | J2: Room | K2: Temp (°C) | L2: Category A | M2: Category B | N2: Category C
B3: Degree | C3: Mean Air | E3: Lounge | F3: 21 | G3: 1.5** | H3: 1.0** | I3: 0.5 | J3: Games | K3: 21 | L3: 1.5 | M3: 1.0 | N3: 0.5
B4: Day (K*day) | C4: Temp (°C) | E4: Living | F4: 21 | G4: 1.5** | H4: 1.0** | I4: 0.5 | J4: Bedroom | K4: 18 | L4: 1.0 | M4: 1.0 | N4: 0.5
A5: Borders (Boulmer) | B5: 2483 | C5: 9 | E5: Breakfast | F5: 21 | G5: 1.5 | H5: 1.0 | I5: 0.5 | J5: Bedsitting | K5: 21 | L5: 1.5 | M5: 1.0 | N5: 0.5
A6: E Anglia (Honington) | B6: 2254 | C6: 10.1 | E6: Dining | F6: 21 | G6: 1.5 | H6: 1.0 | I6: 0.5 | J6: Bed & Ensuite | K6: 21 | L6: 2.0 | M6: 1.5 | N6: 1.0
A7: E Pennines (Finningley) | B7: 2307 | C7: 10 | E7: Kitchen | F7: 18 | G7: 2.0* | H7: 1.5* | I7: 1.5* | J7: Internal | K7: 18 | L7: 0.0 | M7: 0.0 | N7: 0.0
A8: E Scotland (Leuchars) | B8: 2577 | C8: 8.8 | E8: Family | F8: 21 | G8: 2.0* | H8: 1.5* | I8: 1.5* | J8: Bed/Study | K8: 21 | L8: 1.5 | M8: 1.5 | N8: 0.5
A9: Midland (Elmdon) | B9: 2425 | C9: 9.8 | E9: Hall | F9: 18 | G9: 2.0 | H9: 1.0 | I9: 0.5 | J9: Landing | K9: 18 | L9: 2.0 | M9: 1.0 | N9: 0.5
A10: N Ireland (Aldergrove) | B10: 2360 | C10: 9.4 | E10: Cloaks/WC | F10: 18 | G10: 2.0* | H10: 1.5* | I10: 1.5* | J10: Bath | K10: 22 | L10: 3.0* | M10: 1.5* | N10: 1.5*
A11: NE Scotland (Dyce) | B11: 2668 | C11: 8.5 | E11: Toilet | F11: 18 | G11: 3.0* | H11: 1.5* | I11: 1.5* | J11: Shower | K11: 22 | L11: 3.0* | M11: 1.5* | N11: 1.5*
A12: North-eastern (Lemming) | B12: 2370 | C12: 9.4 | E12: Utility | F12: 18 | G12: 3.0* | H12: 2.0* | I12: 0.5* | J12: Dressing | K12: 18 | L12: 1.5 | M12: 1.0 | N12: 0.5
A13: North-western (Carlisle) | B13: 2388 | C13: 9.4 | E13: Study | F13: 21 | G13: 1.5 | H13: 1.5 | I13: 0.5 | J13: Store | K13: 16 | L13: 1.0 | M13: 0.5 | N13: 0.5
A14: NW Scotland (Stornoway) | B14: 2671 | C14: 8.6
A15: Severn Valley (Filton) | B15: 1835 | C15: 10.6 | E15: Category A: | F15: Air change rates for older existing buildings (pre 2000). Those with several chimneys and/or subject to preservation orders may require greater infiltration allowance than shown above
A16: South-eastern (Gatwick) | B16: 2255 | C16: 10.2
A17: Southern (Hurn) | B17: 2224 | C17: 10.4 | E17: Category B: | F17: Air change rates for modern buildings (2000 or later) with double glazing and regulatory minimum insulation
A18: South-western (Plymouth) | B18: 1858 | C18: 11
A19: Thames Valley (Heathrow) | B19: 2033 | C19: 11.3 | E19: Category C: | F19: New (or existing) buildings constructed after 2006 and complying with all current building regulations.
A20: W Pennines (Ringway) | B20: 2228 | C20: 10
A21: W Scotland (Abbotsinch) | B21: 2494 | C21: 9.1 | E21: * | F21: Where mechanical extract ventilation is to be installed in a room and the extract volume exceeds the natural infiltration, then it is advisable to make due allowances for the air extracted from any connecting room or corridor.
A22: Wales (Aberporth) | B22: 2161 | C22: 9.9
E23: ** | F23: Where a room contains an open fire or chimney, due ventilation allowance must be made from table below (Rooms with Chimneys and Open Flues).
A24: Location | B24: Alt (m) | C24: External
C25: Temp ** | E25: Note: | F25: All new (Post 2006), well insulated buildings use a design temp of 21°C throughout, except bathrooms (22°C) and Store (16°C)
A26: Belfast | B26: 68 | C26: -1.2 | E26: Rooms with Chimneys and Open Flues
A27: Birmingham | B27: 96 | C27: -3.4 | E27: Room Volume (m³) | G27: Throat restrictor fitted to flue | J27: Air changes per hour
A28: Cardiff | B28: 67 | C28: -1.6 | E28: Up to 40 | G28: No | J28: 5
A29: Edinburgh | B29: 35 | C29: -3.4 | E29: Up to 40 | G29: Yes | J29: 3
A30: Glasgow | B30: 5 | C30: -3.9 | E30: Up to 70 | G30: No | J30: 4
A31: London | B31: 25 | C31: -1.8 | E31: Up to 70 | G31: Yes | J31: 2
A32: Manchester | B32: 75 | C32: -2.2
A33: Plymouth | B33: 27 | C33: -1.2 | E33: Table and information taken from The Domestic Heating Design Guide 2015 - please refer to the guide for further information

Sheet 1
A1: Room Information | D1: Ventilation Heat Loss | G1: Fabric | H1: Heat Loss (W) | I1: Usage (kWh) | J1: Additional heat loss | L1: Addition | M1: Watts | N1: kWh
A2: Room | B2: Living | D2: Air Changes a hour | F2: 2 | G2: Floor | H2: =SUM(J20:J22) -> 62.0312 | I2: =SUM(K20:K22) -> 301.5393024 | J2: Thermal Bridging (New Build >2006) | L2: 0 | M2: =SUM(H$2:H$6)*L2 -> 0 | N2: =SUM(I$2:I$6)*L2 -> 0 | P2: 3 edges (long single) | Q2: Level | X2: 1
A3: Level | B3: Ground floor | D3: Air Change Factor (W/m³K) | F3: 0.33 | G3: Ext Wall | H3: =J27 -> 553.527072 | I3: =K27 -> 1233.258316 | J3: Exposed location | L3: 0 | M3: =SUM(H$2:H$6)*L3 -> 0 | N3: =SUM(I$2:I$6)*L3 -> 0 | P3: 3 edges (short single) | Q3: Please Select Floor | R3: =IF($B$3="Ground floor","Solid Floor (in contact with ground)",IF($B$3="Single Storey","Solid Floor (in contact with ground)","n/a")) -> Solid Floor (in contact with ground) | S3: ='Design Details'!B21 -> 10 | T3: unheated | U3: 0 | V3: 0 | W3: 0 | X3: 2
A4: Design Room Temp (°C) | C4: ='Design Details'!D87 -> 21 | D4: Total Volume (m³) | F4: =SUM(H10:H12,H14:H18) -> 66.4832 | G4: Roof | H4: =SUM(J32,J35) -> 154.0392 | I4: =SUM(K32,K35) -> 0 | J4: High ceiling | L4: 0 | M4: =SUM(H$2:H$6)*L4 -> 0 | N4: =SUM(I$2:I$6)*L4 -> 0 | P4: One edge | Q4: Ground floor | R4: =IF($B$3="Ground floor","Suspended Floor",IF($B$3="Single Storey","Suspended Floor","n/a")) -> Suspended Floor | T4: 16 | U4: 0.1 | V4: 0.2 | W4: 0.025 | X4: 3
A5: Outside Design Temp (°C) | C5: ='Design Details'!B19 -> -3 | D5: Heat loss (W) | F5: =F4*F3*C6*F2 -> 1053.093888 | G5: Glazing | H5: =SUM(J37:J43,J45:J48,J50:J53) -> 190.32384 | I5: =SUM(K37:K43,K45:K48,K50:K53) -> 424.0415155 | J5: Intermittent heating | L5: 0 | M5: =SUM(H$2:H$6)*L5 -> 0 | N5: =SUM(I$2:I$6)*L5 -> 0 | P5: Two adjacent | Q5: Mid-floor | T5: 18 | W5: 0.05 | X5: 4
A6: Temp Difference (°C) | C6: =C4-C5 -> 24 | D6: Estimated Energy usage (kWh) | F6: =F4*F3*C7*24/1000 -> 1173.146591 | G6: Int./Party Wall | H6: =SUM(J55:J58,J60) -> 42.8064 | I6: =SUM(K60) -> 0 | M6: Total Room Heat Loss (W) | N6: =SUM(F5,H2:H6,M2:M5) -> 2055.8216 | P6: Two opposite | Q6: Single storey | T6: 21 | W6: 0.075 | X6: 5
A7: Degree Days | C7: ='Design Details'!B20 -> 2228 | M7: Total Room Energy Usage (kWh) | N7: =SUM(F6,I2:I6,N2:N5) -> 3131.985726 | Q7: Upper floor | T7: 22 | W7: 0.1 | X7: 6
Q8: =IF($B$3="Ground floor",'Design Details'!B$45,IF($B$3="Mid-floor",'Design Details'!B$55,IF($B$3="Upper floor",'Design Details'!B$65,IF($B$3="Single Storey",'Design Details'!B$75,0)))) -> 0 | X8: 7
A9: Room Dimensions | X9: 8
A10: Length (m) | B10: 6.8 | C10: Width (m) | D10: 2.2 | E10: Height (m) | F10: 2.24 | G10: Volume (m³) | H10: =B10*D10*F10 -> 33.5104 | X10: 9
A11: Length (m) | B11: 6.4 | C11: Width (m) | D11: 2.3 | E11: Height (m) | F11: 2.24 | G11: Volume (m³) | H11: =B11*D11*F11 -> 32.9728 | X11: 10
A12: Length (m) | C12: Width (m) | E12: Height (m) | G12: Volume (m³) | H12: =B12*D12*F12 -> 0
A13: Awkward Room Dimensions
A14: Length (m) | C14: Width (m) | E14: Height (m) | G14: Volume (m³) | H14: =((F14*D14)/2)*B14 -> 0 | I14: Pitched
A15: Length (m) | C15: Width (m) | E15: Height (m) | G15: Volume (m³) | H15: =B15*D15*F15/2 -> 0 | I15: Single Pitch
A16: Length (m) | C16: Height (m) | E16: Depth (m) | G16: Volume (m³) | H16: =D16*F16*B16/2 -> 0 | I16: Dormer 1
A17: Length (m) | C17: Height (m) | E17: Depth (m) | G17: Volume (m³) | H17: =D17*F17*B17/2 -> 0 | I17: Dormer 2
A18: Length (m) | C18: Height (m) | E18: Depth (m) | G18: Volume (m³) | H18: =D18*F18*B18/2 -> 0 | I18: Dormer 3
A19: Floor | I19: Temp Difference | J19: Heat Loss (W) | K19: Usage (kWh) | L19: Type of Ground Floor
A20: Length (m) | B20: =B10 -> 6.8 | C20: Width (m) | D20: =D10 -> 2.2 | E20: Area (m²) | F20: =B20*D20 -> 14.96 | G20: U Value (W/m²K) | H20: 0.19 | I20: =IF(B$3="Ground Floor",IF(L20="Solid Floor (in contact with ground)",C$4-S$3,C$4-C$5),IF(B$3="Single Storey",IF(L20="Solid Floor (in contact with ground)",C$4-S$3,C$4-C$5),0)) -> 11 | J20: =F20*H20*I20 -> 31.2664 | K20: =IF($B$3=$Q$5,0,IF($B$3=$Q$7,0,F20*H20*$C$7*24/1000)) -> 151.9888128 | L20: Solid Floor (in contact with ground)
A21: Length (m) | B21: =B11 -> 6.4 | C21: Width (m) | D21: =D11 -> 2.3 | E21: Area (m²) | F21: =B21*D21 -> 14.72 | G21: U Value (W/m²K) | H21: =H20 -> 0.19 | I21: =IF(B$3="Ground Floor",IF(L20="Solid Floor (in contact with ground)",C$4-S$3,C$4-C$5),IF(B$3="Single Storey",IF(L20="Solid Floor (in contact with ground)",C$4-S$3,C$4-C$5),0)) -> 11 | J21: =F21*H21*I21 -> 30.7648 | K21: =IF($B$3=$Q$5,0,IF($B$3=$Q$7,0,F21*H21*$C$7*24/1000)) -> 149.5504896 | L21: Exposed floor (external)
A22: Length (m) | B22: 0 | C22: Width (m) | D22: 0 | E22: Area (m²) | F22: 0 | G22: U Value (W/m²K) | H22: =H20 -> 0.19 | I22: =IF(B$3="Ground Floor",IF(L20="Solid Floor (in contact with ground)",C$4-S$3,C$4-C$5),IF(B$3="Single Storey",IF(L20="Solid Floor (in contact with ground)",C$4-S$3,C$4-C$5),0)) -> 11 | J22: =F22*H22*I22 -> 0 | K22: =IF($B$3=$Q$5,0,IF($B$3=$Q$7,0,F22*H22*$C$7*24/1000)) -> 0
A23: External Wall | L23: =IF(L22="Two opposite","Between edges",IF(L22="One edge","Depth of room",IF(L22="3 edges (short single)","Short length",IF(L22="3 edges (long single)","Short length","")))) ->  | N23: =IF(L22="3 edges (short single)","Long length",IF(L22="3 edges (long single)","Long length","")) -> 
A24: Length (m) | B24: 6.8 | C24: Height (m) | D24: 2.24 | E24: Area (m²) | F24: 15.232
A25: Length (m) | C25: Height (m) | E25: Area (m²) | F25: 0
A26: Length (m) | C26: Height (m) | E26: Area (m²) | F26: 0
D27: Total | E27: Area (m²) | F27: =SUM(F24:F26)-SUM(F37:F43,F50:F53) -> 12.3998 | G27: U Value (W/m²K) | H27: 1.86 | I27: =$C$6 -> 24 | J27: =F27*H27*I27 -> 553.527072 | K27: =F27*H27*$C$7*24/1000 -> 1233.258316
A28: Roof
A29: Length (m) | B29: =B10 -> 6.8 | C29: Width (m) | D29: =D10 -> 2.2 | E29: Area (m²) | F29: 14.96
A30: Length (m) | B30: =B11 -> 6.4 | C30: Width (m) | D30: =D11 -> 2.3 | E30: Area (m²) | F30: 14.72
A31: Length (m) | B31: 0 | C31: Width (m) | D31: 0 | E31: Area (m²) | F31: 0
E32: Area (m²) | F32: =SUM(F29:F31)-SUM(F45:F48) -> 29.68 | G32: U Value (W/m²K) | H32: =IF($B$3="Ground floor",'Design Details'!B$49,IF($B$3="Mid-floor",'Design Details'!B$59,IF($B$3="Upper floor",'Design Details'!B$69,IF($B$3="Single Storey",'Design Details'!B$79,0)))) -> 1.73 | I32: 3 | J32: 154.0392 | K32: =IF($B$3=$Q$4,0,IF($B$3=$Q$5,0,F32*H32*$C$7*24/1000)) -> 0
A33: Length (m) | B33: =B14*2 -> 0 | C33: Pitch (m) | D33: =SQRT(POWER(D14,2)+POWER(F14,2)) -> 0 | E33: Area (m²) | F33: 0 | G33: Pitched
A34: Length (m) | B34: =B15 -> 0 | C34: Pitch (m) | D34: =SQRT(POWER(D15,2)+POWER(F15,2)) -> 0 | E34: Area (m²) | F34: 0 | G34: Single Pitch
D35: Total | E35: Area (m²) | F35: =SUM(F33:F34)-SUM(F45:F48) -> 0 | G35: U Value (W/m²K) | H35: =IF($B$3="Ground floor",'Design Details'!B$50,IF($B$3="Mid-floor",'Design Details'!B$60,IF($B$3="Upper floor",'Design Details'!B$70,IF($B$3="Single Storey",'Design Details'!B$80,0)))) -> 0 | I35: 24 | J35: 0 | K35: =IF($B$3=$Q$4,0,IF($B$3=$Q$5,0,F35*H35*$C$7*24/1000)) -> 0
A36: Windows
A37: Width (m) | B37: 1.19 | C37: Height (m) | D37: 2.38 | E37: Area (m²) | F37: 2.8322 | G37: U Value (W/m²K) | H37: =IF($B$3="Ground floor",'Design Details'!B$46,IF($B$3="Mid-floor",'Design Details'!B$56,IF($B$3="Upper floor",'Design Details'!B$66,IF($B$3="Single Storey",'Design Details'!B$76,0)))) -> 2.8 | I37: 24 | J37: 190.32384 | K37: =F37*H37*$C$7*24/1000 -> 424.0415155
A38: Width (m) | C38: Height (m) | E38: Area (m²) | F38: 0 | G38: U Value (W/m²K) | H38: =IF($B$3="Ground floor",'Design Details'!B$46,IF($B$3="Mid-floor",'Design Details'!B$56,IF($B$3="Upper floor",'Design Details'!B$66,IF($B$3="Single Storey",'Design Details'!B$76,0)))) -> 2.8 | I38: 24 | J38: 0 | K38: 0
A39: Width (m) | C39: Height (m) | E39: Area (m²) | F39: 0 | G39: U Value (W/m²K) | H39: =IF($B$3="Ground floor",'Design Details'!B$46,IF($B$3="Mid-floor",'Design Details'!B$56,IF($B$3="Upper floor",'Design Details'!B$66,IF($B$3="Single Storey",'Design Details'!B$76,0)))) -> 2.8 | I39: 24 | J39: 0 | K39: 0
A40: Width (m) | C40: Height (m) | E40: Area (m²) | F40: 0 | G40: U Value (W/m²K) | H40: =IF($B$3="Ground floor",'Design Details'!B$46,IF($B$3="Mid-floor",'Design Details'!B$56,IF($B$3="Upper floor",'Design Details'!B$66,IF($B$3="Single Storey",'Design Details'!B$76,0)))) -> 2.8 | I40: 24 | J40: 0 | K40: 0
A41: Width (m) | C41: Height (m) | E41: Area (m²) | F41: 0 | G41: U Value (W/m²K) | H41: =IF($B$3="Ground floor",'Design Details'!B$46,IF($B$3="Mid-floor",'Design Details'!B$56,IF($B$3="Upper floor",'Design Details'!B$66,IF($B$3="Single Storey",'Design Details'!B$76,0)))) -> 2.8 | I41: 24 | J41: 0 | K41: 0
A42: Width (m) | C42: Height (m) | E42: Area (m²) | F42: 0 | G42: U Value (W/m²K) | H42: =IF($B$3="Ground floor",'Design Details'!B$46,IF($B$3="Mid-floor",'Design Details'!B$56,IF($B$3="Upper floor",'Design Details'!B$66,IF($B$3="Single Storey",'Design Details'!B$76,0)))) -> 2.8 | I42: 24 | J42: 0 | K42: 0
A43: Width (m) | C43: Height (m) | E43: Area (m²) | F43: 0 | G43: U Value (W/m²K) | H43: =IF($B$3="Ground floor",'Design Details'!B$46,IF($B$3="Mid-floor",'Design Details'!B$56,IF($B$3="Upper floor",'Design Details'!B$66,IF($B$3="Single Storey",'Design Details'!B$76,0)))) -> 2.8 | I43: 24 | J43: 0 | K43: 0
A44: Roof Glazing
A45: Width (m) | C45: Height (m) | E45: Area (m²) | F45: 0 | G45: U Value (W/m²K) | H45: =IF($B$3="Ground floor",'Design Details'!B$53,IF($B$3="Mid-floor",'Design Details'!B$63,IF($B$3="Upper floor",'Design Details'!B$73,IF($B$3="Single Storey",'Design Details'!B$83,0)))) -> 2.8 | I45: 24 | J45: 0 | K45: =F45*H45*$C$7*24/1000 -> 0
A46: Width (m) | C46: Height (m) | E46: Area (m²) | F46: 0 | G46: U Value (W/m²K) | H46: =IF($B$3="Ground floor",'Design Details'!B$53,IF($B$3="Mid-floor",'Design Details'!B$63,IF($B$3="Upper floor",'Design Details'!B$73,IF($B$3="Single Storey",'Design Details'!B$83,0)))) -> 2.8 | I46: 24 | J46: 0 | K46: =F46*H46*$C$7*24/1000 -> 0
A47: Width (m) | C47: Height (m) | E47: Area (m²) | F47: 0 | G47: U Value (W/m²K) | H47: =IF($B$3="Ground floor",'Design Details'!B$53,IF($B$3="Mid-floor",'Design Details'!B$63,IF($B$3="Upper floor",'Design Details'!B$73,IF($B$3="Single Storey",'Design Details'!B$83,0)))) -> 2.8 | I47: 24 | J47: 0 | K47: =F47*H47*$C$7*24/1000 -> 0
A48: Width (m) | C48: Height (m) | E48: Area (m²) | F48: 0 | G48: U Value (W/m²K) | H48: =IF($B$3="Ground floor",'Design Details'!B$53,IF($B$3="Mid-floor",'Design Details'!B$63,IF($B$3="Upper floor",'Design Details'!B$73,IF($B$3="Single Storey",'Design Details'!B$83,0)))) -> 2.8 | I48: 24 | J48: 0 | K48: =F48*H48*$C$7*24/1000 -> 0
A49: Doors
A50: Width (m) | C50: Height (m) | E50: Area (m²) | F50: 0 | G50: U Value (W/m²K) | H50: =IF($B$3="Ground floor",'Design Details'!B$47,IF($B$3="Mid-floor",'Design Details'!B$57,IF($B$3="Upper floor",'Design Details'!B$67,IF($B$3="Single Storey",'Design Details'!B$77,0)))) -> 2.8 | I50: 24 | J50: 0 | K50: =F50*H50*$C$7*24/1000 -> 0
A51: Width (m) | C51: Height (m) | E51: Area (m²) | F51: 0 | G51: U Value (W/m²K) | H51: =IF($B$3="Ground floor",'Design Details'!B$47,IF($B$3="Mid-floor",'Design Details'!B$57,IF($B$3="Upper floor",'Design Details'!B$67,IF($B$3="Single Storey",'Design Details'!B$77,0)))) -> 2.8 | I51: 24 | J51: 0 | K51: =F51*H51*$C$7*24/1000 -> 0
A52: Width (m) | C52: Height (m) | E52: Area (m²) | F52: 0 | G52: U Value (W/m²K) | H52: =IF($B$3="Ground floor",'Design Details'!B$47,IF($B$3="Mid-floor",'Design Details'!B$57,IF($B$3="Upper floor",'Design Details'!B$67,IF($B$3="Single Storey",'Design Details'!B$77,0)))) -> 2.8 | I52: 24 | J52: 0 | K52: =F52*H52*$C$7*24/1000 -> 0
A53: Width (m) | C53: Height (m) | E53: Area (m²) | F53: 0 | G53: U Value (W/m²K) | H53: =IF($B$3="Ground floor",'Design Details'!B$47,IF($B$3="Mid-floor",'Design Details'!B$57,IF($B$3="Upper floor",'Design Details'!B$67,IF($B$3="Single Storey",'Design Details'!B$77,0)))) -> 2.8 | I53: 24 | J53: 0 | K53: =F53*H53*$C$7*24/1000 -> 0
A54: Internal Walls | L54: Adjoining Room Temp (°C)
A55: Length (m) | B55: 4.55 | C55: Height (m) | D55: 2.24 | E55: Area (m²) | F55: 10.192 | G55: U Value (W/m²K) | H55: =IF($B$3="Ground floor",'Design Details'!B$51,IF($B$3="Mid-floor",'Design Details'!B$61,IF($B$3="Upper floor",'Design Details'!B$71,IF($B$3="Single Storey",'Design Details'!B$81,0)))) -> 1.4 | I55: 3 | J55: 42.8064
A56: Length (m) | C56: Height (m) | E56: Area (m²) | F56: 0 | G56: U Value (W/m²K) | H56: =IF($B$3="Ground floor",'Design Details'!B$51,IF($B$3="Mid-floor",'Design Details'!B$61,IF($B$3="Upper floor",'Design Details'!B$71,IF($B$3="Single Storey",'Design Details'!B$81,0)))) -> 1.4 | I56: =IF(L56="",0,IF(L56="unheated",C$4-10,C$4-L56)) -> 0 | J56: 0
A57: Length (m) | C57: Height (m) | E57: Area (m²) | F57: 0 | G57: U Value (W/m²K) | H57: =IF($B$3="Ground floor",'Design Details'!B$51,IF($B$3="Mid-floor",'Design Details'!B$61,IF($B$3="Upper floor",'Design Details'!B$71,IF($B$3="Single Storey",'Design Details'!B$81,0)))) -> 1.4 | I57: =IF(L57="",0,IF(L57="unheated",C$4-10,C$4-L57)) -> 0 | J57: 0
A58: Length (m) | C58: Height (m) | E58: Area (m²) | F58: 0 | G58: U Value (W/m²K) | H58: =IF($B$3="Ground floor",'Design Details'!B$51,IF($B$3="Mid-floor",'Design Details'!B$61,IF($B$3="Upper floor",'Design Details'!B$71,IF($B$3="Single Storey",'Design Details'!B$81,0)))) -> 1.4 | I58: =IF(L58="",0,IF(L58="unheated",C$4-10,C$4-L58)) -> 0 | J58: 0
A59: Party Wall
A60: Length (m) | C60: Height (m) | E60: Area (m²) | F60: 0 | G60: U Value (W/m²K) | H60: =IF($B$3="Ground floor",'Design Details'!B$52,IF($B$3="Mid-floor",'Design Details'!B$62,IF($B$3="Upper floor",'Design Details'!B$72,IF($B$3="Single Storey",'Design Details'!B$82,0)))) -> 1 | I60: =C4-10 -> 11 | J60: 0 | K60: =F60*H60*$C$7*24/1000 -> 0

Sheet 2
A1: Room Information | D1: Ventilation Heat Loss | G1: Fabric | H1: Heat Loss (W) | I1: Usage (kWh) | J1: Additional heat loss | L1: Addition | M1: Watts | N1: kWh
A2: Room | B2: Studio | D2: Air Changes a hour | F2: 1.5 | G2: Floor | H2: =SUM(J20:J22) -> 158.08 | I2: =SUM(K20:K22) -> 1056.60672 | J2: Thermal Bridging (New Build >2006) | L2: 0 | M2: =SUM(H$2:H$6)*L2 -> 0 | N2: =SUM(I$2:I$6)*L2 -> 0 | P2: 3 edges (long single) | Q2: Level | X2: 1
A3: Level | B3: Ground floor | D3: Air Change Factor (W/m³K) | F3: 0.33 | G3: Ext Wall | H3: =J27 -> 273.694008 | I3: =K27 -> 696.9031427 | J3: Exposed location | L3: 0 | M3: =SUM(H$2:H$6)*L3 -> 0 | N3: =SUM(I$2:I$6)*L3 -> 0 | P3: 3 edges (short single) | Q3: Please Select Floor | R3: =IF($B$3="Ground floor","Solid Floor (in contact with ground)",IF($B$3="Single Storey","Solid Floor (in contact with ground)","n/a")) -> Solid Floor (in contact with ground) | S3: ='Design Details'!B21 -> 10 | T3: unheated | U3: 0 | V3: 0 | W3: 0 | X3: 2
A4: Design Room Temp (°C) | C4: 18 | D4: Total Volume (m³) | F4: =SUM(H10:H12,H14:H18) -> 49.088 | G4: Roof | H4: =SUM(J32,J35) -> 82.992 | I4: =SUM(K32,K35) -> 0 | J4: High ceiling | L4: 0 | M4: =SUM(H$2:H$6)*L4 -> 0 | N4: =SUM(I$2:I$6)*L4 -> 0 | P4: One edge | Q4: Ground floor | R4: =IF($B$3="Ground floor","Suspended Floor",IF($B$3="Single Storey","Suspended Floor","n/a")) -> Suspended Floor | T4: 16 | U4: 0.1 | V4: 0.2 | W4: 0.025 | X4: 3
A5: Outside Design Temp (°C) | C5: ='Design Details'!B19 -> -3 | D5: Heat loss (W) | F5: =F4*F3*C6*F2 -> 510.26976 | G5: Glazing | H5: =SUM(J37:J43,J45:J48,J50:J53) -> 368.21232 | I5: =SUM(K37:K43,K45:K48,K50:K53) -> 937.5737702 | J5: Intermittent heating | L5: 0 | M5: =SUM(H$2:H$6)*L5 -> 0 | N5: =SUM(I$2:I$6)*L5 -> 0 | P5: Two adjacent | Q5: Mid-floor | T5: 18 | W5: 0.05 | X5: 4
A6: Temp Difference (°C) | C6: =C4-C5 -> 21 | D6: Estimated Energy usage (kWh) | F6: =F4*F3*C7*24/1000 -> 866.1950669 | G6: Int./Party Wall | H6: =SUM(J55:J58,J60) -> 0 | I6: =SUM(K60) -> 0 | M6: Total Room Heat Loss (W) | N6: =SUM(F5,H2:H6,M2:M5) -> 1393.248088 | P6: Two opposite | Q6: Single storey | T6: 21 | W6: 0.075 | X6: 5
A7: Degree Days | C7: ='Design Details'!B20 -> 2228 | M7: Total Room Energy Usage (kWh) | N7: =SUM(F6,I2:I6,N2:N5) -> 3557.2787 | Q7: Upper floor | T7: 22 | W7: 0.1 | X7: 6
Q8: =IF($B$3="Ground floor",'Design Details'!B$45,IF($B$3="Mid-floor",'Design Details'!B$55,IF($B$3="Upper floor",'Design Details'!B$65,IF($B$3="Single Storey",'Design Details'!B$75,0)))) -> 0 | X8: 7
A9: Room Dimensions | X9: 8
A10: Length (m) | B10: 5.2 | C10: Width (m) | D10: 4 | E10: Height (m) | F10: 2.36 | G10: Volume (m³) | H10: =B10*D10*F10 -> 49.088 | X10: 9
A11: Length (m) | C11: Width (m) | E11: Height (m) | G11: Volume (m³) | H11: =B11*D11*F11 -> 0 | X11: 10
A12: Length (m) | C12: Width (m) | E12: Height (m) | G12: Volume (m³) | H12: =B12*D12*F12 -> 0
A13: Awkward Room Dimensions
A14: Length (m) | C14: Width (m) | E14: Height (m) | G14: Volume (m³) | H14: =((F14*D14)/2)*B14 -> 0 | I14: Pitched
A15: Length (m) | C15: Width (m) | E15: Height (m) | G15: Volume (m³) | H15: =B15*D15*F15/2 -> 0 | I15: Single Pitch
A16: Length (m) | C16: Height (m) | E16: Depth (m) | G16: Volume (m³) | H16: =D16*F16*B16/2 -> 0 | I16: Dormer 1
A17: Length (m) | C17: Height (m) | E17: Depth (m) | G17: Volume (m³) | H17: =D17*F17*B17/2 -> 0 | I17: Dormer 2
A18: Length (m) | C18: Height (m) | E18: Depth (m) | G18: Volume (m³) | H18: =D18*F18*B18/2 -> 0 | I18: Dormer 3
A19: Floor | I19: Temp Difference | J19: Heat Loss (W) | K19: Usage (kWh) | L19: Type of Ground Floor
A20: Length (m) | B20: =B10 -> 5.2 | C20: Width (m) | D20: =D10 -> 4 | E20: Area (m²) | F20: =B20*D20 -> 20.8 | G20: U Value (W/m²K) | H20: =IF(L22="",Q8,'floor u values'!K3) -> 0.95 | I20: =IF(B$3="Ground Floor",IF(L20="Solid Floor (in contact with ground)",C$4-S$3,C$4-C$5),IF(B$3="Single Storey",IF(L20="Solid Floor (in contact with ground)",C$4-S$3,C$4-C$5),0)) -> 8 | J20: =F20*H20*I20 -> 158.08 | K20: =IF($B$3=$Q$5,0,IF($B$3=$Q$7,0,F20*H20*$C$7*24/1000)) -> 1056.60672 | L20: Solid Floor (in contact with ground)
A21: Length (m) | B21: =B11 -> 0 | C21: Width (m) | D21: =D11 -> 0 | E21: Area (m²) | F21: =B21*D21 -> 0 | G21: U Value (W/m²K) | H21: =H20 -> 0.95 | I21: =IF(B$3="Ground Floor",IF(L20="Solid Floor (in contact with ground)",C$4-S$3,C$4-C$5),IF(B$3="Single Storey",IF(L20="Solid Floor (in contact with ground)",C$4-S$3,C$4-C$5),0)) -> 8 | J21: =F21*H21*I21 -> 0 | K21: =IF($B$3=$Q$5,0,IF($B$3=$Q$7,0,F21*H21*$C$7*24/1000)) -> 0 | L21: Exposed floor (external)
A22: Length (m) | B22: 0 | C22: Width (m) | D22: 0 | E22: Area (m²) | F22: 0 | G22: U Value (W/m²K) | H22: =H20 -> 0.95 | I22: =IF(B$3="Ground Floor",IF(L20="Solid Floor (in contact with ground)",C$4-S$3,C$4-C$5),IF(B$3="Single Storey",IF(L20="Solid Floor (in contact with ground)",C$4-S$3,C$4-C$5),0)) -> 8 | J22: =F22*H22*I22 -> 0 | K22: =IF($B$3=$Q$5,0,IF($B$3=$Q$7,0,F22*H22*$C$7*24/1000)) -> 0 | L22: 3 edges (long single)
A23: External Wall | L23: =IF(L22="Two opposite","Between edges",IF(L22="One edge","Depth of room",IF(L22="3 edges (short single)","Short length",IF(L22="3 edges (long single)","Short length","")))) -> Short length | N23: =IF(L22="3 edges (short single)","Long length",IF(L22="3 edges (long single)","Long length","")) -> Long length
A24: Length (m) | B24: 13.2 | C24: Height (m) | D24: 2.36 | E24: Area (m²) | F24: 31.152 | L24: 4 | N24: 5.2
A25: Length (m) | C25: Height (m) | E25: Area (m²) | F25: 0
A26: Length (m) | C26: Height (m) | E26: Area (m²) | F26: 0
D27: Total | E27: Area (m²) | F27: =SUM(F24:F26)-SUM(F37:F43,F50:F53) -> 23.2733 | G27: U Value (W/m²K) | H27: 0.56 | I27: =$C$6 -> 21 | J27: =F27*H27*I27 -> 273.694008 | K27: =F27*H27*$C$7*24/1000 -> 696.9031427
A28: Roof
A29: Length (m) | B29: =B10 -> 5.2 | C29: Width (m) | D29: =D10 -> 4 | E29: Area (m²) | F29: 20.8
A30: Length (m) | B30: =B11 -> 0 | C30: Width (m) | D30: =D11 -> 0 | E30: Area (m²) | F30: 0
A31: Length (m) | B31: 0 | C31: Width (m) | D31: 0 | E31: Area (m²) | F31: 0
D32: Total | E32: Area (m²) | F32: =SUM(F29:F31)-SUM(F45:F48) -> 20.8 | G32: U Value (W/m²K) | H32: 0.19 | I32: =$C$6 -> 21 | J32: 82.992 | K32: =IF($B$3=$Q$4,0,IF($B$3=$Q$5,0,F32*H32*$C$7*24/1000)) -> 0
A33: Length (m) | C33: Pitch (m) | E33: Area (m²) | F33: 0 | G33: Pitched
A34: Length (m) | C34: Pitch (m) | E34: Area (m²) | F34: 0 | G34: Single Pitch
D35: Total | E35: Area (m²) | F35: =SUM(F33:F34)-SUM(F45:F48) -> 0 | G35: U Value (W/m²K) | H35: =IF($B$3="Ground floor",'Design Details'!B$50,IF($B$3="Mid-floor",'Design Details'!B$60,IF($B$3="Upper floor",'Design Details'!B$70,IF($B$3="Single Storey",'Design Details'!B$80,0)))) -> 0 | I35: 21 | J35: 0 | K35: =IF($B$3=$Q$4,0,IF($B$3=$Q$5,0,F35*H35*$C$7*24/1000)) -> 0
A36: Windows
A37: Width (m) | B37: 1.15 | C37: Height (m) | D37: 1.75 | E37: Area (m²) | F37: 2.0125 | G37: U Value (W/m²K) | H37: 1.6 | I37: 21 | J37: 67.62 | K37: =F37*H37*$C$7*24/1000 -> 172.17984
A38: Width (m) | B38: 1.11 | C38: Height (m) | D38: 1.28 | E38: Area (m²) | F38: 1.4208 | G38: U Value (W/m²K) | H38: 1.6 | I38: 21 | J38: 47.73888 | K38: 121.5568282
A39: Width (m) | C39: Height (m) | E39: Area (m²) | F39: 0 | G39: U Value (W/m²K) | H39: =IF($B$3="Ground floor",'Design Details'!B$46,IF($B$3="Mid-floor",'Design Details'!B$56,IF($B$3="Upper floor",'Design Details'!B$66,IF($B$3="Single Storey",'Design Details'!B$76,0)))) -> 2.8 | I39: 21 | J39: 0 | K39: 0
A40: Width (m) | C40: Height (m) | E40: Area (m²) | F40: 0 | G40: U Value (W/m²K) | H40: =IF($B$3="Ground floor",'Design Details'!B$46,IF($B$3="Mid-floor",'Design Details'!B$56,IF($B$3="Upper floor",'Design Details'!B$66,IF($B$3="Single Storey",'Design Details'!B$76,0)))) -> 2.8 | I40: 21 | J40: 0 | K40: 0
A41: Width (m) | C41: Height (m) | E41: Area (m²) | F41: 0 | G41: U Value (W/m²K) | H41: =IF($B$3="Ground floor",'Design Details'!B$46,IF($B$3="Mid-floor",'Design Details'!B$56,IF($B$3="Upper floor",'Design Details'!B$66,IF($B$3="Single Storey",'Design Details'!B$76,0)))) -> 2.8 | I41: 21 | J41: 0 | K41: 0
A42: Width (m) | C42: Height (m) | E42: Area (m²) | F42: 0 | G42: U Value (W/m²K) | H42: =IF($B$3="Ground floor",'Design Details'!B$46,IF($B$3="Mid-floor",'Design Details'!B$56,IF($B$3="Upper floor",'Design Details'!B$66,IF($B$3="Single Storey",'Design Details'!B$76,0)))) -> 2.8 | I42: 21 | J42: 0 | K42: 0
A43: Width (m) | C43: Height (m) | E43: Area (m²) | F43: 0 | G43: U Value (W/m²K) | H43: =IF($B$3="Ground floor",'Design Details'!B$46,IF($B$3="Mid-floor",'Design Details'!B$56,IF($B$3="Upper floor",'Design Details'!B$66,IF($B$3="Single Storey",'Design Details'!B$76,0)))) -> 2.8 | I43: 21 | J43: 0 | K43: 0
A44: Roof Glazing
A45: Width (m) | C45: Height (m) | E45: Area (m²) | F45: 0 | G45: U Value (W/m²K) | H45: =IF($B$3="Ground floor",'Design Details'!B$53,IF($B$3="Mid-floor",'Design Details'!B$63,IF($B$3="Upper floor",'Design Details'!B$73,IF($B$3="Single Storey",'Design Details'!B$83,0)))) -> 2.8 | I45: 21 | J45: 0 | K45: =F45*H45*$C$7*24/1000 -> 0
A46: Width (m) | C46: Height (m) | E46: Area (m²) | F46: 0 | G46: U Value (W/m²K) | H46: =IF($B$3="Ground floor",'Design Details'!B$53,IF($B$3="Mid-floor",'Design Details'!B$63,IF($B$3="Upper floor",'Design Details'!B$73,IF($B$3="Single Storey",'Design Details'!B$83,0)))) -> 2.8 | I46: 21 | J46: 0 | K46: =F46*H46*$C$7*24/1000 -> 0
A47: Width (m) | C47: Height (m) | E47: Area (m²) | F47: 0 | G47: U Value (W/m²K) | H47: =IF($B$3="Ground floor",'Design Details'!B$53,IF($B$3="Mid-floor",'Design Details'!B$63,IF($B$3="Upper floor",'Design Details'!B$73,IF($B$3="Single Storey",'Design Details'!B$83,0)))) -> 2.8 | I47: 21 | J47: 0 | K47: =F47*H47*$C$7*24/1000 -> 0
A48: Width (m) | C48: Height (m) | E48: Area (m²) | F48: 0 | G48: U Value (W/m²K) | H48: =IF($B$3="Ground floor",'Design Details'!B$53,IF($B$3="Mid-floor",'Design Details'!B$63,IF($B$3="Upper floor",'Design Details'!B$73,IF($B$3="Single Storey",'Design Details'!B$83,0)))) -> 2.8 | I48: 21 | J48: 0 | K48: =F48*H48*$C$7*24/1000 -> 0
A49: Doors
A50: Width (m) | B50: 1.99 | C50: Height (m) | D50: 1.46 | E50: Area (m²) | F50: 2.9054 | G50: U Value (W/m²K) | H50: 1.6 | I50: 21 | J50: 97.62144 | K50: =F50*H50*$C$7*24/1000 -> 248.5720781
A51: Width (m) | B51: 2 | C51: Height (m) | D51: 0.77 | E51: Area (m²) | F51: 1.54 | G51: U Value (W/m²K) | H51: 4.8 | I51: 21 | J51: 155.232 | K51: =F51*H51*$C$7*24/1000 -> 395.265024
A52: Width (m) | C52: Height (m) | E52: Area (m²) | F52: 0 | G52: U Value (W/m²K) | H52: =IF($B$3="Ground floor",'Design Details'!B$47,IF($B$3="Mid-floor",'Design Details'!B$57,IF($B$3="Upper floor",'Design Details'!B$67,IF($B$3="Single Storey",'Design Details'!B$77,0)))) -> 2.8 | I52: 21 | J52: 0 | K52: =F52*H52*$C$7*24/1000 -> 0
A53: Width (m) | C53: Height (m) | E53: Area (m²) | F53: 0 | G53: U Value (W/m²K) | H53: =IF($B$3="Ground floor",'Design Details'!B$47,IF($B$3="Mid-floor",'Design Details'!B$57,IF($B$3="Upper floor",'Design Details'!B$67,IF($B$3="Single Storey",'Design Details'!B$77,0)))) -> 2.8 | I53: 21 | J53: 0 | K53: =F53*H53*$C$7*24/1000 -> 0
A54: Internal Walls | L54: Adjoining Room Temp (°C)
A55: Length (m) | C55: Height (m) | E55: Area (m²) | F55: 0 | G55: U Value (W/m²K) | H55: =IF($B$3="Ground floor",'Design Details'!B$51,IF($B$3="Mid-floor",'Design Details'!B$61,IF($B$3="Upper floor",'Design Details'!B$71,IF($B$3="Single Storey",'Design Details'!B$81,0)))) -> 1.4 | I55: =IF(L55="",0,IF(L55="unheated",C$4-10,C$4-L55)) -> 0 | J55: 0
A56: Length (m) | C56: Height (m) | E56: Area (m²) | F56: 0 | G56: U Value (W/m²K) | H56: =IF($B$3="Ground floor",'Design Details'!B$51,IF($B$3="Mid-floor",'Design Details'!B$61,IF($B$3="Upper floor",'Design Details'!B$71,IF($B$3="Single Storey",'Design Details'!B$81,0)))) -> 1.4 | I56: =IF(L56="",0,IF(L56="unheated",C$4-10,C$4-L56)) -> 0 | J56: 0
A57: Length (m) | C57: Height (m) | E57: Area (m²) | F57: 0 | G57: U Value (W/m²K) | H57: =IF($B$3="Ground floor",'Design Details'!B$51,IF($B$3="Mid-floor",'Design Details'!B$61,IF($B$3="Upper floor",'Design Details'!B$71,IF($B$3="Single Storey",'Design Details'!B$81,0)))) -> 1.4 | I57: =IF(L57="",0,IF(L57="unheated",C$4-10,C$4-L57)) -> 0 | J57: 0
A58: Length (m) | C58: Height (m) | E58: Area (m²) | F58: 0 | G58: U Value (W/m²K) | H58: =IF($B$3="Ground floor",'Design Details'!B$51,IF($B$3="Mid-floor",'Design Details'!B$61,IF($B$3="Upper floor",'Design Details'!B$71,IF($B$3="Single Storey",'Design Details'!B$81,0)))) -> 1.4 | I58: =IF(L58="",0,IF(L58="unheated",C$4-10,C$4-L58)) -> 0 | J58: 0
A59: Party Wall
A60: Length (m) | C60: Height (m) | E60: Area (m²) | F60: 0 | G60: U Value (W/m²K) | H60: =IF($B$3="Ground floor",'Design Details'!B$52,IF($B$3="Mid-floor",'Design Details'!B$62,IF($B$3="Upper floor",'Design Details'!B$72,IF($B$3="Single Storey",'Design Details'!B$82,0)))) -> 1 | I60: =C4-10 -> 8 | J60: 0 | K60: =F60*H60*$C$7*24/1000 -> 0

Sheet 3
A1: Room Information | D1: Ventilation Heat Loss | G1: Fabric | H1: Heat Loss (W) | I1: Usage (kWh) | J1: Additional heat loss | L1: Addition | M1: Watts | N1: kWh
A2: Room | B2: Sun room | D2: Air Changes a hour | F2: ='Design Details'!F89 -> 1.5 | G2: Floor | H2: =SUM(J20:J22) -> 25.23675 | I2: =SUM(K20:K22) -> 122.678136 | J2: Thermal Bridging (New Build >2006) | L2: 0 | M2: =SUM(H$2:H$6)*L2 -> 0 | N2: =SUM(I$2:I$6)*L2 -> 0 | P2: 3 edges (long single) | Q2: Level | X2: 1
A3: Level | B3: Ground floor | D3: Air Change Factor (W/m³K) | F3: 0.33 | G3: Ext Wall | H3: =J27 -> 106.789056 | I3: =K27 -> 237.9260168 | J3: Exposed location | L3: 0 | M3: =SUM(H$2:H$6)*L3 -> 0 | N3: =SUM(I$2:I$6)*L3 -> 0 | P3: 3 edges (short single) | Q3: Please Select Floor | R3: =IF($B$3="Ground floor","Solid Floor (in contact with ground)",IF($B$3="Single Storey","Solid Floor (in contact with ground)","n/a")) -> Solid Floor (in contact with ground) | S3: ='Design Details'!B21 -> 10 | T3: unheated | U3: 0 | V3: 0 | W3: 0 | X3: 2
A4: Design Room Temp (°C) | C4: ='Design Details'!D89 -> 21 | D4: Total Volume (m³) | F4: =SUM(H10:H12,H14:H18) -> 38.055 | G4: Roof | H4: 51.7 | I4: =SUM(K32,K35) -> 0 | J4: High ceiling | L4: 0 | M4: =SUM(H$2:H$6)*L4 -> 0 | N4: =SUM(I$2:I$6)*L4 -> 0 | P4: One edge | Q4: Ground floor | R4: =IF($B$3="Ground floor","Suspended Floor",IF($B$3="Single Storey","Suspended Floor","n/a")) -> Suspended Floor | T4: 16 | U4: 0.1 | V4: 0.2 | W4: 0.025 | X4: 3
A5: Outside Design Temp (°C) | C5: ='Design Details'!B19 -> -3 | D5: Heat loss (W) | F5: =F4*F3*C6*F2 -> 452.0934 | G5: Glazing | H5: =SUM(J37:J43,J45:J48,J50:J53) -> 607.17888 | I5: =SUM(K37:K43,K45:K48,K50:K53) -> 1352.794545 | J5: Intermittent heating | L5: 0 | M5: =SUM(H$2:H$6)*L5 -> 0 | N5: =SUM(I$2:I$6)*L5 -> 0 | P5: Two adjacent | Q5: Mid-floor | T5: 18 | W5: 0.05 | X5: 4
A6: Temp Difference (°C) | C6: =C4-C5 -> 24 | D6: Estimated Energy usage (kWh) | F6: =F4*F3*C7*24/1000 -> 671.5093968 | G6: Int./Party Wall | H6: =SUM(J55:J58,J60) -> 0 | I6: =SUM(K60) -> 0 | M6: Total Room Heat Loss (W) | N6: =SUM(F5,H2:H6,M2:M5) -> 1242.998086 | P6: Two opposite | Q6: Single storey | T6: 21 | W6: 0.075 | X6: 5
A7: Degree Days | C7: ='Design Details'!B20 -> 2228 | M7: Total Room Energy Usage (kWh) | N7: =SUM(F6,I2:I6,N2:N5) -> 2384.908094 | Q7: Upper floor | T7: 22 | W7: 0.1 | X7: 6
Q8: =IF($B$3="Ground floor",'Design Details'!B$45,IF($B$3="Mid-floor",'Design Details'!B$55,IF($B$3="Upper floor",'Design Details'!B$65,IF($B$3="Single Storey",'Design Details'!B$75,0)))) -> 0 | X8: 7
A9: Room Dimensions | X9: 8
A10: Length (m) | B10: 3.75 | C10: Width (m) | D10: 1.6 | E10: Height (m) | F10: 2.9 | G10: Volume (m³) | H10: =B10*D10*F10 -> 17.4 | X10: 9
A11: Length (m) | B11: 3.75 | C11: Width (m) | D11: 1.62 | E11: Height (m) | F11: 3.4 | G11: Volume (m³) | H11: =B11*D11*F11 -> 20.655 | X11: 10
A12: Length (m) | C12: Width (m) | E12: Height (m) | G12: Volume (m³) | H12: =B12*D12*F12 -> 0
A13: Awkward Room Dimensions
A14: Length (m) | C14: Width (m) | E14: Height (m) | G14: Volume (m³) | H14: =((F14*D14)/2)*B14 -> 0 | I14: Pitched
A15: Length (m) | C15: Width (m) | E15: Height (m) | G15: Volume (m³) | H15: =B15*D15*F15/2 -> 0 | I15: Single Pitch
A16: Length (m) | C16: Height (m) | E16: Depth (m) | G16: Volume (m³) | H16: =D16*F16*B16/2 -> 0 | I16: Dormer 1
A17: Length (m) | C17: Height (m) | E17: Depth (m) | G17: Volume (m³) | H17: =D17*F17*B17/2 -> 0 | I17: Dormer 2
A18: Length (m) | C18: Height (m) | E18: Depth (m) | G18: Volume (m³) | H18: =D18*F18*B18/2 -> 0 | I18: Dormer 3
A19: Floor | I19: Temp Difference | J19: Heat Loss (W) | K19: Usage (kWh) | L19: Type of Ground Floor
A20: Length (m) | B20: =B10 -> 3.75 | C20: Width (m) | D20: =D10 -> 1.6 | E20: Area (m²) | F20: =B20*D20 -> 6 | G20: U Value (W/m²K) | H20: 0.19 | I20: =IF(B$3="Ground Floor",IF(L20="Solid Floor (in contact with ground)",C$4-S$3,C$4-C$5),IF(B$3="Single Storey",IF(L20="Solid Floor (in contact with ground)",C$4-S$3,C$4-C$5),0)) -> 11 | J20: =F20*H20*I20 -> 12.54 | K20: =IF($B$3=$Q$5,0,IF($B$3=$Q$7,0,F20*H20*$C$7*24/1000)) -> 60.95808 | L20: Solid Floor (in contact with ground)
A21: Length (m) | B21: =B11 -> 3.75 | C21: Width (m) | D21: =D11 -> 1.62 | E21: Area (m²) | F21: =B21*D21 -> 6.075 | G21: U Value (W/m²K) | H21: =H20 -> 0.19 | I21: =IF(B$3="Ground Floor",IF(L20="Solid Floor (in contact with ground)",C$4-S$3,C$4-C$5),IF(B$3="Single Storey",IF(L20="Solid Floor (in contact with ground)",C$4-S$3,C$4-C$5),0)) -> 11 | J21: =F21*H21*I21 -> 12.69675 | K21: =IF($B$3=$Q$5,0,IF($B$3=$Q$7,0,F21*H21*$C$7*24/1000)) -> 61.720056 | L21: Exposed floor (external)
A22: Length (m) | B22: 0 | C22: Width (m) | D22: 0 | E22: Area (m²) | F22: 0 | G22: U Value (W/m²K) | H22: =H20 -> 0.19 | I22: =IF(B$3="Ground Floor",IF(L20="Solid Floor (in contact with ground)",C$4-S$3,C$4-C$5),IF(B$3="Single Storey",IF(L20="Solid Floor (in contact with ground)",C$4-S$3,C$4-C$5),0)) -> 11 | J22: =F22*H22*I22 -> 0 | K22: =IF($B$3=$Q$5,0,IF($B$3=$Q$7,0,F22*H22*$C$7*24/1000)) -> 0
A23: External Wall | L23: =IF(L22="Two opposite","Between edges",IF(L22="One edge","Depth of room",IF(L22="3 edges (short single)","Short length",IF(L22="3 edges (long single)","Short length","")))) ->  | N23: =IF(L22="3 edges (short single)","Long length",IF(L22="3 edges (long single)","Long length","")) -> 
A24: Length (m) | B24: 3.75 | C24: Height (m) | D24: 2.4 | E24: Area (m²) | F24: 9
A25: Length (m) | B25: 1.6 | C25: Height (m) | D25: 2.9 | E25: Area (m²) | F25: 4.64
A26: Length (m) | B26: 1.62 | C26: Height (m) | D26: 3.4 | E26: Area (m²) | F26: 5.508
D27: Total | E27: Area (m²) | F27: =SUM(F24:F26)-SUM(F37:F43,F50:F53) -> 10.1126 | G27: U Value (W/m²K) | H27: =IF($B$3="Ground floor",'Design Details'!B$48,IF($B$3="Mid-floor",'Design Details'!B$58,IF($B$3="Upper floor",'Design Details'!B$68,IF($B$3="Single Storey",'Design Details'!B$78,0)))) -> 0.44 | I27: =$C$6 -> 24 | J27: =F27*H27*I27 -> 106.789056 | K27: =F27*H27*$C$7*24/1000 -> 237.9260168
A28: Roof
A29: Length (m) | B29: =B10 -> 3.75 | C29: Width (m) | D29: 2 | E29: Area (m²) | G29: 7.5
A30: Length (m) | B30: =B11 -> 3.75 | C30: Width (m) | D30: =D11 -> 1.62 | E30: Area (m²) | F30: 6.075
A31: Length (m) | B31: 0 | C31: Width (m) | D31: 0 | E31: Area (m²) | F31: 0 | J31: 17.5
D32: Total | E32: Area (m²) | F32: 7.5 | G32: U Value (W/m²K) | H32: 0.19 | I32: =$C$6 -> 24 | J32: 34.2 | K32: =IF($B$3=$Q$4,0,IF($B$3=$Q$5,0,F32*H32*$C$7*24/1000)) -> 0
A33: Length (m) | C33: Pitch (m) | E33: Area (m²) | F33: 0 | G33: Pitched
A34: Length (m) | C34: Pitch (m) | E34: Area (m²) | F34: 0 | G34: Single Pitch
D35: Total | E35: Area (m²) | F35: =SUM(F33:F34)-SUM(F45:F48) -> 0 | G35: U Value (W/m²K) | H35: =IF($B$3="Ground floor",'Design Details'!B$50,IF($B$3="Mid-floor",'Design Details'!B$60,IF($B$3="Upper floor",'Design Details'!B$70,IF($B$3="Single Storey",'Design Details'!B$80,0)))) -> 0 | I35: 24 | J35: 0 | K35: =IF($B$3=$Q$4,0,IF($B$3=$Q$5,0,F35*H35*$C$7*24/1000)) -> 0
A36: Windows
A37: Width (m) | B37: 1.39 | C37: Height (m) | D37: 3.06 | E37: Area (m²) | F37: 4.2534 | G37: U Value (W/m²K) | H37: =IF($B$3="Ground floor",'Design Details'!B$46,IF($B$3="Mid-floor",'Design Details'!B$56,IF($B$3="Upper floor",'Design Details'!B$66,IF($B$3="Single Storey",'Design Details'!B$76,0)))) -> 2.8 | I37: 24 | J37: 285.82848 | K37: =F37*H37*$C$7*24/1000 -> 636.8258534
A38: Width (m) | B38: 1.4 | C38: Height (m) | D38: 0.93 | E38: Area (m²) | F38: 1.302 | G38: U Value (W/m²K) | H38: =IF($B$3="Ground floor",'Design Details'!B$46,IF($B$3="Mid-floor",'Design Details'!B$56,IF($B$3="Upper floor",'Design Details'!B$66,IF($B$3="Single Storey",'Design Details'!B$76,0)))) -> 2.8 | I38: 24 | J38: 87.4944 | K38: 194.9375232
A39: Width (m) | C39: Height (m) | E39: Area (m²) | F39: 0 | G39: U Value (W/m²K) | H39: =IF($B$3="Ground floor",'Design Details'!B$46,IF($B$3="Mid-floor",'Design Details'!B$56,IF($B$3="Upper floor",'Design Details'!B$66,IF($B$3="Single Storey",'Design Details'!B$76,0)))) -> 2.8 | I39: 24 | J39: 0 | K39: 0
A40: Width (m) | C40: Height (m) | E40: Area (m²) | F40: 0 | G40: U Value (W/m²K) | H40: =IF($B$3="Ground floor",'Design Details'!B$46,IF($B$3="Mid-floor",'Design Details'!B$56,IF($B$3="Upper floor",'Design Details'!B$66,IF($B$3="Single Storey",'Design Details'!B$76,0)))) -> 2.8 | I40: 24 | J40: 0 | K40: 0
A41: Width (m) | C41: Height (m) | E41: Area (m²) | F41: 0 | G41: U Value (W/m²K) | H41: =IF($B$3="Ground floor",'Design Details'!B$46,IF($B$3="Mid-floor",'Design Details'!B$56,IF($B$3="Upper floor",'Design Details'!B$66,IF($B$3="Single Storey",'Design Details'!B$76,0)))) -> 2.8 | I41: 24 | J41: 0 | K41: 0
A42: Width (m) | C42: Height (m) | E42: Area (m²) | F42: 0 | G42: U Value (W/m²K) | H42: =IF($B$3="Ground floor",'Design Details'!B$46,IF($B$3="Mid-floor",'Design Details'!B$56,IF($B$3="Upper floor",'Design Details'!B$66,IF($B$3="Single Storey",'Design Details'!B$76,0)))) -> 2.8 | I42: 24 | J42: 0 | K42: 0
A43: Width (m) | C43: Height (m) | E43: Area (m²) | F43: 0 | G43: U Value (W/m²K) | H43: =IF($B$3="Ground floor",'Design Details'!B$46,IF($B$3="Mid-floor",'Design Details'!B$56,IF($B$3="Upper floor",'Design Details'!B$66,IF($B$3="Single Storey",'Design Details'!B$76,0)))) -> 2.8 | I43: 24 | J43: 0 | K43: 0
A44: Roof Glazing
A45: Width (m) | C45: Height (m) | E45: Area (m²) | F45: 0 | G45: U Value (W/m²K) | H45: =IF($B$3="Ground floor",'Design Details'!B$53,IF($B$3="Mid-floor",'Design Details'!B$63,IF($B$3="Upper floor",'Design Details'!B$73,IF($B$3="Single Storey",'Design Details'!B$83,0)))) -> 2.8 | I45: 24 | J45: 0 | K45: =F45*H45*$C$7*24/1000 -> 0
A46: Width (m) | C46: Height (m) | E46: Area (m²) | F46: 0 | G46: U Value (W/m²K) | H46: =IF($B$3="Ground floor",'Design Details'!B$53,IF($B$3="Mid-floor",'Design Details'!B$63,IF($B$3="Upper floor",'Design Details'!B$73,IF($B$3="Single Storey",'Design Details'!B$83,0)))) -> 2.8 | I46: 24 | J46: 0 | K46: =F46*H46*$C$7*24/1000 -> 0
A47: Width (m) | C47: Height (m) | E47: Area (m²) | F47: 0 | G47: U Value (W/m²K) | H47: =IF($B$3="Ground floor",'Design Details'!B$53,IF($B$3="Mid-floor",'Design Details'!B$63,IF($B$3="Upper floor",'Design Details'!B$73,IF($B$3="Single Storey",'Design Details'!B$83,0)))) -> 2.8 | I47: 24 | J47: 0 | K47: =F47*H47*$C$7*24/1000 -> 0
A48: Width (m) | C48: Height (m) | E48: Area (m²) | F48: 0 | G48: U Value (W/m²K) | H48: =IF($B$3="Ground floor",'Design Details'!B$53,IF($B$3="Mid-floor",'Design Details'!B$63,IF($B$3="Upper floor",'Design Details'!B$73,IF($B$3="Single Storey",'Design Details'!B$83,0)))) -> 2.8 | I48: 24 | J48: 0 | K48: =F48*H48*$C$7*24/1000 -> 0
A49: Doors
A50: Width (m) | B50: 2 | C50: Height (m) | D50: 1.74 | E50: Area (m²) | F50: 3.48 | G50: U Value (W/m²K) | H50: =IF($B$3="Ground floor",'Design Details'!B$47,IF($B$3="Mid-floor",'Design Details'!B$57,IF($B$3="Upper floor",'Design Details'!B$67,IF($B$3="Single Storey",'Design Details'!B$77,0)))) -> 2.8 | I50: 24 | J50: 233.856 | K50: =F50*H50*$C$7*24/1000 -> 521.031168
A51: Width (m) | C51: Height (m) | E51: Area (m²) | F51: 0 | G51: U Value (W/m²K) | H51: =IF($B$3="Ground floor",'Design Details'!B$47,IF($B$3="Mid-floor",'Design Details'!B$57,IF($B$3="Upper floor",'Design Details'!B$67,IF($B$3="Single Storey",'Design Details'!B$77,0)))) -> 2.8 | I51: 24 | J51: 0 | K51: =F51*H51*$C$7*24/1000 -> 0
A52: Width (m) | C52: Height (m) | E52: Area (m²) | F52: 0 | G52: U Value (W/m²K) | H52: =IF($B$3="Ground floor",'Design Details'!B$47,IF($B$3="Mid-floor",'Design Details'!B$57,IF($B$3="Upper floor",'Design Details'!B$67,IF($B$3="Single Storey",'Design Details'!B$77,0)))) -> 2.8 | I52: 24 | J52: 0 | K52: =F52*H52*$C$7*24/1000 -> 0
A53: Width (m) | C53: Height (m) | E53: Area (m²) | F53: 0 | G53: U Value (W/m²K) | H53: =IF($B$3="Ground floor",'Design Details'!B$47,IF($B$3="Mid-floor",'Design Details'!B$57,IF($B$3="Upper floor",'Design Details'!B$67,IF($B$3="Single Storey",'Design Details'!B$77,0)))) -> 2.8 | I53: 24 | J53: 0 | K53: =F53*H53*$C$7*24/1000 -> 0
A54: Internal Walls | L54: Adjoining Room Temp (°C)
A55: Length (m) | C55: Height (m) | E55: Area (m²) | F55: 0 | G55: U Value (W/m²K) | H55: =IF($B$3="Ground floor",'Design Details'!B$51,IF($B$3="Mid-floor",'Design Details'!B$61,IF($B$3="Upper floor",'Design Details'!B$71,IF($B$3="Single Storey",'Design Details'!B$81,0)))) -> 1.4 | I55: =IF(L55="",0,IF(L55="unheated",C$4-10,C$4-L55)) -> 0 | J55: 0
A56: Length (m) | C56: Height (m) | E56: Area (m²) | F56: 0 | G56: U Value (W/m²K) | H56: =IF($B$3="Ground floor",'Design Details'!B$51,IF($B$3="Mid-floor",'Design Details'!B$61,IF($B$3="Upper floor",'Design Details'!B$71,IF($B$3="Single Storey",'Design Details'!B$81,0)))) -> 1.4 | I56: =IF(L56="",0,IF(L56="unheated",C$4-10,C$4-L56)) -> 0 | J56: 0
A57: Length (m) | C57: Height (m) | E57: Area (m²) | F57: 0 | G57: U Value (W/m²K) | H57: =IF($B$3="Ground floor",'Design Details'!B$51,IF($B$3="Mid-floor",'Design Details'!B$61,IF($B$3="Upper floor",'Design Details'!B$71,IF($B$3="Single Storey",'Design Details'!B$81,0)))) -> 1.4 | I57: =IF(L57="",0,IF(L57="unheated",C$4-10,C$4-L57)) -> 0 | J57: 0
A58: Length (m) | C58: Height (m) | E58: Area (m²) | F58: 0 | G58: U Value (W/m²K) | H58: =IF($B$3="Ground floor",'Design Details'!B$51,IF($B$3="Mid-floor",'Design Details'!B$61,IF($B$3="Upper floor",'Design Details'!B$71,IF($B$3="Single Storey",'Design Details'!B$81,0)))) -> 1.4 | I58: =IF(L58="",0,IF(L58="unheated",C$4-10,C$4-L58)) -> 0 | J58: 0
A59: Party Wall
A60: Length (m) | C60: Height (m) | E60: Area (m²) | F60: 0 | G60: U Value (W/m²K) | H60: =IF($B$3="Ground floor",'Design Details'!B$52,IF($B$3="Mid-floor",'Design Details'!B$62,IF($B$3="Upper floor",'Design Details'!B$72,IF($B$3="Single Storey",'Design Details'!B$82,0)))) -> 1 | I60: =C4-10 -> 11 | J60: 0 | K60: =F60*H60*$C$7*24/1000 -> 0

Sheet 4
A1: Room Information | D1: Ventilation Heat Loss | G1: Fabric | H1: Heat Loss (W) | I1: Usage (kWh) | J1: Additional heat loss | L1: Addition | M1: Watts | N1: kWh
A2: Room | B2: Music room | D2: Air Changes a hour | F2: ='Design Details'!F90 -> 1.5 | G2: Floor | H2: =SUM(J20:J22) -> 164.1717 | I2: =SUM(K20:K22) -> 798.0535584 | J2: Thermal Bridging (New Build >2006) | L2: 0 | M2: =SUM(H$2:H$6)*L2 -> 0 | N2: =SUM(I$2:I$6)*L2 -> 0 | P2: 3 edges (long single) | Q2: Level | X2: 1
A3: Level | B3: Ground floor | D3: Air Change Factor (W/m³K) | F3: 0.33 | G3: Ext Wall | H3: =J27 -> 117.876 | I3: =K27 -> 262.627728 | J3: Exposed location | L3: 0 | M3: =SUM(H$2:H$6)*L3 -> 0 | N3: =SUM(I$2:I$6)*L3 -> 0 | P3: 3 edges (short single) | Q3: Please Select Floor | R3: =IF($B$3="Ground floor","Solid Floor (in contact with ground)",IF($B$3="Single Storey","Solid Floor (in contact with ground)","n/a")) -> Solid Floor (in contact with ground) | S3: ='Design Details'!B21 -> 10 | T3: unheated | U3: 0 | V3: 0 | W3: 0 | X3: 2
A4: Design Room Temp (°C) | C4: ='Design Details'!D90 -> 21 | D4: Total Volume (m³) | F4: =SUM(H10:H12,H14:H18) -> 31.69722 | G4: Roof | H4: 94.85 | I4: =SUM(K32,K35) -> 0 | J4: High ceiling | L4: 0 | M4: =SUM(H$2:H$6)*L4 -> 0 | N4: =SUM(I$2:I$6)*L4 -> 0 | P4: One edge | Q4: Ground floor | R4: =IF($B$3="Ground floor","Suspended Floor",IF($B$3="Single Storey","Suspended Floor","n/a")) -> Suspended Floor | T4: 16 | U4: 0.1 | V4: 0.2 | W4: 0.025 | X4: 3
A5: Outside Design Temp (°C) | C5: ='Design Details'!B19 -> -3 | D5: Heat loss (W) | F5: =F4*F3*C6*F2 -> 376.5629736 | G5: Glazing | H5: =SUM(J37:J43,J45:J48,J50:J53) -> 93.56928 | I5: =SUM(K37:K43,K45:K48,K50:K53) -> 208.4723558 | J5: Intermittent heating | L5: 0 | M5: =SUM(H$2:H$6)*L5 -> 0 | N5: =SUM(I$2:I$6)*L5 -> 0 | P5: Two adjacent | Q5: Mid-floor | T5: 18 | W5: 0.05 | X5: 4
A6: Temp Difference (°C) | C6: =C4-C5 -> 24 | D6: Estimated Energy usage (kWh) | F6: =F4*F3*C7*24/1000 -> 559.3215368 | G6: Int./Party Wall | H6: =SUM(J55:J58,J60) -> 31.18878 | I6: =SUM(K60) -> 0 | M6: Total Room Heat Loss (W) | N6: =SUM(F5,H2:H6,M2:M5) -> 878.2187336 | P6: Two opposite | Q6: Single storey | T6: 21 | W6: 0.075 | X6: 5
A7: Degree Days | C7: ='Design Details'!B20 -> 2228 | M7: Total Room Energy Usage (kWh) | N7: =SUM(F6,I2:I6,N2:N5) -> 1828.475179 | Q7: Upper floor | T7: 22 | W7: 0.1 | X7: 6
Q8: =IF($B$3="Ground floor",'Design Details'!B$45,IF($B$3="Mid-floor",'Design Details'!B$55,IF($B$3="Upper floor",'Design Details'!B$65,IF($B$3="Single Storey",'Design Details'!B$75,0)))) -> 0 | X8: 7
A9: Room Dimensions | X9: 8
A10: Length (m) | B10: 3.09 | C10: Width (m) | D10: 4.6 | E10: Height (m) | F10: 2.23 | G10: Volume (m³) | H10: =B10*D10*F10 -> 31.69722 | X10: 9
A11: Length (m) | C11: Width (m) | E11: Height (m) | G11: Volume (m³) | H11: =B11*D11*F11 -> 0 | X11: 10
A12: Length (m) | C12: Width (m) | E12: Height (m) | G12: Volume (m³) | H12: =B12*D12*F12 -> 0
A13: Awkward Room Dimensions
A14: Length (m) | C14: Width (m) | E14: Height (m) | G14: Volume (m³) | H14: =((F14*D14)/2)*B14 -> 0 | I14: Pitched
A15: Length (m) | C15: Width (m) | E15: Height (m) | G15: Volume (m³) | H15: =B15*D15*F15/2 -> 0 | I15: Single Pitch
A16: Length (m) | C16: Height (m) | E16: Depth (m) | G16: Volume (m³) | H16: =D16*F16*B16/2 -> 0 | I16: Dormer 1
A17: Length (m) | C17: Height (m) | E17: Depth (m) | G17: Volume (m³) | H17: =D17*F17*B17/2 -> 0 | I17: Dormer 2
A18: Length (m) | C18: Height (m) | E18: Depth (m) | G18: Volume (m³) | H18: =D18*F18*B18/2 -> 0 | I18: Dormer 3
A19: Floor | I19: Temp Difference | J19: Heat Loss (W) | K19: Usage (kWh) | L19: Type of Ground Floor
A20: Length (m) | B20: =B10 -> 3.09 | C20: Width (m) | D20: =D10 -> 4.6 | E20: Area (m²) | F20: =B20*D20 -> 14.214 | G20: U Value (W/m²K) | H20: =IF(L22="",Q8,'floor u values'!K5) -> 1.05 | I20: =IF(B$3="Ground Floor",IF(L20="Solid Floor (in contact with ground)",C$4-S$3,C$4-C$5),IF(B$3="Single Storey",IF(L20="Solid Floor (in contact with ground)",C$4-S$3,C$4-C$5),0)) -> 11 | J20: =F20*H20*I20 -> 164.1717 | K20: =IF($B$3=$Q$5,0,IF($B$3=$Q$7,0,F20*H20*$C$7*24/1000)) -> 798.0535584 | L20: Solid Floor (in contact with ground)
A21: Length (m) | B21: =B11 -> 0 | C21: Width (m) | D21: =D11 -> 0 | E21: Area (m²) | F21: =B21*D21 -> 0 | G21: U Value (W/m²K) | H21: =H20 -> 1.05 | I21: =IF(B$3="Ground Floor",IF(L20="Solid Floor (in contact with ground)",C$4-S$3,C$4-C$5),IF(B$3="Single Storey",IF(L20="Solid Floor (in contact with ground)",C$4-S$3,C$4-C$5),0)) -> 11 | J21: =F21*H21*I21 -> 0 | K21: =IF($B$3=$Q$5,0,IF($B$3=$Q$7,0,F21*H21*$C$7*24/1000)) -> 0 | L21: Exposed floor (external)
A22: Length (m) | B22: 0 | C22: Width (m) | D22: 0 | E22: Area (m²) | F22: 0 | G22: U Value (W/m²K) | H22: =H20 -> 1.05 | I22: =IF(B$3="Ground Floor",IF(L20="Solid Floor (in contact with ground)",C$4-S$3,C$4-C$5),IF(B$3="Single Storey",IF(L20="Solid Floor (in contact with ground)",C$4-S$3,C$4-C$5),0)) -> 11 | J22: =F22*H22*I22 -> 0 | K22: =IF($B$3=$Q$5,0,IF($B$3=$Q$7,0,F22*H22*$C$7*24/1000)) -> 0 | L22: 3 edges (long single)
A23: External Wall | L23: =IF(L22="Two opposite","Between edges",IF(L22="One edge","Depth of room",IF(L22="3 edges (short single)","Short length",IF(L22="3 edges (long single)","Short length","")))) -> Short length | N23: =IF(L22="3 edges (short single)","Long length",IF(L22="3 edges (long single)","Long length","")) -> Long length
A24: Length (m) | B24: 5.63 | C24: Height (m) | D24: 2.23 | E24: Area (m²) | F24: 12.5549 | L24: 1.27 | N24: 3.09
A25: Length (m) | C25: Height (m) | E25: Area (m²) | F25: 0
A26: Length (m) | C26: Height (m) | E26: Area (m²) | F26: 0
D27: Total | E27: Area (m²) | F27: =SUM(F24:F26)-SUM(F37:F43,F50:F53) -> 11.1625 | G27: U Value (W/m²K) | H27: =IF($B$3="Ground floor",'Design Details'!B$48,IF($B$3="Mid-floor",'Design Details'!B$58,IF($B$3="Upper floor",'Design Details'!B$68,IF($B$3="Single Storey",'Design Details'!B$78,0)))) -> 0.44 | I27: =$C$6 -> 24 | J27: =F27*H27*I27 -> 117.876 | K27: =F27*H27*$C$7*24/1000 -> 262.627728
A28: Roof
A29: Length (m) | B29: =B10 -> 3.09 | C29: Width (m) | D29: =D10 -> 4.6 | E29: Area (m²) | F29: 12.68 | G29: 1.53
A30: Length (m) | B30: =B11 -> 0 | C30: Width (m) | D30: =D11 -> 0 | E30: Area (m²) | F30: 0
A31: Length (m) | B31: 0 | C31: Width (m) | D31: 0 | E31: Area (m²) | F31: 0 | J31: 29.04
D32: Total | E32: Area (m²) | F32: =SUM(F29:F31)-SUM(F45:F48) -> 12.68 | G32: U Value (W/m²K) | H32: =IF($B$3="Ground floor",'Design Details'!B$49,IF($B$3="Mid-floor",'Design Details'!B$59,IF($B$3="Upper floor",'Design Details'!B$69,IF($B$3="Single Storey",'Design Details'!B$79,0)))) -> 1.73 | I32: 3 | J32: 65.8092 | K32: =IF($B$3=$Q$4,0,IF($B$3=$Q$5,0,F32*H32*$C$7*24/1000)) -> 0
A33: Length (m) | C33: Pitch (m) | E33: Area (m²) | F33: 0 | G33: Pitched
A34: Length (m) | C34: Pitch (m) | E34: Area (m²) | F34: 0 | G34: Single Pitch
D35: Total | E35: Area (m²) | F35: =SUM(F33:F34)-SUM(F45:F48) -> 0 | G35: U Value (W/m²K) | H35: =IF($B$3="Ground floor",'Design Details'!B$50,IF($B$3="Mid-floor",'Design Details'!B$60,IF($B$3="Upper floor",'Design Details'!B$70,IF($B$3="Single Storey",'Design Details'!B$80,0)))) -> 0 | I35: 24 | J35: 0 | K35: =IF($B$3=$Q$4,0,IF($B$3=$Q$5,0,F35*H35*$C$7*24/1000)) -> 0
A36: Windows
A37: Width (m) | B37: 1.18 | C37: Height (m) | D37: 1.18 | E37: Area (m²) | F37: 1.3924 | G37: U Value (W/m²K) | H37: =IF($B$3="Ground floor",'Design Details'!B$46,IF($B$3="Mid-floor",'Design Details'!B$56,IF($B$3="Upper floor",'Design Details'!B$66,IF($B$3="Single Storey",'Design Details'!B$76,0)))) -> 2.8 | I37: 24 | J37: 93.56928 | K37: =F37*H37*$C$7*24/1000 -> 208.4723558
A38: Width (m) | C38: Height (m) | E38: Area (m²) | F38: 0 | G38: U Value (W/m²K) | H38: =IF($B$3="Ground floor",'Design Details'!B$46,IF($B$3="Mid-floor",'Design Details'!B$56,IF($B$3="Upper floor",'Design Details'!B$66,IF($B$3="Single Storey",'Design Details'!B$76,0)))) -> 2.8 | I38: 24 | J38: 0 | K38: 0
A39: Width (m) | C39: Height (m) | E39: Area (m²) | F39: 0 | G39: U Value (W/m²K) | H39: =IF($B$3="Ground floor",'Design Details'!B$46,IF($B$3="Mid-floor",'Design Details'!B$56,IF($B$3="Upper floor",'Design Details'!B$66,IF($B$3="Single Storey",'Design Details'!B$76,0)))) -> 2.8 | I39: 24 | J39: 0 | K39: 0
A40: Width (m) | C40: Height (m) | E40: Area (m²) | F40: 0 | G40: U Value (W/m²K) | H40: =IF($B$3="Ground floor",'Design Details'!B$46,IF($B$3="Mid-floor",'Design Details'!B$56,IF($B$3="Upper floor",'Design Details'!B$66,IF($B$3="Single Storey",'Design Details'!B$76,0)))) -> 2.8 | I40: 24 | J40: 0 | K40: 0
A41: Width (m) | C41: Height (m) | E41: Area (m²) | F41: 0 | G41: U Value (W/m²K) | H41: =IF($B$3="Ground floor",'Design Details'!B$46,IF($B$3="Mid-floor",'Design Details'!B$56,IF($B$3="Upper floor",'Design Details'!B$66,IF($B$3="Single Storey",'Design Details'!B$76,0)))) -> 2.8 | I41: 24 | J41: 0 | K41: 0
A42: Width (m) | C42: Height (m) | E42: Area (m²) | F42: 0 | G42: U Value (W/m²K) | H42: =IF($B$3="Ground floor",'Design Details'!B$46,IF($B$3="Mid-floor",'Design Details'!B$56,IF($B$3="Upper floor",'Design Details'!B$66,IF($B$3="Single Storey",'Design Details'!B$76,0)))) -> 2.8 | I42: 24 | J42: 0 | K42: 0
A43: Width (m) | C43: Height (m) | E43: Area (m²) | F43: 0 | G43: U Value (W/m²K) | H43: =IF($B$3="Ground floor",'Design Details'!B$46,IF($B$3="Mid-floor",'Design Details'!B$56,IF($B$3="Upper floor",'Design Details'!B$66,IF($B$3="Single Storey",'Design Details'!B$76,0)))) -> 2.8 | I43: 24 | J43: 0 | K43: 0
A44: Roof Glazing
A45: Width (m) | C45: Height (m) | E45: Area (m²) | F45: 0 | G45: U Value (W/m²K) | H45: =IF($B$3="Ground floor",'Design Details'!B$53,IF($B$3="Mid-floor",'Design Details'!B$63,IF($B$3="Upper floor",'Design Details'!B$73,IF($B$3="Single Storey",'Design Details'!B$83,0)))) -> 2.8 | I45: 24 | J45: 0 | K45: =F45*H45*$C$7*24/1000 -> 0
A46: Width (m) | C46: Height (m) | E46: Area (m²) | F46: 0 | G46: U Value (W/m²K) | H46: =IF($B$3="Ground floor",'Design Details'!B$53,IF($B$3="Mid-floor",'Design Details'!B$63,IF($B$3="Upper floor",'Design Details'!B$73,IF($B$3="Single Storey",'Design Details'!B$83,0)))) -> 2.8 | I46: 24 | J46: 0 | K46: =F46*H46*$C$7*24/1000 -> 0
A47: Width (m) | C47: Height (m) | E47: Area (m²) | F47: 0 | G47: U Value (W/m²K) | H47: =IF($B$3="Ground floor",'Design Details'!B$53,IF($B$3="Mid-floor",'Design Details'!B$63,IF($B$3="Upper floor",'Design Details'!B$73,IF($B$3="Single Storey",'Design Details'!B$83,0)))) -> 2.8 | I47: 24 | J47: 0 | K47: =F47*H47*$C$7*24/1000 -> 0
A48: Width (m) | C48: Height (m) | E48: Area (m²) | F48: 0 | G48: U Value (W/m²K) | H48: =IF($B$3="Ground floor",'Design Details'!B$53,IF($B$3="Mid-floor",'Design Details'!B$63,IF($B$3="Upper floor",'Design Details'!B$73,IF($B$3="Single Storey",'Design Details'!B$83,0)))) -> 2.8 | I48: 24 | J48: 0 | K48: =F48*H48*$C$7*24/1000 -> 0
A49: Doors
A50: Width (m) | C50: Height (m) | E50: Area (m²) | F50: 0 | G50: U Value (W/m²K) | H50: =IF($B$3="Ground floor",'Design Details'!B$47,IF($B$3="Mid-floor",'Design Details'!B$57,IF($B$3="Upper floor",'Design Details'!B$67,IF($B$3="Single Storey",'Design Details'!B$77,0)))) -> 2.8 | I50: 24 | J50: 0 | K50: =F50*H50*$C$7*24/1000 -> 0
A51: Width (m) | C51: Height (m) | E51: Area (m²) | F51: 0 | G51: U Value (W/m²K) | H51: =IF($B$3="Ground floor",'Design Details'!B$47,IF($B$3="Mid-floor",'Design Details'!B$57,IF($B$3="Upper floor",'Design Details'!B$67,IF($B$3="Single Storey",'Design Details'!B$77,0)))) -> 2.8 | I51: 24 | J51: 0 | K51: =F51*H51*$C$7*24/1000 -> 0
A52: Width (m) | C52: Height (m) | E52: Area (m²) | F52: 0 | G52: U Value (W/m²K) | H52: =IF($B$3="Ground floor",'Design Details'!B$47,IF($B$3="Mid-floor",'Design Details'!B$57,IF($B$3="Upper floor",'Design Details'!B$67,IF($B$3="Single Storey",'Design Details'!B$77,0)))) -> 2.8 | I52: 24 | J52: 0 | K52: =F52*H52*$C$7*24/1000 -> 0
A53: Width (m) | C53: Height (m) | E53: Area (m²) | F53: 0 | G53: U Value (W/m²K) | H53: =IF($B$3="Ground floor",'Design Details'!B$47,IF($B$3="Mid-floor",'Design Details'!B$57,IF($B$3="Upper floor",'Design Details'!B$67,IF($B$3="Single Storey",'Design Details'!B$77,0)))) -> 2.8 | I53: 24 | J53: 0 | K53: =F53*H53*$C$7*24/1000 -> 0
A54: Internal Walls | L54: Adjoining Room Temp (°C)
A55: Length (m) | B55: 3.33 | C55: Height (m) | D55: 2.23 | E55: Area (m²) | F55: 7.4259 | G55: U Value (W/m²K) | H55: =IF($B$3="Ground floor",'Design Details'!B$51,IF($B$3="Mid-floor",'Design Details'!B$61,IF($B$3="Upper floor",'Design Details'!B$71,IF($B$3="Single Storey",'Design Details'!B$81,0)))) -> 1.4 | I55: 3 | J55: 31.18878
A56: Length (m) | C56: Height (m) | E56: Area (m²) | F56: 0 | G56: U Value (W/m²K) | H56: =IF($B$3="Ground floor",'Design Details'!B$51,IF($B$3="Mid-floor",'Design Details'!B$61,IF($B$3="Upper floor",'Design Details'!B$71,IF($B$3="Single Storey",'Design Details'!B$81,0)))) -> 1.4 | I56: =IF(L56="",0,IF(L56="unheated",C$4-10,C$4-L56)) -> 0 | J56: 0
A57: Length (m) | C57: Height (m) | E57: Area (m²) | F57: 0 | G57: U Value (W/m²K) | H57: =IF($B$3="Ground floor",'Design Details'!B$51,IF($B$3="Mid-floor",'Design Details'!B$61,IF($B$3="Upper floor",'Design Details'!B$71,IF($B$3="Single Storey",'Design Details'!B$81,0)))) -> 1.4 | I57: =IF(L57="",0,IF(L57="unheated",C$4-10,C$4-L57)) -> 0 | J57: 0
A58: Length (m) | C58: Height (m) | E58: Area (m²) | F58: 0 | G58: U Value (W/m²K) | H58: =IF($B$3="Ground floor",'Design Details'!B$51,IF($B$3="Mid-floor",'Design Details'!B$61,IF($B$3="Upper floor",'Design Details'!B$71,IF($B$3="Single Storey",'Design Details'!B$81,0)))) -> 1.4 | I58: =IF(L58="",0,IF(L58="unheated",C$4-10,C$4-L58)) -> 0 | J58: 0
A59: Party Wall
A60: Length (m) | C60: Height (m) | E60: Area (m²) | F60: 0 | G60: U Value (W/m²K) | H60: =IF($B$3="Ground floor",'Design Details'!B$52,IF($B$3="Mid-floor",'Design Details'!B$62,IF($B$3="Upper floor",'Design Details'!B$72,IF($B$3="Single Storey",'Design Details'!B$82,0)))) -> 1 | I60: =C4-10 -> 11 | J60: 0 | K60: =F60*H60*$C$7*24/1000 -> 0

Sheet 5
A1: Room Information | D1: Ventilation Heat Loss | G1: Fabric | H1: Heat Loss (W) | I1: Usage (kWh) | J1: Additional heat loss | L1: Addition | M1: Watts | N1: kWh
A2: Room | B2: Hall | D2: Air Changes a hour | F2: ='Design Details'!F91 -> 2.0 | G2: Floor | H2: =SUM(J20:J22) -> 4.416816 | I2: =SUM(K20:K22) -> 29.52199814 | J2: Thermal Bridging (New Build >2006) | L2: 0 | M2: =SUM(H$2:H$6)*L2 -> 0 | N2: =SUM(I$2:I$6)*L2 -> 0 | P2: 3 edges (long single) | Q2: Level | X2: 1
A3: Level | B3: Ground floor | D3: Air Change Factor (W/m³K) | F3: 0.33 | G3: Ext Wall | H3: =J27 -> 6.639864 | I3: =K27 -> 16.90699085 | J3: Exposed location | L3: 0 | M3: =SUM(H$2:H$6)*L3 -> 0 | N3: =SUM(I$2:I$6)*L3 -> 0 | P3: 3 edges (short single) | Q3: Please Select Floor | R3: =IF($B$3="Ground floor","Solid Floor (in contact with ground)",IF($B$3="Single Storey","Solid Floor (in contact with ground)","n/a")) -> Solid Floor (in contact with ground) | S3: ='Design Details'!B21 -> 10 | T3: unheated | U3: 0 | V3: 0 | W3: 0 | X3: 2
A4: Design Room Temp (°C) | C4: ='Design Details'!D91 -> 18 | D4: Total Volume (m³) | F4: =SUM(H10:H12,H14:H18) -> 6.648992 | G4: Roof | H4: =SUM(J32,J35) -> 5.911416 | I4: =SUM(K32,K35) -> 0 | J4: High ceiling | L4: 0 | M4: =SUM(H$2:H$6)*L4 -> 0 | N4: =SUM(I$2:I$6)*L4 -> 0 | P4: One edge | Q4: Ground floor | R4: =IF($B$3="Ground floor","Suspended Floor",IF($B$3="Single Storey","Suspended Floor","n/a")) -> Suspended Floor | T4: 16 | U4: 0.1 | V4: 0.2 | W4: 0.025 | X4: 3
A5: Outside Design Temp (°C) | C5: ='Design Details'!B19 -> -3 | D5: Heat loss (W) | F5: =F4*F3*C6*F2 -> 92.15502912 | G5: Glazing | H5: =SUM(J37:J43,J45:J48,J50:J53) -> 134.47392 | I5: =SUM(K37:K43,K45:K48,K50:K53) -> 342.4090214 | J5: Intermittent heating | L5: 0 | M5: =SUM(H$2:H$6)*L5 -> 0 | N5: =SUM(I$2:I$6)*L5 -> 0 | P5: Two adjacent | Q5: Mid-floor | T5: 18 | W5: 0.05 | X5: 4
A6: Temp Difference (°C) | C6: =C4-C5 -> 21 | D6: Estimated Energy usage (kWh) | F6: =F4*F3*C7*24/1000 -> 117.3265171 | G6: Int./Party Wall | H6: =SUM(J55:J58,J60) -> -16.36992 | I6: =SUM(K60) -> 0 | M6: Total Room Heat Loss (W) | N6: =SUM(F5,H2:H6,M2:M5) -> 227.2271251 | P6: Two opposite | Q6: Single storey | T6: 21 | W6: 0.075 | X6: 5
A7: Degree Days | C7: ='Design Details'!B20 -> 2228 | M7: Total Room Energy Usage (kWh) | N7: =SUM(F6,I2:I6,N2:N5) -> 506.1645275 | Q7: Upper floor | T7: 22 | W7: 0.1 | X7: 6
Q8: =IF($B$3="Ground floor",'Design Details'!B$45,IF($B$3="Mid-floor",'Design Details'!B$55,IF($B$3="Upper floor",'Design Details'!B$65,IF($B$3="Single Storey",'Design Details'!B$75,0)))) -> 0 | X8: 7
A9: Room Dimensions | X9: 8
A10: Length (m) | B10: 1.74 | C10: Width (m) | D10: 1.67 | E10: Height (m) | F10: 2.24 | G10: Volume (m³) | H10: =B10*D10*F10 -> 6.508992 | X10: 9
A11: Length (m) | B11: 0.7 | C11: Width (m) | D11: 0.5 | E11: Height (m) | F11: 0.4 | G11: Volume (m³) | H11: =B11*D11*F11 -> 0.14 | X11: 10
A12: Length (m) | C12: Width (m) | E12: Height (m) | G12: Volume (m³) | H12: =B12*D12*F12 -> 0
A13: Awkward Room Dimensions
A14: Length (m) | C14: Width (m) | E14: Height (m) | G14: Volume (m³) | H14: =((F14*D14)/2)*B14 -> 0 | I14: Pitched
A15: Length (m) | C15: Width (m) | E15: Height (m) | G15: Volume (m³) | H15: =B15*D15*F15/2 -> 0 | I15: Single Pitch
A16: Length (m) | C16: Height (m) | E16: Depth (m) | G16: Volume (m³) | H16: =D16*F16*B16/2 -> 0 | I16: Dormer 1
A17: Length (m) | C17: Height (m) | E17: Depth (m) | G17: Volume (m³) | H17: =D17*F17*B17/2 -> 0 | I17: Dormer 2
A18: Length (m) | C18: Height (m) | E18: Depth (m) | G18: Volume (m³) | H18: =D18*F18*B18/2 -> 0 | I18: Dormer 3
A19: Floor | I19: Temp Difference | J19: Heat Loss (W) | K19: Usage (kWh) | L19: Type of Ground Floor
A20: Length (m) | B20: =B10 -> 1.74 | C20: Width (m) | D20: =D10 -> 1.67 | E20: Area (m²) | F20: =B20*D20 -> 2.9058 | G20: U Value (W/m²K) | H20: 0.19 | I20: =IF(B$3="Ground Floor",IF(L20="Solid Floor (in contact with ground)",C$4-S$3,C$4-C$5),IF(B$3="Single Storey",IF(L20="Solid Floor (in contact with ground)",C$4-S$3,C$4-C$5),0)) -> 8 | J20: =F20*H20*I20 -> 4.416816 | K20: =IF($B$3=$Q$5,0,IF($B$3=$Q$7,0,F20*H20*$C$7*24/1000)) -> 29.52199814 | L20: Solid Floor (in contact with ground)
A21: Length (m) | B21: =B11 -> 0.7 | C21: Width (m) | D21: =D11 -> 0.5 | E21: Area (m²) | F21: 0 | G21: U Value (W/m²K) | H21: =H20 -> 0.19 | I21: =IF(B$3="Ground Floor",IF(L20="Solid Floor (in contact with ground)",C$4-S$3,C$4-C$5),IF(B$3="Single Storey",IF(L20="Solid Floor (in contact with ground)",C$4-S$3,C$4-C$5),0)) -> 8 | J21: =F21*H21*I21 -> 0 | K21: =IF($B$3=$Q$5,0,IF($B$3=$Q$7,0,F21*H21*$C$7*24/1000)) -> 0 | L21: Exposed floor (external)
A22: Length (m) | B22: 0 | C22: Width (m) | D22: 0 | E22: Area (m²) | F22: =B22*D22 -> 0 | G22: U Value (W/m²K) | H22: =H20 -> 0.19 | I22: =IF(B$3="Ground Floor",IF(L20="Solid Floor (in contact with ground)",C$4-S$3,C$4-C$5),IF(B$3="Single Storey",IF(L20="Solid Floor (in contact with ground)",C$4-S$3,C$4-C$5),0)) -> 8 | J22: =F22*H22*I22 -> 0 | K22: =IF($B$3=$Q$5,0,IF($B$3=$Q$7,0,F22*H22*$C$7*24/1000)) -> 0 | L22: One edge
A23: External Wall | L23: =IF(L22="Two opposite","Between edges",IF(L22="One edge","Depth of room",IF(L22="3 edges (short single)","Short length",IF(L22="3 edges (long single)","Short length","")))) -> Depth of room | N23: =IF(L22="3 edges (short single)","Long length",IF(L22="3 edges (long single)","Long length","")) -> 
A24: Length (m) | B24: 1.67 | C24: Height (m) | D24: 2.24 | E24: Area (m²) | F24: 3.7408 | L24: 1.79
A25: Length (m) | C25: Height (m) | E25: Area (m²) | F25: 0
A26: Length (m) | C26: Height (m) | E26: Area (m²) | F26: 0
D27: Total | E27: Area (m²) | F27: =SUM(F24:F26)-SUM(F37:F43,F50:F53) -> 0.7186 | G27: U Value (W/m²K) | H27: 0.44 | I27: =$C$6 -> 21 | J27: =F27*H27*I27 -> 6.639864 | K27: =F27*H27*$C$7*24/1000 -> 16.90699085
A28: Roof
A29: Length (m) | B29: =B10 -> 1.74 | C29: Width (m) | D29: =D10 -> 1.67 | E29: Area (m²) | F29: 2.9058
A30: Length (m) | B30: =B11 -> 0.7 | C30: Width (m) | D30: =D11 -> 0.5 | E30: Area (m²) | F30: 0
A31: Length (m) | B31: 0 | C31: Width (m) | D31: 0 | E31: Area (m²) | F31: 0
D32: Total | E32: Area (m²) | F32: =SUM(F29:F31)-SUM(F45:F48) -> 2.3458 | G32: U Value (W/m²K) | H32: 0.12 | I32: =$C$6 -> 21 | J32: 5.911416 | K32: =IF($B$3=$Q$4,0,IF($B$3=$Q$5,0,F32*H32*$C$7*24/1000)) -> 0
A33: Length (m) | C33: Pitch (m) | E33: Area (m²) | F33: 0 | G33: Pitched
A34: Length (m) | C34: Pitch (m) | E34: Area (m²) | F34: 0 | G34: Single Pitch
D35: Total | E35: Area (m²) | F35: =SUM(F33:F34)-SUM(F45:F48) -> -0.56 | G35: U Value (W/m²K) | H35: =IF($B$3="Ground floor",'Design Details'!B$50,IF($B$3="Mid-floor",'Design Details'!B$60,IF($B$3="Upper floor",'Design Details'!B$70,IF($B$3="Single Storey",'Design Details'!B$80,0)))) -> 0 | I35: 21 | J35: 0 | K35: =IF($B$3=$Q$4,0,IF($B$3=$Q$5,0,F35*H35*$C$7*24/1000)) -> 0
A36: Windows
A37: Width (m) | C37: Height (m) | E37: Area (m²) | F37: 0 | G37: U Value (W/m²K) | H37: =IF($B$3="Ground floor",'Design Details'!B$46,IF($B$3="Mid-floor",'Design Details'!B$56,IF($B$3="Upper floor",'Design Details'!B$66,IF($B$3="Single Storey",'Design Details'!B$76,0)))) -> 2.8 | I37: 21 | J37: 0 | K37: =F37*H37*$C$7*24/1000 -> 0
A38: Width (m) | C38: Height (m) | E38: Area (m²) | F38: 0 | G38: U Value (W/m²K) | H38: =IF($B$3="Ground floor",'Design Details'!B$46,IF($B$3="Mid-floor",'Design Details'!B$56,IF($B$3="Upper floor",'Design Details'!B$66,IF($B$3="Single Storey",'Design Details'!B$76,0)))) -> 2.8 | I38: 21 | J38: 0 | K38: 0
A39: Width (m) | C39: Height (m) | E39: Area (m²) | F39: 0 | G39: U Value (W/m²K) | H39: =IF($B$3="Ground floor",'Design Details'!B$46,IF($B$3="Mid-floor",'Design Details'!B$56,IF($B$3="Upper floor",'Design Details'!B$66,IF($B$3="Single Storey",'Design Details'!B$76,0)))) -> 2.8 | I39: 21 | J39: 0 | K39: 0
A40: Width (m) | C40: Height (m) | E40: Area (m²) | F40: 0 | G40: U Value (W/m²K) | H40: =IF($B$3="Ground floor",'Design Details'!B$46,IF($B$3="Mid-floor",'Design Details'!B$56,IF($B$3="Upper floor",'Design Details'!B$66,IF($B$3="Single Storey",'Design Details'!B$76,0)))) -> 2.8 | I40: 21 | J40: 0 | K40: 0
A41: Width (m) | C41: Height (m) | E41: Area (m²) | F41: 0 | G41: U Value (W/m²K) | H41: =IF($B$3="Ground floor",'Design Details'!B$46,IF($B$3="Mid-floor",'Design Details'!B$56,IF($B$3="Upper floor",'Design Details'!B$66,IF($B$3="Single Storey",'Design Details'!B$76,0)))) -> 2.8 | I41: 21 | J41: 0 | K41: 0
A42: Width (m) | C42: Height (m) | E42: Area (m²) | F42: 0 | G42: U Value (W/m²K) | H42: =IF($B$3="Ground floor",'Design Details'!B$46,IF($B$3="Mid-floor",'Design Details'!B$56,IF($B$3="Upper floor",'Design Details'!B$66,IF($B$3="Single Storey",'Design Details'!B$76,0)))) -> 2.8 | I42: 21 | J42: 0 | K42: 0
A43: Width (m) | C43: Height (m) | E43: Area (m²) | F43: 0 | G43: U Value (W/m²K) | H43: =IF($B$3="Ground floor",'Design Details'!B$46,IF($B$3="Mid-floor",'Design Details'!B$56,IF($B$3="Upper floor",'Design Details'!B$66,IF($B$3="Single Storey",'Design Details'!B$76,0)))) -> 2.8 | I43: 21 | J43: 0 | K43: 0
A44: Roof Glazing
A45: Width (m) | B45: 0.7 | C45: Height (m) | D45: 0.8 | E45: Area (m²) | F45: 0.56 | G45: U Value (W/m²K) | H45: =IF($B$3="Ground floor",'Design Details'!B$53,IF($B$3="Mid-floor",'Design Details'!B$63,IF($B$3="Upper floor",'Design Details'!B$73,IF($B$3="Single Storey",'Design Details'!B$83,0)))) -> 2.8 | I45: 21 | J45: 32.928 | K45: =F45*H45*$C$7*24/1000 -> 83.844096
A46: Width (m) | C46: Height (m) | E46: Area (m²) | F46: 0 | G46: U Value (W/m²K) | H46: =IF($B$3="Ground floor",'Design Details'!B$53,IF($B$3="Mid-floor",'Design Details'!B$63,IF($B$3="Upper floor",'Design Details'!B$73,IF($B$3="Single Storey",'Design Details'!B$83,0)))) -> 2.8 | I46: 21 | J46: 0 | K46: =F46*H46*$C$7*24/1000 -> 0
A47: Width (m) | C47: Height (m) | E47: Area (m²) | F47: 0 | G47: U Value (W/m²K) | H47: =IF($B$3="Ground floor",'Design Details'!B$53,IF($B$3="Mid-floor",'Design Details'!B$63,IF($B$3="Upper floor",'Design Details'!B$73,IF($B$3="Single Storey",'Design Details'!B$83,0)))) -> 2.8 | I47: 21 | J47: 0 | K47: =F47*H47*$C$7*24/1000 -> 0
A48: Width (m) | C48: Height (m) | E48: Area (m²) | F48: 0 | G48: U Value (W/m²K) | H48: =IF($B$3="Ground floor",'Design Details'!B$53,IF($B$3="Mid-floor",'Design Details'!B$63,IF($B$3="Upper floor",'Design Details'!B$73,IF($B$3="Single Storey",'Design Details'!B$83,0)))) -> 2.8 | I48: 21 | J48: 0 | K48: =F48*H48*$C$7*24/1000 -> 0
A49: Doors
A50: Width (m) | B50: 2.07 | C50: Height (m) | D50: 1.46 | E50: Area (m²) | F50: 3.0222 | G50: U Value (W/m²K) | H50: 1.6 | I50: 21 | J50: 101.54592 | K50: =F50*H50*$C$7*24/1000 -> 258.5649254
A51: Width (m) | C51: Height (m) | E51: Area (m²) | F51: 0 | G51: U Value (W/m²K) | H51: =IF($B$3="Ground floor",'Design Details'!B$47,IF($B$3="Mid-floor",'Design Details'!B$57,IF($B$3="Upper floor",'Design Details'!B$67,IF($B$3="Single Storey",'Design Details'!B$77,0)))) -> 2.8 | I51: 21 | J51: 0 | K51: =F51*H51*$C$7*24/1000 -> 0
A52: Width (m) | C52: Height (m) | E52: Area (m²) | F52: 0 | G52: U Value (W/m²K) | H52: =IF($B$3="Ground floor",'Design Details'!B$47,IF($B$3="Mid-floor",'Design Details'!B$57,IF($B$3="Upper floor",'Design Details'!B$67,IF($B$3="Single Storey",'Design Details'!B$77,0)))) -> 2.8 | I52: 21 | J52: 0 | K52: =F52*H52*$C$7*24/1000 -> 0
A53: Width (m) | C53: Height (m) | E53: Area (m²) | F53: 0 | G53: U Value (W/m²K) | H53: =IF($B$3="Ground floor",'Design Details'!B$47,IF($B$3="Mid-floor",'Design Details'!B$57,IF($B$3="Upper floor",'Design Details'!B$67,IF($B$3="Single Storey",'Design Details'!B$77,0)))) -> 2.8 | I53: 21 | J53: 0 | K53: =F53*H53*$C$7*24/1000 -> 0
A54: Internal Walls | L54: Adjoining Room Temp (°C)
A55: Length (m) | B55: 1.74 | C55: Height (m) | D55: 2.24 | E55: Area (m²) | F55: 3.8976 | G55: U Value (W/m²K) | H55: =IF($B$3="Ground floor",'Design Details'!B$51,IF($B$3="Mid-floor",'Design Details'!B$61,IF($B$3="Upper floor",'Design Details'!B$71,IF($B$3="Single Storey",'Design Details'!B$81,0)))) -> 1.4 | I55: -3 | J55: -16.36992
A56: Length (m) | C56: Height (m) | E56: Area (m²) | F56: 0 | G56: U Value (W/m²K) | H56: =IF($B$3="Ground floor",'Design Details'!B$51,IF($B$3="Mid-floor",'Design Details'!B$61,IF($B$3="Upper floor",'Design Details'!B$71,IF($B$3="Single Storey",'Design Details'!B$81,0)))) -> 1.4 | I56: =IF(L56="",0,IF(L56="unheated",C$4-10,C$4-L56)) -> 0 | J56: 0
A57: Length (m) | C57: Height (m) | E57: Area (m²) | F57: 0 | G57: U Value (W/m²K) | H57: =IF($B$3="Ground floor",'Design Details'!B$51,IF($B$3="Mid-floor",'Design Details'!B$61,IF($B$3="Upper floor",'Design Details'!B$71,IF($B$3="Single Storey",'Design Details'!B$81,0)))) -> 1.4 | I57: =IF(L57="",0,IF(L57="unheated",C$4-10,C$4-L57)) -> 0 | J57: 0
A58: Length (m) | C58: Height (m) | E58: Area (m²) | F58: 0 | G58: U Value (W/m²K) | H58: =IF($B$3="Ground floor",'Design Details'!B$51,IF($B$3="Mid-floor",'Design Details'!B$61,IF($B$3="Upper floor",'Design Details'!B$71,IF($B$3="Single Storey",'Design Details'!B$81,0)))) -> 1.4 | I58: =IF(L58="",0,IF(L58="unheated",C$4-10,C$4-L58)) -> 0 | J58: 0
A59: Party Wall
A60: Length (m) | C60: Height (m) | E60: Area (m²) | F60: 0 | G60: U Value (W/m²K) | H60: =IF($B$3="Ground floor",'Design Details'!B$52,IF($B$3="Mid-floor",'Design Details'!B$62,IF($B$3="Upper floor",'Design Details'!B$72,IF($B$3="Single Storey",'Design Details'!B$82,0)))) -> 1 | I60: =C4-10 -> 8 | J60: 0 | K60: =F60*H60*$C$7*24/1000 -> 0

Sheet 6
A1: Room Information | D1: Ventilation Heat Loss | G1: Fabric | H1: Heat Loss (W) | I1: Usage (kWh) | J1: Additional heat loss | L1: Addition | M1: Watts | N1: kWh
A2: Room | B2: Utility | D2: Air Changes a hour | F2: ='Design Details'!F92 -> 3 | G2: Floor | H2: =SUM(J20:J22) -> 8.27184 | I2: =SUM(K20:K22) -> 55.28897856 | J2: Thermal Bridging (New Build >2006) | L2: 0 | M2: =SUM(H$2:H$6)*L2 -> 0 | N2: =SUM(I$2:I$6)*L2 -> 0 | P2: 3 edges (long single) | Q2: Level | X2: 1
A3: Level | B3: Ground floor | D3: Air Change Factor (W/m³K) | F3: 0.33 | G3: Ext Wall | H3: =J27 -> 91.168308 | I3: =K27 -> 232.1405603 | J3: Exposed location | L3: 0 | M3: =SUM(H$2:H$6)*L3 -> 0 | N3: =SUM(I$2:I$6)*L3 -> 0 | P3: 3 edges (short single) | Q3: Please Select Floor | R3: =IF($B$3="Ground floor","Solid Floor (in contact with ground)",IF($B$3="Single Storey","Solid Floor (in contact with ground)","n/a")) -> Solid Floor (in contact with ground) | S3: ='Design Details'!B21 -> 10 | T3: unheated | U3: 0 | V3: 0 | W3: 0 | X3: 2
A4: Design Room Temp (°C) | C4: ='Design Details'!D92 -> 18 | D4: Total Volume (m³) | F4: =SUM(H10:H12,H14:H18) -> 12.2445 | G4: Roof | H4: =SUM(J32,J35) -> 13.71384 | I4: =SUM(K32,K35) -> 0 | J4: High ceiling | L4: 0 | M4: =SUM(H$2:H$6)*L4 -> 0 | N4: =SUM(I$2:I$6)*L4 -> 0 | P4: One edge | Q4: Ground floor | R4: =IF($B$3="Ground floor","Suspended Floor",IF($B$3="Single Storey","Suspended Floor","n/a")) -> Suspended Floor | T4: 16 | U4: 0.1 | V4: 0.2 | W4: 0.025 | X4: 3
A5: Outside Design Temp (°C) | C5: ='Design Details'!B19 -> -3 | D5: Heat loss (W) | F5: =F4*F3*C6*F2 -> 254.563155 | G5: Glazing | H5: =SUM(J37:J43,J45:J48,J50:J53) -> 68.10804 | I5: =SUM(K37:K43,K45:K48,K50:K53) -> 173.4225293 | J5: Intermittent heating | L5: 0 | M5: =SUM(H$2:H$6)*L5 -> 0 | N5: =SUM(I$2:I$6)*L5 -> 0 | P5: Two adjacent | Q5: Mid-floor | T5: 18 | W5: 0.05 | X5: 4
A6: Temp Difference (°C) | C6: =C4-C5 -> 21 | D6: Estimated Energy usage (kWh) | F6: =F4*F3*C7*24/1000 -> 216.0635083 | G6: Int./Party Wall | H6: =SUM(J55:J58,J60) -> 0 | I6: =SUM(K60) -> 0 | M6: Total Room Heat Loss (W) | N6: =SUM(F5,H2:H6,M2:M5) -> 435.825183 | P6: Two opposite | Q6: Single storey | T6: 21 | W6: 0.075 | X6: 5
A7: Degree Days | C7: ='Design Details'!B20 -> 2228 | M7: Total Room Energy Usage (kWh) | N7: =SUM(F6,I2:I6,N2:N5) -> 676.9155764 | Q7: Upper floor | T7: 22 | W7: 0.1 | X7: 6
Q8: =IF($B$3="Ground floor",'Design Details'!B$45,IF($B$3="Mid-floor",'Design Details'!B$55,IF($B$3="Upper floor",'Design Details'!B$65,IF($B$3="Single Storey",'Design Details'!B$75,0)))) -> 0 | X8: 7
A9: Room Dimensions | X9: 8
A10: Length (m) | B10: 2.76 | C10: Width (m) | D10: 1.45 | E10: Height (m) | F10: 2.25 | G10: Volume (m³) | H10: =B10*D10*F10 -> 9.0045 | X10: 9
A11: Length (m) | B11: 0.9 | C11: Width (m) | D11: 1.6 | E11: Height (m) | F11: 2.25 | G11: Volume (m³) | H11: =B11*D11*F11 -> 3.24 | X11: 10
A12: Length (m) | C12: Width (m) | E12: Height (m) | G12: Volume (m³) | H12: =B12*D12*F12 -> 0
A13: Awkward Room Dimensions
A14: Length (m) | C14: Width (m) | E14: Height (m) | G14: Volume (m³) | H14: =((F14*D14)/2)*B14 -> 0 | I14: Pitched
A15: Length (m) | C15: Width (m) | E15: Height (m) | G15: Volume (m³) | H15: =B15*D15*F15/2 -> 0 | I15: Single Pitch
A16: Length (m) | C16: Height (m) | E16: Depth (m) | G16: Volume (m³) | H16: =D16*F16*B16/2 -> 0 | I16: Dormer 1
A17: Length (m) | C17: Height (m) | E17: Depth (m) | G17: Volume (m³) | H17: =D17*F17*B17/2 -> 0 | I17: Dormer 2
A18: Length (m) | C18: Height (m) | E18: Depth (m) | G18: Volume (m³) | H18: =D18*F18*B18/2 -> 0 | I18: Dormer 3
A19: Floor | I19: Temp Difference | J19: Heat Loss (W) | K19: Usage (kWh) | L19: Type of Ground Floor
A20: Length (m) | B20: =B10 -> 2.76 | C20: Width (m) | D20: =D10 -> 1.45 | E20: Area (m²) | F20: =B20*D20 -> 4.002 | G20: U Value (W/m²K) | H20: 0.19 | I20: =IF(B$3="Ground Floor",IF(L20="Solid Floor (in contact with ground)",C$4-S$3,C$4-C$5),IF(B$3="Single Storey",IF(L20="Solid Floor (in contact with ground)",C$4-S$3,C$4-C$5),0)) -> 8 | J20: =F20*H20*I20 -> 6.08304 | K20: =IF($B$3=$Q$5,0,IF($B$3=$Q$7,0,F20*H20*$C$7*24/1000)) -> 40.65903936 | L20: Solid Floor (in contact with ground)
A21: Length (m) | B21: =B11 -> 0.9 | C21: Width (m) | D21: =D11 -> 1.6 | E21: Area (m²) | F21: =B21*D21 -> 1.44 | G21: U Value (W/m²K) | H21: =H20 -> 0.19 | I21: =IF(B$3="Ground Floor",IF(L20="Solid Floor (in contact with ground)",C$4-S$3,C$4-C$5),IF(B$3="Single Storey",IF(L20="Solid Floor (in contact with ground)",C$4-S$3,C$4-C$5),0)) -> 8 | J21: =F21*H21*I21 -> 2.1888 | K21: =IF($B$3=$Q$5,0,IF($B$3=$Q$7,0,F21*H21*$C$7*24/1000)) -> 14.6299392 | L21: Exposed floor (external)
A22: Length (m) | B22: 0 | C22: Width (m) | D22: 0 | E22: Area (m²) | F22: 0 | G22: U Value (W/m²K) | H22: =H20 -> 0.19 | I22: =IF(B$3="Ground Floor",IF(L20="Solid Floor (in contact with ground)",C$4-S$3,C$4-C$5),IF(B$3="Single Storey",IF(L20="Solid Floor (in contact with ground)",C$4-S$3,C$4-C$5),0)) -> 8 | J22: =F22*H22*I22 -> 0 | K22: =IF($B$3=$Q$5,0,IF($B$3=$Q$7,0,F22*H22*$C$7*24/1000)) -> 0 | L22: 3 edges (long single)
A23: External Wall | L23: =IF(L22="Two opposite","Between edges",IF(L22="One edge","Depth of room",IF(L22="3 edges (short single)","Short length",IF(L22="3 edges (long single)","Short length","")))) -> Short length | N23: =IF(L22="3 edges (short single)","Long length",IF(L22="3 edges (long single)","Long length","")) -> Long length
A24: Length (m) | B24: 4.9 | C24: Height (m) | D24: 2.25 | E24: Area (m²) | F24: 11.025 | L24: 1.275 | N24: 2.35
A25: Length (m) | C25: Height (m) | E25: Area (m²) | F25: 0
A26: Length (m) | C26: Height (m) | E26: Area (m²) | F26: 0
D27: Total | E27: Area (m²) | F27: =SUM(F24:F26)-SUM(F37:F43,F50:F53) -> 9.8667 | G27: U Value (W/m²K) | H27: =IF($B$3="Ground floor",'Design Details'!B$48,IF($B$3="Mid-floor",'Design Details'!B$58,IF($B$3="Upper floor",'Design Details'!B$68,IF($B$3="Single Storey",'Design Details'!B$78,0)))) -> 0.44 | I27: =$C$6 -> 21 | J27: =F27*H27*I27 -> 91.168308 | K27: =F27*H27*$C$7*24/1000 -> 232.1405603
A28: Roof
A29: Length (m) | B29: 2.35 | C29: Width (m) | D29: 1.6 | E29: Area (m²) | F29: 3.76
A30: Length (m) | B30: 1.45 | C30: Width (m) | D30: 1.16 | E30: Area (m²) | F30: 1.682
A31: Length (m) | B31: =B12 -> 0 | C31: Width (m) | D31: =D12 -> 0 | E31: Area (m²) | F31: 0
D32: Total | E32: Area (m²) | F32: =SUM(F29:F31)-SUM(F45:F48) -> 5.442 | G32: U Value (W/m²K) | H32: 0.12 | I32: =$C$6 -> 21 | J32: 13.71384 | K32: =IF($B$3=$Q$4,0,IF($B$3=$Q$5,0,F32*H32*$C$7*24/1000)) -> 0
A33: Length (m) | C33: Pitch (m) | E33: Area (m²) | F33: 0 | G33: Pitched
A34: Length (m) | C34: Pitch (m) | E34: Area (m²) | F34: 0 | G34: Single Pitch
D35: Total | E35: Area (m²) | F35: =SUM(F33:F34)-SUM(F45:F48) -> 0 | G35: U Value (W/m²K) | H35: =IF($B$3="Ground floor",'Design Details'!B$50,IF($B$3="Mid-floor",'Design Details'!B$60,IF($B$3="Upper floor",'Design Details'!B$70,IF($B$3="Single Storey",'Design Details'!B$80,0)))) -> 0 | I35: 21 | J35: 0 | K35: =IF($B$3=$Q$4,0,IF($B$3=$Q$5,0,F35*H35*$C$7*24/1000)) -> 0
A36: Windows
A37: Width (m) | B37: 0.99 | C37: Height (m) | D37: 1.17 | E37: Area (m²) | F37: 1.1583 | G37: U Value (W/m²K) | H37: =IF($B$3="Ground floor",'Design Details'!B$46,IF($B$3="Mid-floor",'Design Details'!B$56,IF($B$3="Upper floor",'Design Details'!B$66,IF($B$3="Single Storey",'Design Details'!B$76,0)))) -> 2.8 | I37: 21 | J37: 68.10804 | K37: =F37*H37*$C$7*24/1000 -> 173.4225293
A38: Width (m) | C38: Height (m) | E38: Area (m²) | F38: 0 | G38: U Value (W/m²K) | H38: =IF($B$3="Ground floor",'Design Details'!B$46,IF($B$3="Mid-floor",'Design Details'!B$56,IF($B$3="Upper floor",'Design Details'!B$66,IF($B$3="Single Storey",'Design Details'!B$76,0)))) -> 2.8 | I38: 21 | J38: 0 | K38: 0
A39: Width (m) | C39: Height (m) | E39: Area (m²) | F39: 0 | G39: U Value (W/m²K) | H39: =IF($B$3="Ground floor",'Design Details'!B$46,IF($B$3="Mid-floor",'Design Details'!B$56,IF($B$3="Upper floor",'Design Details'!B$66,IF($B$3="Single Storey",'Design Details'!B$76,0)))) -> 2.8 | I39: 21 | J39: 0 | K39: 0
A40: Width (m) | C40: Height (m) | E40: Area (m²) | F40: 0 | G40: U Value (W/m²K) | H40: =IF($B$3="Ground floor",'Design Details'!B$46,IF($B$3="Mid-floor",'Design Details'!B$56,IF($B$3="Upper floor",'Design Details'!B$66,IF($B$3="Single Storey",'Design Details'!B$76,0)))) -> 2.8 | I40: 21 | J40: 0 | K40: 0
A41: Width (m) | C41: Height (m) | E41: Area (m²) | F41: 0 | G41: U Value (W/m²K) | H41: =IF($B$3="Ground floor",'Design Details'!B$46,IF($B$3="Mid-floor",'Design Details'!B$56,IF($B$3="Upper floor",'Design Details'!B$66,IF($B$3="Single Storey",'Design Details'!B$76,0)))) -> 2.8 | I41: 21 | J41: 0 | K41: 0
A42: Width (m) | C42: Height (m) | E42: Area (m²) | F42: 0 | G42: U Value (W/m²K) | H42: =IF($B$3="Ground floor",'Design Details'!B$46,IF($B$3="Mid-floor",'Design Details'!B$56,IF($B$3="Upper floor",'Design Details'!B$66,IF($B$3="Single Storey",'Design Details'!B$76,0)))) -> 2.8 | I42: 21 | J42: 0 | K42: 0
A43: Width (m) | C43: Height (m) | E43: Area (m²) | F43: 0 | G43: U Value (W/m²K) | H43: =IF($B$3="Ground floor",'Design Details'!B$46,IF($B$3="Mid-floor",'Design Details'!B$56,IF($B$3="Upper floor",'Design Details'!B$66,IF($B$3="Single Storey",'Design Details'!B$76,0)))) -> 2.8 | I43: 21 | J43: 0 | K43: 0
A44: Roof Glazing
A45: Width (m) | C45: Height (m) | E45: Area (m²) | F45: 0 | G45: U Value (W/m²K) | H45: =IF($B$3="Ground floor",'Design Details'!B$53,IF($B$3="Mid-floor",'Design Details'!B$63,IF($B$3="Upper floor",'Design Details'!B$73,IF($B$3="Single Storey",'Design Details'!B$83,0)))) -> 2.8 | I45: 21 | J45: 0 | K45: =F45*H45*$C$7*24/1000 -> 0
A46: Width (m) | C46: Height (m) | E46: Area (m²) | F46: 0 | G46: U Value (W/m²K) | H46: =IF($B$3="Ground floor",'Design Details'!B$53,IF($B$3="Mid-floor",'Design Details'!B$63,IF($B$3="Upper floor",'Design Details'!B$73,IF($B$3="Single Storey",'Design Details'!B$83,0)))) -> 2.8 | I46: 21 | J46: 0 | K46: =F46*H46*$C$7*24/1000 -> 0
A47: Width (m) | C47: Height (m) | E47: Area (m²) | F47: 0 | G47: U Value (W/m²K) | H47: =IF($B$3="Ground floor",'Design Details'!B$53,IF($B$3="Mid-floor",'Design Details'!B$63,IF($B$3="Upper floor",'Design Details'!B$73,IF($B$3="Single Storey",'Design Details'!B$83,0)))) -> 2.8 | I47: 21 | J47: 0 | K47: =F47*H47*$C$7*24/1000 -> 0
A48: Width (m) | C48: Height (m) | E48: Area (m²) | F48: 0 | G48: U Value (W/m²K) | H48: =IF($B$3="Ground floor",'Design Details'!B$53,IF($B$3="Mid-floor",'Design Details'!B$63,IF($B$3="Upper floor",'Design Details'!B$73,IF($B$3="Single Storey",'Design Details'!B$83,0)))) -> 2.8 | I48: 21 | J48: 0 | K48: =F48*H48*$C$7*24/1000 -> 0
A49: Doors
A50: Width (m) | C50: Height (m) | E50: Area (m²) | F50: 0 | G50: U Value (W/m²K) | H50: =IF($B$3="Ground floor",'Design Details'!B$47,IF($B$3="Mid-floor",'Design Details'!B$57,IF($B$3="Upper floor",'Design Details'!B$67,IF($B$3="Single Storey",'Design Details'!B$77,0)))) -> 2.8 | I50: 21 | J50: 0 | K50: =F50*H50*$C$7*24/1000 -> 0
A51: Width (m) | C51: Height (m) | E51: Area (m²) | F51: 0 | G51: U Value (W/m²K) | H51: =IF($B$3="Ground floor",'Design Details'!B$47,IF($B$3="Mid-floor",'Design Details'!B$57,IF($B$3="Upper floor",'Design Details'!B$67,IF($B$3="Single Storey",'Design Details'!B$77,0)))) -> 2.8 | I51: 21 | J51: 0 | K51: =F51*H51*$C$7*24/1000 -> 0
A52: Width (m) | C52: Height (m) | E52: Area (m²) | F52: 0 | G52: U Value (W/m²K) | H52: =IF($B$3="Ground floor",'Design Details'!B$47,IF($B$3="Mid-floor",'Design Details'!B$57,IF($B$3="Upper floor",'Design Details'!B$67,IF($B$3="Single Storey",'Design Details'!B$77,0)))) -> 2.8 | I52: 21 | J52: 0 | K52: =F52*H52*$C$7*24/1000 -> 0
A53: Width (m) | C53: Height (m) | E53: Area (m²) | F53: 0 | G53: U Value (W/m²K) | H53: =IF($B$3="Ground floor",'Design Details'!B$47,IF($B$3="Mid-floor",'Design Details'!B$57,IF($B$3="Upper floor",'Design Details'!B$67,IF($B$3="Single Storey",'Design Details'!B$77,0)))) -> 2.8 | I53: 21 | J53: 0 | K53: =F53*H53*$C$7*24/1000 -> 0
A54: Internal Walls | L54: Adjoining Room Temp (°C)
A55: Length (m) | C55: Height (m) | E55: Area (m²) | F55: 0 | G55: U Value (W/m²K) | H55: =IF($B$3="Ground floor",'Design Details'!B$51,IF($B$3="Mid-floor",'Design Details'!B$61,IF($B$3="Upper floor",'Design Details'!B$71,IF($B$3="Single Storey",'Design Details'!B$81,0)))) -> 1.4 | I55: =IF(L55="",0,IF(L55="unheated",C$4-10,C$4-L55)) -> 0 | J55: 0
A56: Length (m) | C56: Height (m) | E56: Area (m²) | F56: 0 | G56: U Value (W/m²K) | H56: =IF($B$3="Ground floor",'Design Details'!B$51,IF($B$3="Mid-floor",'Design Details'!B$61,IF($B$3="Upper floor",'Design Details'!B$71,IF($B$3="Single Storey",'Design Details'!B$81,0)))) -> 1.4 | I56: =IF(L56="",0,IF(L56="unheated",C$4-10,C$4-L56)) -> 0 | J56: 0
A57: Length (m) | C57: Height (m) | E57: Area (m²) | F57: 0 | G57: U Value (W/m²K) | H57: =IF($B$3="Ground floor",'Design Details'!B$51,IF($B$3="Mid-floor",'Design Details'!B$61,IF($B$3="Upper floor",'Design Details'!B$71,IF($B$3="Single Storey",'Design Details'!B$81,0)))) -> 1.4 | I57: =IF(L57="",0,IF(L57="unheated",C$4-10,C$4-L57)) -> 0 | J57: 0
A58: Length (m) | C58: Height (m) | E58: Area (m²) | F58: 0 | G58: U Value (W/m²K) | H58: =IF($B$3="Ground floor",'Design Details'!B$51,IF($B$3="Mid-floor",'Design Details'!B$61,IF($B$3="Upper floor",'Design Details'!B$71,IF($B$3="Single Storey",'Design Details'!B$81,0)))) -> 1.4 | I58: =IF(L58="",0,IF(L58="unheated",C$4-10,C$4-L58)) -> 0 | J58: 0
A59: Party Wall
A60: Length (m) | C60: Height (m) | E60: Area (m²) | F60: 0 | G60: U Value (W/m²K) | H60: =IF($B$3="Ground floor",'Design Details'!B$52,IF($B$3="Mid-floor",'Design Details'!B$62,IF($B$3="Upper floor",'Design Details'!B$72,IF($B$3="Single Storey",'Design Details'!B$82,0)))) -> 1 | I60: =C4-10 -> 8 | J60: 0 | K60: =F60*H60*$C$7*24/1000 -> 0

Sheet 7
A1: Room Information | D1: Ventilation Heat Loss | G1: Fabric | H1: Heat Loss (W) | I1: Usage (kWh) | J1: Additional heat loss | L1: Addition | M1: Watts | N1: kWh
A2: Room | B2: WC | D2: Air Changes a hour | F2: ='Design Details'!F93 -> 3 | G2: Floor | H2: =SUM(J20:J22) -> 1.28896 | I2: =SUM(K20:K22) -> 8.61540864 | J2: Thermal Bridging (New Build >2006) | L2: 0 | M2: =SUM(H$2:H$6)*L2 -> 0 | N2: =SUM(I$2:I$6)*L2 -> 0 | P2: 3 edges (long single) | Q2: Level | X2: 1
A3: Level | B3: Ground floor | D3: Air Change Factor (W/m³K) | F3: 0.33 | G3: Ext Wall | H3: =J27 -> 18.0642 | I3: =K27 -> 45.9966144 | J3: Exposed location | L3: 0 | M3: =SUM(H$2:H$6)*L3 -> 0 | N3: =SUM(I$2:I$6)*L3 -> 0 | P3: 3 edges (short single) | Q3: Please Select Floor | R3: =IF($B$3="Ground floor","Solid Floor (in contact with ground)",IF($B$3="Single Storey","Solid Floor (in contact with ground)","n/a")) -> Solid Floor (in contact with ground) | S3: ='Design Details'!B21 -> 10 | T3: unheated | U3: 0 | V3: 0 | W3: 0 | X3: 2
A4: Design Room Temp (°C) | C4: ='Design Details'!D93 -> 18 | D4: Total Volume (m³) | F4: =SUM(H10:H12,H14:H18) -> 1.908 | G4: Roof | H4: =SUM(J32,J35) -> 2.13696 | I4: =SUM(K32,K35) -> 0 | J4: High ceiling | L4: 0 | M4: =SUM(H$2:H$6)*L4 -> 0 | N4: =SUM(I$2:I$6)*L4 -> 0 | P4: One edge | Q4: Ground floor | R4: =IF($B$3="Ground floor","Suspended Floor",IF($B$3="Single Storey","Suspended Floor","n/a")) -> Suspended Floor | T4: 16 | U4: 0.1 | V4: 0.2 | W4: 0.025 | X4: 3
A5: Outside Design Temp (°C) | C5: ='Design Details'!B19 -> -3 | D5: Heat loss (W) | F5: =F4*F3*C6*F2 -> 39.66732 | G5: Glazing | H5: =SUM(J37:J43,J45:J48,J50:J53) -> 25.284 | I5: =SUM(K37:K43,K45:K48,K50:K53) -> 64.380288 | J5: Intermittent heating | L5: 0 | M5: =SUM(H$2:H$6)*L5 -> 0 | N5: =SUM(I$2:I$6)*L5 -> 0 | P5: Two adjacent | Q5: Mid-floor | T5: 18 | W5: 0.05 | X5: 4
A6: Temp Difference (°C) | C6: =C4-C5 -> 21 | D6: Estimated Energy usage (kWh) | F6: =F4*F3*C7*24/1000 -> 33.66811008 | G6: Int./Party Wall | H6: =SUM(J55:J58,J60) -> 0 | I6: =SUM(K60) -> 0 | M6: Total Room Heat Loss (W) | N6: =SUM(F5,H2:H6,M2:M5) -> 86.44144 | P6: Two opposite | Q6: Single storey | T6: 21 | W6: 0.075 | X6: 5
A7: Degree Days | C7: ='Design Details'!B20 -> 2228 | M7: Total Room Energy Usage (kWh) | N7: =SUM(F6,I2:I6,N2:N5) -> 152.6604211 | Q7: Upper floor | T7: 22 | W7: 0.1 | X7: 6
Q8: =IF($B$3="Ground floor",'Design Details'!B$45,IF($B$3="Mid-floor",'Design Details'!B$55,IF($B$3="Upper floor",'Design Details'!B$65,IF($B$3="Single Storey",'Design Details'!B$75,0)))) -> 0 | X8: 7
A9: Room Dimensions | X9: 8
A10: Length (m) | B10: 1.06 | C10: Width (m) | D10: 0.8 | E10: Height (m) | F10: 2.25 | G10: Volume (m³) | H10: =B10*D10*F10 -> 1.908 | X10: 9
A11: Length (m) | C11: Width (m) | E11: Height (m) | G11: Volume (m³) | H11: =B11*D11*F11 -> 0 | X11: 10
A12: Length (m) | C12: Width (m) | E12: Height (m) | G12: Volume (m³) | H12: =B12*D12*F12 -> 0
A13: Awkward Room Dimensions
A14: Length (m) | C14: Width (m) | E14: Height (m) | G14: Volume (m³) | H14: =((F14*D14)/2)*B14 -> 0 | I14: Pitched
A15: Length (m) | C15: Width (m) | E15: Height (m) | G15: Volume (m³) | H15: =B15*D15*F15/2 -> 0 | I15: Single Pitch
A16: Length (m) | C16: Height (m) | E16: Depth (m) | G16: Volume (m³) | H16: =D16*F16*B16/2 -> 0 | I16: Dormer 1
A17: Length (m) | C17: Height (m) | E17: Depth (m) | G17: Volume (m³) | H17: =D17*F17*B17/2 -> 0 | I17: Dormer 2
A18: Length (m) | C18: Height (m) | E18: Depth (m) | G18: Volume (m³) | H18: =D18*F18*B18/2 -> 0 | I18: Dormer 3
A19: Floor | I19: Temp Difference | J19: Heat Loss (W) | K19: Usage (kWh) | L19: Type of Ground Floor
A20: Length (m) | B20: =B10 -> 1.06 | C20: Width (m) | D20: =D10 -> 0.8 | E20: Area (m²) | F20: =B20*D20 -> 0.848 | G20: U Value (W/m²K) | H20: 0.19 | I20: =IF(B$3="Ground Floor",IF(L20="Solid Floor (in contact with ground)",C$4-S$3,C$4-C$5),IF(B$3="Single Storey",IF(L20="Solid Floor (in contact with ground)",C$4-S$3,C$4-C$5),0)) -> 8 | J20: =F20*H20*I20 -> 1.28896 | K20: =IF($B$3=$Q$5,0,IF($B$3=$Q$7,0,F20*H20*$C$7*24/1000)) -> 8.61540864 | L20: Solid Floor (in contact with ground)
A21: Length (m) | B21: =B11 -> 0 | C21: Width (m) | D21: =D11 -> 0 | E21: Area (m²) | F21: =B21*D21 -> 0 | G21: U Value (W/m²K) | H21: =H20 -> 0.19 | I21: =IF(B$3="Ground Floor",IF(L20="Solid Floor (in contact with ground)",C$4-S$3,C$4-C$5),IF(B$3="Single Storey",IF(L20="Solid Floor (in contact with ground)",C$4-S$3,C$4-C$5),0)) -> 8 | J21: =F21*H21*I21 -> 0 | K21: =IF($B$3=$Q$5,0,IF($B$3=$Q$7,0,F21*H21*$C$7*24/1000)) -> 0 | L21: Exposed floor (external)
A22: Length (m) | B22: 0 | C22: Width (m) | D22: 0 | E22: Area (m²) | F22: 0 | G22: U Value (W/m²K) | H22: =H20 -> 0.19 | I22: =IF(B$3="Ground Floor",IF(L20="Solid Floor (in contact with ground)",C$4-S$3,C$4-C$5),IF(B$3="Single Storey",IF(L20="Solid Floor (in contact with ground)",C$4-S$3,C$4-C$5),0)) -> 8 | J22: =F22*H22*I22 -> 0 | K22: =IF($B$3=$Q$5,0,IF($B$3=$Q$7,0,F22*H22*$C$7*24/1000)) -> 0
A23: External Wall | L23: =IF(L22="Two opposite","Between edges",IF(L22="One edge","Depth of room",IF(L22="3 edges (short single)","Short length",IF(L22="3 edges (long single)","Short length","")))) ->  | N23: =IF(L22="3 edges (short single)","Long length",IF(L22="3 edges (long single)","Long length","")) -> 
A24: Length (m) | B24: 1.06 | C24: Height (m) | D24: 2.25 | E24: Area (m²) | F24: 2.385
A25: Length (m) | C25: Height (m) | E25: Area (m²) | F25: 0
A26: Length (m) | C26: Height (m) | E26: Area (m²) | F26: 0
D27: Total | E27: Area (m²) | F27: =SUM(F24:F26)-SUM(F37:F43,F50:F53) -> 1.955 | G27: U Value (W/m²K) | H27: =IF($B$3="Ground floor",'Design Details'!B$48,IF($B$3="Mid-floor",'Design Details'!B$58,IF($B$3="Upper floor",'Design Details'!B$68,IF($B$3="Single Storey",'Design Details'!B$78,0)))) -> 0.44 | I27: =$C$6 -> 21 | J27: =F27*H27*I27 -> 18.0642 | K27: =F27*H27*$C$7*24/1000 -> 45.9966144
A28: Roof
A29: Length (m) | B29: =B10 -> 1.06 | C29: Width (m) | D29: =D10 -> 0.8 | E29: Area (m²) | F29: 0.848
A30: Length (m) | B30: =B11 -> 0 | C30: Width (m) | D30: =D11 -> 0 | E30: Area (m²) | F30: 0
A31: Length (m) | B31: 0 | C31: Width (m) | D31: 0 | E31: Area (m²) | F31: 0
D32: Total | E32: Area (m²) | F32: =SUM(F29:F31)-SUM(F45:F48) -> 0.848 | G32: U Value (W/m²K) | H32: 0.12 | I32: =$C$6 -> 21 | J32: 2.13696 | K32: =IF($B$3=$Q$4,0,IF($B$3=$Q$5,0,F32*H32*$C$7*24/1000)) -> 0
A33: Length (m) | C33: Pitch (m) | E33: Area (m²) | F33: 0 | G33: Pitched
A34: Length (m) | C34: Pitch (m) | E34: Area (m²) | F34: 0 | G34: Single Pitch
D35: Total | E35: Area (m²) | F35: =SUM(F33:F34)-SUM(F45:F48) -> 0 | G35: U Value (W/m²K) | H35: =IF($B$3="Ground floor",'Design Details'!B$50,IF($B$3="Mid-floor",'Design Details'!B$60,IF($B$3="Upper floor",'Design Details'!B$70,IF($B$3="Single Storey",'Design Details'!B$80,0)))) -> 0 | I35: 21 | J35: 0 | K35: =IF($B$3=$Q$4,0,IF($B$3=$Q$5,0,F35*H35*$C$7*24/1000)) -> 0
A36: Windows
A37: Width (m) | B37: 1 | C37: Height (m) | D37: 0.43 | E37: Area (m²) | F37: 0.43 | G37: U Value (W/m²K) | H37: =IF($B$3="Ground floor",'Design Details'!B$46,IF($B$3="Mid-floor",'Design Details'!B$56,IF($B$3="Upper floor",'Design Details'!B$66,IF($B$3="Single Storey",'Design Details'!B$76,0)))) -> 2.8 | I37: 21 | J37: 25.284 | K37: =F37*H37*$C$7*24/1000 -> 64.380288
A38: Width (m) | C38: Height (m) | E38: Area (m²) | F38: 0 | G38: U Value (W/m²K) | H38: =IF($B$3="Ground floor",'Design Details'!B$46,IF($B$3="Mid-floor",'Design Details'!B$56,IF($B$3="Upper floor",'Design Details'!B$66,IF($B$3="Single Storey",'Design Details'!B$76,0)))) -> 2.8 | I38: 21 | J38: 0 | K38: 0
A39: Width (m) | C39: Height (m) | E39: Area (m²) | F39: 0 | G39: U Value (W/m²K) | H39: =IF($B$3="Ground floor",'Design Details'!B$46,IF($B$3="Mid-floor",'Design Details'!B$56,IF($B$3="Upper floor",'Design Details'!B$66,IF($B$3="Single Storey",'Design Details'!B$76,0)))) -> 2.8 | I39: 21 | J39: 0 | K39: 0
A40: Width (m) | C40: Height (m) | E40: Area (m²) | F40: 0 | G40: U Value (W/m²K) | H40: =IF($B$3="Ground floor",'Design Details'!B$46,IF($B$3="Mid-floor",'Design Details'!B$56,IF($B$3="Upper floor",'Design Details'!B$66,IF($B$3="Single Storey",'Design Details'!B$76,0)))) -> 2.8 | I40: 21 | J40: 0 | K40: 0
A41: Width (m) | C41: Height (m) | E41: Area (m²) | F41: 0 | G41: U Value (W/m²K) | H41: =IF($B$3="Ground floor",'Design Details'!B$46,IF($B$3="Mid-floor",'Design Details'!B$56,IF($B$3="Upper floor",'Design Details'!B$66,IF($B$3="Single Storey",'Design Details'!B$76,0)))) -> 2.8 | I41: 21 | J41: 0 | K41: 0
A42: Width (m) | C42: Height (m) | E42: Area (m²) | F42: 0 | G42: U Value (W/m²K) | H42: =IF($B$3="Ground floor",'Design Details'!B$46,IF($B$3="Mid-floor",'Design Details'!B$56,IF($B$3="Upper floor",'Design Details'!B$66,IF($B$3="Single Storey",'Design Details'!B$76,0)))) -> 2.8 | I42: 21 | J42: 0 | K42: 0
A43: Width (m) | C43: Height (m) | E43: Area (m²) | F43: 0 | G43: U Value (W/m²K) | H43: =IF($B$3="Ground floor",'Design Details'!B$46,IF($B$3="Mid-floor",'Design Details'!B$56,IF($B$3="Upper floor",'Design Details'!B$66,IF($B$3="Single Storey",'Design Details'!B$76,0)))) -> 2.8 | I43: 21 | J43: 0 | K43: 0
A44: Roof Glazing
A45: Width (m) | C45: Height (m) | E45: Area (m²) | F45: 0 | G45: U Value (W/m²K) | H45: =IF($B$3="Ground floor",'Design Details'!B$53,IF($B$3="Mid-floor",'Design Details'!B$63,IF($B$3="Upper floor",'Design Details'!B$73,IF($B$3="Single Storey",'Design Details'!B$83,0)))) -> 2.8 | I45: 21 | J45: 0 | K45: =F45*H45*$C$7*24/1000 -> 0
A46: Width (m) | C46: Height (m) | E46: Area (m²) | F46: 0 | G46: U Value (W/m²K) | H46: =IF($B$3="Ground floor",'Design Details'!B$53,IF($B$3="Mid-floor",'Design Details'!B$63,IF($B$3="Upper floor",'Design Details'!B$73,IF($B$3="Single Storey",'Design Details'!B$83,0)))) -> 2.8 | I46: 21 | J46: 0 | K46: =F46*H46*$C$7*24/1000 -> 0
A47: Width (m) | C47: Height (m) | E47: Area (m²) | F47: 0 | G47: U Value (W/m²K) | H47: =IF($B$3="Ground floor",'Design Details'!B$53,IF($B$3="Mid-floor",'Design Details'!B$63,IF($B$3="Upper floor",'Design Details'!B$73,IF($B$3="Single Storey",'Design Details'!B$83,0)))) -> 2.8 | I47: 21 | J47: 0 | K47: =F47*H47*$C$7*24/1000 -> 0
A48: Width (m) | C48: Height (m) | E48: Area (m²) | F48: 0 | G48: U Value (W/m²K) | H48: =IF($B$3="Ground floor",'Design Details'!B$53,IF($B$3="Mid-floor",'Design Details'!B$63,IF($B$3="Upper floor",'Design Details'!B$73,IF($B$3="Single Storey",'Design Details'!B$83,0)))) -> 2.8 | I48: 21 | J48: 0 | K48: =F48*H48*$C$7*24/1000 -> 0
A49: Doors
A50: Width (m) | C50: Height (m) | E50: Area (m²) | F50: 0 | G50: U Value (W/m²K) | H50: =IF($B$3="Ground floor",'Design Details'!B$47,IF($B$3="Mid-floor",'Design Details'!B$57,IF($B$3="Upper floor",'Design Details'!B$67,IF($B$3="Single Storey",'Design Details'!B$77,0)))) -> 2.8 | I50: 21 | J50: 0 | K50: =F50*H50*$C$7*24/1000 -> 0
A51: Width (m) | C51: Height (m) | E51: Area (m²) | F51: 0 | G51: U Value (W/m²K) | H51: =IF($B$3="Ground floor",'Design Details'!B$47,IF($B$3="Mid-floor",'Design Details'!B$57,IF($B$3="Upper floor",'Design Details'!B$67,IF($B$3="Single Storey",'Design Details'!B$77,0)))) -> 2.8 | I51: 21 | J51: 0 | K51: =F51*H51*$C$7*24/1000 -> 0
A52: Width (m) | C52: Height (m) | E52: Area (m²) | F52: 0 | G52: U Value (W/m²K) | H52: =IF($B$3="Ground floor",'Design Details'!B$47,IF($B$3="Mid-floor",'Design Details'!B$57,IF($B$3="Upper floor",'Design Details'!B$67,IF($B$3="Single Storey",'Design Details'!B$77,0)))) -> 2.8 | I52: 21 | J52: 0 | K52: =F52*H52*$C$7*24/1000 -> 0
A53: Width (m) | C53: Height (m) | E53: Area (m²) | F53: 0 | G53: U Value (W/m²K) | H53: =IF($B$3="Ground floor",'Design Details'!B$47,IF($B$3="Mid-floor",'Design Details'!B$57,IF($B$3="Upper floor",'Design Details'!B$67,IF($B$3="Single Storey",'Design Details'!B$77,0)))) -> 2.8 | I53: 21 | J53: 0 | K53: =F53*H53*$C$7*24/1000 -> 0
A54: Internal Walls | L54: Adjoining Room Temp (°C)
A55: Length (m) | C55: Height (m) | E55: Area (m²) | F55: 0 | G55: U Value (W/m²K) | H55: =IF($B$3="Ground floor",'Design Details'!B$51,IF($B$3="Mid-floor",'Design Details'!B$61,IF($B$3="Upper floor",'Design Details'!B$71,IF($B$3="Single Storey",'Design Details'!B$81,0)))) -> 1.4 | I55: =IF(L55="",0,IF(L55="unheated",C$4-10,C$4-L55)) -> 0 | J55: 0
A56: Length (m) | C56: Height (m) | E56: Area (m²) | F56: 0 | G56: U Value (W/m²K) | H56: =IF($B$3="Ground floor",'Design Details'!B$51,IF($B$3="Mid-floor",'Design Details'!B$61,IF($B$3="Upper floor",'Design Details'!B$71,IF($B$3="Single Storey",'Design Details'!B$81,0)))) -> 1.4 | I56: =IF(L56="",0,IF(L56="unheated",C$4-10,C$4-L56)) -> 0 | J56: 0
A57: Length (m) | C57: Height (m) | E57: Area (m²) | F57: 0 | G57: U Value (W/m²K) | H57: =IF($B$3="Ground floor",'Design Details'!B$51,IF($B$3="Mid-floor",'Design Details'!B$61,IF($B$3="Upper floor",'Design Details'!B$71,IF($B$3="Single Storey",'Design Details'!B$81,0)))) -> 1.4 | I57: =IF(L57="",0,IF(L57="unheated",C$4-10,C$4-L57)) -> 0 | J57: 0
A58: Length (m) | C58: Height (m) | E58: Area (m²) | F58: 0 | G58: U Value (W/m²K) | H58: =IF($B$3="Ground floor",'Design Details'!B$51,IF($B$3="Mid-floor",'Design Details'!B$61,IF($B$3="Upper floor",'Design Details'!B$71,IF($B$3="Single Storey",'Design Details'!B$81,0)))) -> 1.4 | I58: =IF(L58="",0,IF(L58="unheated",C$4-10,C$4-L58)) -> 0 | J58: 0
A59: Party Wall
A60: Length (m) | C60: Height (m) | E60: Area (m²) | F60: 0 | G60: U Value (W/m²K) | H60: =IF($B$3="Ground floor",'Design Details'!B$52,IF($B$3="Mid-floor",'Design Details'!B$62,IF($B$3="Upper floor",'Design Details'!B$72,IF($B$3="Single Storey",'Design Details'!B$82,0)))) -> 1 | I60: =C4-10 -> 8 | J60: 0 | K60: =F60*H60*$C$7*24/1000 -> 0

Sheet 8
A1: Room Information | D1: Ventilation Heat Loss | G1: Fabric | H1: Heat Loss (W) | I1: Usage (kWh) | J1: Additional heat loss | L1: Addition | M1: Watts | N1: kWh
A2: Room | B2: Kitchen | D2: Air Changes a hour | F2: ='Design Details'!F94 -> 2 | G2: Floor | H2: =SUM(J20:J22) -> 140.608 | I2: =SUM(K20:K22) -> 939.823872 | J2: Thermal Bridging (New Build >2006) | L2: 0 | M2: =SUM(H$2:H$6)*L2 -> 0 | N2: =SUM(I$2:I$6)*L2 -> 0 | P2: 3 edges (long single) | Q2: Level | X2: 1
A3: Level | B3: Ground floor | D3: Air Change Factor (W/m³K) | F3: 0.33 | G3: Ext Wall | H3: =J27 -> 167.157144 | I3: =K27 -> 425.6298478 | J3: Exposed location | L3: 0 | M3: =SUM(H$2:H$6)*L3 -> 0 | N3: =SUM(I$2:I$6)*L3 -> 0 | P3: 3 edges (short single) | Q3: Please Select Floor | R3: =IF($B$3="Ground floor","Solid Floor (in contact with ground)",IF($B$3="Single Storey","Solid Floor (in contact with ground)","n/a")) -> Solid Floor (in contact with ground) | S3: ='Design Details'!B21 -> 10 | T3: unheated | U3: 0 | V3: 0 | W3: 0 | X3: 2
A4: Design Room Temp (°C) | C4: ='Design Details'!D94 -> 18 | D4: Total Volume (m³) | F4: =SUM(H10:H12,H14:H18) -> 59.2176 | G4: Roof | H4: =SUM(J32,J35) -> 12.381264 | I4: =SUM(K32,K35) -> 0 | J4: High ceiling | L4: 0 | M4: =SUM(H$2:H$6)*L4 -> 0 | N4: =SUM(I$2:I$6)*L4 -> 0 | P4: One edge | Q4: Ground floor | R4: =IF($B$3="Ground floor","Suspended Floor",IF($B$3="Single Storey","Suspended Floor","n/a")) -> Suspended Floor | T4: 16 | U4: 0.1 | V4: 0.2 | W4: 0.025 | X4: 3
A5: Outside Design Temp (°C) | C5: ='Design Details'!B19 -> -3 | D5: Heat loss (W) | F5: =F4*F3*C6*F2 -> 820.755936 | G5: Glazing | H5: =SUM(J37:J43,J45:J48,J50:J53) -> 258.00768 | I5: =SUM(K37:K43,K45:K48,K50:K53) -> 656.9612698 | J5: Intermittent heating | L5: 0 | M5: =SUM(H$2:H$6)*L5 -> 0 | N5: =SUM(I$2:I$6)*L5 -> 0 | P5: Two adjacent | Q5: Mid-floor | T5: 18 | W5: 0.05 | X5: 4
A6: Temp Difference (°C) | C6: =C4-C5 -> 21 | D6: Estimated Energy usage (kWh) | F6: =F4*F3*C7*24/1000 -> 1044.939557 | G6: Int./Party Wall | H6: =SUM(J55:J58,J60) -> -62.17848 | I6: =SUM(K60) -> 0 | M6: Total Room Heat Loss (W) | N6: =SUM(F5,H2:H6,M2:M5) -> 1336.731544 | P6: Two opposite | Q6: Single storey | T6: 21 | W6: 0.075 | X6: 5
A7: Degree Days | C7: ='Design Details'!B20 -> 2228 | M7: Total Room Energy Usage (kWh) | N7: =SUM(F6,I2:I6,N2:N5) -> 3067.354547 | Q7: Upper floor | T7: 22 | W7: 0.1 | X7: 6
Q8: =IF($B$3="Ground floor",'Design Details'!B$45,IF($B$3="Mid-floor",'Design Details'!B$55,IF($B$3="Upper floor",'Design Details'!B$65,IF($B$3="Single Storey",'Design Details'!B$75,0)))) -> 0 | X8: 7
A9: Room Dimensions | X9: 8
A10: Length (m) | B10: 6.76 | C10: Width (m) | D10: 4 | E10: Height (m) | F10: 2.19 | G10: Volume (m³) | H10: =B10*D10*F10 -> 59.2176 | X10: 9
A11: Length (m) | C11: Width (m) | E11: Height (m) | G11: Volume (m³) | H11: =B11*D11*F11 -> 0 | X11: 10
A12: Length (m) | C12: Width (m) | E12: Height (m) | G12: Volume (m³) | H12: =B12*D12*F12 -> 0
A13: Awkward Room Dimensions
A14: Length (m) | C14: Width (m) | E14: Height (m) | G14: Volume (m³) | H14: =((F14*D14)/2)*B14 -> 0 | I14: Pitched
A15: Length (m) | C15: Width (m) | E15: Height (m) | G15: Volume (m³) | H15: =B15*D15*F15/2 -> 0 | I15: Single Pitch
A16: Length (m) | C16: Height (m) | E16: Depth (m) | G16: Volume (m³) | H16: =D16*F16*B16/2 -> 0 | I16: Dormer 1
A17: Length (m) | C17: Height (m) | E17: Depth (m) | G17: Volume (m³) | H17: =D17*F17*B17/2 -> 0 | I17: Dormer 2
A18: Length (m) | C18: Height (m) | E18: Depth (m) | G18: Volume (m³) | H18: =D18*F18*B18/2 -> 0 | I18: Dormer 3
A19: Floor | I19: Temp Difference | J19: Heat Loss (W) | K19: Usage (kWh) | L19: Type of Ground Floor
A20: Length (m) | B20: =B10 -> 6.76 | C20: Width (m) | D20: =D10 -> 4 | E20: Area (m²) | F20: =B20*D20 -> 27.04 | G20: U Value (W/m²K) | H20: =IF(L22="",Q8,'floor u values'!K9) -> 0.65 | I20: =IF(B$3="Ground Floor",IF(L20="Solid Floor (in contact with ground)",C$4-S$3,C$4-C$5),IF(B$3="Single Storey",IF(L20="Solid Floor (in contact with ground)",C$4-S$3,C$4-C$5),0)) -> 8 | J20: =F20*H20*I20 -> 140.608 | K20: =IF($B$3=$Q$5,0,IF($B$3=$Q$7,0,F20*H20*$C$7*24/1000)) -> 939.823872 | L20: Solid Floor (in contact with ground)
A21: Length (m) | B21: =B11 -> 0 | C21: Width (m) | D21: =D11 -> 0 | E21: Area (m²) | F21: =B21*D21 -> 0 | G21: U Value (W/m²K) | H21: =H20 -> 0.65 | I21: =IF(B$3="Ground Floor",IF(L20="Solid Floor (in contact with ground)",C$4-S$3,C$4-C$5),IF(B$3="Single Storey",IF(L20="Solid Floor (in contact with ground)",C$4-S$3,C$4-C$5),0)) -> 8 | J21: =F21*H21*I21 -> 0 | K21: =IF($B$3=$Q$5,0,IF($B$3=$Q$7,0,F21*H21*$C$7*24/1000)) -> 0 | L21: Exposed floor (external)
A22: Length (m) | B22: 0 | C22: Width (m) | D22: 0 | E22: Area (m²) | F22: 0 | G22: U Value (W/m²K) | H22: =H20 -> 0.65 | I22: =IF(B$3="Ground Floor",IF(L20="Solid Floor (in contact with ground)",C$4-S$3,C$4-C$5),IF(B$3="Single Storey",IF(L20="Solid Floor (in contact with ground)",C$4-S$3,C$4-C$5),0)) -> 8 | J22: =F22*H22*I22 -> 0 | K22: =IF($B$3=$Q$5,0,IF($B$3=$Q$7,0,F22*H22*$C$7*24/1000)) -> 0 | L22: Two adjacent
A23: External Wall | L23: =IF(L22="Two opposite","Between edges",IF(L22="One edge","Depth of room",IF(L22="3 edges (short single)","Short length",IF(L22="3 edges (long single)","Short length","")))) ->  | N23: =IF(L22="3 edges (short single)","Long length",IF(L22="3 edges (long single)","Long length","")) -> 
A24: Length (m) | B24: 10.76 | C24: Height (m) | D24: 2.19 | E24: Area (m²) | F24: 23.5644
A25: Length (m) | C25: Height (m) | E25: Area (m²) | F25: 0
A26: Length (m) | C26: Height (m) | E26: Area (m²) | F26: 0
D27: Total | E27: Area (m²) | F27: =SUM(F24:F26)-SUM(F37:F43,F50:F53) -> 18.0906 | G27: U Value (W/m²K) | H27: =IF($B$3="Ground floor",'Design Details'!B$48,IF($B$3="Mid-floor",'Design Details'!B$58,IF($B$3="Upper floor",'Design Details'!B$68,IF($B$3="Single Storey",'Design Details'!B$78,0)))) -> 0.44 | I27: =$C$6 -> 21 | J27: =F27*H27*I27 -> 167.157144 | K27: =F27*H27*$C$7*24/1000 -> 425.6298478
A28: Roof
A29: Length (m) | B29: 1.42 | C29: Width (m) | D29: 0.63 | E29: Area (m²) | F29: 0.8946
A30: Length (m) | C30: Width (m) | E30: Area (m²) | F30: 0
A31: Length (m) | C31: Width (m) | E31: Area (m²) | F31: 0
D32: Total | E32: Area (m²) | F32: =SUM(F29:F31)-SUM(F45:F48) -> 0.8946 | G32: U Value (W/m²K) | H32: =IF($B$3="Ground floor",'Design Details'!B$49,IF($B$3="Mid-floor",'Design Details'!B$59,IF($B$3="Upper floor",'Design Details'!B$69,IF($B$3="Single Storey",'Design Details'!B$79,0)))) -> 1.73 | I32: 8 | J32: 12.381264 | K32: =IF($B$3=$Q$4,0,IF($B$3=$Q$5,0,F32*H32*$C$7*24/1000)) -> 0
A33: Length (m) | C33: Pitch (m) | E33: Area (m²) | F33: 0 | G33: Pitched
A34: Length (m) | C34: Pitch (m) | E34: Area (m²) | F34: 0 | G34: Single Pitch
D35: Total | E35: Area (m²) | F35: =SUM(F33:F34)-SUM(F45:F48) -> 0 | G35: U Value (W/m²K) | H35: =IF($B$3="Ground floor",'Design Details'!B$50,IF($B$3="Mid-floor",'Design Details'!B$60,IF($B$3="Upper floor",'Design Details'!B$70,IF($B$3="Single Storey",'Design Details'!B$80,0)))) -> 0 | I35: 21 | J35: 0 | K35: =IF($B$3=$Q$4,0,IF($B$3=$Q$5,0,F35*H35*$C$7*24/1000)) -> 0
A36: Windows
A37: Width (m) | B37: 1 | C37: Height (m) | D37: 2.94 | E37: Area (m²) | F37: 2.94 | G37: U Value (W/m²K) | H37: =IF($B$3="Ground floor",'Design Details'!B$46,IF($B$3="Mid-floor",'Design Details'!B$56,IF($B$3="Upper floor",'Design Details'!B$66,IF($B$3="Single Storey",'Design Details'!B$76,0)))) -> 2.8 | I37: 21 | J37: 172.872 | K37: =F37*H37*$C$7*24/1000 -> 440.181504
A38: Width (m) | C38: Height (m) | E38: Area (m²) | F38: 0 | G38: U Value (W/m²K) | H38: =IF($B$3="Ground floor",'Design Details'!B$46,IF($B$3="Mid-floor",'Design Details'!B$56,IF($B$3="Upper floor",'Design Details'!B$66,IF($B$3="Single Storey",'Design Details'!B$76,0)))) -> 2.8 | I38: 21 | J38: 0 | K38: 0
A39: Width (m) | C39: Height (m) | E39: Area (m²) | F39: 0 | G39: U Value (W/m²K) | H39: =IF($B$3="Ground floor",'Design Details'!B$46,IF($B$3="Mid-floor",'Design Details'!B$56,IF($B$3="Upper floor",'Design Details'!B$66,IF($B$3="Single Storey",'Design Details'!B$76,0)))) -> 2.8 | I39: 21 | J39: 0 | K39: 0
A40: Width (m) | C40: Height (m) | E40: Area (m²) | F40: 0 | G40: U Value (W/m²K) | H40: =IF($B$3="Ground floor",'Design Details'!B$46,IF($B$3="Mid-floor",'Design Details'!B$56,IF($B$3="Upper floor",'Design Details'!B$66,IF($B$3="Single Storey",'Design Details'!B$76,0)))) -> 2.8 | I40: 21 | J40: 0 | K40: 0
A41: Width (m) | C41: Height (m) | E41: Area (m²) | F41: 0 | G41: U Value (W/m²K) | H41: =IF($B$3="Ground floor",'Design Details'!B$46,IF($B$3="Mid-floor",'Design Details'!B$56,IF($B$3="Upper floor",'Design Details'!B$66,IF($B$3="Single Storey",'Design Details'!B$76,0)))) -> 2.8 | I41: 21 | J41: 0 | K41: 0
A42: Width (m) | C42: Height (m) | E42: Area (m²) | F42: 0 | G42: U Value (W/m²K) | H42: =IF($B$3="Ground floor",'Design Details'!B$46,IF($B$3="Mid-floor",'Design Details'!B$56,IF($B$3="Upper floor",'Design Details'!B$66,IF($B$3="Single Storey",'Design Details'!B$76,0)))) -> 2.8 | I42: 21 | J42: 0 | K42: 0
A43: Width (m) | C43: Height (m) | E43: Area (m²) | F43: 0 | G43: U Value (W/m²K) | H43: =IF($B$3="Ground floor",'Design Details'!B$46,IF($B$3="Mid-floor",'Design Details'!B$56,IF($B$3="Upper floor",'Design Details'!B$66,IF($B$3="Single Storey",'Design Details'!B$76,0)))) -> 2.8 | I43: 21 | J43: 0 | K43: 0
A44: Roof Glazing
A45: Width (m) | C45: Height (m) | E45: Area (m²) | F45: 0 | G45: U Value (W/m²K) | H45: =IF($B$3="Ground floor",'Design Details'!B$53,IF($B$3="Mid-floor",'Design Details'!B$63,IF($B$3="Upper floor",'Design Details'!B$73,IF($B$3="Single Storey",'Design Details'!B$83,0)))) -> 2.8 | I45: 21 | J45: 0 | K45: =F45*H45*$C$7*24/1000 -> 0
A46: Width (m) | C46: Height (m) | E46: Area (m²) | F46: 0 | G46: U Value (W/m²K) | H46: =IF($B$3="Ground floor",'Design Details'!B$53,IF($B$3="Mid-floor",'Design Details'!B$63,IF($B$3="Upper floor",'Design Details'!B$73,IF($B$3="Single Storey",'Design Details'!B$83,0)))) -> 2.8 | I46: 21 | J46: 0 | K46: =F46*H46*$C$7*24/1000 -> 0
A47: Width (m) | C47: Height (m) | E47: Area (m²) | F47: 0 | G47: U Value (W/m²K) | H47: =IF($B$3="Ground floor",'Design Details'!B$53,IF($B$3="Mid-floor",'Design Details'!B$63,IF($B$3="Upper floor",'Design Details'!B$73,IF($B$3="Single Storey",'Design Details'!B$83,0)))) -> 2.8 | I47: 21 | J47: 0 | K47: =F47*H47*$C$7*24/1000 -> 0
A48: Width (m) | C48: Height (m) | E48: Area (m²) | F48: 0 | G48: U Value (W/m²K) | H48: =IF($B$3="Ground floor",'Design Details'!B$53,IF($B$3="Mid-floor",'Design Details'!B$63,IF($B$3="Upper floor",'Design Details'!B$73,IF($B$3="Single Storey",'Design Details'!B$83,0)))) -> 2.8 | I48: 21 | J48: 0 | K48: =F48*H48*$C$7*24/1000 -> 0
A49: Doors
A50: Width (m) | B50: 2.06 | C50: Height (m) | D50: 1.23 | E50: Area (m²) | F50: 2.5338 | G50: U Value (W/m²K) | H50: 1.6 | I50: 21 | J50: 85.13568 | K50: =F50*H50*$C$7*24/1000 -> 216.7797658
A51: Width (m) | C51: Height (m) | E51: Area (m²) | F51: 0 | G51: U Value (W/m²K) | H51: =IF($B$3="Ground floor",'Design Details'!B$47,IF($B$3="Mid-floor",'Design Details'!B$57,IF($B$3="Upper floor",'Design Details'!B$67,IF($B$3="Single Storey",'Design Details'!B$77,0)))) -> 2.8 | I51: 21 | J51: 0 | K51: =F51*H51*$C$7*24/1000 -> 0
A52: Width (m) | C52: Height (m) | E52: Area (m²) | F52: 0 | G52: U Value (W/m²K) | H52: =IF($B$3="Ground floor",'Design Details'!B$47,IF($B$3="Mid-floor",'Design Details'!B$57,IF($B$3="Upper floor",'Design Details'!B$67,IF($B$3="Single Storey",'Design Details'!B$77,0)))) -> 2.8 | I52: 21 | J52: 0 | K52: =F52*H52*$C$7*24/1000 -> 0
A53: Width (m) | C53: Height (m) | E53: Area (m²) | F53: 0 | G53: U Value (W/m²K) | H53: =IF($B$3="Ground floor",'Design Details'!B$47,IF($B$3="Mid-floor",'Design Details'!B$57,IF($B$3="Upper floor",'Design Details'!B$67,IF($B$3="Single Storey",'Design Details'!B$77,0)))) -> 2.8 | I53: 21 | J53: 0 | K53: =F53*H53*$C$7*24/1000 -> 0
A54: Internal Walls | L54: Adjoining Room Temp (°C)
A55: Length (m) | B55: 6.76 | C55: Height (m) | D55: 2.19 | E55: Area (m²) | F55: 14.8044 | G55: U Value (W/m²K) | H55: =IF($B$3="Ground floor",'Design Details'!B$51,IF($B$3="Mid-floor",'Design Details'!B$61,IF($B$3="Upper floor",'Design Details'!B$71,IF($B$3="Single Storey",'Design Details'!B$81,0)))) -> 1.4 | I55: -3 | J55: -62.17848
A56: Length (m) | C56: Height (m) | E56: Area (m²) | F56: 0 | G56: U Value (W/m²K) | H56: =IF($B$3="Ground floor",'Design Details'!B$51,IF($B$3="Mid-floor",'Design Details'!B$61,IF($B$3="Upper floor",'Design Details'!B$71,IF($B$3="Single Storey",'Design Details'!B$81,0)))) -> 1.4 | I56: =IF(L56="",0,IF(L56="unheated",C$4-10,C$4-L56)) -> 0 | J56: 0
A57: Length (m) | C57: Height (m) | E57: Area (m²) | F57: 0 | G57: U Value (W/m²K) | H57: =IF($B$3="Ground floor",'Design Details'!B$51,IF($B$3="Mid-floor",'Design Details'!B$61,IF($B$3="Upper floor",'Design Details'!B$71,IF($B$3="Single Storey",'Design Details'!B$81,0)))) -> 1.4 | I57: =IF(L57="",0,IF(L57="unheated",C$4-10,C$4-L57)) -> 0 | J57: 0
A58: Length (m) | C58: Height (m) | E58: Area (m²) | F58: 0 | G58: U Value (W/m²K) | H58: =IF($B$3="Ground floor",'Design Details'!B$51,IF($B$3="Mid-floor",'Design Details'!B$61,IF($B$3="Upper floor",'Design Details'!B$71,IF($B$3="Single Storey",'Design Details'!B$81,0)))) -> 1.4 | I58: =IF(L58="",0,IF(L58="unheated",C$4-10,C$4-L58)) -> 0 | J58: 0
A59: Party Wall
A60: Length (m) | C60: Height (m) | E60: Area (m²) | F60: 0 | G60: U Value (W/m²K) | H60: =IF($B$3="Ground floor",'Design Details'!B$52,IF($B$3="Mid-floor",'Design Details'!B$62,IF($B$3="Upper floor",'Design Details'!B$72,IF($B$3="Single Storey",'Design Details'!B$82,0)))) -> 1 | I60: =C4-10 -> 8 | J60: 0 | K60: =F60*H60*$C$7*24/1000 -> 0

Sheet 9
A1: Room Information | D1: Ventilation Heat Loss | G1: Fabric | H1: Heat Loss (W) | I1: Usage (kWh) | J1: Additional heat loss | L1: Addition | M1: Watts | N1: kWh
A2: Room | B2: Bedroom | C2: 1 | D2: Air Changes a hour | F2: ='Design Details'!F95 -> 1.0 | G2: Floor | H2: =SUM(J20:J22) -> 0 | I2: =SUM(K20:K22) -> 0 | J2: Thermal Bridging (New Build >2006) | L2: 0 | M2: =SUM(H$2:H$6)*L2 -> 0 | N2: =SUM(I$2:I$6)*L2 -> 0 | P2: 3 edges (long single) | Q2: Level | X2: 1
A3: Level | B3: Upper floor | D3: Air Change Factor (W/m³K) | F3: 0.33 | G3: Ext Wall | H3: =J27 -> 131.9472 | I3: =K27 -> 335.9752704 | J3: Exposed location | L3: 0 | M3: =SUM(H$2:H$6)*L3 -> 0 | N3: =SUM(I$2:I$6)*L3 -> 0 | P3: 3 edges (short single) | Q3: Please Select Floor | R3: =IF($B$3="Ground floor","Solid Floor (in contact with ground)",IF($B$3="Single Storey","Solid Floor (in contact with ground)","n/a")) -> n/a | S3: ='Design Details'!B21 -> 10 | T3: unheated | U3: 0 | V3: 0 | W3: 0 | X3: 2
A4: Design Room Temp (°C) | C4: ='Design Details'!D95 -> 18 | D4: Total Volume (m³) | F4: =SUM(H10:H12,H14:H18) -> 28.32 | G4: Roof | H4: =SUM(J32,J35) -> 29.736 | I4: =SUM(K32,K35) -> 75.716352 | J4: High ceiling | L4: 0 | M4: =SUM(H$2:H$6)*L4 -> 0 | N4: =SUM(I$2:I$6)*L4 -> 0 | P4: One edge | Q4: Ground floor | R4: =IF($B$3="Ground floor","Suspended Floor",IF($B$3="Single Storey","Suspended Floor","n/a")) -> n/a | T4: 16 | U4: 0.1 | V4: 0.2 | W4: 0.025 | X4: 3
A5: Outside Design Temp (°C) | C5: ='Design Details'!B19 -> -3 | D5: Heat loss (W) | F5: =F4*F3*C6*F2 -> 196.2576 | G5: Glazing | H5: =SUM(J37:J43,J45:J48,J50:J53) -> 141.12 | I5: =SUM(K37:K43,K45:K48,K50:K53) -> 359.33184 | J5: Intermittent heating | L5: 0 | M5: =SUM(H$2:H$6)*L5 -> 0 | N5: =SUM(I$2:I$6)*L5 -> 0 | P5: Two adjacent | Q5: Mid-floor | T5: 18 | W5: 0.05 | X5: 4
A6: Temp Difference (°C) | C6: =C4-C5 -> 21 | D6: Estimated Energy usage (kWh) | F6: =F4*F3*C7*24/1000 -> 499.7279232 | G6: Int./Party Wall | H6: =SUM(J55:J58,J60) -> 46.89408 | I6: =SUM(K60) -> 0 | M6: Total Room Heat Loss (W) | N6: =SUM(F5,H2:H6,M2:M5) -> 545.95488 | P6: Two opposite | Q6: Single storey | T6: 21 | W6: 0.075 | X6: 5
A7: Degree Days | C7: ='Design Details'!B20 -> 2228 | M7: Total Room Energy Usage (kWh) | N7: =SUM(F6,I2:I6,N2:N5) -> 1270.751386 | Q7: Upper floor | T7: 22 | W7: 0.1 | X7: 6
Q8: =IF($B$3="Ground floor",'Design Details'!B$45,IF($B$3="Mid-floor",'Design Details'!B$55,IF($B$3="Upper floor",'Design Details'!B$65,IF($B$3="Single Storey",'Design Details'!B$75,0)))) -> 0 | X8: 7
A9: Room Dimensions | X9: 8
A10: Length (m) | B10: 2.95 | C10: Width (m) | D10: 4 | E10: Height (m) | F10: 2.4 | G10: Volume (m³) | H10: =B10*D10*F10 -> 28.32 | X10: 9
A11: Length (m) | C11: Width (m) | E11: Height (m) | G11: Volume (m³) | H11: =B11*D11*F11 -> 0 | X11: 10
A12: Length (m) | C12: Width (m) | E12: Height (m) | G12: Volume (m³) | H12: =B12*D12*F12 -> 0
A13: Awkward Room Dimensions
A14: Length (m) | C14: Width (m) | E14: Height (m) | G14: Volume (m³) | H14: =((F14*D14)/2)*B14 -> 0 | I14: Pitched
A15: Length (m) | C15: Width (m) | E15: Height (m) | G15: Volume (m³) | H15: =B15*D15*F15/2 -> 0 | I15: Single Pitch
A16: Length (m) | C16: Height (m) | E16: Depth (m) | G16: Volume (m³) | H16: =D16*F16*B16/2 -> 0 | I16: Dormer 1
A17: Length (m) | C17: Height (m) | E17: Depth (m) | G17: Volume (m³) | H17: =D17*F17*B17/2 -> 0 | I17: Dormer 2
A18: Length (m) | C18: Height (m) | E18: Depth (m) | G18: Volume (m³) | H18: =D18*F18*B18/2 -> 0 | I18: Dormer 3
A19: Floor | I19: Temp Difference | J19: Heat Loss (W) | K19: Usage (kWh) | L19: Type of Ground Floor
A20: Length (m) | B20: =B10 -> 2.95 | C20: Width (m) | D20: =D10 -> 4 | E20: Area (m²) | F20: =B20*D20 -> 11.8 | G20: U Value (W/m²K) | H20: =IF(L22="",Q8,'floor u values'!K10) -> 0 | I20: =IF(B$3="Ground Floor",IF(L20="Solid Floor (in contact with ground)",C$4-S$3,C$4-C$5),IF(B$3="Single Storey",IF(L20="Solid Floor (in contact with ground)",C$4-S$3,C$4-C$5),0)) -> 0 | J20: =F20*H20*I20 -> 0 | K20: =IF($B$3=$Q$5,0,IF($B$3=$Q$7,0,F20*H20*$C$7*24/1000)) -> 0
A21: Length (m) | B21: =B11 -> 0 | C21: Width (m) | D21: =D11 -> 0 | E21: Area (m²) | F21: =B21*D21 -> 0 | G21: U Value (W/m²K) | H21: =H20 -> 0 | I21: =IF(B$3="Ground Floor",IF(L20="Solid Floor (in contact with ground)",C$4-S$3,C$4-C$5),IF(B$3="Single Storey",IF(L20="Solid Floor (in contact with ground)",C$4-S$3,C$4-C$5),0)) -> 0 | J21: =F21*H21*I21 -> 0 | K21: =IF($B$3=$Q$5,0,IF($B$3=$Q$7,0,F21*H21*$C$7*24/1000)) -> 0 | L21: Exposed floor (external)
A22: Length (m) | B22: 0 | C22: Width (m) | D22: 0 | E22: Area (m²) | F22: 0 | G22: U Value (W/m²K) | H22: =H20 -> 0 | I22: =IF(B$3="Ground Floor",IF(L20="Solid Floor (in contact with ground)",C$4-S$3,C$4-C$5),IF(B$3="Single Storey",IF(L20="Solid Floor (in contact with ground)",C$4-S$3,C$4-C$5),0)) -> 0 | J22: =F22*H22*I22 -> 0 | K22: =IF($B$3=$Q$5,0,IF($B$3=$Q$7,0,F22*H22*$C$7*24/1000)) -> 0
A23: External Wall | L23: =IF(L22="Two opposite","Between edges",IF(L22="One edge","Depth of room",IF(L22="3 edges (short single)","Short length",IF(L22="3 edges (long single)","Short length","")))) ->  | N23: =IF(L22="3 edges (short single)","Long length",IF(L22="3 edges (long single)","Long length","")) -> 
A24: Length (m) | B24: 6.95 | C24: Height (m) | D24: 2.4 | E24: Area (m²) | F24: 16.68
A25: Length (m) | C25: Height (m) | E25: Area (m²) | F25: 0
A26: Length (m) | C26: Height (m) | E26: Area (m²) | F26: 0
D27: Total | E27: Area (m²) | F27: =SUM(F24:F26)-SUM(F37:F43,F50:F53) -> 14.28 | G27: U Value (W/m²K) | H27: =IF($B$3="Ground floor",'Design Details'!B$48,IF($B$3="Mid-floor",'Design Details'!B$58,IF($B$3="Upper floor",'Design Details'!B$68,IF($B$3="Single Storey",'Design Details'!B$78,0)))) -> 0.44 | I27: =$C$6 -> 21 | J27: =F27*H27*I27 -> 131.9472 | K27: =F27*H27*$C$7*24/1000 -> 335.9752704
A28: Roof
A29: Length (m) | B29: =B10 -> 2.95 | C29: Width (m) | D29: =D10 -> 4 | E29: Area (m²) | F29: 11.8
A30: Length (m) | B30: =B11 -> 0 | C30: Width (m) | D30: =D11 -> 0 | E30: Area (m²) | F30: 0
A31: Length (m) | B31: 0 | C31: Width (m) | D31: 0 | E31: Area (m²) | F31: 0
D32: Total | E32: Area (m²) | F32: =SUM(F29:F31)-SUM(F45:F48) -> 11.8 | G32: U Value (W/m²K) | H32: =IF($B$3="Ground floor",'Design Details'!B$49,IF($B$3="Mid-floor",'Design Details'!B$59,IF($B$3="Upper floor",'Design Details'!B$69,IF($B$3="Single Storey",'Design Details'!B$79,0)))) -> 0.12 | I32: =$C$6 -> 21 | J32: 29.736 | K32: =IF($B$3=$Q$4,0,IF($B$3=$Q$5,0,F32*H32*$C$7*24/1000)) -> 75.716352
A33: Length (m) | C33: Pitch (m) | E33: Area (m²) | F33: 0 | G33: Pitched
A34: Length (m) | C34: Pitch (m) | E34: Area (m²) | F34: 0 | G34: Single Pitch
D35: Total | E35: Area (m²) | F35: =SUM(F33:F34)-SUM(F45:F48) -> 0 | G35: U Value (W/m²K) | H35: =IF($B$3="Ground floor",'Design Details'!B$50,IF($B$3="Mid-floor",'Design Details'!B$60,IF($B$3="Upper floor",'Design Details'!B$70,IF($B$3="Single Storey",'Design Details'!B$80,0)))) -> 0.12 | I35: 21 | J35: 0 | K35: =IF($B$3=$Q$4,0,IF($B$3=$Q$5,0,F35*H35*$C$7*24/1000)) -> 0
A36: Windows
A37: Width (m) | B37: 2 | C37: Height (m) | D37: 1.2 | E37: Area (m²) | F37: 2.4 | G37: U Value (W/m²K) | H37: =IF($B$3="Ground floor",'Design Details'!B$46,IF($B$3="Mid-floor",'Design Details'!B$56,IF($B$3="Upper floor",'Design Details'!B$66,IF($B$3="Single Storey",'Design Details'!B$76,0)))) -> 2.8 | I37: 21 | J37: 141.12 | K37: =F37*H37*$C$7*24/1000 -> 359.33184
A38: Width (m) | C38: Height (m) | E38: Area (m²) | F38: 0 | G38: U Value (W/m²K) | H38: =IF($B$3="Ground floor",'Design Details'!B$46,IF($B$3="Mid-floor",'Design Details'!B$56,IF($B$3="Upper floor",'Design Details'!B$66,IF($B$3="Single Storey",'Design Details'!B$76,0)))) -> 2.8 | I38: 21 | J38: 0 | K38: 0
A39: Width (m) | C39: Height (m) | E39: Area (m²) | F39: 0 | G39: U Value (W/m²K) | H39: =IF($B$3="Ground floor",'Design Details'!B$46,IF($B$3="Mid-floor",'Design Details'!B$56,IF($B$3="Upper floor",'Design Details'!B$66,IF($B$3="Single Storey",'Design Details'!B$76,0)))) -> 2.8 | I39: 21 | J39: 0 | K39: 0
A40: Width (m) | C40: Height (m) | E40: Area (m²) | F40: 0 | G40: U Value (W/m²K) | H40: =IF($B$3="Ground floor",'Design Details'!B$46,IF($B$3="Mid-floor",'Design Details'!B$56,IF($B$3="Upper floor",'Design Details'!B$66,IF($B$3="Single Storey",'Design Details'!B$76,0)))) -> 2.8 | I40: 21 | J40: 0 | K40: 0
A41: Width (m) | C41: Height (m) | E41: Area (m²) | F41: 0 | G41: U Value (W/m²K) | H41: =IF($B$3="Ground floor",'Design Details'!B$46,IF($B$3="Mid-floor",'Design Details'!B$56,IF($B$3="Upper floor",'Design Details'!B$66,IF($B$3="Single Storey",'Design Details'!B$76,0)))) -> 2.8 | I41: 21 | J41: 0 | K41: 0
A42: Width (m) | C42: Height (m) | E42: Area (m²) | F42: 0 | G42: U Value (W/m²K) | H42: =IF($B$3="Ground floor",'Design Details'!B$46,IF($B$3="Mid-floor",'Design Details'!B$56,IF($B$3="Upper floor",'Design Details'!B$66,IF($B$3="Single Storey",'Design Details'!B$76,0)))) -> 2.8 | I42: 21 | J42: 0 | K42: 0
A43: Width (m) | C43: Height (m) | E43: Area (m²) | F43: 0 | G43: U Value (W/m²K) | H43: =IF($B$3="Ground floor",'Design Details'!B$46,IF($B$3="Mid-floor",'Design Details'!B$56,IF($B$3="Upper floor",'Design Details'!B$66,IF($B$3="Single Storey",'Design Details'!B$76,0)))) -> 2.8 | I43: 21 | J43: 0 | K43: 0
A44: Roof Glazing
A45: Width (m) | C45: Height (m) | E45: Area (m²) | F45: 0 | G45: U Value (W/m²K) | H45: =IF($B$3="Ground floor",'Design Details'!B$53,IF($B$3="Mid-floor",'Design Details'!B$63,IF($B$3="Upper floor",'Design Details'!B$73,IF($B$3="Single Storey",'Design Details'!B$83,0)))) -> 2.8 | I45: 21 | J45: 0 | K45: =F45*H45*$C$7*24/1000 -> 0
A46: Width (m) | C46: Height (m) | E46: Area (m²) | F46: 0 | G46: U Value (W/m²K) | H46: =IF($B$3="Ground floor",'Design Details'!B$53,IF($B$3="Mid-floor",'Design Details'!B$63,IF($B$3="Upper floor",'Design Details'!B$73,IF($B$3="Single Storey",'Design Details'!B$83,0)))) -> 2.8 | I46: 21 | J46: 0 | K46: =F46*H46*$C$7*24/1000 -> 0
A47: Width (m) | C47: Height (m) | E47: Area (m²) | F47: 0 | G47: U Value (W/m²K) | H47: =IF($B$3="Ground floor",'Design Details'!B$53,IF($B$3="Mid-floor",'Design Details'!B$63,IF($B$3="Upper floor",'Design Details'!B$73,IF($B$3="Single Storey",'Design Details'!B$83,0)))) -> 2.8 | I47: 21 | J47: 0 | K47: =F47*H47*$C$7*24/1000 -> 0
A48: Width (m) | C48: Height (m) | E48: Area (m²) | F48: 0 | G48: U Value (W/m²K) | H48: =IF($B$3="Ground floor",'Design Details'!B$53,IF($B$3="Mid-floor",'Design Details'!B$63,IF($B$3="Upper floor",'Design Details'!B$73,IF($B$3="Single Storey",'Design Details'!B$83,0)))) -> 2.8 | I48: 21 | J48: 0 | K48: =F48*H48*$C$7*24/1000 -> 0
A49: Doors
A50: Width (m) | C50: Height (m) | E50: Area (m²) | F50: 0 | G50: U Value (W/m²K) | H50: =IF($B$3="Ground floor",'Design Details'!B$47,IF($B$3="Mid-floor",'Design Details'!B$57,IF($B$3="Upper floor",'Design Details'!B$67,IF($B$3="Single Storey",'Design Details'!B$77,0)))) -> 2.8 | I50: 21 | J50: 0 | K50: =F50*H50*$C$7*24/1000 -> 0
A51: Width (m) | C51: Height (m) | E51: Area (m²) | F51: 0 | G51: U Value (W/m²K) | H51: =IF($B$3="Ground floor",'Design Details'!B$47,IF($B$3="Mid-floor",'Design Details'!B$57,IF($B$3="Upper floor",'Design Details'!B$67,IF($B$3="Single Storey",'Design Details'!B$77,0)))) -> 2.8 | I51: 21 | J51: 0 | K51: =F51*H51*$C$7*24/1000 -> 0
A52: Width (m) | C52: Height (m) | E52: Area (m²) | F52: 0 | G52: U Value (W/m²K) | H52: =IF($B$3="Ground floor",'Design Details'!B$47,IF($B$3="Mid-floor",'Design Details'!B$57,IF($B$3="Upper floor",'Design Details'!B$67,IF($B$3="Single Storey",'Design Details'!B$77,0)))) -> 2.8 | I52: 21 | J52: 0 | K52: =F52*H52*$C$7*24/1000 -> 0
A53: Width (m) | C53: Height (m) | E53: Area (m²) | F53: 0 | G53: U Value (W/m²K) | H53: =IF($B$3="Ground floor",'Design Details'!B$47,IF($B$3="Mid-floor",'Design Details'!B$57,IF($B$3="Upper floor",'Design Details'!B$67,IF($B$3="Single Storey",'Design Details'!B$77,0)))) -> 2.8 | I53: 21 | J53: 0 | K53: =F53*H53*$C$7*24/1000 -> 0
A54: Internal Walls | L54: Adjoining Room Temp (°C)
A55: Length (m) | B55: 1.42 | C55: Height (m) | D55: 2.4 | E55: Area (m²) | F55: 3.408 | G55: U Value (W/m²K) | H55: =IF($B$3="Ground floor",'Design Details'!B$51,IF($B$3="Mid-floor",'Design Details'!B$61,IF($B$3="Upper floor",'Design Details'!B$71,IF($B$3="Single Storey",'Design Details'!B$81,0)))) -> 1.72 | I55: 8 | J55: 46.89408
A56: Length (m) | C56: Height (m) | E56: Area (m²) | F56: 0 | G56: U Value (W/m²K) | H56: =IF($B$3="Ground floor",'Design Details'!B$51,IF($B$3="Mid-floor",'Design Details'!B$61,IF($B$3="Upper floor",'Design Details'!B$71,IF($B$3="Single Storey",'Design Details'!B$81,0)))) -> 1.72 | I56: =IF(L56="",0,IF(L56="unheated",C$4-10,C$4-L56)) -> 0 | J56: 0
A57: Length (m) | C57: Height (m) | E57: Area (m²) | F57: 0 | G57: U Value (W/m²K) | H57: =IF($B$3="Ground floor",'Design Details'!B$51,IF($B$3="Mid-floor",'Design Details'!B$61,IF($B$3="Upper floor",'Design Details'!B$71,IF($B$3="Single Storey",'Design Details'!B$81,0)))) -> 1.72 | I57: =IF(L57="",0,IF(L57="unheated",C$4-10,C$4-L57)) -> 0 | J57: 0
A58: Length (m) | C58: Height (m) | E58: Area (m²) | F58: 0 | G58: U Value (W/m²K) | H58: =IF($B$3="Ground floor",'Design Details'!B$51,IF($B$3="Mid-floor",'Design Details'!B$61,IF($B$3="Upper floor",'Design Details'!B$71,IF($B$3="Single Storey",'Design Details'!B$81,0)))) -> 1.72 | I58: =IF(L58="",0,IF(L58="unheated",C$4-10,C$4-L58)) -> 0 | J58: 0
A59: Party Wall
A60: Length (m) | C60: Height (m) | E60: Area (m²) | F60: 0 | G60: U Value (W/m²K) | H60: =IF($B$3="Ground floor",'Design Details'!B$52,IF($B$3="Mid-floor",'Design Details'!B$62,IF($B$3="Upper floor",'Design Details'!B$72,IF($B$3="Single Storey",'Design Details'!B$82,0)))) -> 1 | I60: =C4-10 -> 8 | J60: 0 | K60: =F60*H60*$C$7*24/1000 -> 0

Sheet 10
A1: Room Information | D1: Ventilation Heat Loss | G1: Fabric | H1: Heat Loss (W) | I1: Usage (kWh) | J1: Additional heat loss | L1: Addition | M1: Watts | N1: kWh
A2: Room | B2: Bedroom | C2: 2 | D2: Air Changes a hour | F2: ='Design Details'!F96 -> 1.0 | G2: Floor | H2: =SUM(J20:J22) -> 0 | I2: =SUM(K20:K22) -> 0 | J2: Thermal Bridging (New Build >2006) | L2: 0 | M2: =SUM(H$2:H$6)*L2 -> 0 | N2: =SUM(I$2:I$6)*L2 -> 0 | P2: 3 edges (long single) | Q2: Level | X2: 1
A3: Level | B3: Upper floor | D3: Air Change Factor (W/m³K) | F3: 0.33 | G3: Ext Wall | H3: =J27 -> 239.969016 | I3: =K27 -> 611.0296773 | J3: Exposed location | L3: 0 | M3: =SUM(H$2:H$6)*L3 -> 0 | N3: =SUM(I$2:I$6)*L3 -> 0 | P3: 3 edges (short single) | Q3: Please Select Floor | R3: =IF($B$3="Ground floor","Solid Floor (in contact with ground)",IF($B$3="Single Storey","Solid Floor (in contact with ground)","n/a")) -> n/a | S3: ='Design Details'!B21 -> 10 | T3: unheated | U3: 0 | V3: 0 | W3: 0 | X3: 2
A4: Design Room Temp (°C) | C4: ='Design Details'!D96 -> 18 | D4: Total Volume (m³) | F4: =SUM(H10:H12,H14:H18) -> 20.49792 | G4: Roof | H4: =SUM(J32,J35) -> 21.522816 | I4: =SUM(K32,K35) -> 54.80323891 | J4: High ceiling | L4: 0 | M4: =SUM(H$2:H$6)*L4 -> 0 | N4: =SUM(I$2:I$6)*L4 -> 0 | P4: One edge | Q4: Ground floor | R4: =IF($B$3="Ground floor","Suspended Floor",IF($B$3="Single Storey","Suspended Floor","n/a")) -> n/a | T4: 16 | U4: 0.1 | V4: 0.2 | W4: 0.025 | X4: 3
A5: Outside Design Temp (°C) | C5: ='Design Details'!B19 -> -3 | D5: Heat loss (W) | F5: =F4*F3*C6*F2 -> 142.0505856 | G5: Glazing | H5: =SUM(J37:J43,J45:J48,J50:J53) -> 81.87312 | I5: =SUM(K37:K43,K45:K48,K50:K53) -> 208.4723558 | J5: Intermittent heating | L5: 0 | M5: =SUM(H$2:H$6)*L5 -> 0 | N5: =SUM(I$2:I$6)*L5 -> 0 | P5: Two adjacent | Q5: Mid-floor | T5: 18 | W5: 0.05 | X5: 4
A6: Temp Difference (°C) | C6: =C4-C5 -> 21 | D6: Estimated Energy usage (kWh) | F6: =F4*F3*C7*24/1000 -> 361.7013768 | G6: Int./Party Wall | H6: =SUM(J55:J58,J60) -> 0 | I6: =SUM(K60) -> 0 | M6: Total Room Heat Loss (W) | N6: =SUM(F5,H2:H6,M2:M5) -> 485.4155376 | P6: Two opposite | Q6: Single storey | T6: 21 | W6: 0.075 | X6: 5
A7: Degree Days | C7: ='Design Details'!B20 -> 2228 | M7: Total Room Energy Usage (kWh) | N7: =SUM(F6,I2:I6,N2:N5) -> 1236.006649 | Q7: Upper floor | T7: 22 | W7: 0.1 | X7: 6
Q8: =IF($B$3="Ground floor",'Design Details'!B$45,IF($B$3="Mid-floor",'Design Details'!B$55,IF($B$3="Upper floor",'Design Details'!B$65,IF($B$3="Single Storey",'Design Details'!B$75,0)))) -> 0 | X8: 7
A9: Room Dimensions | X9: 8
A10: Length (m) | B10: 2.72 | C10: Width (m) | D10: 3.14 | E10: Height (m) | F10: 2.4 | G10: Volume (m³) | H10: =B10*D10*F10 -> 20.49792 | X10: 9
A11: Length (m) | C11: Width (m) | E11: Height (m) | G11: Volume (m³) | H11: =B11*D11*F11 -> 0 | X11: 10
A12: Length (m) | C12: Width (m) | E12: Height (m) | G12: Volume (m³) | H12: =B12*D12*F12 -> 0
A13: Awkward Room Dimensions
A14: Length (m) | C14: Width (m) | E14: Height (m) | G14: Volume (m³) | H14: =((F14*D14)/2)*B14 -> 0 | I14: Pitched
A15: Length (m) | C15: Width (m) | E15: Height (m) | G15: Volume (m³) | H15: =B15*D15*F15/2 -> 0 | I15: Single Pitch
A16: Length (m) | C16: Height (m) | E16: Depth (m) | G16: Volume (m³) | H16: =D16*F16*B16/2 -> 0 | I16: Dormer 1
A17: Length (m) | C17: Height (m) | E17: Depth (m) | G17: Volume (m³) | H17: =D17*F17*B17/2 -> 0 | I17: Dormer 2
A18: Length (m) | C18: Height (m) | E18: Depth (m) | G18: Volume (m³) | H18: =D18*F18*B18/2 -> 0 | I18: Dormer 3
A19: Floor | I19: Temp Difference | J19: Heat Loss (W) | K19: Usage (kWh) | L19: Type of Ground Floor
A20: Length (m) | B20: =B10 -> 2.72 | C20: Width (m) | D20: =D10 -> 3.14 | E20: Area (m²) | F20: =B20*D20 -> 8.5408 | G20: U Value (W/m²K) | H20: =IF(L22="",Q8,'floor u values'!K11) -> 0 | I20: =IF(B$3="Ground Floor",IF(L20="Solid Floor (in contact with ground)",C$4-S$3,C$4-C$5),IF(B$3="Single Storey",IF(L20="Solid Floor (in contact with ground)",C$4-S$3,C$4-C$5),0)) -> 0 | J20: =F20*H20*I20 -> 0 | K20: =IF($B$3=$Q$5,0,IF($B$3=$Q$7,0,F20*H20*$C$7*24/1000)) -> 0
A21: Length (m) | B21: =B11 -> 0 | C21: Width (m) | D21: =D11 -> 0 | E21: Area (m²) | F21: =B21*D21 -> 0 | G21: U Value (W/m²K) | H21: =H20 -> 0 | I21: =IF(B$3="Ground Floor",IF(L20="Solid Floor (in contact with ground)",C$4-S$3,C$4-C$5),IF(B$3="Single Storey",IF(L20="Solid Floor (in contact with ground)",C$4-S$3,C$4-C$5),0)) -> 0 | J21: =F21*H21*I21 -> 0 | K21: =IF($B$3=$Q$5,0,IF($B$3=$Q$7,0,F21*H21*$C$7*24/1000)) -> 0 | L21: Exposed floor (external)
A22: Length (m) | B22: 0 | C22: Width (m) | D22: 0 | E22: Area (m²) | F22: 0 | G22: U Value (W/m²K) | H22: =H20 -> 0 | I22: =IF(B$3="Ground Floor",IF(L20="Solid Floor (in contact with ground)",C$4-S$3,C$4-C$5),IF(B$3="Single Storey",IF(L20="Solid Floor (in contact with ground)",C$4-S$3,C$4-C$5),0)) -> 0 | J22: =F22*H22*I22 -> 0 | K22: =IF($B$3=$Q$5,0,IF($B$3=$Q$7,0,F22*H22*$C$7*24/1000)) -> 0
A23: External Wall | L23: =IF(L22="Two opposite","Between edges",IF(L22="One edge","Depth of room",IF(L22="3 edges (short single)","Short length",IF(L22="3 edges (long single)","Short length","")))) ->  | N23: =IF(L22="3 edges (short single)","Long length",IF(L22="3 edges (long single)","Long length","")) -> 
A24: Length (m) | B24: 3.14 | C24: Height (m) | D24: 2.4 | E24: Area (m²) | F24: 7.536
A25: Length (m) | C25: Height (m) | E25: Area (m²) | F25: 0
A26: Length (m) | C26: Height (m) | E26: Area (m²) | F26: 0
D27: Total | E27: Area (m²) | F27: =SUM(F24:F26)-SUM(F37:F43,F50:F53) -> 6.1436 | G27: U Value (W/m²K) | H27: 1.86 | I27: =$C$6 -> 21 | J27: =F27*H27*I27 -> 239.969016 | K27: =F27*H27*$C$7*24/1000 -> 611.0296773
A28: Roof
A29: Length (m) | B29: =B10 -> 2.72 | C29: Width (m) | D29: =D10 -> 3.14 | E29: Area (m²) | F29: 8.5408
A30: Length (m) | B30: =B11 -> 0 | C30: Width (m) | D30: =D11 -> 0 | E30: Area (m²) | F30: 0
A31: Length (m) | B31: 0 | C31: Width (m) | D31: 0 | E31: Area (m²) | F31: 0
D32: Total | E32: Area (m²) | F32: =SUM(F29:F31)-SUM(F45:F48) -> 8.5408 | G32: U Value (W/m²K) | H32: =IF($B$3="Ground floor",'Design Details'!B$49,IF($B$3="Mid-floor",'Design Details'!B$59,IF($B$3="Upper floor",'Design Details'!B$69,IF($B$3="Single Storey",'Design Details'!B$79,0)))) -> 0.12 | I32: =$C$6 -> 21 | J32: 21.522816 | K32: =IF($B$3=$Q$4,0,IF($B$3=$Q$5,0,F32*H32*$C$7*24/1000)) -> 54.80323891
A33: Length (m) | C33: Pitch (m) | E33: Area (m²) | F33: 0 | G33: Pitched
A34: Length (m) | C34: Pitch (m) | E34: Area (m²) | F34: 0 | G34: Single Pitch
D35: Total | E35: Area (m²) | F35: =SUM(F33:F34)-SUM(F45:F48) -> 0 | G35: U Value (W/m²K) | H35: =IF($B$3="Ground floor",'Design Details'!B$50,IF($B$3="Mid-floor",'Design Details'!B$60,IF($B$3="Upper floor",'Design Details'!B$70,IF($B$3="Single Storey",'Design Details'!B$80,0)))) -> 0.12 | I35: 21 | J35: 0 | K35: =IF($B$3=$Q$4,0,IF($B$3=$Q$5,0,F35*H35*$C$7*24/1000)) -> 0
A36: Windows
A37: Width (m) | B37: 1.18 | C37: Height (m) | D37: 1.18 | E37: Area (m²) | F37: 1.3924 | G37: U Value (W/m²K) | H37: =IF($B$3="Ground floor",'Design Details'!B$46,IF($B$3="Mid-floor",'Design Details'!B$56,IF($B$3="Upper floor",'Design Details'!B$66,IF($B$3="Single Storey",'Design Details'!B$76,0)))) -> 2.8 | I37: 21 | J37: 81.87312 | K37: =F37*H37*$C$7*24/1000 -> 208.4723558
A38: Width (m) | C38: Height (m) | E38: Area (m²) | F38: 0 | G38: U Value (W/m²K) | H38: =IF($B$3="Ground floor",'Design Details'!B$46,IF($B$3="Mid-floor",'Design Details'!B$56,IF($B$3="Upper floor",'Design Details'!B$66,IF($B$3="Single Storey",'Design Details'!B$76,0)))) -> 2.8 | I38: 21 | J38: 0 | K38: 0
A39: Width (m) | C39: Height (m) | E39: Area (m²) | F39: 0 | G39: U Value (W/m²K) | H39: =IF($B$3="Ground floor",'Design Details'!B$46,IF($B$3="Mid-floor",'Design Details'!B$56,IF($B$3="Upper floor",'Design Details'!B$66,IF($B$3="Single Storey",'Design Details'!B$76,0)))) -> 2.8 | I39: 21 | J39: 0 | K39: 0
A40: Width (m) | C40: Height (m) | E40: Area (m²) | F40: 0 | G40: U Value (W/m²K) | H40: =IF($B$3="Ground floor",'Design Details'!B$46,IF($B$3="Mid-floor",'Design Details'!B$56,IF($B$3="Upper floor",'Design Details'!B$66,IF($B$3="Single Storey",'Design Details'!B$76,0)))) -> 2.8 | I40: 21 | J40: 0 | K40: 0
A41: Width (m) | C41: Height (m) | E41: Area (m²) | F41: 0 | G41: U Value (W/m²K) | H41: =IF($B$3="Ground floor",'Design Details'!B$46,IF($B$3="Mid-floor",'Design Details'!B$56,IF($B$3="Upper floor",'Design Details'!B$66,IF($B$3="Single Storey",'Design Details'!B$76,0)))) -> 2.8 | I41: 21 | J41: 0 | K41: 0
A42: Width (m) | C42: Height (m) | E42: Area (m²) | F42: 0 | G42: U Value (W/m²K) | H42: =IF($B$3="Ground floor",'Design Details'!B$46,IF($B$3="Mid-floor",'Design Details'!B$56,IF($B$3="Upper floor",'Design Details'!B$66,IF($B$3="Single Storey",'Design Details'!B$76,0)))) -> 2.8 | I42: 21 | J42: 0 | K42: 0
A43: Width (m) | C43: Height (m) | E43: Area (m²) | F43: 0 | G43: U Value (W/m²K) | H43: =IF($B$3="Ground floor",'Design Details'!B$46,IF($B$3="Mid-floor",'Design Details'!B$56,IF($B$3="Upper floor",'Design Details'!B$66,IF($B$3="Single Storey",'Design Details'!B$76,0)))) -> 2.8 | I43: 21 | J43: 0 | K43: 0
A44: Roof Glazing
A45: Width (m) | C45: Height (m) | E45: Area (m²) | F45: 0 | G45: U Value (W/m²K) | H45: =IF($B$3="Ground floor",'Design Details'!B$53,IF($B$3="Mid-floor",'Design Details'!B$63,IF($B$3="Upper floor",'Design Details'!B$73,IF($B$3="Single Storey",'Design Details'!B$83,0)))) -> 2.8 | I45: 21 | J45: 0 | K45: =F45*H45*$C$7*24/1000 -> 0
A46: Width (m) | C46: Height (m) | E46: Area (m²) | F46: 0 | G46: U Value (W/m²K) | H46: =IF($B$3="Ground floor",'Design Details'!B$53,IF($B$3="Mid-floor",'Design Details'!B$63,IF($B$3="Upper floor",'Design Details'!B$73,IF($B$3="Single Storey",'Design Details'!B$83,0)))) -> 2.8 | I46: 21 | J46: 0 | K46: =F46*H46*$C$7*24/1000 -> 0
A47: Width (m) | C47: Height (m) | E47: Area (m²) | F47: 0 | G47: U Value (W/m²K) | H47: =IF($B$3="Ground floor",'Design Details'!B$53,IF($B$3="Mid-floor",'Design Details'!B$63,IF($B$3="Upper floor",'Design Details'!B$73,IF($B$3="Single Storey",'Design Details'!B$83,0)))) -> 2.8 | I47: 21 | J47: 0 | K47: =F47*H47*$C$7*24/1000 -> 0
A48: Width (m) | C48: Height (m) | E48: Area (m²) | F48: 0 | G48: U Value (W/m²K) | H48: =IF($B$3="Ground floor",'Design Details'!B$53,IF($B$3="Mid-floor",'Design Details'!B$63,IF($B$3="Upper floor",'Design Details'!B$73,IF($B$3="Single Storey",'Design Details'!B$83,0)))) -> 2.8 | I48: 21 | J48: 0 | K48: =F48*H48*$C$7*24/1000 -> 0
A49: Doors
A50: Width (m) | C50: Height (m) | E50: Area (m²) | F50: 0 | G50: U Value (W/m²K) | H50: =IF($B$3="Ground floor",'Design Details'!B$47,IF($B$3="Mid-floor",'Design Details'!B$57,IF($B$3="Upper floor",'Design Details'!B$67,IF($B$3="Single Storey",'Design Details'!B$77,0)))) -> 2.8 | I50: 21 | J50: 0 | K50: =F50*H50*$C$7*24/1000 -> 0
A51: Width (m) | C51: Height (m) | E51: Area (m²) | F51: 0 | G51: U Value (W/m²K) | H51: =IF($B$3="Ground floor",'Design Details'!B$47,IF($B$3="Mid-floor",'Design Details'!B$57,IF($B$3="Upper floor",'Design Details'!B$67,IF($B$3="Single Storey",'Design Details'!B$77,0)))) -> 2.8 | I51: 21 | J51: 0 | K51: =F51*H51*$C$7*24/1000 -> 0
A52: Width (m) | C52: Height (m) | E52: Area (m²) | F52: 0 | G52: U Value (W/m²K) | H52: =IF($B$3="Ground floor",'Design Details'!B$47,IF($B$3="Mid-floor",'Design Details'!B$57,IF($B$3="Upper floor",'Design Details'!B$67,IF($B$3="Single Storey",'Design Details'!B$77,0)))) -> 2.8 | I52: 21 | J52: 0 | K52: =F52*H52*$C$7*24/1000 -> 0
A53: Width (m) | C53: Height (m) | E53: Area (m²) | F53: 0 | G53: U Value (W/m²K) | H53: =IF($B$3="Ground floor",'Design Details'!B$47,IF($B$3="Mid-floor",'Design Details'!B$57,IF($B$3="Upper floor",'Design Details'!B$67,IF($B$3="Single Storey",'Design Details'!B$77,0)))) -> 2.8 | I53: 21 | J53: 0 | K53: =F53*H53*$C$7*24/1000 -> 0
A54: Internal Walls | L54: Adjoining Room Temp (°C)
A55: Length (m) | C55: Height (m) | E55: Area (m²) | F55: 0 | G55: U Value (W/m²K) | H55: =IF($B$3="Ground floor",'Design Details'!B$51,IF($B$3="Mid-floor",'Design Details'!B$61,IF($B$3="Upper floor",'Design Details'!B$71,IF($B$3="Single Storey",'Design Details'!B$81,0)))) -> 1.72 | I55: =IF(L55="",0,IF(L55="unheated",C$4-10,C$4-L55)) -> 0 | J55: 0
A56: Length (m) | C56: Height (m) | E56: Area (m²) | F56: 0 | G56: U Value (W/m²K) | H56: =IF($B$3="Ground floor",'Design Details'!B$51,IF($B$3="Mid-floor",'Design Details'!B$61,IF($B$3="Upper floor",'Design Details'!B$71,IF($B$3="Single Storey",'Design Details'!B$81,0)))) -> 1.72 | I56: =IF(L56="",0,IF(L56="unheated",C$4-10,C$4-L56)) -> 0 | J56: 0
A57: Length (m) | C57: Height (m) | E57: Area (m²) | F57: 0 | G57: U Value (W/m²K) | H57: =IF($B$3="Ground floor",'Design Details'!B$51,IF($B$3="Mid-floor",'Design Details'!B$61,IF($B$3="Upper floor",'Design Details'!B$71,IF($B$3="Single Storey",'Design Details'!B$81,0)))) -> 1.72 | I57: =IF(L57="",0,IF(L57="unheated",C$4-10,C$4-L57)) -> 0 | J57: 0
A58: Length (m) | C58: Height (m) | E58: Area (m²) | F58: 0 | G58: U Value (W/m²K) | H58: =IF($B$3="Ground floor",'Design Details'!B$51,IF($B$3="Mid-floor",'Design Details'!B$61,IF($B$3="Upper floor",'Design Details'!B$71,IF($B$3="Single Storey",'Design Details'!B$81,0)))) -> 1.72 | I58: =IF(L58="",0,IF(L58="unheated",C$4-10,C$4-L58)) -> 0 | J58: 0
A59: Party Wall
A60: Length (m) | C60: Height (m) | E60: Area (m²) | F60: 0 | G60: U Value (W/m²K) | H60: =IF($B$3="Ground floor",'Design Details'!B$52,IF($B$3="Mid-floor",'Design Details'!B$62,IF($B$3="Upper floor",'Design Details'!B$72,IF($B$3="Single Storey",'Design Details'!B$82,0)))) -> 1 | I60: =C4-10 -> 8 | J60: 0 | K60: =F60*H60*$C$7*24/1000 -> 0

Sheet 11
A1: Room Information | D1: Ventilation Heat Loss | G1: Fabric | H1: Heat Loss (W) | I1: Usage (kWh) | J1: Additional heat loss | L1: Addition | M1: Watts | N1: kWh
A2: Room | B2: Bedroom | C2: 3 | D2: Air Changes a hour | F2: ='Design Details'!F97 -> 1.0 | G2: Floor | H2: =SUM(J20:J22) -> 0 | I2: =SUM(K20:K22) -> 0 | J2: Thermal Bridging (New Build >2006) | L2: 0 | M2: =SUM(H$2:H$6)*L2 -> 0 | N2: =SUM(I$2:I$6)*L2 -> 0 | P2: 3 edges (long single) | Q2: Level | X2: 1
A3: Level | B3: Upper floor | D3: Air Change Factor (W/m³K) | F3: 0.33 | G3: Ext Wall | H3: 381.84 | I3: =K27 -> 692.426039 | J3: Exposed location | L3: 0 | M3: =SUM(H$2:H$6)*L3 -> 0 | N3: =SUM(I$2:I$6)*L3 -> 0 | P3: 3 edges (short single) | Q3: Please Select Floor | R3: =IF($B$3="Ground floor","Solid Floor (in contact with ground)",IF($B$3="Single Storey","Solid Floor (in contact with ground)","n/a")) -> n/a | S3: ='Design Details'!B21 -> 10 | T3: unheated | U3: 0 | V3: 0 | W3: 0 | X3: 2
A4: Design Room Temp (°C) | C4: ='Design Details'!D97 -> 18 | D4: Total Volume (m³) | F4: =SUM(H10:H12,H14:H18) -> 32.463924 | G4: Roof | H4: =SUM(J32,J35) -> 34.664868 | I4: =SUM(K32,K35) -> 88.26665818 | J4: High ceiling | L4: 0 | M4: =SUM(H$2:H$6)*L4 -> 0 | N4: =SUM(I$2:I$6)*L4 -> 0 | P4: One edge | Q4: Ground floor | R4: =IF($B$3="Ground floor","Suspended Floor",IF($B$3="Single Storey","Suspended Floor","n/a")) -> n/a | T4: 16 | U4: 0.1 | V4: 0.2 | W4: 0.025 | X4: 3
A5: Outside Design Temp (°C) | C5: ='Design Details'!B19 -> -3 | D5: Heat loss (W) | F5: =F4*F3*C6*F2 -> 224.9749933 | G5: Glazing | H5: =SUM(J37:J43,J45:J48,J50:J53) -> 81.87312 | I5: =SUM(K37:K43,K45:K48,K50:K53) -> 208.4723558 | J5: Intermittent heating | L5: 0 | M5: =SUM(H$2:H$6)*L5 -> 0 | N5: =SUM(I$2:I$6)*L5 -> 0 | P5: Two adjacent | Q5: Mid-floor | T5: 18 | W5: 0.05 | X5: 4
A6: Temp Difference (°C) | C6: =C4-C5 -> 21 | D6: Estimated Energy usage (kWh) | F6: =F4*F3*C7*24/1000 -> 572.8506116 | G6: Int./Party Wall | H6: =SUM(J55:J58,J60) -> 126.322304 | I6: =SUM(K60) -> 0 | M6: Total Room Heat Loss (W) | N6: =SUM(F5,H2:H6,M2:M5) -> 849.6752853 | P6: Two opposite | Q6: Single storey | T6: 21 | W6: 0.075 | X6: 5
A7: Degree Days | C7: ='Design Details'!B20 -> 2228 | M7: Total Room Energy Usage (kWh) | N7: =SUM(F6,I2:I6,N2:N5) -> 1562.015665 | Q7: Upper floor | T7: 22 | W7: 0.1 | X7: 6
Q8: =IF($B$3="Ground floor",'Design Details'!B$45,IF($B$3="Mid-floor",'Design Details'!B$55,IF($B$3="Upper floor",'Design Details'!B$65,IF($B$3="Single Storey",'Design Details'!B$75,0)))) -> 0 | X8: 7
A9: Room Dimensions | X9: 8
A10: Length (m) | B10: 2.79 | C10: Width (m) | D10: 0.35 | E10: Height (m) | F10: 2.36 | G10: Volume (m³) | H10: =B10*D10*F10 -> 2.30454 | X10: 9
A11: Length (m) | B11: 3.54 | C11: Width (m) | D11: 3.61 | E11: Height (m) | F11: 2.36 | G11: Volume (m³) | H11: =B11*D11*F11 -> 30.159384 | X11: 10
A12: Length (m) | C12: Width (m) | E12: Height (m) | G12: Volume (m³) | H12: =B12*D12*F12 -> 0
A13: Awkward Room Dimensions
A14: Length (m) | C14: Width (m) | E14: Height (m) | G14: Volume (m³) | H14: =((F14*D14)/2)*B14 -> 0 | I14: Pitched
A15: Length (m) | C15: Width (m) | E15: Height (m) | G15: Volume (m³) | H15: =B15*D15*F15/2 -> 0 | I15: Single Pitch
A16: Length (m) | C16: Height (m) | E16: Depth (m) | G16: Volume (m³) | H16: =D16*F16*B16/2 -> 0 | I16: Dormer 1
A17: Length (m) | C17: Height (m) | E17: Depth (m) | G17: Volume (m³) | H17: =D17*F17*B17/2 -> 0 | I17: Dormer 2
A18: Length (m) | C18: Height (m) | E18: Depth (m) | G18: Volume (m³) | H18: =D18*F18*B18/2 -> 0 | I18: Dormer 3
A19: Floor | I19: Temp Difference | J19: Heat Loss (W) | K19: Usage (kWh) | L19: Type of Ground Floor
A20: Length (m) | B20: =B10 -> 2.79 | C20: Width (m) | D20: =D10 -> 0.35 | E20: Area (m²) | F20: =B20*D20 -> 0.9765 | G20: U Value (W/m²K) | H20: =IF(L22="",Q8,'floor u values'!K12) -> 0 | I20: =IF(B$3="Ground Floor",IF(L20="Solid Floor (in contact with ground)",C$4-S$3,C$4-C$5),IF(B$3="Single Storey",IF(L20="Solid Floor (in contact with ground)",C$4-S$3,C$4-C$5),0)) -> 0 | J20: =F20*H20*I20 -> 0 | K20: =IF($B$3=$Q$5,0,IF($B$3=$Q$7,0,F20*H20*$C$7*24/1000)) -> 0
A21: Length (m) | B21: =B11 -> 3.54 | C21: Width (m) | D21: =D11 -> 3.61 | E21: Area (m²) | F21: =B21*D21 -> 12.7794 | G21: U Value (W/m²K) | H21: =H20 -> 0 | I21: =IF(B$3="Ground Floor",IF(L20="Solid Floor (in contact with ground)",C$4-S$3,C$4-C$5),IF(B$3="Single Storey",IF(L20="Solid Floor (in contact with ground)",C$4-S$3,C$4-C$5),0)) -> 0 | J21: =F21*H21*I21 -> 0 | K21: =IF($B$3=$Q$5,0,IF($B$3=$Q$7,0,F21*H21*$C$7*24/1000)) -> 0 | L21: Exposed floor (external)
A22: Length (m) | B22: 0 | C22: Width (m) | D22: 0 | E22: Area (m²) | F22: 0 | G22: U Value (W/m²K) | H22: =H20 -> 0 | I22: =IF(B$3="Ground Floor",IF(L20="Solid Floor (in contact with ground)",C$4-S$3,C$4-C$5),IF(B$3="Single Storey",IF(L20="Solid Floor (in contact with ground)",C$4-S$3,C$4-C$5),0)) -> 0 | J22: =F22*H22*I22 -> 0 | K22: =IF($B$3=$Q$5,0,IF($B$3=$Q$7,0,F22*H22*$C$7*24/1000)) -> 0
A23: External Wall | L23: =IF(L22="Two opposite","Between edges",IF(L22="One edge","Depth of room",IF(L22="3 edges (short single)","Short length",IF(L22="3 edges (long single)","Short length","")))) ->  | N23: =IF(L22="3 edges (short single)","Long length",IF(L22="3 edges (long single)","Long length","")) -> 
A24: Length (m) | B24: 3.54 | C24: Height (m) | D24: 2.36 | E24: Area (m²) | F24: 8.3544
A25: Length (m) | C25: Height (m) | E25: Area (m²) | F25: 0
A26: Length (m) | C26: Height (m) | E26: Area (m²) | F26: 0
D27: Total | E27: Area (m²) | F27: =SUM(F24:F26)-SUM(F37:F43,F50:F53) -> 6.962 | G27: U Value (W/m²K) | H27: 1.86 | I27: =$C$6 -> 21 | J27: =F27*H27*I27 -> 271.93572 | K27: =F27*H27*$C$7*24/1000 -> 692.426039
A28: Roof | J28: 109.9
A29: Length (m) | B29: =B10 -> 2.79 | C29: Width (m) | D29: =D10 -> 0.35 | E29: Area (m²) | F29: 0.9765
A30: Length (m) | B30: =B11 -> 3.54 | C30: Width (m) | D30: =D11 -> 3.61 | E30: Area (m²) | F30: 12.7794
A31: Length (m) | B31: 0 | C31: Width (m) | D31: 0 | E31: Area (m²) | F31: 0
D32: Total | E32: Area (m²) | F32: =SUM(F29:F31)-SUM(F45:F48) -> 13.7559 | G32: U Value (W/m²K) | H32: =IF($B$3="Ground floor",'Design Details'!B$49,IF($B$3="Mid-floor",'Design Details'!B$59,IF($B$3="Upper floor",'Design Details'!B$69,IF($B$3="Single Storey",'Design Details'!B$79,0)))) -> 0.12 | I32: =$C$6 -> 21 | J32: 34.664868 | K32: =IF($B$3=$Q$4,0,IF($B$3=$Q$5,0,F32*H32*$C$7*24/1000)) -> 88.26665818
A33: Length (m) | C33: Pitch (m) | E33: Area (m²) | F33: 0 | G33: Pitched
A34: Length (m) | C34: Pitch (m) | E34: Area (m²) | F34: 0 | G34: Single Pitch
D35: Total | E35: Area (m²) | F35: =SUM(F33:F34)-SUM(F45:F48) -> 0 | G35: U Value (W/m²K) | H35: =IF($B$3="Ground floor",'Design Details'!B$50,IF($B$3="Mid-floor",'Design Details'!B$60,IF($B$3="Upper floor",'Design Details'!B$70,IF($B$3="Single Storey",'Design Details'!B$80,0)))) -> 0.12 | I35: 21 | J35: 0 | K35: =IF($B$3=$Q$4,0,IF($B$3=$Q$5,0,F35*H35*$C$7*24/1000)) -> 0
A36: Windows
A37: Width (m) | B37: 1.18 | C37: Height (m) | D37: 1.18 | E37: Area (m²) | F37: 1.3924 | G37: U Value (W/m²K) | H37: =IF($B$3="Ground floor",'Design Details'!B$46,IF($B$3="Mid-floor",'Design Details'!B$56,IF($B$3="Upper floor",'Design Details'!B$66,IF($B$3="Single Storey",'Design Details'!B$76,0)))) -> 2.8 | I37: 21 | J37: 81.87312 | K37: =F37*H37*$C$7*24/1000 -> 208.4723558
A38: Width (m) | C38: Height (m) | E38: Area (m²) | F38: 0 | G38: U Value (W/m²K) | H38: =IF($B$3="Ground floor",'Design Details'!B$46,IF($B$3="Mid-floor",'Design Details'!B$56,IF($B$3="Upper floor",'Design Details'!B$66,IF($B$3="Single Storey",'Design Details'!B$76,0)))) -> 2.8 | I38: 21 | J38: 0 | K38: 0
A39: Width (m) | C39: Height (m) | E39: Area (m²) | F39: 0 | G39: U Value (W/m²K) | H39: =IF($B$3="Ground floor",'Design Details'!B$46,IF($B$3="Mid-floor",'Design Details'!B$56,IF($B$3="Upper floor",'Design Details'!B$66,IF($B$3="Single Storey",'Design Details'!B$76,0)))) -> 2.8 | I39: 21 | J39: 0 | K39: 0
A40: Width (m) | C40: Height (m) | E40: Area (m²) | F40: 0 | G40: U Value (W/m²K) | H40: =IF($B$3="Ground floor",'Design Details'!B$46,IF($B$3="Mid-floor",'Design Details'!B$56,IF($B$3="Upper floor",'Design Details'!B$66,IF($B$3="Single Storey",'Design Details'!B$76,0)))) -> 2.8 | I40: 21 | J40: 0 | K40: 0
A41: Width (m) | C41: Height (m) | E41: Area (m²) | F41: 0 | G41: U Value (W/m²K) | H41: =IF($B$3="Ground floor",'Design Details'!B$46,IF($B$3="Mid-floor",'Design Details'!B$56,IF($B$3="Upper floor",'Design Details'!B$66,IF($B$3="Single Storey",'Design Details'!B$76,0)))) -> 2.8 | I41: 21 | J41: 0 | K41: 0
A42: Width (m) | C42: Height (m) | E42: Area (m²) | F42: 0 | G42: U Value (W/m²K) | H42: =IF($B$3="Ground floor",'Design Details'!B$46,IF($B$3="Mid-floor",'Design Details'!B$56,IF($B$3="Upper floor",'Design Details'!B$66,IF($B$3="Single Storey",'Design Details'!B$76,0)))) -> 2.8 | I42: 21 | J42: 0 | K42: 0
A43: Width (m) | C43: Height (m) | E43: Area (m²) | F43: 0 | G43: U Value (W/m²K) | H43: =IF($B$3="Ground floor",'Design Details'!B$46,IF($B$3="Mid-floor",'Design Details'!B$56,IF($B$3="Upper floor",'Design Details'!B$66,IF($B$3="Single Storey",'Design Details'!B$76,0)))) -> 2.8 | I43: 21 | J43: 0 | K43: 0
A44: Roof Glazing
A45: Width (m) | C45: Height (m) | E45: Area (m²) | F45: 0 | G45: U Value (W/m²K) | H45: =IF($B$3="Ground floor",'Design Details'!B$53,IF($B$3="Mid-floor",'Design Details'!B$63,IF($B$3="Upper floor",'Design Details'!B$73,IF($B$3="Single Storey",'Design Details'!B$83,0)))) -> 2.8 | I45: 21 | J45: 0 | K45: =F45*H45*$C$7*24/1000 -> 0
A46: Width (m) | C46: Height (m) | E46: Area (m²) | F46: 0 | G46: U Value (W/m²K) | H46: =IF($B$3="Ground floor",'Design Details'!B$53,IF($B$3="Mid-floor",'Design Details'!B$63,IF($B$3="Upper floor",'Design Details'!B$73,IF($B$3="Single Storey",'Design Details'!B$83,0)))) -> 2.8 | I46: 21 | J46: 0 | K46: =F46*H46*$C$7*24/1000 -> 0
A47: Width (m) | C47: Height (m) | E47: Area (m²) | F47: 0 | G47: U Value (W/m²K) | H47: =IF($B$3="Ground floor",'Design Details'!B$53,IF($B$3="Mid-floor",'Design Details'!B$63,IF($B$3="Upper floor",'Design Details'!B$73,IF($B$3="Single Storey",'Design Details'!B$83,0)))) -> 2.8 | I47: 21 | J47: 0 | K47: =F47*H47*$C$7*24/1000 -> 0
A48: Width (m) | C48: Height (m) | E48: Area (m²) | F48: 0 | G48: U Value (W/m²K) | H48: =IF($B$3="Ground floor",'Design Details'!B$53,IF($B$3="Mid-floor",'Design Details'!B$63,IF($B$3="Upper floor",'Design Details'!B$73,IF($B$3="Single Storey",'Design Details'!B$83,0)))) -> 2.8 | I48: 21 | J48: 0 | K48: =F48*H48*$C$7*24/1000 -> 0
A49: Doors
A50: Width (m) | C50: Height (m) | E50: Area (m²) | F50: 0 | G50: U Value (W/m²K) | H50: =IF($B$3="Ground floor",'Design Details'!B$47,IF($B$3="Mid-floor",'Design Details'!B$57,IF($B$3="Upper floor",'Design Details'!B$67,IF($B$3="Single Storey",'Design Details'!B$77,0)))) -> 2.8 | I50: 21 | J50: 0 | K50: =F50*H50*$C$7*24/1000 -> 0
A51: Width (m) | C51: Height (m) | E51: Area (m²) | F51: 0 | G51: U Value (W/m²K) | H51: =IF($B$3="Ground floor",'Design Details'!B$47,IF($B$3="Mid-floor",'Design Details'!B$57,IF($B$3="Upper floor",'Design Details'!B$67,IF($B$3="Single Storey",'Design Details'!B$77,0)))) -> 2.8 | I51: 21 | J51: 0 | K51: =F51*H51*$C$7*24/1000 -> 0
A52: Width (m) | C52: Height (m) | E52: Area (m²) | F52: 0 | G52: U Value (W/m²K) | H52: =IF($B$3="Ground floor",'Design Details'!B$47,IF($B$3="Mid-floor",'Design Details'!B$57,IF($B$3="Upper floor",'Design Details'!B$67,IF($B$3="Single Storey",'Design Details'!B$77,0)))) -> 2.8 | I52: 21 | J52: 0 | K52: =F52*H52*$C$7*24/1000 -> 0
A53: Width (m) | C53: Height (m) | E53: Area (m²) | F53: 0 | G53: U Value (W/m²K) | H53: =IF($B$3="Ground floor",'Design Details'!B$47,IF($B$3="Mid-floor",'Design Details'!B$57,IF($B$3="Upper floor",'Design Details'!B$67,IF($B$3="Single Storey",'Design Details'!B$77,0)))) -> 2.8 | I53: 21 | J53: 0 | K53: =F53*H53*$C$7*24/1000 -> 0
A54: Internal Walls | L54: Adjoining Room Temp (°C)
A55: Length (m) | B55: 3.89 | C55: Height (m) | D55: 2.36 | E55: Area (m²) | F55: 9.1804 | G55: U Value (W/m²K) | H55: =IF($B$3="Ground floor",'Design Details'!B$51,IF($B$3="Mid-floor",'Design Details'!B$61,IF($B$3="Upper floor",'Design Details'!B$71,IF($B$3="Single Storey",'Design Details'!B$81,0)))) -> 1.72 | I55: 8 | J55: 126.322304
A56: Length (m) | C56: Height (m) | E56: Area (m²) | F56: 0 | G56: U Value (W/m²K) | H56: =IF($B$3="Ground floor",'Design Details'!B$51,IF($B$3="Mid-floor",'Design Details'!B$61,IF($B$3="Upper floor",'Design Details'!B$71,IF($B$3="Single Storey",'Design Details'!B$81,0)))) -> 1.72 | I56: =IF(L56="",0,IF(L56="unheated",C$4-10,C$4-L56)) -> 0 | J56: 0
A57: Length (m) | C57: Height (m) | E57: Area (m²) | F57: 0 | G57: U Value (W/m²K) | H57: =IF($B$3="Ground floor",'Design Details'!B$51,IF($B$3="Mid-floor",'Design Details'!B$61,IF($B$3="Upper floor",'Design Details'!B$71,IF($B$3="Single Storey",'Design Details'!B$81,0)))) -> 1.72 | I57: =IF(L57="",0,IF(L57="unheated",C$4-10,C$4-L57)) -> 0 | J57: 0
A58: Length (m) | C58: Height (m) | E58: Area (m²) | F58: 0 | G58: U Value (W/m²K) | H58: =IF($B$3="Ground floor",'Design Details'!B$51,IF($B$3="Mid-floor",'Design Details'!B$61,IF($B$3="Upper floor",'Design Details'!B$71,IF($B$3="Single Storey",'Design Details'!B$81,0)))) -> 1.72 | I58: =IF(L58="",0,IF(L58="unheated",C$4-10,C$4-L58)) -> 0 | J58: 0
A59: Party Wall
A60: Length (m) | C60: Height (m) | E60: Area (m²) | F60: 0 | G60: U Value (W/m²K) | H60: =IF($B$3="Ground floor",'Design Details'!B$52,IF($B$3="Mid-floor",'Design Details'!B$62,IF($B$3="Upper floor",'Design Details'!B$72,IF($B$3="Single Storey",'Design Details'!B$82,0)))) -> 1 | I60: =C4-10 -> 8 | J60: 0 | K60: =F60*H60*$C$7*24/1000 -> 0

Sheet 12
A1: Room Information | D1: Ventilation Heat Loss | G1: Fabric | H1: Heat Loss (W) | I1: Usage (kWh) | J1: Additional heat loss | L1: Addition | M1: Watts | N1: kWh
A2: Room | B2: Bedroom | C2: 4 | D2: Air Changes a hour | F2: ='Design Details'!F98 -> 1.0 | G2: Floor | H2: =SUM(J20:J22) -> 0 | I2: =SUM(K20:K22) -> 0 | J2: Thermal Bridging (New Build >2006) | L2: 0 | M2: =SUM(H$2:H$6)*L2 -> 0 | N2: =SUM(I$2:I$6)*L2 -> 0 | P2: 3 edges (long single) | Q2: Level | X2: 1
A3: Level | B3: Upper floor | D3: Air Change Factor (W/m³K) | F3: 0.33 | G3: Ext Wall | H3: =J27 -> 115.5462 | I3: =K27 -> 294.2136384 | J3: Exposed location | L3: 0 | M3: =SUM(H$2:H$6)*L3 -> 0 | N3: =SUM(I$2:I$6)*L3 -> 0 | P3: 3 edges (short single) | Q3: Please Select Floor | R3: =IF($B$3="Ground floor","Solid Floor (in contact with ground)",IF($B$3="Single Storey","Solid Floor (in contact with ground)","n/a")) -> n/a | S3: ='Design Details'!B21 -> 10 | T3: unheated | U3: 0 | V3: 0 | W3: 0 | X3: 2
A4: Design Room Temp (°C) | C4: ='Design Details'!D98 -> 18 | D4: Total Volume (m³) | F4: =SUM(H10:H12,H14:H18) -> 27.47996 | G4: Roof | H4: =SUM(J32,J35) -> 29.467872 | I4: =SUM(K32,K35) -> 75.0336215 | J4: High ceiling | L4: 0 | M4: =SUM(H$2:H$6)*L4 -> 0 | N4: =SUM(I$2:I$6)*L4 -> 0 | P4: One edge | Q4: Ground floor | R4: =IF($B$3="Ground floor","Suspended Floor",IF($B$3="Single Storey","Suspended Floor","n/a")) -> n/a | T4: 16 | U4: 0.1 | V4: 0.2 | W4: 0.025 | X4: 3
A5: Outside Design Temp (°C) | C5: ='Design Details'!B19 -> -3 | D5: Heat loss (W) | F5: =F4*F3*C6*F2 -> 190.4361228 | G5: Glazing | H5: =SUM(J37:J43,J45:J48,J50:J53) -> 155.0346 | I5: =SUM(K37:K43,K45:K48,K50:K53) -> 394.7623872 | J5: Intermittent heating | L5: 0 | M5: =SUM(H$2:H$6)*L5 -> 0 | N5: =SUM(I$2:I$6)*L5 -> 0 | P5: Two adjacent | Q5: Mid-floor | T5: 18 | W5: 0.05 | X5: 4
A6: Temp Difference (°C) | C6: =C4-C5 -> 21 | D6: Estimated Energy usage (kWh) | F6: =F4*F3*C7*24/1000 -> 484.904779 | G6: Int./Party Wall | H6: =SUM(J55:J58,J60) -> 56.613568 | I6: =SUM(K60) -> 0 | M6: Total Room Heat Loss (W) | N6: =SUM(F5,H2:H6,M2:M5) -> 547.0983628 | P6: Two opposite | Q6: Single storey | T6: 21 | W6: 0.075 | X6: 5
A7: Degree Days | C7: ='Design Details'!B20 -> 2228 | M7: Total Room Energy Usage (kWh) | N7: =SUM(F6,I2:I6,N2:N5) -> 1248.914426 | Q7: Upper floor | T7: 22 | W7: 0.1 | X7: 6
Q8: =IF($B$3="Ground floor",'Design Details'!B$45,IF($B$3="Mid-floor",'Design Details'!B$55,IF($B$3="Upper floor",'Design Details'!B$65,IF($B$3="Single Storey",'Design Details'!B$75,0)))) -> 0 | X8: 7
A9: Room Dimensions | X9: 8
A10: Length (m) | B10: 3.11 | C10: Width (m) | D10: 3.76 | E10: Height (m) | F10: 2.35 | G10: Volume (m³) | H10: =B10*D10*F10 -> 27.47996 | X10: 9
A11: Length (m) | C11: Width (m) | E11: Height (m) | G11: Volume (m³) | H11: =B11*D11*F11 -> 0 | X11: 10
A12: Length (m) | C12: Width (m) | E12: Height (m) | G12: Volume (m³) | H12: =B12*D12*F12 -> 0
A13: Awkward Room Dimensions
A14: Length (m) | C14: Width (m) | E14: Height (m) | G14: Volume (m³) | H14: =((F14*D14)/2)*B14 -> 0 | I14: Pitched
A15: Length (m) | C15: Width (m) | E15: Height (m) | G15: Volume (m³) | H15: =B15*D15*F15/2 -> 0 | I15: Single Pitch
A16: Length (m) | C16: Height (m) | E16: Depth (m) | G16: Volume (m³) | H16: =D16*F16*B16/2 -> 0 | I16: Dormer 1
A17: Length (m) | C17: Height (m) | E17: Depth (m) | G17: Volume (m³) | H17: =D17*F17*B17/2 -> 0 | I17: Dormer 2
A18: Length (m) | C18: Height (m) | E18: Depth (m) | G18: Volume (m³) | H18: =D18*F18*B18/2 -> 0 | I18: Dormer 3
A19: Floor | I19: Temp Difference | J19: Heat Loss (W) | K19: Usage (kWh) | L19: Type of Ground Floor
A20: Length (m) | B20: =B10 -> 3.11 | C20: Width (m) | D20: =D10 -> 3.76 | E20: Area (m²) | F20: =B20*D20 -> 11.6936 | G20: U Value (W/m²K) | H20: =IF(L22="",Q8,'floor u values'!K13) -> 0 | I20: =IF(B$3="Ground Floor",IF(L20="Solid Floor (in contact with ground)",C$4-S$3,C$4-C$5),IF(B$3="Single Storey",IF(L20="Solid Floor (in contact with ground)",C$4-S$3,C$4-C$5),0)) -> 0 | J20: =F20*H20*I20 -> 0 | K20: =IF($B$3=$Q$5,0,IF($B$3=$Q$7,0,F20*H20*$C$7*24/1000)) -> 0
A21: Length (m) | B21: =B11 -> 0 | C21: Width (m) | D21: =D11 -> 0 | E21: Area (m²) | F21: =B21*D21 -> 0 | G21: U Value (W/m²K) | H21: =H20 -> 0 | I21: =IF(B$3="Ground Floor",IF(L20="Solid Floor (in contact with ground)",C$4-S$3,C$4-C$5),IF(B$3="Single Storey",IF(L20="Solid Floor (in contact with ground)",C$4-S$3,C$4-C$5),0)) -> 0 | J21: =F21*H21*I21 -> 0 | K21: =IF($B$3=$Q$5,0,IF($B$3=$Q$7,0,F21*H21*$C$7*24/1000)) -> 0 | L21: Exposed floor (external)
A22: Length (m) | B22: 0 | C22: Width (m) | D22: 0 | E22: Area (m²) | F22: 0 | G22: U Value (W/m²K) | H22: =H20 -> 0 | I22: =IF(B$3="Ground Floor",IF(L20="Solid Floor (in contact with ground)",C$4-S$3,C$4-C$5),IF(B$3="Single Storey",IF(L20="Solid Floor (in contact with ground)",C$4-S$3,C$4-C$5),0)) -> 0 | J22: =F22*H22*I22 -> 0 | K22: =IF($B$3=$Q$5,0,IF($B$3=$Q$7,0,F22*H22*$C$7*24/1000)) -> 0
A23: External Wall | L23: =IF(L22="Two opposite","Between edges",IF(L22="One edge","Depth of room",IF(L22="3 edges (short single)","Short length",IF(L22="3 edges (long single)","Short length","")))) ->  | N23: =IF(L22="3 edges (short single)","Long length",IF(L22="3 edges (long single)","Long length","")) -> 
A24: Length (m) | B24: 6.87 | C24: Height (m) | D24: 2.35 | E24: Area (m²) | F24: 16.1445
A25: Length (m) | C25: Height (m) | E25: Area (m²) | F25: 0
A26: Length (m) | C26: Height (m) | E26: Area (m²) | F26: 0
D27: Total | E27: Area (m²) | F27: =SUM(F24:F26)-SUM(F37:F43,F50:F53) -> 12.505 | G27: U Value (W/m²K) | H27: =IF($B$3="Ground floor",'Design Details'!B$48,IF($B$3="Mid-floor",'Design Details'!B$58,IF($B$3="Upper floor",'Design Details'!B$68,IF($B$3="Single Storey",'Design Details'!B$78,0)))) -> 0.44 | I27: =$C$6 -> 21 | J27: =F27*H27*I27 -> 115.5462 | K27: =F27*H27*$C$7*24/1000 -> 294.2136384
A28: Roof
A29: Length (m) | B29: =B10 -> 3.11 | C29: Width (m) | D29: =D10 -> 3.76 | E29: Area (m²) | F29: 11.6936
A30: Length (m) | B30: =B11 -> 0 | C30: Width (m) | D30: =D11 -> 0 | E30: Area (m²) | F30: 0
A31: Length (m) | B31: 0 | C31: Width (m) | D31: 0 | E31: Area (m²) | F31: 0
D32: Total | E32: Area (m²) | F32: =SUM(F29:F31)-SUM(F45:F48) -> 11.6936 | G32: U Value (W/m²K) | H32: =IF($B$3="Ground floor",'Design Details'!B$49,IF($B$3="Mid-floor",'Design Details'!B$59,IF($B$3="Upper floor",'Design Details'!B$69,IF($B$3="Single Storey",'Design Details'!B$79,0)))) -> 0.12 | I32: =$C$6 -> 21 | J32: 29.467872 | K32: =IF($B$3=$Q$4,0,IF($B$3=$Q$5,0,F32*H32*$C$7*24/1000)) -> 75.0336215
A33: Length (m) | C33: Pitch (m) | E33: Area (m²) | F33: 0 | G33: Pitched
A34: Length (m) | C34: Pitch (m) | E34: Area (m²) | F34: 0 | G34: Single Pitch
D35: Total | E35: Area (m²) | F35: =SUM(F33:F34)-SUM(F45:F48) -> 0 | G35: U Value (W/m²K) | H35: =IF($B$3="Ground floor",'Design Details'!B$50,IF($B$3="Mid-floor",'Design Details'!B$60,IF($B$3="Upper floor",'Design Details'!B$70,IF($B$3="Single Storey",'Design Details'!B$80,0)))) -> 0.12 | I35: 21 | J35: 0 | K35: =IF($B$3=$Q$4,0,IF($B$3=$Q$5,0,F35*H35*$C$7*24/1000)) -> 0
A36: Windows
A37: Width (m) | B37: 1.13 | C37: Height (m) | D37: 1.15 | E37: Area (m²) | F37: 1.2995 | G37: U Value (W/m²K) | H37: =IF($B$3="Ground floor",'Design Details'!B$46,IF($B$3="Mid-floor",'Design Details'!B$56,IF($B$3="Upper floor",'Design Details'!B$66,IF($B$3="Single Storey",'Design Details'!B$76,0)))) -> 2.8 | I37: 21 | J37: 76.4106 | K37: =F37*H37*$C$7*24/1000 -> 194.5632192
A38: Width (m) | C38: Height (m) | E38: Area (m²) | F38: 0 | G38: U Value (W/m²K) | H38: =IF($B$3="Ground floor",'Design Details'!B$46,IF($B$3="Mid-floor",'Design Details'!B$56,IF($B$3="Upper floor",'Design Details'!B$66,IF($B$3="Single Storey",'Design Details'!B$76,0)))) -> 2.8 | I38: 21 | J38: 0 | K38: 0
A39: Width (m) | C39: Height (m) | E39: Area (m²) | F39: 0 | G39: U Value (W/m²K) | H39: =IF($B$3="Ground floor",'Design Details'!B$46,IF($B$3="Mid-floor",'Design Details'!B$56,IF($B$3="Upper floor",'Design Details'!B$66,IF($B$3="Single Storey",'Design Details'!B$76,0)))) -> 2.8 | I39: 21 | J39: 0 | K39: 0
A40: Width (m) | C40: Height (m) | E40: Area (m²) | F40: 0 | G40: U Value (W/m²K) | H40: =IF($B$3="Ground floor",'Design Details'!B$46,IF($B$3="Mid-floor",'Design Details'!B$56,IF($B$3="Upper floor",'Design Details'!B$66,IF($B$3="Single Storey",'Design Details'!B$76,0)))) -> 2.8 | I40: 21 | J40: 0 | K40: 0
A41: Width (m) | C41: Height (m) | E41: Area (m²) | F41: 0 | G41: U Value (W/m²K) | H41: =IF($B$3="Ground floor",'Design Details'!B$46,IF($B$3="Mid-floor",'Design Details'!B$56,IF($B$3="Upper floor",'Design Details'!B$66,IF($B$3="Single Storey",'Design Details'!B$76,0)))) -> 2.8 | I41: 21 | J41: 0 | K41: 0
A42: Width (m) | C42: Height (m) | E42: Area (m²) | F42: 0 | G42: U Value (W/m²K) | H42: =IF($B$3="Ground floor",'Design Details'!B$46,IF($B$3="Mid-floor",'Design Details'!B$56,IF($B$3="Upper floor",'Design Details'!B$66,IF($B$3="Single Storey",'Design Details'!B$76,0)))) -> 2.8 | I42: 21 | J42: 0 | K42: 0
A43: Width (m) | C43: Height (m) | E43: Area (m²) | F43: 0 | G43: U Value (W/m²K) | H43: =IF($B$3="Ground floor",'Design Details'!B$46,IF($B$3="Mid-floor",'Design Details'!B$56,IF($B$3="Upper floor",'Design Details'!B$66,IF($B$3="Single Storey",'Design Details'!B$76,0)))) -> 2.8 | I43: 21 | J43: 0 | K43: 0
A44: Roof Glazing
A45: Width (m) | C45: Height (m) | E45: Area (m²) | F45: 0 | G45: U Value (W/m²K) | H45: =IF($B$3="Ground floor",'Design Details'!B$53,IF($B$3="Mid-floor",'Design Details'!B$63,IF($B$3="Upper floor",'Design Details'!B$73,IF($B$3="Single Storey",'Design Details'!B$83,0)))) -> 2.8 | I45: 21 | J45: 0 | K45: =F45*H45*$C$7*24/1000 -> 0
A46: Width (m) | C46: Height (m) | E46: Area (m²) | F46: 0 | G46: U Value (W/m²K) | H46: =IF($B$3="Ground floor",'Design Details'!B$53,IF($B$3="Mid-floor",'Design Details'!B$63,IF($B$3="Upper floor",'Design Details'!B$73,IF($B$3="Single Storey",'Design Details'!B$83,0)))) -> 2.8 | I46: 21 | J46: 0 | K46: =F46*H46*$C$7*24/1000 -> 0
A47: Width (m) | C47: Height (m) | E47: Area (m²) | F47: 0 | G47: U Value (W/m²K) | H47: =IF($B$3="Ground floor",'Design Details'!B$53,IF($B$3="Mid-floor",'Design Details'!B$63,IF($B$3="Upper floor",'Design Details'!B$73,IF($B$3="Single Storey",'Design Details'!B$83,0)))) -> 2.8 | I47: 21 | J47: 0 | K47: =F47*H47*$C$7*24/1000 -> 0
A48: Width (m) | C48: Height (m) | E48: Area (m²) | F48: 0 | G48: U Value (W/m²K) | H48: =IF($B$3="Ground floor",'Design Details'!B$53,IF($B$3="Mid-floor",'Design Details'!B$63,IF($B$3="Upper floor",'Design Details'!B$73,IF($B$3="Single Storey",'Design Details'!B$83,0)))) -> 2.8 | I48: 21 | J48: 0 | K48: =F48*H48*$C$7*24/1000 -> 0
A49: Doors
A50: Width (m) | B50: 2 | C50: Height (m) | D50: 1.17 | E50: Area (m²) | F50: 2.34 | G50: U Value (W/m²K) | H50: 1.6 | I50: 21 | J50: 78.624 | K50: =F50*H50*$C$7*24/1000 -> 200.199168
A51: Width (m) | C51: Height (m) | E51: Area (m²) | F51: 0 | G51: U Value (W/m²K) | H51: =IF($B$3="Ground floor",'Design Details'!B$47,IF($B$3="Mid-floor",'Design Details'!B$57,IF($B$3="Upper floor",'Design Details'!B$67,IF($B$3="Single Storey",'Design Details'!B$77,0)))) -> 2.8 | I51: 21 | J51: 0 | K51: =F51*H51*$C$7*24/1000 -> 0
A52: Width (m) | C52: Height (m) | E52: Area (m²) | F52: 0 | G52: U Value (W/m²K) | H52: =IF($B$3="Ground floor",'Design Details'!B$47,IF($B$3="Mid-floor",'Design Details'!B$57,IF($B$3="Upper floor",'Design Details'!B$67,IF($B$3="Single Storey",'Design Details'!B$77,0)))) -> 2.8 | I52: 21 | J52: 0 | K52: =F52*H52*$C$7*24/1000 -> 0
A53: Width (m) | C53: Height (m) | E53: Area (m²) | F53: 0 | G53: U Value (W/m²K) | H53: =IF($B$3="Ground floor",'Design Details'!B$47,IF($B$3="Mid-floor",'Design Details'!B$57,IF($B$3="Upper floor",'Design Details'!B$67,IF($B$3="Single Storey",'Design Details'!B$77,0)))) -> 2.8 | I53: 21 | J53: 0 | K53: =F53*H53*$C$7*24/1000 -> 0
A54: Internal Walls | L54: Adjoining Room Temp (°C)
A55: Length (m) | B55: 3.76 | C55: Height (m) | D55: 1.18 | E55: Area (m²) | F55: 4.4368 | G55: U Value (W/m²K) | H55: 0.44 | I55: 21 | J55: 40.996032
A56: Length (m) | B56: 3.76 | C56: Height (m) | D56: 1.18 | E56: Area (m²) | F56: 4.4368 | G56: U Value (W/m²K) | H56: 0.44 | I56: 8 | J56: 15.617536
A57: Length (m) | C57: Height (m) | E57: Area (m²) | F57: 0 | G57: U Value (W/m²K) | H57: =IF($B$3="Ground floor",'Design Details'!B$51,IF($B$3="Mid-floor",'Design Details'!B$61,IF($B$3="Upper floor",'Design Details'!B$71,IF($B$3="Single Storey",'Design Details'!B$81,0)))) -> 1.72 | I57: =IF(L57="",0,IF(L57="unheated",C$4-10,C$4-L57)) -> 0 | J57: 0
A58: Length (m) | C58: Height (m) | E58: Area (m²) | F58: 0 | G58: U Value (W/m²K) | H58: =IF($B$3="Ground floor",'Design Details'!B$51,IF($B$3="Mid-floor",'Design Details'!B$61,IF($B$3="Upper floor",'Design Details'!B$71,IF($B$3="Single Storey",'Design Details'!B$81,0)))) -> 1.72 | I58: =IF(L58="",0,IF(L58="unheated",C$4-10,C$4-L58)) -> 0 | J58: 0
A59: Party Wall
A60: Length (m) | C60: Height (m) | E60: Area (m²) | F60: 0 | G60: U Value (W/m²K) | H60: =IF($B$3="Ground floor",'Design Details'!B$52,IF($B$3="Mid-floor",'Design Details'!B$62,IF($B$3="Upper floor",'Design Details'!B$72,IF($B$3="Single Storey",'Design Details'!B$82,0)))) -> 1 | I60: =C4-10 -> 8 | J60: 0 | K60: =F60*H60*$C$7*24/1000 -> 0

Sheet 13
A1: Room Information | D1: Ventilation Heat Loss | G1: Fabric | H1: Heat Loss (W) | I1: Usage (kWh) | J1: Additional heat loss | L1: Addition | M1: Watts | N1: kWh
A2: Room | B2: En-suite | D2: Air Changes a hour | F2: 3 | G2: Floor | H2: =SUM(J20:J22) -> 0 | I2: =SUM(K20:K22) -> 0 | J2: Thermal Bridging (New Build >2006) | L2: 0 | M2: =SUM(H$2:H$6)*L2 -> 0 | N2: =SUM(I$2:I$6)*L2 -> 0 | P2: 3 edges (long single) | Q2: Level | X2: 1
A3: Level | B3: Upper floor | D3: Air Change Factor (W/m³K) | F3: 0.33 | G3: Ext Wall | H3: =J27 -> 0 | I3: =K27 -> 0 | J3: Exposed location | L3: 0 | M3: =SUM(H$2:H$6)*L3 -> 0 | N3: =SUM(I$2:I$6)*L3 -> 0 | P3: 3 edges (short single) | Q3: Please Select Floor | R3: =IF($B$3="Ground floor","Solid Floor (in contact with ground)",IF($B$3="Single Storey","Solid Floor (in contact with ground)","n/a")) -> n/a | S3: ='Design Details'!B21 -> 10 | T3: unheated | U3: 0 | V3: 0 | W3: 0 | X3: 2
A4: Design Room Temp (°C) | C4: ='Design Details'!D99 -> 18 | D4: Total Volume (m³) | F4: =SUM(H10:H12,H14:H18) -> 3.5861 | G4: Roof | H4: =SUM(J32,J35) -> 3.84552 | I4: =SUM(K32,K35) -> 9.79179264 | J4: High ceiling | L4: 0 | M4: =SUM(H$2:H$6)*L4 -> 0 | N4: =SUM(I$2:I$6)*L4 -> 0 | P4: One edge | Q4: Ground floor | R4: =IF($B$3="Ground floor","Suspended Floor",IF($B$3="Single Storey","Suspended Floor","n/a")) -> n/a | T4: 16 | U4: 0.1 | V4: 0.2 | W4: 0.025 | X4: 3
A5: Outside Design Temp (°C) | C5: ='Design Details'!B19 -> -3 | D5: Heat loss (W) | F5: =F4*F3*C6*F2 -> 74.555019 | G5: Glazing | H5: =SUM(J37:J43,J45:J48,J50:J53) -> 0 | I5: =SUM(K37:K43,K45:K48,K50:K53) -> 0 | J5: Intermittent heating | L5: 0 | M5: =SUM(H$2:H$6)*L5 -> 0 | N5: =SUM(I$2:I$6)*L5 -> 0 | P5: Two adjacent | Q5: Mid-floor | T5: 18 | W5: 0.05 | X5: 4
A6: Temp Difference (°C) | C6: =C4-C5 -> 21 | D6: Estimated Energy usage (kWh) | F6: =F4*F3*C7*24/1000 -> 63.27945994 | G6: Int./Party Wall | H6: =SUM(J55:J58,J60) -> 5.7904 | I6: =SUM(K60) -> 0 | M6: Total Room Heat Loss (W) | N6: =SUM(F5,H2:H6,M2:M5) -> 84.190939 | P6: Two opposite | Q6: Single storey | T6: 21 | W6: 0.075 | X6: 5
A7: Degree Days | C7: ='Design Details'!B20 -> 2228 | M7: Total Room Energy Usage (kWh) | N7: =SUM(F6,I2:I6,N2:N5) -> 73.07125258 | Q7: Upper floor | T7: 22 | W7: 0.1 | X7: 6
Q8: =IF($B$3="Ground floor",'Design Details'!B$45,IF($B$3="Mid-floor",'Design Details'!B$55,IF($B$3="Upper floor",'Design Details'!B$65,IF($B$3="Single Storey",'Design Details'!B$75,0)))) -> 0 | X8: 7
A9: Room Dimensions | X9: 8
A10: Length (m) | B10: 0.7 | C10: Width (m) | D10: 2.18 | E10: Height (m) | F10: 2.35 | G10: Volume (m³) | H10: =B10*D10*F10 -> 3.5861 | X10: 9
A11: Length (m) | C11: Width (m) | E11: Height (m) | G11: Volume (m³) | H11: =B11*D11*F11 -> 0 | X11: 10
A12: Length (m) | C12: Width (m) | E12: Height (m) | G12: Volume (m³) | H12: =B12*D12*F12 -> 0
A13: Awkward Room Dimensions
A14: Length (m) | C14: Width (m) | E14: Height (m) | G14: Volume (m³) | H14: =((F14*D14)/2)*B14 -> 0 | I14: Pitched
A15: Length (m) | C15: Width (m) | E15: Height (m) | G15: Volume (m³) | H15: =B15*D15*F15/2 -> 0 | I15: Single Pitch
A16: Length (m) | C16: Height (m) | E16: Depth (m) | G16: Volume (m³) | H16: =D16*F16*B16/2 -> 0 | I16: Dormer 1
A17: Length (m) | C17: Height (m) | E17: Depth (m) | G17: Volume (m³) | H17: =D17*F17*B17/2 -> 0 | I17: Dormer 2
A18: Length (m) | C18: Height (m) | E18: Depth (m) | G18: Volume (m³) | H18: =D18*F18*B18/2 -> 0 | I18: Dormer 3
A19: Floor | I19: Temp Difference | J19: Heat Loss (W) | K19: Usage (kWh) | L19: Type of Ground Floor
A20: Length (m) | B20: =B10 -> 0.7 | C20: Width (m) | D20: =D10 -> 2.18 | E20: Area (m²) | F20: =B20*D20 -> 1.526 | G20: U Value (W/m²K) | H20: =IF(L22="",Q8,'floor u values'!K14) -> 0 | I20: =IF(B$3="Ground Floor",IF(L20="Solid Floor (in contact with ground)",C$4-S$3,C$4-C$5),IF(B$3="Single Storey",IF(L20="Solid Floor (in contact with ground)",C$4-S$3,C$4-C$5),0)) -> 0 | J20: =F20*H20*I20 -> 0 | K20: =IF($B$3=$Q$5,0,IF($B$3=$Q$7,0,F20*H20*$C$7*24/1000)) -> 0
A21: Length (m) | B21: =B11 -> 0 | C21: Width (m) | D21: =D11 -> 0 | E21: Area (m²) | F21: =B21*D21 -> 0 | G21: U Value (W/m²K) | H21: =H20 -> 0 | I21: =IF(B$3="Ground Floor",IF(L20="Solid Floor (in contact with ground)",C$4-S$3,C$4-C$5),IF(B$3="Single Storey",IF(L20="Solid Floor (in contact with ground)",C$4-S$3,C$4-C$5),0)) -> 0 | J21: =F21*H21*I21 -> 0 | K21: =IF($B$3=$Q$5,0,IF($B$3=$Q$7,0,F21*H21*$C$7*24/1000)) -> 0 | L21: Exposed floor (external)
A22: Length (m) | B22: 0 | C22: Width (m) | D22: 0 | E22: Area (m²) | F22: 0 | G22: U Value (W/m²K) | H22: =H20 -> 0 | I22: =IF(B$3="Ground Floor",IF(L20="Solid Floor (in contact with ground)",C$4-S$3,C$4-C$5),IF(B$3="Single Storey",IF(L20="Solid Floor (in contact with ground)",C$4-S$3,C$4-C$5),0)) -> 0 | J22: =F22*H22*I22 -> 0 | K22: =IF($B$3=$Q$5,0,IF($B$3=$Q$7,0,F22*H22*$C$7*24/1000)) -> 0
A23: External Wall | L23: =IF(L22="Two opposite","Between edges",IF(L22="One edge","Depth of room",IF(L22="3 edges (short single)","Short length",IF(L22="3 edges (long single)","Short length","")))) ->  | N23: =IF(L22="3 edges (short single)","Long length",IF(L22="3 edges (long single)","Long length","")) -> 
A24: Length (m) | C24: Height (m) | E24: Area (m²) | F24: 0
A25: Length (m) | C25: Height (m) | E25: Area (m²) | F25: 0
A26: Length (m) | C26: Height (m) | E26: Area (m²) | F26: 0
D27: Total | E27: Area (m²) | F27: =SUM(F24:F26)-SUM(F37:F43,F50:F53) -> 0 | G27: U Value (W/m²K) | H27: =IF($B$3="Ground floor",'Design Details'!B$48,IF($B$3="Mid-floor",'Design Details'!B$58,IF($B$3="Upper floor",'Design Details'!B$68,IF($B$3="Single Storey",'Design Details'!B$78,0)))) -> 0.44 | I27: =$C$6 -> 21 | J27: =F27*H27*I27 -> 0 | K27: =F27*H27*$C$7*24/1000 -> 0
A28: Roof
A29: Length (m) | B29: =B10 -> 0.7 | C29: Width (m) | D29: =D10 -> 2.18 | E29: Area (m²) | F29: 1.526
A30: Length (m) | B30: =B11 -> 0 | C30: Width (m) | D30: =D11 -> 0 | E30: Area (m²) | F30: 0
A31: Length (m) | B31: 0 | C31: Width (m) | D31: 0 | E31: Area (m²) | F31: 0
D32: Total | E32: Area (m²) | F32: =SUM(F29:F31)-SUM(F45:F48) -> 1.526 | G32: U Value (W/m²K) | H32: =IF($B$3="Ground floor",'Design Details'!B$49,IF($B$3="Mid-floor",'Design Details'!B$59,IF($B$3="Upper floor",'Design Details'!B$69,IF($B$3="Single Storey",'Design Details'!B$79,0)))) -> 0.12 | I32: =$C$6 -> 21 | J32: 3.84552 | K32: =IF($B$3=$Q$4,0,IF($B$3=$Q$5,0,F32*H32*$C$7*24/1000)) -> 9.79179264
A33: Length (m) | C33: Pitch (m) | E33: Area (m²) | F33: 0 | G33: Pitched
A34: Length (m) | C34: Pitch (m) | E34: Area (m²) | F34: 0 | G34: Single Pitch
D35: Total | E35: Area (m²) | F35: =SUM(F33:F34)-SUM(F45:F48) -> 0 | G35: U Value (W/m²K) | H35: =IF($B$3="Ground floor",'Design Details'!B$50,IF($B$3="Mid-floor",'Design Details'!B$60,IF($B$3="Upper floor",'Design Details'!B$70,IF($B$3="Single Storey",'Design Details'!B$80,0)))) -> 0.12 | I35: 21 | J35: 0 | K35: =IF($B$3=$Q$4,0,IF($B$3=$Q$5,0,F35*H35*$C$7*24/1000)) -> 0
A36: Windows
A37: Width (m) | C37: Height (m) | E37: Area (m²) | F37: 0 | G37: U Value (W/m²K) | H37: =IF($B$3="Ground floor",'Design Details'!B$46,IF($B$3="Mid-floor",'Design Details'!B$56,IF($B$3="Upper floor",'Design Details'!B$66,IF($B$3="Single Storey",'Design Details'!B$76,0)))) -> 2.8 | I37: 21 | J37: 0 | K37: =F37*H37*$C$7*24/1000 -> 0
A38: Width (m) | C38: Height (m) | E38: Area (m²) | F38: 0 | G38: U Value (W/m²K) | H38: =IF($B$3="Ground floor",'Design Details'!B$46,IF($B$3="Mid-floor",'Design Details'!B$56,IF($B$3="Upper floor",'Design Details'!B$66,IF($B$3="Single Storey",'Design Details'!B$76,0)))) -> 2.8 | I38: 21 | J38: 0 | K38: 0
A39: Width (m) | C39: Height (m) | E39: Area (m²) | F39: 0 | G39: U Value (W/m²K) | H39: =IF($B$3="Ground floor",'Design Details'!B$46,IF($B$3="Mid-floor",'Design Details'!B$56,IF($B$3="Upper floor",'Design Details'!B$66,IF($B$3="Single Storey",'Design Details'!B$76,0)))) -> 2.8 | I39: 21 | J39: 0 | K39: 0
A40: Width (m) | C40: Height (m) | E40: Area (m²) | F40: 0 | G40: U Value (W/m²K) | H40: =IF($B$3="Ground floor",'Design Details'!B$46,IF($B$3="Mid-floor",'Design Details'!B$56,IF($B$3="Upper floor",'Design Details'!B$66,IF($B$3="Single Storey",'Design Details'!B$76,0)))) -> 2.8 | I40: 21 | J40: 0 | K40: 0
A41: Width (m) | C41: Height (m) | E41: Area (m²) | F41: 0 | G41: U Value (W/m²K) | H41: =IF($B$3="Ground floor",'Design Details'!B$46,IF($B$3="Mid-floor",'Design Details'!B$56,IF($B$3="Upper floor",'Design Details'!B$66,IF($B$3="Single Storey",'Design Details'!B$76,0)))) -> 2.8 | I41: 21 | J41: 0 | K41: 0
A42: Width (m) | C42: Height (m) | E42: Area (m²) | F42: 0 | G42: U Value (W/m²K) | H42: =IF($B$3="Ground floor",'Design Details'!B$46,IF($B$3="Mid-floor",'Design Details'!B$56,IF($B$3="Upper floor",'Design Details'!B$66,IF($B$3="Single Storey",'Design Details'!B$76,0)))) -> 2.8 | I42: 21 | J42: 0 | K42: 0
A43: Width (m) | C43: Height (m) | E43: Area (m²) | F43: 0 | G43: U Value (W/m²K) | H43: =IF($B$3="Ground floor",'Design Details'!B$46,IF($B$3="Mid-floor",'Design Details'!B$56,IF($B$3="Upper floor",'Design Details'!B$66,IF($B$3="Single Storey",'Design Details'!B$76,0)))) -> 2.8 | I43: 21 | J43: 0 | K43: 0
A44: Roof Glazing
A45: Width (m) | C45: Height (m) | E45: Area (m²) | F45: 0 | G45: U Value (W/m²K) | H45: =IF($B$3="Ground floor",'Design Details'!B$53,IF($B$3="Mid-floor",'Design Details'!B$63,IF($B$3="Upper floor",'Design Details'!B$73,IF($B$3="Single Storey",'Design Details'!B$83,0)))) -> 2.8 | I45: 21 | J45: 0 | K45: =F45*H45*$C$7*24/1000 -> 0
A46: Width (m) | C46: Height (m) | E46: Area (m²) | F46: 0 | G46: U Value (W/m²K) | H46: =IF($B$3="Ground floor",'Design Details'!B$53,IF($B$3="Mid-floor",'Design Details'!B$63,IF($B$3="Upper floor",'Design Details'!B$73,IF($B$3="Single Storey",'Design Details'!B$83,0)))) -> 2.8 | I46: 21 | J46: 0 | K46: =F46*H46*$C$7*24/1000 -> 0
A47: Width (m) | C47: Height (m) | E47: Area (m²) | F47: 0 | G47: U Value (W/m²K) | H47: =IF($B$3="Ground floor",'Design Details'!B$53,IF($B$3="Mid-floor",'Design Details'!B$63,IF($B$3="Upper floor",'Design Details'!B$73,IF($B$3="Single Storey",'Design Details'!B$83,0)))) -> 2.8 | I47: 21 | J47: 0 | K47: =F47*H47*$C$7*24/1000 -> 0
A48: Width (m) | C48: Height (m) | E48: Area (m²) | F48: 0 | G48: U Value (W/m²K) | H48: =IF($B$3="Ground floor",'Design Details'!B$53,IF($B$3="Mid-floor",'Design Details'!B$63,IF($B$3="Upper floor",'Design Details'!B$73,IF($B$3="Single Storey",'Design Details'!B$83,0)))) -> 2.8 | I48: 21 | J48: 0 | K48: =F48*H48*$C$7*24/1000 -> 0
A49: Doors
A50: Width (m) | C50: Height (m) | E50: Area (m²) | F50: 0 | G50: U Value (W/m²K) | H50: =IF($B$3="Ground floor",'Design Details'!B$47,IF($B$3="Mid-floor",'Design Details'!B$57,IF($B$3="Upper floor",'Design Details'!B$67,IF($B$3="Single Storey",'Design Details'!B$77,0)))) -> 2.8 | I50: 21 | J50: 0 | K50: =F50*H50*$C$7*24/1000 -> 0
A51: Width (m) | C51: Height (m) | E51: Area (m²) | F51: 0 | G51: U Value (W/m²K) | H51: =IF($B$3="Ground floor",'Design Details'!B$47,IF($B$3="Mid-floor",'Design Details'!B$57,IF($B$3="Upper floor",'Design Details'!B$67,IF($B$3="Single Storey",'Design Details'!B$77,0)))) -> 2.8 | I51: 21 | J51: 0 | K51: =F51*H51*$C$7*24/1000 -> 0
A52: Width (m) | C52: Height (m) | E52: Area (m²) | F52: 0 | G52: U Value (W/m²K) | H52: =IF($B$3="Ground floor",'Design Details'!B$47,IF($B$3="Mid-floor",'Design Details'!B$57,IF($B$3="Upper floor",'Design Details'!B$67,IF($B$3="Single Storey",'Design Details'!B$77,0)))) -> 2.8 | I52: 21 | J52: 0 | K52: =F52*H52*$C$7*24/1000 -> 0
A53: Width (m) | C53: Height (m) | E53: Area (m²) | F53: 0 | G53: U Value (W/m²K) | H53: =IF($B$3="Ground floor",'Design Details'!B$47,IF($B$3="Mid-floor",'Design Details'!B$57,IF($B$3="Upper floor",'Design Details'!B$67,IF($B$3="Single Storey",'Design Details'!B$77,0)))) -> 2.8 | I53: 21 | J53: 0 | K53: =F53*H53*$C$7*24/1000 -> 0
A54: Internal Walls | L54: Adjoining Room Temp (°C)
A55: Length (m) | B55: 0.7 | C55: Height (m) | D55: 2.35 | E55: Area (m²) | F55: 1.645 | G55: U Value (W/m²K) | H55: 0.44 | I55: 8 | J55: 5.7904
A56: Length (m) | C56: Height (m) | E56: Area (m²) | F56: 0 | G56: U Value (W/m²K) | H56: =IF($B$3="Ground floor",'Design Details'!B$51,IF($B$3="Mid-floor",'Design Details'!B$61,IF($B$3="Upper floor",'Design Details'!B$71,IF($B$3="Single Storey",'Design Details'!B$81,0)))) -> 1.72 | I56: =IF(L56="",0,IF(L56="unheated",C$4-10,C$4-L56)) -> 0 | J56: 0
A57: Length (m) | C57: Height (m) | E57: Area (m²) | F57: 0 | G57: U Value (W/m²K) | H57: =IF($B$3="Ground floor",'Design Details'!B$51,IF($B$3="Mid-floor",'Design Details'!B$61,IF($B$3="Upper floor",'Design Details'!B$71,IF($B$3="Single Storey",'Design Details'!B$81,0)))) -> 1.72 | I57: =IF(L57="",0,IF(L57="unheated",C$4-10,C$4-L57)) -> 0 | J57: 0
A58: Length (m) | C58: Height (m) | E58: Area (m²) | F58: 0 | G58: U Value (W/m²K) | H58: =IF($B$3="Ground floor",'Design Details'!B$51,IF($B$3="Mid-floor",'Design Details'!B$61,IF($B$3="Upper floor",'Design Details'!B$71,IF($B$3="Single Storey",'Design Details'!B$81,0)))) -> 1.72 | I58: =IF(L58="",0,IF(L58="unheated",C$4-10,C$4-L58)) -> 0 | J58: 0
A59: Party Wall
A60: Length (m) | C60: Height (m) | E60: Area (m²) | F60: 0 | G60: U Value (W/m²K) | H60: =IF($B$3="Ground floor",'Design Details'!B$52,IF($B$3="Mid-floor",'Design Details'!B$62,IF($B$3="Upper floor",'Design Details'!B$72,IF($B$3="Single Storey",'Design Details'!B$82,0)))) -> 1 | I60: =C4-10 -> 8 | J60: 0 | K60: =F60*H60*$C$7*24/1000 -> 0

Sheet 14
A1: Room Information | D1: Ventilation Heat Loss | G1: Fabric | H1: Heat Loss (W) | I1: Usage (kWh) | J1: Additional heat loss | L1: Addition | M1: Watts | N1: kWh
A2: Room | B2: Bath | D2: Air Changes a hour | F2: ='Design Details'!F100 -> 3 | G2: Floor | H2: =SUM(J20:J22) -> 0 | I2: =SUM(K20:K22) -> 0 | J2: Thermal Bridging (New Build >2006) | L2: 0 | M2: =SUM(H$2:H$6)*L2 -> 0 | N2: =SUM(I$2:I$6)*L2 -> 0 | P2: 3 edges (long single) | Q2: Level | X2: 1
A3: Level | B3: Upper floor | D3: Air Change Factor (W/m³K) | F3: 0.33 | G3: Ext Wall | H3: =J27 -> 54.306252 | I3: =K27 -> 138.2792337 | J3: Exposed location | L3: 0 | M3: =SUM(H$2:H$6)*L3 -> 0 | N3: =SUM(I$2:I$6)*L3 -> 0 | P3: 3 edges (short single) | Q3: Please Select Floor | R3: =IF($B$3="Ground floor","Solid Floor (in contact with ground)",IF($B$3="Single Storey","Solid Floor (in contact with ground)","n/a")) -> n/a | S3: ='Design Details'!B21 -> 10 | T3: unheated | U3: 0 | V3: 0 | W3: 0 | X3: 2
A4: Design Room Temp (°C) | C4: 18 | D4: Total Volume (m³) | F4: =SUM(H10:H12,H14:H18) -> 32.30092 | G4: Roof | H4: 49.79 | I4: =SUM(K32,K35) -> 76.28101632 | J4: High ceiling | L4: 0 | M4: =SUM(H$2:H$6)*L4 -> 0 | N4: =SUM(I$2:I$6)*L4 -> 0 | P4: One edge | Q4: Ground floor | R4: =IF($B$3="Ground floor","Suspended Floor",IF($B$3="Single Storey","Suspended Floor","n/a")) -> n/a | T4: 16 | U4: 0.1 | V4: 0.2 | W4: 0.025 | X4: 3
A5: Outside Design Temp (°C) | C5: ='Design Details'!B19 -> -3 | D5: Heat loss (W) | F5: =F4*F3*C6*F2 -> 671.5361268 | G5: Glazing | H5: =SUM(J37:J43,J45:J48,J50:J53) -> 145.18896 | I5: =SUM(K37:K43,K45:K48,K50:K53) -> 369.6925747 | J5: Intermittent heating | L5: 0 | M5: =SUM(H$2:H$6)*L5 -> 0 | N5: =SUM(I$2:I$6)*L5 -> 0 | P5: Two adjacent | Q5: Mid-floor | T5: 18 | W5: 0.05 | X5: 4
A6: Temp Difference (°C) | C6: =C4-C5 -> 21 | D6: Estimated Energy usage (kWh) | F6: =F4*F3*C7*24/1000 -> 569.9742821 | G6: Int./Party Wall | H6: =SUM(J55:J58,J60) -> 143.61787 | I6: =SUM(K60) -> 0 | M6: Total Room Heat Loss (W) | N6: =SUM(F5,H2:H6,M2:M5) -> 1064.439209 | P6: Two opposite | Q6: Single storey | T6: 21 | W6: 0.075 | X6: 5
A7: Degree Days | C7: ='Design Details'!B20 -> 2228 | M7: Total Room Energy Usage (kWh) | N7: =SUM(F6,I2:I6,N2:N5) -> 1154.227107 | Q7: Upper floor | T7: 22 | W7: 0.1 | X7: 6
Q8: =IF($B$3="Ground floor",'Design Details'!B$45,IF($B$3="Mid-floor",'Design Details'!B$55,IF($B$3="Upper floor",'Design Details'!B$65,IF($B$3="Single Storey",'Design Details'!B$75,0)))) -> 0 | X8: 7
A9: Room Dimensions | X9: 8
A10: Length (m) | B10: 2.64 | C10: Width (m) | D10: 3.2 | E10: Height (m) | F10: 2.39 | G10: Volume (m³) | H10: =B10*D10*F10 -> 20.19072 | X10: 9
A11: Length (m) | B11: 0.76 | C11: Width (m) | D11: 3.2 | E11: Height (m) | F11: 1.6 | G11: Volume (m³) | H11: =B11*D11*F11 -> 3.8912 | X11: 10
A12: Length (m) | C12: Width (m) | E12: Height (m) | G12: Volume (m³) | H12: 8.219
A13: Awkward Room Dimensions
A14: Length (m) | C14: Width (m) | E14: Height (m) | G14: Volume (m³) | H14: =((F14*D14)/2)*B14 -> 0 | I14: Pitched
A15: Length (m) | C15: Width (m) | E15: Height (m) | G15: Volume (m³) | H15: =B15*D15*F15/2 -> 0 | I15: Single Pitch
A16: Length (m) | C16: Height (m) | E16: Depth (m) | G16: Volume (m³) | H16: =D16*F16*B16/2 -> 0 | I16: Dormer 1
A17: Length (m) | C17: Height (m) | E17: Depth (m) | G17: Volume (m³) | H17: =D17*F17*B17/2 -> 0 | I17: Dormer 2
A18: Length (m) | C18: Height (m) | E18: Depth (m) | G18: Volume (m³) | H18: =D18*F18*B18/2 -> 0 | I18: Dormer 3
A19: Floor | I19: Temp Difference | J19: Heat Loss (W) | K19: Usage (kWh) | L19: Type of Ground Floor
A20: Length (m) | B20: =B10 -> 2.64 | C20: Width (m) | D20: =D10 -> 3.2 | E20: Area (m²) | F20: =B20*D20 -> 8.448 | G20: U Value (W/m²K) | H20: =IF(L22="",Q8,'floor u values'!K15) -> 0 | I20: =IF(B$3="Ground Floor",IF(L20="Solid Floor (in contact with ground)",C$4-S$3,C$4-C$5),IF(B$3="Single Storey",IF(L20="Solid Floor (in contact with ground)",C$4-S$3,C$4-C$5),0)) -> 0 | J20: =F20*H20*I20 -> 0 | K20: =IF($B$3=$Q$5,0,IF($B$3=$Q$7,0,F20*H20*$C$7*24/1000)) -> 0
A21: Length (m) | B21: =B11 -> 0.76 | C21: Width (m) | D21: =D11 -> 3.2 | E21: Area (m²) | F21: =B21*D21 -> 2.432 | G21: U Value (W/m²K) | H21: =H20 -> 0 | I21: =IF(B$3="Ground Floor",IF(L20="Solid Floor (in contact with ground)",C$4-S$3,C$4-C$5),IF(B$3="Single Storey",IF(L20="Solid Floor (in contact with ground)",C$4-S$3,C$4-C$5),0)) -> 0 | J21: =F21*H21*I21 -> 0 | K21: =IF($B$3=$Q$5,0,IF($B$3=$Q$7,0,F21*H21*$C$7*24/1000)) -> 0 | L21: Exposed floor (external)
A22: Length (m) | B22: 0 | C22: Width (m) | D22: 0 | E22: Area (m²) | F22: 3.44 | G22: U Value (W/m²K) | H22: =H20 -> 0 | I22: =IF(B$3="Ground Floor",IF(L20="Solid Floor (in contact with ground)",C$4-S$3,C$4-C$5),IF(B$3="Single Storey",IF(L20="Solid Floor (in contact with ground)",C$4-S$3,C$4-C$5),0)) -> 0 | J22: =F22*H22*I22 -> 0 | K22: =IF($B$3=$Q$5,0,IF($B$3=$Q$7,0,F22*H22*$C$7*24/1000)) -> 0
A23: External Wall | L23: =IF(L22="Two opposite","Between edges",IF(L22="One edge","Depth of room",IF(L22="3 edges (short single)","Short length",IF(L22="3 edges (long single)","Short length","")))) ->  | N23: =IF(L22="3 edges (short single)","Long length",IF(L22="3 edges (long single)","Long length","")) -> 
A24: Length (m) | B24: 3.2 | C24: Height (m) | D24: 1.6 | E24: Area (m²) | F24: 5.12
A25: Length (m) | B25: 1.35 | C25: Height (m) | D25: 2.39 | E25: Area (m²) | F25: 3.2265
A26: Length (m) | C26: Height (m) | E26: Area (m²) | F26: 0
D27: Total | E27: Area (m²) | F27: =SUM(F24:F26)-SUM(F37:F43,F50:F53) -> 5.8773 | G27: U Value (W/m²K) | H27: 0.44 | I27: =$C$6 -> 21 | J27: =F27*H27*I27 -> 54.306252 | K27: =F27*H27*$C$7*24/1000 -> 138.2792337
A28: Roof | J28: 11.56
A29: Length (m) | B29: =B10 -> 2.64 | C29: Width (m) | D29: =D10 -> 3.2 | E29: Area (m²) | F29: 10.99
A30: Length (m) | B30: =B11 -> 0.76 | C30: Width (m) | D30: =D11 -> 3.2 | E30: Area (m²) | F30: 2.432
A31: Length (m) | B31: 0 | C31: Width (m) | D31: 0 | E31: Area (m²) | F31: 0 | J31: 19.83
D32: Total | E32: Area (m²) | F32: 11.888 | G32: U Value (W/m²K) | H32: 0.12 | I32: =$C$6 -> 21 | J32: 29.95776 | K32: =IF($B$3=$Q$4,0,IF($B$3=$Q$5,0,F32*H32*$C$7*24/1000)) -> 76.28101632
A33: Length (m) | C33: Pitch (m) | E33: Area (m²) | F33: 0 | G33: Pitched
A34: Length (m) | C34: Pitch (m) | E34: Area (m²) | F34: 0 | G34: Single Pitch
D35: Total | E35: Area (m²) | F35: =SUM(F33:F34)-SUM(F45:F48) -> 0 | G35: U Value (W/m²K) | H35: =IF($B$3="Ground floor",'Design Details'!B$50,IF($B$3="Mid-floor",'Design Details'!B$60,IF($B$3="Upper floor",'Design Details'!B$70,IF($B$3="Single Storey",'Design Details'!B$80,0)))) -> 0.12 | I35: 21 | J35: 0 | K35: =IF($B$3=$Q$4,0,IF($B$3=$Q$5,0,F35*H35*$C$7*24/1000)) -> 0
A36: Windows
A37: Width (m) | B37: 1.12 | C37: Height (m) | D37: 1.16 | E37: Area (m²) | F37: 1.2992 | G37: U Value (W/m²K) | H37: =IF($B$3="Ground floor",'Design Details'!B$46,IF($B$3="Mid-floor",'Design Details'!B$56,IF($B$3="Upper floor",'Design Details'!B$66,IF($B$3="Single Storey",'Design Details'!B$76,0)))) -> 2.8 | I37: 21 | J37: 76.39296 | K37: =F37*H37*$C$7*24/1000 -> 194.5183027
A38: Width (m) | B38: 1 | C38: Height (m) | D38: 1.17 | E38: Area (m²) | F38: 1.17 | G38: U Value (W/m²K) | H38: =IF($B$3="Ground floor",'Design Details'!B$46,IF($B$3="Mid-floor",'Design Details'!B$56,IF($B$3="Upper floor",'Design Details'!B$66,IF($B$3="Single Storey",'Design Details'!B$76,0)))) -> 2.8 | I38: 21 | J38: 68.796 | K38: 175.174272
A39: Width (m) | C39: Height (m) | E39: Area (m²) | F39: 0 | G39: U Value (W/m²K) | H39: =IF($B$3="Ground floor",'Design Details'!B$46,IF($B$3="Mid-floor",'Design Details'!B$56,IF($B$3="Upper floor",'Design Details'!B$66,IF($B$3="Single Storey",'Design Details'!B$76,0)))) -> 2.8 | I39: 21 | J39: 0 | K39: 0
A40: Width (m) | C40: Height (m) | E40: Area (m²) | F40: 0 | G40: U Value (W/m²K) | H40: =IF($B$3="Ground floor",'Design Details'!B$46,IF($B$3="Mid-floor",'Design Details'!B$56,IF($B$3="Upper floor",'Design Details'!B$66,IF($B$3="Single Storey",'Design Details'!B$76,0)))) -> 2.8 | I40: 21 | J40: 0 | K40: 0
A41: Width (m) | C41: Height (m) | E41: Area (m²) | F41: 0 | G41: U Value (W/m²K) | H41: =IF($B$3="Ground floor",'Design Details'!B$46,IF($B$3="Mid-floor",'Design Details'!B$56,IF($B$3="Upper floor",'Design Details'!B$66,IF($B$3="Single Storey",'Design Details'!B$76,0)))) -> 2.8 | I41: 21 | J41: 0 | K41: 0
A42: Width (m) | C42: Height (m) | E42: Area (m²) | F42: 0 | G42: U Value (W/m²K) | H42: =IF($B$3="Ground floor",'Design Details'!B$46,IF($B$3="Mid-floor",'Design Details'!B$56,IF($B$3="Upper floor",'Design Details'!B$66,IF($B$3="Single Storey",'Design Details'!B$76,0)))) -> 2.8 | I42: 21 | J42: 0 | K42: 0
A43: Width (m) | C43: Height (m) | E43: Area (m²) | F43: 0 | G43: U Value (W/m²K) | H43: =IF($B$3="Ground floor",'Design Details'!B$46,IF($B$3="Mid-floor",'Design Details'!B$56,IF($B$3="Upper floor",'Design Details'!B$66,IF($B$3="Single Storey",'Design Details'!B$76,0)))) -> 2.8 | I43: 21 | J43: 0 | K43: 0
A44: Roof Glazing
A45: Width (m) | C45: Height (m) | E45: Area (m²) | F45: 0 | G45: U Value (W/m²K) | H45: =IF($B$3="Ground floor",'Design Details'!B$53,IF($B$3="Mid-floor",'Design Details'!B$63,IF($B$3="Upper floor",'Design Details'!B$73,IF($B$3="Single Storey",'Design Details'!B$83,0)))) -> 2.8 | I45: 21 | J45: 0 | K45: =F45*H45*$C$7*24/1000 -> 0
A46: Width (m) | C46: Height (m) | E46: Area (m²) | F46: 0 | G46: U Value (W/m²K) | H46: =IF($B$3="Ground floor",'Design Details'!B$53,IF($B$3="Mid-floor",'Design Details'!B$63,IF($B$3="Upper floor",'Design Details'!B$73,IF($B$3="Single Storey",'Design Details'!B$83,0)))) -> 2.8 | I46: 21 | J46: 0 | K46: =F46*H46*$C$7*24/1000 -> 0
A47: Width (m) | C47: Height (m) | E47: Area (m²) | F47: 0 | G47: U Value (W/m²K) | H47: =IF($B$3="Ground floor",'Design Details'!B$53,IF($B$3="Mid-floor",'Design Details'!B$63,IF($B$3="Upper floor",'Design Details'!B$73,IF($B$3="Single Storey",'Design Details'!B$83,0)))) -> 2.8 | I47: 21 | J47: 0 | K47: =F47*H47*$C$7*24/1000 -> 0
A48: Width (m) | C48: Height (m) | E48: Area (m²) | F48: 0 | G48: U Value (W/m²K) | H48: =IF($B$3="Ground floor",'Design Details'!B$53,IF($B$3="Mid-floor",'Design Details'!B$63,IF($B$3="Upper floor",'Design Details'!B$73,IF($B$3="Single Storey",'Design Details'!B$83,0)))) -> 2.8 | I48: 21 | J48: 0 | K48: =F48*H48*$C$7*24/1000 -> 0
A49: Doors
A50: Width (m) | C50: Height (m) | E50: Area (m²) | F50: 0 | G50: U Value (W/m²K) | H50: =IF($B$3="Ground floor",'Design Details'!B$47,IF($B$3="Mid-floor",'Design Details'!B$57,IF($B$3="Upper floor",'Design Details'!B$67,IF($B$3="Single Storey",'Design Details'!B$77,0)))) -> 2.8 | I50: 21 | J50: 0 | K50: =F50*H50*$C$7*24/1000 -> 0
A51: Width (m) | C51: Height (m) | E51: Area (m²) | F51: 0 | G51: U Value (W/m²K) | H51: =IF($B$3="Ground floor",'Design Details'!B$47,IF($B$3="Mid-floor",'Design Details'!B$57,IF($B$3="Upper floor",'Design Details'!B$67,IF($B$3="Single Storey",'Design Details'!B$77,0)))) -> 2.8 | I51: 21 | J51: 0 | K51: =F51*H51*$C$7*24/1000 -> 0
A52: Width (m) | C52: Height (m) | E52: Area (m²) | F52: 0 | G52: U Value (W/m²K) | H52: =IF($B$3="Ground floor",'Design Details'!B$47,IF($B$3="Mid-floor",'Design Details'!B$57,IF($B$3="Upper floor",'Design Details'!B$67,IF($B$3="Single Storey",'Design Details'!B$77,0)))) -> 2.8 | I52: 21 | J52: 0 | K52: =F52*H52*$C$7*24/1000 -> 0
A53: Width (m) | C53: Height (m) | E53: Area (m²) | F53: 0 | G53: U Value (W/m²K) | H53: =IF($B$3="Ground floor",'Design Details'!B$47,IF($B$3="Mid-floor",'Design Details'!B$57,IF($B$3="Upper floor",'Design Details'!B$67,IF($B$3="Single Storey",'Design Details'!B$77,0)))) -> 2.8 | I53: 21 | J53: 0 | K53: =F53*H53*$C$7*24/1000 -> 0
A54: Internal Walls | L54: Adjoining Room Temp (°C)
A55: Length (m) | B55: 2.7 | C55: Height (m) | D55: 1.59 | E55: Area (m²) | F55: 4.293 | G55: U Value (W/m²K) | H55: 0.19 | I55: 21 | J55: 17.12907
A56: Length (m) | B56: 2.7 | C56: Height (m) | D56: 1.59 | E56: Area (m²) | F56: 4.293 | G56: U Value (W/m²K) | H56: =IF($B$3="Ground floor",'Design Details'!B$51,IF($B$3="Mid-floor",'Design Details'!B$61,IF($B$3="Upper floor",'Design Details'!B$71,IF($B$3="Single Storey",'Design Details'!B$81,0)))) -> 1.72 | I56: 8 | J56: 59.07168
A57: Length (m) | C57: Height (m) | E57: Area (m²) | F57: 0 | G57: U Value (W/m²K) | H57: =IF($B$3="Ground floor",'Design Details'!B$51,IF($B$3="Mid-floor",'Design Details'!B$61,IF($B$3="Upper floor",'Design Details'!B$71,IF($B$3="Single Storey",'Design Details'!B$81,0)))) -> 1.72 | I57: =IF(L57="",0,IF(L57="unheated",C$4-10,C$4-L57)) -> 0 | J57: 0
A58: Length (m) | B58: 2.05 | C58: Height (m) | D58: 2.39 | E58: Area (m²) | F58: 4.8995 | G58: U Value (W/m²K) | H58: =IF($B$3="Ground floor",'Design Details'!B$51,IF($B$3="Mid-floor",'Design Details'!B$61,IF($B$3="Upper floor",'Design Details'!B$71,IF($B$3="Single Storey",'Design Details'!B$81,0)))) -> 1.72 | I58: 8 | J58: 67.41712
A59: Party Wall
A60: Length (m) | C60: Height (m) | E60: Area (m²) | F60: 0 | G60: U Value (W/m²K) | H60: =IF($B$3="Ground floor",'Design Details'!B$52,IF($B$3="Mid-floor",'Design Details'!B$62,IF($B$3="Upper floor",'Design Details'!B$72,IF($B$3="Single Storey",'Design Details'!B$82,0)))) -> 1 | I60: =C4-10 -> 8 | J60: 0 | K60: =F60*H60*$C$7*24/1000 -> 0

Sheet 15
A1: Room Information | D1: Ventilation Heat Loss | G1: Fabric | H1: Heat Loss (W) | I1: Usage (kWh) | J1: Additional heat loss | L1: Addition | M1: Watts | N1: kWh
A2: Room | B2: Landing | D2: Air Changes a hour | F2: ='Design Details'!F101 -> 2.0 | G2: Floor | H2: =SUM(J20:J22) -> 0 | I2: =SUM(K20:K22) -> 0 | J2: Thermal Bridging (New Build >2006) | L2: 0 | M2: =SUM(H$2:H$6)*L2 -> 0 | N2: =SUM(I$2:I$6)*L2 -> 0 | P2: 3 edges (long single) | Q2: Level | X2: 1
A3: Level | B3: Upper floor | D3: Air Change Factor (W/m³K) | F3: 0.33 | G3: Ext Wall | H3: =J27 -> 28.267008 | I3: =K27 -> 71.97587866 | J3: Exposed location | L3: 0 | M3: =SUM(H$2:H$6)*L3 -> 0 | N3: =SUM(I$2:I$6)*L3 -> 0 | P3: 3 edges (short single) | Q3: Please Select Floor | R3: =IF($B$3="Ground floor","Solid Floor (in contact with ground)",IF($B$3="Single Storey","Solid Floor (in contact with ground)","n/a")) -> n/a | S3: ='Design Details'!B21 -> 10 | T3: unheated | U3: 0 | V3: 0 | W3: 0 | X3: 2
A4: Design Room Temp (°C) | C4: ='Design Details'!D101 -> 18 | D4: Total Volume (m³) | F4: =SUM(H10:H12,H14:H18) -> 22.345066 | G4: Roof | H4: =SUM(J32,J35) -> 23.560488 | I4: =SUM(K32,K35) -> 59.99173402 | J4: High ceiling | L4: 0 | M4: =SUM(H$2:H$6)*L4 -> 0 | N4: =SUM(I$2:I$6)*L4 -> 0 | P4: One edge | Q4: Ground floor | R4: =IF($B$3="Ground floor","Suspended Floor",IF($B$3="Single Storey","Suspended Floor","n/a")) -> n/a | T4: 16 | U4: 0.1 | V4: 0.2 | W4: 0.025 | X4: 3
A5: Outside Design Temp (°C) | C5: ='Design Details'!B19 -> -3 | D5: Heat loss (W) | F5: =F4*F3*C6*F2 -> 309.7026148 | G5: Glazing | H5: =SUM(J37:J43,J45:J48,J50:J53) -> 0 | I5: =SUM(K37:K43,K45:K48,K50:K53) -> 0 | J5: Intermittent heating | L5: 0 | M5: =SUM(H$2:H$6)*L5 -> 0 | N5: =SUM(I$2:I$6)*L5 -> 0 | P5: Two adjacent | Q5: Mid-floor | T5: 18 | W5: 0.05 | X5: 4
A6: Temp Difference (°C) | C6: =C4-C5 -> 21 | D6: Estimated Energy usage (kWh) | F6: =F4*F3*C7*24/1000 -> 394.2956718 | G6: Int./Party Wall | H6: =SUM(J55:J58,J60) -> 0 | I6: =SUM(K60) -> 0 | M6: Total Room Heat Loss (W) | N6: =SUM(F5,H2:H6,M2:M5) -> 361.5301108 | P6: Two opposite | Q6: Single storey | T6: 21 | W6: 0.075 | X6: 5
A7: Degree Days | C7: ='Design Details'!B20 -> 2228 | M7: Total Room Energy Usage (kWh) | N7: =SUM(F6,I2:I6,N2:N5) -> 526.2632845 | Q7: Upper floor | T7: 22 | W7: 0.1 | X7: 6
Q8: =IF($B$3="Ground floor",'Design Details'!B$45,IF($B$3="Mid-floor",'Design Details'!B$55,IF($B$3="Upper floor",'Design Details'!B$65,IF($B$3="Single Storey",'Design Details'!B$75,0)))) -> 0 | X8: 7
A9: Room Dimensions | X9: 8
A10: Length (m) | B10: 3.06 | C10: Width (m) | D10: 0.81 | E10: Height (m) | F10: 2.39 | G10: Volume (m³) | H10: =B10*D10*F10 -> 5.923854 | X10: 9
A11: Length (m) | B11: 1.78 | C11: Width (m) | D11: 3.86 | E11: Height (m) | F11: 2.39 | G11: Volume (m³) | H11: =B11*D11*F11 -> 16.421212 | X11: 10
A12: Length (m) | C12: Width (m) | E12: Height (m) | G12: Volume (m³) | H12: =B12*D12*F12 -> 0
A13: Awkward Room Dimensions
A14: Length (m) | C14: Width (m) | E14: Height (m) | G14: Volume (m³) | H14: =((F14*D14)/2)*B14 -> 0 | I14: Pitched
A15: Length (m) | C15: Width (m) | E15: Height (m) | G15: Volume (m³) | H15: =B15*D15*F15/2 -> 0 | I15: Single Pitch
A16: Length (m) | C16: Height (m) | E16: Depth (m) | G16: Volume (m³) | H16: =D16*F16*B16/2 -> 0 | I16: Dormer 1
A17: Length (m) | C17: Height (m) | E17: Depth (m) | G17: Volume (m³) | H17: =D17*F17*B17/2 -> 0 | I17: Dormer 2
A18: Length (m) | C18: Height (m) | E18: Depth (m) | G18: Volume (m³) | H18: =D18*F18*B18/2 -> 0 | I18: Dormer 3
A19: Floor | I19: Temp Difference | J19: Heat Loss (W) | K19: Usage (kWh) | L19: Type of Ground Floor
A20: Length (m) | B20: =B10 -> 3.06 | C20: Width (m) | D20: =D10 -> 0.81 | E20: Area (m²) | F20: =B20*D20 -> 2.4786 | G20: U Value (W/m²K) | H20: =IF(L22="",Q8,'floor u values'!K16) -> 0 | I20: =IF(B$3="Ground Floor",IF(L20="Solid Floor (in contact with ground)",C$4-S$3,C$4-C$5),IF(B$3="Single Storey",IF(L20="Solid Floor (in contact with ground)",C$4-S$3,C$4-C$5),0)) -> 0 | J20: =F20*H20*I20 -> 0 | K20: =IF($B$3=$Q$5,0,IF($B$3=$Q$7,0,F20*H20*$C$7*24/1000)) -> 0
A21: Length (m) | B21: =B11 -> 1.78 | C21: Width (m) | D21: =D11 -> 3.86 | E21: Area (m²) | F21: =B21*D21 -> 6.8708 | G21: U Value (W/m²K) | H21: =H20 -> 0 | I21: =IF(B$3="Ground Floor",IF(L20="Solid Floor (in contact with ground)",C$4-S$3,C$4-C$5),IF(B$3="Single Storey",IF(L20="Solid Floor (in contact with ground)",C$4-S$3,C$4-C$5),0)) -> 0 | J21: =F21*H21*I21 -> 0 | K21: =IF($B$3=$Q$5,0,IF($B$3=$Q$7,0,F21*H21*$C$7*24/1000)) -> 0 | L21: Exposed floor (external)
A22: Length (m) | B22: 0 | C22: Width (m) | D22: 0 | E22: Area (m²) | F22: 0 | G22: U Value (W/m²K) | H22: =H20 -> 0 | I22: =IF(B$3="Ground Floor",IF(L20="Solid Floor (in contact with ground)",C$4-S$3,C$4-C$5),IF(B$3="Single Storey",IF(L20="Solid Floor (in contact with ground)",C$4-S$3,C$4-C$5),0)) -> 0 | J22: =F22*H22*I22 -> 0 | K22: =IF($B$3=$Q$5,0,IF($B$3=$Q$7,0,F22*H22*$C$7*24/1000)) -> 0
A23: External Wall | L23: =IF(L22="Two opposite","Between edges",IF(L22="One edge","Depth of room",IF(L22="3 edges (short single)","Short length",IF(L22="3 edges (long single)","Short length","")))) ->  | N23: =IF(L22="3 edges (short single)","Long length",IF(L22="3 edges (long single)","Long length","")) -> 
A24: Length (m) | B24: 1.28 | C24: Height (m) | D24: 2.39 | E24: Area (m²) | F24: 3.0592
A25: Length (m) | C25: Height (m) | E25: Area (m²) | F25: 0
A26: Length (m) | C26: Height (m) | E26: Area (m²) | F26: 0
D27: Total | E27: Area (m²) | F27: =SUM(F24:F26)-SUM(F37:F43,F50:F53) -> 3.0592 | G27: U Value (W/m²K) | H27: =IF($B$3="Ground floor",'Design Details'!B$48,IF($B$3="Mid-floor",'Design Details'!B$58,IF($B$3="Upper floor",'Design Details'!B$68,IF($B$3="Single Storey",'Design Details'!B$78,0)))) -> 0.44 | I27: =$C$6 -> 21 | J27: =F27*H27*I27 -> 28.267008 | K27: =F27*H27*$C$7*24/1000 -> 71.97587866
A28: Roof
A29: Length (m) | B29: =B10 -> 3.06 | C29: Width (m) | D29: =D10 -> 0.81 | E29: Area (m²) | F29: 2.4786
A30: Length (m) | B30: =B11 -> 1.78 | C30: Width (m) | D30: =D11 -> 3.86 | E30: Area (m²) | F30: 6.8708
A31: Length (m) | B31: 0 | C31: Width (m) | D31: 0 | E31: Area (m²) | F31: 0
D32: Total | E32: Area (m²) | F32: =SUM(F29:F31)-SUM(F45:F48) -> 9.3494 | G32: U Value (W/m²K) | H32: =IF($B$3="Ground floor",'Design Details'!B$49,IF($B$3="Mid-floor",'Design Details'!B$59,IF($B$3="Upper floor",'Design Details'!B$69,IF($B$3="Single Storey",'Design Details'!B$79,0)))) -> 0.12 | I32: =$C$6 -> 21 | J32: 23.560488 | K32: =IF($B$3=$Q$4,0,IF($B$3=$Q$5,0,F32*H32*$C$7*24/1000)) -> 59.99173402
A33: Length (m) | C33: Pitch (m) | E33: Area (m²) | F33: 0 | G33: Pitched
A34: Length (m) | C34: Pitch (m) | E34: Area (m²) | F34: 0 | G34: Single Pitch
D35: Total | E35: Area (m²) | F35: =SUM(F33:F34)-SUM(F45:F48) -> 0 | G35: U Value (W/m²K) | H35: =IF($B$3="Ground floor",'Design Details'!B$50,IF($B$3="Mid-floor",'Design Details'!B$60,IF($B$3="Upper floor",'Design Details'!B$70,IF($B$3="Single Storey",'Design Details'!B$80,0)))) -> 0.12 | I35: 21 | J35: 0 | K35: =IF($B$3=$Q$4,0,IF($B$3=$Q$5,0,F35*H35*$C$7*24/1000)) -> 0
A36: Windows
A37: Width (m) | C37: Height (m) | E37: Area (m²) | F37: 0 | G37: U Value (W/m²K) | H37: =IF($B$3="Ground floor",'Design Details'!B$46,IF($B$3="Mid-floor",'Design Details'!B$56,IF($B$3="Upper floor",'Design Details'!B$66,IF($B$3="Single Storey",'Design Details'!B$76,0)))) -> 2.8 | I37: 21 | J37: 0 | K37: =F37*H37*$C$7*24/1000 -> 0
A38: Width (m) | C38: Height (m) | E38: Area (m²) | F38: 0 | G38: U Value (W/m²K) | H38: =IF($B$3="Ground floor",'Design Details'!B$46,IF($B$3="Mid-floor",'Design Details'!B$56,IF($B$3="Upper floor",'Design Details'!B$66,IF($B$3="Single Storey",'Design Details'!B$76,0)))) -> 2.8 | I38: 21 | J38: 0 | K38: 0
A39: Width (m) | C39: Height (m) | E39: Area (m²) | F39: 0 | G39: U Value (W/m²K) | H39: =IF($B$3="Ground floor",'Design Details'!B$46,IF($B$3="Mid-floor",'Design Details'!B$56,IF($B$3="Upper floor",'Design Details'!B$66,IF($B$3="Single Storey",'Design Details'!B$76,0)))) -> 2.8 | I39: 21 | J39: 0 | K39: 0
A40: Width (m) | C40: Height (m) | E40: Area (m²) | F40: 0 | G40: U Value (W/m²K) | H40: =IF($B$3="Ground floor",'Design Details'!B$46,IF($B$3="Mid-floor",'Design Details'!B$56,IF($B$3="Upper floor",'Design Details'!B$66,IF($B$3="Single Storey",'Design Details'!B$76,0)))) -> 2.8 | I40: 21 | J40: 0 | K40: 0
A41: Width (m) | C41: Height (m) | E41: Area (m²) | F41: 0 | G41: U Value (W/m²K) | H41: =IF($B$3="Ground floor",'Design Details'!B$46,IF($B$3="Mid-floor",'Design Details'!B$56,IF($B$3="Upper floor",'Design Details'!B$66,IF($B$3="Single Storey",'Design Details'!B$76,0)))) -> 2.8 | I41: 21 | J41: 0 | K41: 0
A42: Width (m) | C42: Height (m) | E42: Area (m²) | F42: 0 | G42: U Value (W/m²K) | H42: =IF($B$3="Ground floor",'Design Details'!B$46,IF($B$3="Mid-floor",'Design Details'!B$56,IF($B$3="Upper floor",'Design Details'!B$66,IF($B$3="Single Storey",'Design Details'!B$76,0)))) -> 2.8 | I42: 21 | J42: 0 | K42: 0
A43: Width (m) | C43: Height (m) | E43: Area (m²) | F43: 0 | G43: U Value (W/m²K) | H43: =IF($B$3="Ground floor",'Design Details'!B$46,IF($B$3="Mid-floor",'Design Details'!B$56,IF($B$3="Upper floor",'Design Details'!B$66,IF($B$3="Single Storey",'Design Details'!B$76,0)))) -> 2.8 | I43: 21 | J43: 0 | K43: 0
A44: Roof Glazing
A45: Width (m) | C45: Height (m) | E45: Area (m²) | F45: 0 | G45: U Value (W/m²K) | H45: =IF($B$3="Ground floor",'Design Details'!B$53,IF($B$3="Mid-floor",'Design Details'!B$63,IF($B$3="Upper floor",'Design Details'!B$73,IF($B$3="Single Storey",'Design Details'!B$83,0)))) -> 2.8 | I45: 21 | J45: 0 | K45: =F45*H45*$C$7*24/1000 -> 0
A46: Width (m) | C46: Height (m) | E46: Area (m²) | F46: 0 | G46: U Value (W/m²K) | H46: =IF($B$3="Ground floor",'Design Details'!B$53,IF($B$3="Mid-floor",'Design Details'!B$63,IF($B$3="Upper floor",'Design Details'!B$73,IF($B$3="Single Storey",'Design Details'!B$83,0)))) -> 2.8 | I46: 21 | J46: 0 | K46: =F46*H46*$C$7*24/1000 -> 0
A47: Width (m) | C47: Height (m) | E47: Area (m²) | F47: 0 | G47: U Value (W/m²K) | H47: =IF($B$3="Ground floor",'Design Details'!B$53,IF($B$3="Mid-floor",'Design Details'!B$63,IF($B$3="Upper floor",'Design Details'!B$73,IF($B$3="Single Storey",'Design Details'!B$83,0)))) -> 2.8 | I47: 21 | J47: 0 | K47: =F47*H47*$C$7*24/1000 -> 0
A48: Width (m) | C48: Height (m) | E48: Area (m²) | F48: 0 | G48: U Value (W/m²K) | H48: =IF($B$3="Ground floor",'Design Details'!B$53,IF($B$3="Mid-floor",'Design Details'!B$63,IF($B$3="Upper floor",'Design Details'!B$73,IF($B$3="Single Storey",'Design Details'!B$83,0)))) -> 2.8 | I48: 21 | J48: 0 | K48: =F48*H48*$C$7*24/1000 -> 0
A49: Doors
A50: Width (m) | C50: Height (m) | E50: Area (m²) | F50: 0 | G50: U Value (W/m²K) | H50: =IF($B$3="Ground floor",'Design Details'!B$47,IF($B$3="Mid-floor",'Design Details'!B$57,IF($B$3="Upper floor",'Design Details'!B$67,IF($B$3="Single Storey",'Design Details'!B$77,0)))) -> 2.8 | I50: 21 | J50: 0 | K50: =F50*H50*$C$7*24/1000 -> 0
A51: Width (m) | C51: Height (m) | E51: Area (m²) | F51: 0 | G51: U Value (W/m²K) | H51: =IF($B$3="Ground floor",'Design Details'!B$47,IF($B$3="Mid-floor",'Design Details'!B$57,IF($B$3="Upper floor",'Design Details'!B$67,IF($B$3="Single Storey",'Design Details'!B$77,0)))) -> 2.8 | I51: 21 | J51: 0 | K51: =F51*H51*$C$7*24/1000 -> 0
A52: Width (m) | C52: Height (m) | E52: Area (m²) | F52: 0 | G52: U Value (W/m²K) | H52: =IF($B$3="Ground floor",'Design Details'!B$47,IF($B$3="Mid-floor",'Design Details'!B$57,IF($B$3="Upper floor",'Design Details'!B$67,IF($B$3="Single Storey",'Design Details'!B$77,0)))) -> 2.8 | I52: 21 | J52: 0 | K52: =F52*H52*$C$7*24/1000 -> 0
A53: Width (m) | C53: Height (m) | E53: Area (m²) | F53: 0 | G53: U Value (W/m²K) | H53: =IF($B$3="Ground floor",'Design Details'!B$47,IF($B$3="Mid-floor",'Design Details'!B$57,IF($B$3="Upper floor",'Design Details'!B$67,IF($B$3="Single Storey",'Design Details'!B$77,0)))) -> 2.8 | I53: 21 | J53: 0 | K53: =F53*H53*$C$7*24/1000 -> 0
A54: Internal Walls | L54: Adjoining Room Temp (°C)
A55: Length (m) | C55: Height (m) | E55: Area (m²) | F55: 0 | G55: U Value (W/m²K) | H55: =IF($B$3="Ground floor",'Design Details'!B$51,IF($B$3="Mid-floor",'Design Details'!B$61,IF($B$3="Upper floor",'Design Details'!B$71,IF($B$3="Single Storey",'Design Details'!B$81,0)))) -> 1.72 | I55: =IF(L55="",0,IF(L55="unheated",C$4-10,C$4-L55)) -> 0 | J55: 0
A56: Length (m) | C56: Height (m) | E56: Area (m²) | F56: 0 | G56: U Value (W/m²K) | H56: =IF($B$3="Ground floor",'Design Details'!B$51,IF($B$3="Mid-floor",'Design Details'!B$61,IF($B$3="Upper floor",'Design Details'!B$71,IF($B$3="Single Storey",'Design Details'!B$81,0)))) -> 1.72 | I56: =IF(L56="",0,IF(L56="unheated",C$4-10,C$4-L56)) -> 0 | J56: 0
A57: Length (m) | C57: Height (m) | E57: Area (m²) | F57: 0 | G57: U Value (W/m²K) | H57: =IF($B$3="Ground floor",'Design Details'!B$51,IF($B$3="Mid-floor",'Design Details'!B$61,IF($B$3="Upper floor",'Design Details'!B$71,IF($B$3="Single Storey",'Design Details'!B$81,0)))) -> 1.72 | I57: =IF(L57="",0,IF(L57="unheated",C$4-10,C$4-L57)) -> 0 | J57: 0
A58: Length (m) | C58: Height (m) | E58: Area (m²) | F58: 0 | G58: U Value (W/m²K) | H58: =IF($B$3="Ground floor",'Design Details'!B$51,IF($B$3="Mid-floor",'Design Details'!B$61,IF($B$3="Upper floor",'Design Details'!B$71,IF($B$3="Single Storey",'Design Details'!B$81,0)))) -> 1.72 | I58: =IF(L58="",0,IF(L58="unheated",C$4-10,C$4-L58)) -> 0 | J58: 0
A59: Party Wall
A60: Length (m) | C60: Height (m) | E60: Area (m²) | F60: 0 | G60: U Value (W/m²K) | H60: =IF($B$3="Ground floor",'Design Details'!B$52,IF($B$3="Mid-floor",'Design Details'!B$62,IF($B$3="Upper floor",'Design Details'!B$72,IF($B$3="Single Storey",'Design Details'!B$82,0)))) -> 1 | I60: =C4-10 -> 8 | J60: 0 | K60: =F60*H60*$C$7*24/1000 -> 0

Sheet MCS020
A1: ASHP - Sound Power Level
A2: 1. Sound power level (dB)
A4: 2. Sound pressure level (dB)
A6: 3.Distance from heat pump to assessment position (meters)
A8: 4. dB Distance Reduction | G8: =IF(G4=K14,LOOKUP(G6,L20:Y23,L21:Y21),IF(G4=K15,LOOKUP(G6,L20:Y23,L22:Y22),IF(G4=K16,LOOKUP(G6,L20:Y23,L23:Y23)))) -> FALSE
A10: 5. Barriers Between heat pump and assessment position
A12: 6.Sound pressure level @ assessment position | G12: =G2+G8+LOOKUP(G10,K25:M27,M25:M27) -> 
K13: Sound Pressure Level
A14: 7. Background noise level (dB) | G14: 40 | K14: Q2 - "One Reflective Surface"
K15: Q4 - "Two Reflective Surfaces"
A16: 8. Differential between 6. & 7. | G16: =G14-G12 ->  | K16: Q8 - "Three Reflective Surfaces"
A18: 9. Decibel Correction (dB) | G18: =IF(G12>G14,G12,G14)+LOOKUP(G16,M31:N61,N31:N61) ->  | K18: dB distance reduction
K19: Distance from Heat Pump (meters)
A20: 10. Final Result (dB) | G20: =ROUNDUP(G18,0) ->  | L20: 1 | M20: 1.5 | N20: 2 | O20: 3 | P20: 4 | Q20: 5 | R20: 6 | S20: 8 | T20: 10 | U20: 12 | V20: 15 | W20: 20 | X20: 25 | Y20: 30
K21: Q2 | L21: -8 | M21: -11 | N21: -14 | O21: -17 | P21: -20 | Q21: -21 | R21: -23 | S21: -26 | T21: -28 | U21: -29 | V21: -31 | W21: 34 | X21: -36 | Y21: -37
G22: =IF(G20>42,"Fail","Pass") ->  | K22: Q4 | L22: -5 | M22: -8 | N22: -11 | O22: -14 | P22: -17 | Q22: -19 | R22: -20 | S22: -23 | T22: -25 | U22: -26 | V22: -28 | W22: -31 | X22: -33 | Y22: -34
K23: Q8 | L23: -2 | M23: -5 | N23: -8 | O23: -11 | P23: -14 | Q23: -16 | R23: -17 | S23: -20 | T23: -22 | U23: -23 | V23: -25 | W23: -28 | X23: -30 | Y23: -31
K25: Barrier (no view) | M25: -10
K26: Barrier (partial view) | M26: -5
K27: Visible | M27: 0
K29: Difference between the two noise levels | N29: Add this correction to the higher noise level
M31: -15 | N31: 0.1
M32: -14 | N32: 0.2
M33: -13 | N33: 0.2
M34: -12 | N34: 0.3
M35: -11 | N35: 0.3
M36: -10 | N36: 0.4
M37: -9 | N37: 0.5
M38: -8 | N38: 0.6
M39: -7 | N39: 0.8
M40: -6 | N40: 1
M41: -5 | N41: 1.2
M42: -4 | N42: 1.5
M43: -3 | N43: 1.8
M44: -2 | N44: 2.1
M45: -1 | N45: 2.5
M46: 0 | N46: 3
M47: 1 | N47: 2.5
M48: 2 | N48: 2.1
M49: 3 | N49: 1.8
M50: 4 | N50: 1.5
M51: 5 | N51: 1.2
M52: 6 | N52: 1
M53: 7 | N53: 0.8
M54: 8 | N54: 0.6
M55: 9 | N55: 0.5
M56: 10 | N56: 0.4
M57: 11 | N57: 0.3
M58: 12 | N58: 0.3
M59: 13 | N59: 0.2
M60: 14 | N60: 0.2
M61: 15 | N61: 0.1

Sheet GL Sizing
A1: Ground Loop Sizing | O1: Type of rock | P1: Recommended thermal conductivity (/W/mK)
K2: internal diameter | L2: =LOOKUP(F27,R9:X15,W9:W15) -> 0.0326 | M2: m/s | O2: Magmatites, Plutonite, acid to intermediate, Granite | P2: 3.4
A3: 1 | B3: Type of collector | K3: velocity | L3: =F34/((LOOKUP($F27,$R9:X15,$X9:X15))*1000*3600*F18) ->  | M3: v^² | O3: Magmatites, Plutonite, acid to intermediate, Syenite | P3: 2.6
A4: 2 | B4: Estimate of total heating energy consumption over a year for space heating and domestic hot water | F4: ='Design Details'!F26 -> 26197.63004 | L4: =POWER(L3,2) ->  | M4: m | O4: Magmatites, Plutonite, alkaline to ultra-alkaline, Diorite | P4: 2.6
G5: kWh | K5: Relative Roughness | L5: =L6/(L2*1000) -> 0.0002147239264 | M5: mm | O5: Magmatites, Plutonite, alkaline to ultra-alkaline, Gabbro | P5: 1.9 | R5: Borehole | S5: =F15*2 -> 0 | T5: 10
A6: 3 | B6: HP heating capacity at 0⁰C ground return temperature and design emitter temperature | F6: ='Design Details'!B31 -> 12.61 | K6: Absolute Roughness | L6: =LOOKUP(F33,R17:S18,S17:S18) -> 0.007 | O6: Magmatites, Tuff | P6: 1.1 | R6: Ground Loop | S6: =F15*1 -> 0 | T6: 2
G7: kW | K7: Friction Factor | L7: =POWER((1/((-1.8*LOG((6.9/F39)+(POWER(L5/3.7,1.1)))))),2) ->  | M7: mbar | O7: Magmatites, Vulcanite, acid to intermediate, Latite, Dacite | P7: 2.6
A8: 4 | B8: FLEQ run hours | F8: =IFERROR(F4/F6,0) -> 2077.528155 | G8: hrs | O8: Magmatites, Vulcanite, acid to intermediate, Rhyolite, Trachyte | P8: 3.3 | R8: O/D | S8: Wall thickness | T8: Volume/m | U8: I/D | W8: diameter | X8: area
A9: 5 | B9: Estimated average ground temperature | F9: ='Design Details'!B21 -> 10 | G9: ⁰C | O9: Magmatites, Vulcanite, alkaline to ultra-alkaline, | P9: 1.7 | R9: 25 | S9: 2.3 | T9: =(PI()*U9*U9/4)/1000 -> 0.3268512997 | U9: =R9-(2*S9) -> 20.4 | V9: 100 | W9: =U9/1000 -> 0.0204 | X9: =PI()*POWER(W9,2)/4 -> 0.0003268512997
A10: 6 | B10: Estimated ground thermal conductivity - Please select below | F10: =IFERROR(LOOKUP(B11,O2:P36,P2:P36),"Input Required") -> 2.2 | K10: internal diameter | L10: =LOOKUP(F43,R9:X15,W9:W15) -> 0.0408 | M10: m/s | O10: Metamorphic rock, Moderately to highly metamorphic, Gneiss | P10: 2.2 | R10: 32 | S10: 2.9 | T10: 0.5391287153 | U10: 26.2 | V10: 100 | W10: 0.0262 | X10: 0.0005391287153
B11: Unconsolidated rock, Claystone, siltstone | G11: W/mK | K11: velocity | L11: =F34/((LOOKUP($F43,$R9:X15,$X9:X15))*1000*3600) ->  | M11: v^² | O11: Metamorphic rock, Moderately to highly metamorphic, Marble | P11: 2.5 | R11: 40 | S11: 3.7 | T11: 0.8346897521 | U11: 32.6 | V11: 200 | W11: 0.0326 | X11: 0.0008346897521
A12: 7 | B12: Maximum power to be extracted per meter | F12: =IF(F3="Borehole",'MCS022 data'!D5,IF(F3="Ground Loop",'MCS022 data'!D6,"Input Required")) -> Input Required | G12: W/m | L12: =POWER(L11,2) ->  | M12: m/s | O12: Metamorphic rock, Slightly metamorphic, Chert | P12: 4.5 | R12: 50 | S12: 4.6 | T12: 1.307405199 | U12: 40.8 | V12: 200 | W12: 0.0408 | X12: 0.001307405199
A13: 8 | B13: SCOP | F13: ='Design Details'!B33 -> 3.83 | K13: Gravity | L13: 9.81 | M13: m | O13: Metamorphic rock, Slightly metamorphic, Clay shale | P13: 2.1 | R13: 63 | S13: 5.8 | T13: 2.074990532 | U13: 51.4 | V13: 200 | W13: 0.0514 | X13: 0.002074990532
A14: 9 | B14: Maximum power extracted from the ground | F14: =IFERROR(F6*1000*(1-(1/F13)),0) -> 9317.571802 | G14: W | K14: Relative Roughness | L14: =L15/(L10*1000) -> 0.0001715686275 | M14: mm | O14: Metamorphic rock, Slightly metamorphic, Mica schist | P14: 2.2 | R14: 75 | S14: 6.9 | T14: 2.941661697 | U14: 61.2 | V14: 200 | W14: 0.0612 | X14: 0.002941661697
A15: 10 | B15: Length of ground heat exchanger calculated using the look-up tables | F15: =IFERROR(F14/F12,0) -> 0 | G15: m | K15: Absolute Roughness | L15: =LOOKUP(F33,R17:S18,S17:S18) -> 0.007 | O15: Metamorphic rock, Vulcanite, acid to intermediate, Amphibolite | P15: 2.9 | R15: 90 | S15: 8.3 | T15: 4.231379729 | U15: 73.4 | V15: 200 | W15: 0.0734 | X15: 0.004231379729
A16: 11 | B16: =IF(F3="Ground Loop","Minimum spacing between ground loops","Minimum spacing between boreholes") -> Minimum spacing between boreholes | F16: =IF(F3="Ground Loop",1,7) -> 7 | G16: m | K16: Friction Factor | L16: =POWER((1/((-1.8*LOG((6.9/F47)+(POWER(L14/3.7,1.1)))))),2) ->  | M16: mbar | O16: Metamorphic rock, Vulcanite, acid to intermediate, Quartzite | P16: 5.5
A17: 12 | B17: Total length of ground heat exchanger active elements | F17: =IF(F3="Borehole",S5,S6) -> 0 | G17: m | O17: Metamorphic rock, Vulcanite, acid to intermediate, Rhyolite, Trachyte | P17: 2.9 | R17: PE-100-RC | S17: 0.04
A18: 13 | B18: Amount of loops | F18: Input Required | O18: Solid sediments, Anhydrite | P18: 4.1 | R18: PE-Xa | S18: 0.007
A19: 14 | B19: Min length of loop | F19: =IFERROR(F17/F18,0) -> 0 | G19: m | O19: Solid sediments, Conglomerates | P19: 2.3
A20: 15 | B20: Length of loop | F20: Input Required | G20: m | O20: Solid sediments, Dolomite | P20: 3.2 | R20: 0.1
A21: 16 | B21: =IF(F3="Ground Loop","Length of trench for ground loop @ 1m spacing and depth","Depth of borehole/s") -> Depth of borehole/s | F21: =IFERROR(F20/2,0) -> 0 | G21: m | O21: Solid sediments, Gypsum | P21: 1.6 | R21: 0.2
A22: 17 | B22: Length of header | F22: Input Required | G22: m | O22: Solid sediments, Hard coal | P22: 0.4 | R22: 0.3
O23: Solid sediments, Limestone | P23: 2.8 | R23: 0.4
A24: Pipe Sizing (Loops) | O24: Solid sediments, Marl | P24: 2.1 | R24: 0.5
O25: Solid sediments, Salt | P25: 5.4
A26: 18 | B26: Power Ground HX pump | F26: Input Required | G26: W | O26: Solid sediments, Sandstone | P26: 2.3
A27: 19 | B27: Pipe Diameter | F27: 40 | G27: mm | O27: Unconsolidated rock, Clay/silt, dry | P27: 0.5
A28: 20 | B28: Antifreeze Manufacturer | F28: Input Required | O28: Unconsolidated rock, Clay/silt, water saturated | P28: 1.7
A29: 21 | B29: Antifreeze type i.e. propylene, ethylene | F29: Input Required
A30: 22 | B30: Antifreeze % | F30: Input Required | O30: Unconsolidated rock, Claystone, siltstone | P30: 2.2
